{"text_format":"3","workbook":"xlsx","n_sheets":4,"sheets":["Saisie","GM","Département _ Régions","Revision"],"not_rendered":{"images":7,"macros":1,"external_links":3,"defined_names":4},"read":"whole","date_system":"1900"}

{"sheet":"Saisie","index":0,"n_rows":579,"n_cols":30,"rows_kept":579,"merged":[[3,6,3,7],[4,6,4,7],[5,6,5,7],[6,13,6,16],[6,17,6,20]]}
[null,null,"Site usuel",{"$f":"COUNTIF($B$9:$B$1023,C1)","v":326},null,null,"Version sites","V135",{"$nulls":3},"Observatoire",{"$nulls":6},"N","E"]
[null,null,"Rassemblement",{"$f":"COUNTIF($B$9:$B$1023,C2)","v":31},null,null,"Date sites","2014-08-13",{"$nulls":3},"Observatoire",{"$nulls":6},"S","W"]
[null,null,"Gîtes ou Camping",{"$f":"COUNTIF($B$9:$B$1023,C3)","v":115},null,null,"Version feuille",{"$f":"MAX(Revision!C7:C50)","v":"2013-04-22"},{"$nulls":3},"Observatoire"]
[null,null,"Observatoire",{"$f":"COUNTIF($B$9:$B$1023,C4)","v":95},null,null,"Nous écrire",{"$nulls":4},"Observatoire"]
[null,null,"Nombre de sites total",{"$f":"SUBTOTAL(3,C10:C1023)","v":567},null,null,"GRESAC"]
[null,null,"Nombre de sites valides ",{"$f":"SUBTOTAL(3,M10:M1023)","v":555},null,null,"AVEX"]
[{"$nulls":13},"Latitude",{"$nulls":3},"Longitude"]
["N°","Type","Site ","Dépt","Région","Pays","Commune","Indice PL","Alt","Description","Site Web","Origine","Status","..°",".. '","..''","N/S","..°",".. '","..''","E/W","Lien Site Internet","Image","LOGO","Contact","Source Info Photo","GRESACKIEN","Date de saisie","Date de révision"]
[0,"information",{"$f":"\"- GRESAC - Version \"&H1&\" (ceci n'est pas un POI)\"","v":"- GRESAC - Version V135 (ceci n'est pas un POI)"},75,"-","-","-",0,"-","La couleur des symboles est organisée comme suit : <br><b>Blanc 0-15 étoiles</b> visibles (hors planètes) selon les conditions Pollution. lumineuse très et omniprésente. Typique des très grands centres urbains et grande métropole régionale et nationale <br><b>Magenta : 25-80 d’étoiles</b> visibles, les principales constellations commencent à être reconnaissable <br><b>Rouge : 80 -150 étoiles</b> : les constellations et quelques étoiles supplémentaires apparaissent. Au télescope, certains Messiers se laissent apercevoir <br><b>Orange : 150-250 étoiles</b> visibles, dans de bonnes conditions, la pollution est omniprésente, mais quelques coins de ciel plus noirs apparaissent ; typiquement moyenne banlieue.<br><b>Jaune : 250-500 étoiles</b> : Pollution lumineuse encore forte Voie Lactée peut apparaître dans de très bonnes conditions. Certains Messiers parmi les plus brillants peuvent être perçus à l’oeil nu <br><b>Vert : 500-1000 étoiles</b> : grande banlieue tranquille, faubourg des métropoles, Voie Lactée souvent perceptible, mais très sensible encore aux conditions atmosphériques ; typiquement les halos de pollution lumineuse occupent qu’une partie du Ciel et montent à 40 -50° de hauteur <br><b>Cyan : 1000-1500 étoiles</b> : La Voie Lactée est visible la plupart du temps en fonction des conditions climatiques) mais sans éclats, elle se distingue sans plus <br><b>Bleu : 1500-2000 étoiles</b> : Bon ciel la Voie Lactée se détache assez nettement, on commence à avoir la sentions d’un bon ciel, néanmoins, des sources éparses de pollution lumineuse sabotent encore le ciel ici et la en seconde réflexion, le ciel à la verticale de l’observateur <br><b>Bleu nuit : 2000-3000 étoiles</b> : Bon ciel : Voie Lactée présente et assez puissante les halos lumineux sont très lointain et dispersé, ils n’affectent pas notoirement la qualité du ciel <br><b>Noir : + 3000 étoiles</b> visibles, plus de problèmes de pollution lumineuse décelable sur la qualité du ciel",null,"Ne pas enlever cette ligne - Astrogones","Vxx",48,51,31,"N",2,17,40,"E","http://avex.org.free.fr/dossiers/?page_id=38","http://gresac.free.fr/logo-transparent.png",null,null,{"$f":"IF(ISBLANK(W9),\" \",\"Droits Réservés\")","v":"Droits Réservés"},"eric"]
[1,"Site usuel","Aerodrome de Belvezet",30,{"$f":"IFERROR(VLOOKUP(D10,'Département _ Régions'!$C$4:$F$99,4),\"\")","v":"Languedoc-Roussillon"},"F","Belvezet",15,260,"Sud dégagé mais PL d'uzès devient génante, site privé mis à dispo du club, peu de turbu (venté)","Club Astro Antares (30)","Forum Webastro","v",44,4,56,"N",4,23,33,"E","http://www.webastro.net/forum/showthread.php?p=353295#post353295",{"$nulls":3},{"$f":"IF(ISBLANK(W10),\" \",\"Droits Réservés\")","v":" "},"eric",null,"2013-04-02"]
[2,"Site usuel","Aerodrome de Mende Brenoux",48,{"$f":"IFERROR(VLOOKUP(D11,'Département _ Régions'!$C$4:$F$99,4),\"\")","v":"Languedoc-Roussillon"},"F","Mende",15,1050,"Pour une sortie « sur le pouce » près de Mende, dégagé, spot Disco au N-O et Mende au N",null,"Forum Webastro","v",44,30,45,"N",3,31,35,"E","http://www.webastro.net/forum/showthread.php?p=303070 - post303070",{"$nulls":3}," ","eric",null,"2013-04-02"]
[3,"Site usuel","Arcenant",21,{"$f":"IFERROR(VLOOKUP(D12,'Département _ Régions'!$C$4:$F$99,4),\"\")","v":"Bourgogne"},"F","Arcenant",15,470,null,null,"Forum Futura-Sciences","v",47,7,31,"N",4,50,23,"E","http://forums.futura-sciences.com/materiel-astronomique-photos-damateurs/171881-coordonnees-gps-sites-dobservation-france.html",{"$nulls":3}," ","eric",null,"2013-04-02"]
[4,"Site usuel","Bret",{"v":1,"d":"01"},{"$f":"IFERROR(VLOOKUP(D13,'Département _ Régions'!$C$4:$F$99,4),\"\")","v":"Rhône-Alpes"},"F","Joyeux",15,290,"Voie Lactée la plus proche de Lyon, chemin, humide++, pas de ½ tour possible ! Horizon Sud limité par le halo Lyonnais",null,"Forum Webastro","v",45,56,53,"N",5,7,22,"E","http://www.webastro.net/forum/showpost.php?p=247949&postcount=32",null,null,"eric.demarez@free.fr"," ","eric",null,"2013-04-02"]
[5,"Site usuel","Buno-Bonnevaux",91,{"$f":"IFERROR(VLOOKUP(D14,'Département _ Régions'!$C$4:$F$99,4),\"\")","v":"Ile-de-France"},"F","Buno-Bonnevaux",10,125,"Pas de passage de voitures, mais humidité++",null,"Forum Webastro","v",48,21,29,"N",2,24,42,"E","http://www.webastro.net/forum/showthread.php?p=319695 - post319695",{"$nulls":3}," ","eric",null,"2013-04-02"]
[6,"Site usuel","Caserne du Restefond",{"v":4,"d":"04"},{"$f":"IFERROR(VLOOKUP(D15,'Département _ Régions'!$C$4:$F$99,4),\"\")","v":"PACA"},"F","Jausiers",20,2600,"Excellent et très réputé, plusieurs sites possibles",null,null,"v",44,20,40,"N",6,47,49,"E",{"$nulls":4}," ","eric",null,"2013-04-02"]
[7,"Site usuel","Chambon des Neiges",63,{"$f":"IFERROR(VLOOKUP(D16,'Département _ Régions'!$C$4:$F$99,4),\"\")","v":"Auvergne"},"F","Chambon/Lac",19,1200,"Petite station de ski, cul de sac, joli « Spot »",null,"Forum Futura-Sciences","v",45,33,21,"N",2,51,22,"E","http://forums.futura-sciences.com/materiel-astronomique-photos-damateurs/171881-coordonnees-gps-sites-dobservation-france-2.html",{"$nulls":3}," ","eric",null,"2013-04-02"]
[8,"Site usuel","Champ du feu",67,{"$f":"IFERROR(VLOOKUP(D17,'Département _ Régions'!$C$4:$F$99,4),\"\")","v":"Alsace"},"F","Belmont",16,1050,"Le site le plus connu du quart N-E, vaste et... protégé !  SQM moy 21,1 max 21,5","Collectif pour la prot. du ciel au CDF","Forum Futura-Sciences","v",48,24,10,"N",7,16,4,"E","http://astrosurf.com/astrocdf67/","http://www.astrosurf.com/astrocdf67/ressources/CDF_star_party_octobre_2005_serge_schittly1.jpg",null,null,"Photo S, Schittly","eric",null,"2013-04-02"]
[9,"Site usuel","Champ Floux",38,{"$f":"IFERROR(VLOOKUP(D18,'Département _ Régions'!$C$4:$F$99,4),\"\")","v":"Rhône-Alpes"},"F","Quincieu",15,730,"Dégagé, calme, belle vue, parfois venté, parfois enneigé, chemin herbeux, moins humide que plaines","Albedo 38","Mail GRESAC","v",45,16,31,"N",5,23,55,"E","http://albedo38.free.fr/index.php/accueil",{"$nulls":3},{"$f":"IF(ISBLANK(W18),\" \",\"Droits Réservés\")","v":" "},"eric",null,"2013-04-02"]
[10,"Site usuel","Chapelle St Amand",66,{"$f":"IFERROR(VLOOKUP(D19,'Département _ Régions'!$C$4:$F$99,4),\"\")","v":"Languedoc-Roussillon"},"F","Montauriol",17,270,"Accessible en voiture",null,"Forum Futura-Sciences","v",42,34,30,"N",2,42,2,"E","http://forums.futura-sciences.com/materiel-astronomique-photos-damateurs/171881-coordonnees-gps-sites-dobservation-france.html","http://gresac.free.fr/photos/montauriol.JPG",null,"steph73.s@orange.fr","Photo Stéphane","eric",null,"2013-04-06"]
[11,"Site usuel","Chapelle St Pons",66,{"$f":"IFERROR(VLOOKUP(D20,'Département _ Régions'!$C$4:$F$99,4),\"\")","v":"Languedoc-Roussillon"},"F","Caixas",18,600,"Accessible en voiture",null,"Forum Futura-Sciences","v",42,36,37,"N",2,38,39,"E","http://forums.futura-sciences.com/materiel-astronomique-photos-damateurs/171881-coordonnees-gps-sites-dobservation-france.html",{"$nulls":3},{"$f":"IF(ISBLANK(W20),\" \",\"Droits Réservés\")","v":" "},"eric",null,"2013-04-06"]
[12,"Site usuel","Château des Portes",30,{"$f":"IFERROR(VLOOKUP(D21,'Département _ Régions'!$C$4:$F$99,4),\"\")","v":"Languedoc-Roussillon"},"F","Portes",12,560,"“StarGate” site fréquenté par le club Antares","Club Astro Antares (30)","Forum Webastro","v",44,16,5,"N",4,1,33,"E","http://www.webastro.net/forum/showthread.php?p=317636#post317636",{"$nulls":3}," ","eric",null,"2013-04-06"]
[13,"Site usuel","Col Agnel",{"v":5,"d":"05"},{"$f":"IFERROR(VLOOKUP(D22,'Département _ Régions'!$C$4:$F$99,4),\"\")","v":"PACA"},"F","Molines-en-Q",20,2700,"Site d'exeption à la frontière avec l'Italie",null,"Forum Astrosurf","v",44,41,2,"N",6,58,47,"E","http://www.astrosurf.com/ubb/Forum2/HTML/024836.html",{"$nulls":3}," ","eric",null,"2013-04-06"]
[14,"Site usuel","Col de Beal",63,{"$f":"IFERROR(VLOOKUP(D23,'Département _ Régions'!$C$4:$F$99,4),\"\")","v":"Auvergne"},"F","St Pierre la B",19,1390,null,null,"Forum Webastro","v",45,41,8,"N",3,46,58,"E","http://www.webastro.net/forum/showthread.php?p=322145 - post322145",{"$nulls":3}," ","eric",null,"2013-04-06"]
[15,"Site usuel","Col de Boco Jolere",66,{"$f":"IFERROR(VLOOKUP(D24,'Département _ Régions'!$C$4:$F$99,4),\"\")","v":"Languedoc-Roussillon"},"F","Campôme",19,950,"Accessible en voiture",null,"Forum Futura-Sciences","v",42,40,35,"N",2,26,14,"E","http://forums.futura-sciences.com/materiel-astronomique-photos-damateurs/171881-coordonnees-gps-sites-dobservation-france.html",{"$nulls":3}," ","eric",null,"2013-04-06"]
[16,"Site usuel","Col de Fau",38,{"$f":"IFERROR(VLOOKUP(D25,'Département _ Régions'!$C$4:$F$99,4),\"\")","v":"Rhône-Alpes"},"F","Monestier-de-C",17,950,"En fait ce site est précisément au Col de Fraisse mais plus connu sous le nom du col de Fau (ou Col de Faou) un peu plus bas sur la Nationnale.",null,"Forum Webastro","v",44,53,52,"N",5,38,21,"E","http://www.webastro.net/forum/showpost.php?p=262532&postcount=7",{"$nulls":3}," ","eric",null,"2013-04-06"]
[17,"Site usuel","Col de Fay 1",{"v":1,"d":"01"},{"$f":"IFERROR(VLOOKUP(D26,'Département _ Régions'!$C$4:$F$99,4),\"\")","v":"Rhône-Alpes"},"F","Fay",15,750,"PL vers l'Ouest, mais superbe vue sur la vallée du Rhône, tourner au calvaire, venté, neige",null,"Forum Webastro","v",45,52,52,"N",5,24,36,"E","http://www.webastro.net/forum/showthread.php?p=125349 - post125349","http://storage.canalblog.com/59/90/103640/11535782_p.jpg",null,"eric.demarez@free.fr","Photo E, Demarez","eric",null,"2013-04-06"]
[18,"Site usuel","Col de Fay 2",{"v":1,"d":"01"},{"$f":"IFERROR(VLOOKUP(D27,'Département _ Régions'!$C$4:$F$99,4),\"\")","v":"Rhône-Alpes"},"F","Fay",15,750,"Après le col à dte vers Souclin, abrité par des arbres et généralement déneigé mais horizon un peu limité.",null,"Forum Webastro","v",45,52,38,"N",5,24,24,"E","http://www.webastro.net/forum/showpost.php?p=124142&postcount=1",null,null,"eric.demarez@free.fr",{"$f":"IF(ISBLANK(W27),\" \",\"Droits Réservés\")","v":" "},"eric",null,"2013-04-06"]
[19,"Site usuel","Col de la Baraque",30,{"$f":"IFERROR(VLOOKUP(D28,'Département _ Régions'!$C$4:$F$99,4),\"\")","v":"Languedoc-Roussillon"},"F","Lamelouze",17,760,"Espece de petite esplanade sur le GR (site du Club Antares)",null,"Forum Webastro","v",44,13,7,"N",3,56,6,"E","http://www.webastro.net/forum/showthread.php?p=306838 - post306838",{"$nulls":3},{"$f":"IF(ISBLANK(W28),\" \",\"Droits Réservés\")","v":" "},"eric",null,"2013-04-06"]
[20,"Site usuel","Cap Blanc Nez",62,{"$f":"IFERROR(VLOOKUP(D29,'Département _ Régions'!$C$4:$F$99,4),\"\")","v":"Nord-Pas-de-Calais"},"F","Escalles",13,160,"Pas d'éclairage, site naturel classé. Cependant pour s'avancer sur l'extrémité du CAP c'est a pieds ; les voitures y étant interdites. Sur 240° environ c'est la mer, et de l'autre coté les villes de Coquelles, Calais. Un site qui peut etre extrément venteux, mais on peut s'abriter,",null,"Forum Webastro","V82",50,55,30,"N",1,42,34,"E","http://www.webastro.net/forum/showthread.php?p=320169 - post320169",{"$nulls":3},{"$f":"IF(ISBLANK(W29),\" \",\"Droits Réservés\")","v":" "},"eric",null,"2013-04-06"]
[21,"Site usuel","Col de la Madeleine ",84,{"$f":"IFERROR(VLOOKUP(D30,'Département _ Régions'!$C$4:$F$99,4),\"\")","v":"PACA"},"F","Bedoin",17,600,"Moins venté que le Ventoux (!),  bien dans toutes les directions",null,"Forum Webastro","v",44,8,16,"N",5,8,32,"E","http://www.webastro.net/forum/showthread.php?p=320169 - post320169",{"$nulls":3},{"$f":"IF(ISBLANK(W30),\" \",\"Droits Réservés\")","v":" "},"eric",null,"2013-04-06"]
[22,"Site usuel","Col de Morena",66,{"$f":"IFERROR(VLOOKUP(D31,'Département _ Régions'!$C$4:$F$99,4),\"\")","v":"Languedoc-Roussillon"},"F","Osseja",19,2200,"Accessible en voiture",null,"Forum Futura-Sciences","v",42,21,20,"N",2,1,33,"E","http://forums.futura-sciences.com/materiel-astronomique-photos-damateurs/171881-coordonnees-gps-sites-dobservation-france.html",{"$nulls":3},{"$f":"IF(ISBLANK(W31),\" \",\"Droits Réservés\")","v":" "},"eric",null,"2013-04-06"]
[23,"Site usuel","Col de Portes (Grande bete)",{"v":1,"d":"01"},{"$f":"IFERROR(VLOOKUP(D32,'Département _ Régions'!$C$4:$F$99,4),\"\")","v":"Rhône-Alpes"},"F","Ordonnaz",17,910,"À G avant d'arriver à Ordonnaz, entre 2 crêts, fréquenté par le club Sirius","Club Sirius Villefontaine","Forum Webastro","v",45,50,34,"N",5,31,14,"E","http://sirius.astroclub.free.fr/","http://sirius.astroclub.free.fr/s2wp/images/photos/2005-08-06ord/ord05080601.jpg","http://sirius.astroclub.free.fr/s2wp/images/logo_sirius.jpg","eric.demarez@free.fr","Photo C, MIR","eric",null,"2013-04-06"]
[24,"Site usuel","Col de portes (Rivoire)",{"v":1,"d":"01"},{"$f":"IFERROR(VLOOKUP(D33,'Département _ Régions'!$C$4:$F$99,4),\"\")","v":"Rhône-Alpes"},"F","Ordonnaz",17,880,"Entre le col et Ordonnaz, à droite entre 2 champs, vue sur la vallée du Rhône au loin. Horizon un peu limité à l'Est. Quelques passages de voitures.",null,"Forum Webastro","v",45,50,38,"N",5,30,20,"E","http://www.webastro.net/forum/showpost.php?p=168910&postcount=15",null,null,"eric.demarez@free.fr",{"$f":"IF(ISBLANK(W33),\" \",\"Droits Réservés\")","v":" "},"eric",null,"2013-04-06"]
[25,"Site usuel","Col des Abeilles",84,{"$f":"IFERROR(VLOOKUP(D34,'Département _ Régions'!$C$4:$F$99,4),\"\")","v":"PACA"},"F","Monieux",19,1000,"Super pour le S, le S-E et le S-O, 2 sites de part et d'autre de la route",null,"Forum Webastro","v",44,5,34,"N",5,19,46,"E","http://www.webastro.net/forum/showthread.php?p=320169 - post320169",{"$nulls":3}," ","eric",null,"2013-04-06"]
[26,"Site usuel","Col du Breitfirst",68,{"$f":"IFERROR(VLOOKUP(D35,'Département _ Régions'!$C$4:$F$99,4),\"\")","v":"Alsace"},"F","Oderen",17,1250,"Près du Markstein, route des crêtes, Un probleme, lorsqu'il y a du vent, on a que les yeux pour pleurer. Sinon, une bonne transparance du ciel et les 4 horizons quasi dégagés. Inaccessible en hiver, le site se trouvant sur la route des cretes, la route n'est pas déneigée. Le reste du temps, qques passages de voitures",null,"Mail GRESAC","v",47,57,8,"N",7,2,1,"E",{"$nulls":4}," ","eric",null,"2013-04-06"]
[27,"Site usuel","Col du Coq",38,{"$f":"IFERROR(VLOOKUP(D36,'Département _ Régions'!$C$4:$F$99,4),\"\")","v":"Rhône-Alpes"},"F","St Pancrasse",16,1450,"Peu de PL, Nord bouché, bien dégagé à l'E et O",null,"Forum Futura-Sciences","v",45,18,5,"N",5,50,2,"E","http://forums.futura-sciences.com/materiel-astronomique-photos-damateurs/171881-coordonnees-gps-sites-dobservation-france-3.html",{"$nulls":3}," ","eric",null,"2013-04-06"]
[28,"Site usuel","Col du Grand Colombier",{"v":1,"d":"01"},{"$f":"IFERROR(VLOOKUP(D37,'Département _ Régions'!$C$4:$F$99,4),\"\")","v":"Rhône-Alpes"},"F","Virieu-le-Petit",17,1500,"Grand parking, parfois fréquenté, venté ?",null,null,"v",45,54,13,"N",5,45,43,"E",{"$nulls":4}," ","eric",null,"2013-04-06"]
[29,"Site usuel","Col d'Uglas Citerne",30,{"$f":"IFERROR(VLOOKUP(D38,'Département _ Régions'!$C$4:$F$99,4),\"\")","v":"Languedoc-Roussillon"},"F","Mialet",18,540,null,"Club Astro Antares (30)","Forum Webastro","v",44,8,40,"N",3,55,26,"E","http://www.webastro.net/forum/showthread.php?p=317636#post317636",{"$nulls":3}," ","eric",null,"2013-04-08"]
[30,"Site usuel","Col d'Uglas Piste",30,{"$f":"IFERROR(VLOOKUP(D39,'Département _ Régions'!$C$4:$F$99,4),\"\")","v":"Languedoc-Roussillon"},"F","Mialet",17,670,"la Pl d'ales monte à plus de quarante degrés à l'est ","Club Astro Antares (30)","Forum Webastro","v",44,8,28,"N",3,56,58,"E","http://www.webastro.net/forum/showthread.php?p=317636#post317636",{"$nulls":3}," ","eric",null,"2013-04-08"]
[31,"Site usuel","Cormet de Roselend",73,{"$f":"IFERROR(VLOOKUP(D40,'Département _ Régions'!$C$4:$F$99,4),\"\")","v":"Rhône-Alpes"},"F","Beaufort/Doron",19,2000,"Un peu de PL à l'O par Alberville",null,"Forum Webastro","v",45,41,30,"N",6,41,21,"E","http://www.webastro.net/forum/showthread.php?p=271478 - post271478",null,null,"eric.demarez@free.fr"," ","eric",null,"2013-04-08"]
[32,"Site usuel","Corsavy terrain de sport",66,{"$f":"IFERROR(VLOOKUP(D41,'Département _ Régions'!$C$4:$F$99,4),\"\")","v":"Languedoc-Roussillon"},"F","Corsavy",19,800,"Accessible en voiture",null,"Forum Futura-Sciences","v",42,28,17,"N",2,35,14,"E","http://forums.futura-sciences.com/materiel-astronomique-photos-damateurs/171881-coordonnees-gps-sites-dobservation-france.html",{"$nulls":3}," ","eric",null,"2013-04-08"]
[33,"Site usuel","Corsavy Tour de Batere",66,{"$f":"IFERROR(VLOOKUP(D42,'Département _ Régions'!$C$4:$F$99,4),\"\")","v":"Languedoc-Roussillon"},"F","Corsavy",19,1400,"Accessible en voiture, route en terre bien praticable",null,"Forum Futura-Sciences","v",42,30,30,"N",2,34,41,"E","http://forums.futura-sciences.com/materiel-astronomique-photos-damateurs/171881-coordonnees-gps-sites-dobservation-france.html",{"$nulls":3}," ","eric",null,"2013-04-08"]
[34,"Site usuel","Cret d'Arjoux",69,{"$f":"IFERROR(VLOOKUP(D43,'Département _ Régions'!$C$4:$F$99,4),\"\")","v":"Rhône-Alpes"},"F","St-Julien/Bibost",16,700,null,null,"Forum Webastro","v",45,48,54,"N",4,30,25,"E","http://www.webastro.net/forum/showthread.php?p=320192 - post320192",null,null,"eric.demarez@free.fr"," ","eric",null,"2013-04-08"]
[35,"Site usuel","D22c",{"v":1,"d":"01"},{"$f":"IFERROR(VLOOKUP(D44,'Département _ Régions'!$C$4:$F$99,4),\"\")","v":"Rhône-Alpes"},"F","Chalamont",15,290,"Mon premier site proche de Lyon, mais passage de voitures et humidité",null,"Forum Webastro","v",45,57,3,"N",5,10,6,"E","http://www.webastro.net/forum/showpost.php?p=124142&postcount=1",null,null,"eric.demarez@free.fr"," ","eric",null,"2013-04-08"]
[36,"Site usuel","Ferme de Cinquantes",31,{"$f":"IFERROR(VLOOKUP(D45,'Département _ Régions'!$C$4:$F$99,4),\"\")","v":"Midi-Pyrénées"},"F","Ramonville-St-A",1,140,"Accès facile, pique-nique possible, mais proche Toulouse et péage donc PL ++",null,"Forum Webastro","v",43,32,36,"N",1,29,40,"E","http://www.webastro.net/forum/showthread.php?t=22951",{"$nulls":3}," ","eric",null,"2013-04-08"]
[37,"Site usuel","Foret de Bouconne",31,{"$f":"IFERROR(VLOOKUP(D46,'Département _ Régions'!$C$4:$F$99,4),\"\")","v":"Midi-Pyrénées"},"F","Montaigut/Save",11,190,"PL maitrisée, peu de passage, ds forêt, facile à trouver, barbecue ! SQM : Polaire 20.40 - Zénith 20.20",null,"Forum Webastro","v",43,39,57,"N",1,13,37,"E","http://www.webastro.net/forum/showthread.php?t=22951",{"$nulls":3}," ","eric",null,"2013-04-08"]
[38,"Gîtes ou Camping","Gite des Camporells",66,{"$f":"IFERROR(VLOOKUP(D47,'Département _ Régions'!$C$4:$F$99,4),\"\")","v":"Languedoc-Roussillon"},"F","Mont-Louis",19,2290,"Site expeptionnel mais... 2 heures de marche ? (refuge avec gardien Astronome !)","Gite de Camporells","Forum Futura-Sciences","v",42,37,20,"N",2,0,54,"E","http://www.pyrenees-refuges.com/fr/affiche.php?numenr=80","http://www.pyrenees-refuges.com/photo/camporeils3.jpg",null,null,"Photo Cerdagne,free,fr","eric",null,"2013-04-08"]
[39,"Gîtes ou Camping","Gite du Lievre",26,{"$f":"IFERROR(VLOOKUP(D48,'Département _ Régions'!$C$4:$F$99,4),\"\")","v":"Rhône-Alpes"},"F","La Roche-sur-le-Buis",19,910,"Camping, Bungalows, Auberge, équitation...","Gite du Lievre","Forum Webastro","v",44,15,46,"N",5,22,38,"E","http://www.gitedulievre.com/gite-du-lievre.html","http://photos.itea.fr/photos/gites26/G/photo/G278949.jpg",null,null,"©  Gites de France","eric",null,"2013-04-08"]
[40,"Site usuel","Hohneck CAF",68,{"$f":"IFERROR(VLOOKUP(D49,'Département _ Régions'!$C$4:$F$99,4),\"\")","v":"Alsace"},"F","Stosswihr",17,1210,"Moins haut que le sommet mais abrité, à vérifier en hiver, peu de passage",null,"Forum Futura-Sciences","v",48,3,11,"N",7,1,22,"E","http://forums.futura-sciences.com/materiel-astronomique-photos-damateurs/171881-coordonnees-gps-sites-dobservation-france-3.html",null,null,"eric.demarez@free.fr",{"$f":"IF(ISBLANK(W49),\" \",\"Droits Réservés\")","v":" "},"eric",null,"2013-04-08"]
[41,"Site usuel","Hohneck sommet",68,{"$f":"IFERROR(VLOOKUP(D50,'Département _ Régions'!$C$4:$F$99,4),\"\")","v":"Alsace"},"F","Stosswihr",17,1320,"Dégagé 360° mais venté +++",null,"Forum Futura-Sciences","v",48,2,16,"N",7,0,55,"E","http://forums.futura-sciences.com/materiel-astronomique-photos-damateurs/171881-coordonnees-gps-sites-dobservation-france-3.html","http://gresac.free.fr/photos/hohneck.JPG",null,"eric.demarez@free.fr","Photo E, Demarez","eric",null,"2013-04-08"]
[42,"Gîtes ou Camping","La Champ (gite)",48,{"$f":"IFERROR(VLOOKUP(D51,'Département _ Régions'!$C$4:$F$99,4),\"\")","v":"Languedoc-Roussillon"},"F","Mas-Saint-Chély",19,960,"Gites 4 à 35 pers sur le Causse Méjean - SQM : 21,48","La Champ",null,"v",44,18,32,"N",3,27,49,"E","http://www.causses-cevennes.com/gite-causse-mejean/default.htm","http://www.causses-cevennes.com/gite-causse-mejean/images/a.jpg",null,null,"© La Champ","eric",null,"2013-04-08"]
[43,"Site usuel","La Citerne",48,{"$f":"IFERROR(VLOOKUP(D52,'Département _ Régions'!$C$4:$F$99,4),\"\")","v":"Languedoc-Roussillon"},"F","Cros-Garnon",19,990,"Spot réputé, tente possible mais bord Parc Cévennes, ouvert S et O, protégé E et N, ½ cuvette",null,"Forum Astrosurf","v",44,18,20,"N",3,30,28,"E","http://www.astrosurf.com/ubb/Forum13/HTML/001326.html",{"$nulls":3},{"$f":"IF(ISBLANK(W52),\" \",\"Droits Réservés\")","v":" "},"eric",null,"2013-04-08"]
[44,"Site usuel","Le Fraissinel",48,{"$f":"IFERROR(VLOOKUP(D53,'Département _ Régions'!$C$4:$F$99,4),\"\")","v":"Languedoc-Roussillon"},"F","St-Bauzile",18,1000,"Ciel noir, mais boite de nuit à l'O, site « étroit » ! 1 lampadaire à proximité mais sans gène, cuvette",null,"Forum Webastro","v",44,26,26,"N",3,29,39,"E","http://www.webastro.net/forum/showthread.php?p=303070 - post303070",{"$nulls":3},{"$f":"IF(ISBLANK(W53),\" \",\"Droits Réservés\")","v":" "},"eric",null,"2013-04-08"]
[45,"Site usuel","Le Margeriaz",73,{"$f":"IFERROR(VLOOKUP(D54,'Département _ Régions'!$C$4:$F$99,4),\"\")","v":"Rhône-Alpes"},"F","Aillon-le-Vieux",16,1390,"Station de ski qui se finit en cul de sac, ce qui veut dire qu'il n'y a pas de passage et aucune habitation, site super hors saison de ski.\n",null,"Forum Webastro","v",45,38,46,"N",6,3,46,"E","http://www.webastro.net/forum/showthread.php?p=317329 - post317329","http://www.webastro.net/upload/images/5770-1223473513.jpg",null,null,"Photo Dédé de St Fé","eric",null,"2013-04-08"]
[46,"Site usuel","Le Saleve 1",74,{"$f":"IFERROR(VLOOKUP(D55,'Département _ Régions'!$C$4:$F$99,4),\"\")","v":"Rhône-Alpes"},"F","Monnetier-Mornex",11,1260,"dégagé plein sud,parking et table d'orientation sur le Mont-Blanc",null,"Forum Astrosurf","v",46,8,1,"N",6,10,54,"E","http://www.astrosurf.com/ubb/Forum3/HTML/037241.html",{"$nulls":3},{"$f":"IF(ISBLANK(W55),\" \",\"Droits Réservés\")","v":" "},"eric",null,"2013-04-08"]
[47,"Site usuel","Les Cabannes de Fourquets",66,{"$f":"IFERROR(VLOOKUP(D56,'Département _ Régions'!$C$4:$F$99,4),\"\")","v":"Languedoc-Roussillon"},"F","La Preste",19,1620,"Un « Must » accessible en voiture",null,"Forum Futura-Sciences","v",42,26,9,"N",2,23,47,"E","http://forums.futura-sciences.com/materiel-astronomique-photos-damateurs/555343-une-tulipe-fourquets.html","http://img52.imageshack.us/img52/2163/20120817164451.jpg",null,null,"Photo Pickering","eric",null,"2013-04-08"]
[48,"Site usuel","Lieudieu",38,{"$f":"IFERROR(VLOOKUP(D57,'Département _ Régions'!$C$4:$F$99,4),\"\")","v":"Rhône-Alpes"},"F","Lieudieu",16,510,"En campagne, entre 2 champs, PL modérée, fréquenté par Astrams de Lyon et Vienne",null,"Forum Webastro","v",45,28,14,"N",5,11,6,"E","http://www.webastro.net/forum/showthread.php?p=166829#post166829","http://i89.servimg.com/u/f89/12/79/92/30/sortie10.jpg",null,null,"Photo Poussin38","eric",null,"2013-04-08"]
[49,"Site usuel","Logrian",30,{"$f":"IFERROR(VLOOKUP(D58,'Département _ Régions'!$C$4:$F$99,4),\"\")","v":"Languedoc-Roussillon"},"F","Logrian",14,120,null,null,"Forum Webastro","v",43,57,33,"N",4,2,25,"E","http://www.webastro.net/forum/showthread.php?p=308916&highlight=logrian - post308916",{"$nulls":3},{"$f":"IF(ISBLANK(W58),\" \",\"Droits Réservés\")","v":" "},"eric",null,"2013-04-08"]
[50,"Site usuel","Malaucene (ventoux)",84,{"$f":"IFERROR(VLOOKUP(D59,'Département _ Régions'!$C$4:$F$99,4),\"\")","v":"PACA"},"F","Malaucene",17,600,null,null,"Forum Webastro","v",44,9,21,"N",5,8,51,"E","http://www.webastro.net/forum/showthread.php?t=17154",{"$nulls":3}," ","eric",null,"2013-04-08"]
[51,"Site usuel","Mespuits",91,{"$f":"IFERROR(VLOOKUP(D60,'Département _ Régions'!$C$4:$F$99,4),\"\")","v":"Ile-de-France"},"F","Mespuits",13,120,"Un lampadaire au loin, pas génant, gros halo au Nord, peu de passage",null,"Forum Webastro","v",48,22,38,"N",2,17,48,"E","http://www.webastro.net/forum/showthread.php?p=319695 - post319695",{"$nulls":3}," ","eric",null,"2013-04-08"]
[52,"Site usuel","Mont Beuvray",71,{"$f":"IFERROR(VLOOKUP(D61,'Département _ Régions'!$C$4:$F$99,4),\"\")","v":"Bourgogne"},"F","St-leger-ss-B",19,800,"Proche Paris, beau ciel noir",null,"Forum Webastro","v",46,55,17,"N",4,2,14,"E","http://www.webastro.net/forum/showthread.php?p=322300 - post322300",{"$nulls":3}," ","eric",null,"2013-04-08"]
[53,"Site usuel","Mont Brion",30,{"$f":"IFERROR(VLOOKUP(D62,'Département _ Régions'!$C$4:$F$99,4),\"\")","v":"Languedoc-Roussillon"},"F","Ste-Croix-de-C",18,820,null,null,"Forum Webastro","v",44,4,50,"N",3,50,34,"E","http://www.webastro.net/forum/showthread.php?p=317636#post317636",{"$nulls":3}," ","eric",null,"2013-04-08"]
[54,"Site usuel","N124 aire de repos",32,{"$f":"IFERROR(VLOOKUP(D63,'Département _ Régions'!$C$4:$F$99,4),\"\")","v":"Midi-Pyrénées"},"F","Pujaudran",11,270,"Facile d'accès... mais bc de passage !",null,"Forum Webastro","v",43,35,26,"N",1,7,39,"E","http://www.webastro.net/forum/showthread.php?t=22951",{"$nulls":3}," ","eric",null,"2013-04-08"]
[55,"Site usuel","Notre Dame des Dombes",{"v":1,"d":"01"},{"$f":"IFERROR(VLOOKUP(D64,'Département _ Régions'!$C$4:$F$99,4),\"\")","v":"Rhône-Alpes"},"F","Le Plantay",15,275,"Meilleur site de la Dombes, proche de Lyon, un peu de passage (le samedi !), parfois humide, mvlon Umi : 5,6 ",null,"Forum Webastro","v",46,2,21,"N",5,5,37,"E","http://www.webastro.net/forum/showthread.php?p=310689 - post310689","http://mw2.google.com/mw-panoramio/photos/medium/40778762.jpg",null,"eric.demarez@free.fr","© Panoramio dwg","eric",null,"2013-04-08"]
[56,"Site usuel","Paray Douaville",78,{"$f":"IFERROR(VLOOKUP(D65,'Département _ Régions'!$C$4:$F$99,4),\"\")","v":"Ile-de-France"},"F","Paray-Douaville",14,150,"Bord de route peu fréquentée, Voie Lactée visible, plutôt en hiver",null,"Forum Webastro","v",48,27,15,"N",1,51,16,"E","http://www.webastro.net/forum/showthread.php?p=325935 - post325935",{"$nulls":3},{"$f":"IF(ISBLANK(W65),\" \",\"Droits Réservés\")","v":" "},"eric",null,"2013-04-08"]
[57,"Site usuel","Petit Croix",90,{"$f":"IFERROR(VLOOKUP(D66,'Département _ Régions'!$C$4:$F$99,4),\"\")","v":"Franche-Comté"},"F","Petit-Croix",7,360,null,null,"Forum Futura-Sciences","v",47,37,13,"N",6,59,11,"E","http://forums.futura-sciences.com/materiel-astronomique-photos-damateurs/171881-coordonnees-gps-sites-dobservation-france-3.html",{"$nulls":3},{"$f":"IF(ISBLANK(W66),\" \",\"Droits Réservés\")","v":" "},"eric",null,"2013-04-08"]
[58,"Site usuel","Polastron",30,{"$f":"IFERROR(VLOOKUP(D67,'Département _ Régions'!$C$4:$F$99,4),\"\")","v":"Languedoc-Roussillon"},"F","St-Germain-de-C",18,720,"C'est le site le plus noir du coin. Mais la route est longue et sinueuse (environ 50 minutes d'Ales)",null,"Forum Webastro","v",44,13,30,"N",3,49,53,"E","http://www.webastro.net/forum/showthread.php?p=306838&highlight=polastron - post306838",{"$nulls":3},{"$f":"IF(ISBLANK(W67),\" \",\"Droits Réservés\")","v":" "},"eric",null,"2013-04-08"]
[59,"Site usuel","Pompignan",30,{"$f":"IFERROR(VLOOKUP(D68,'Département _ Régions'!$C$4:$F$99,4),\"\")","v":"Languedoc-Roussillon"},"F","Pompignan",16,300,"Pas exempt de pollution lumineuse mais pas un mauvais spot et c'est éloigné des villes - SQM : 21,03",null,"Forum Webastro","v",43,52,39,"N",3,51,43,"E","http://www.webastro.net/forum/showthread.php?p=317636 - post317636",{"$nulls":3},{"$f":"IF(ISBLANK(W68),\" \",\"Droits Réservés\")","v":" "},"eric",null,"2013-04-08"]
[60,"Site usuel","Ramboz",{"v":1,"d":"01"},{"$f":"IFERROR(VLOOKUP(D69,'Département _ Régions'!$C$4:$F$99,4),\"\")","v":"Rhône-Alpes"},"F","Le Petit-Abergement",18,980,"Théoriquement le meilleur ciel à 1h de Lyon, au bord d'une route peu fréquentée. Aucune PL directe visible, halo inexistant",null,"Forum Webastro","v",46,5,12,"N",5,39,54,"E","http://www.webastro.net/forum/showthread.php?p=212249 - post212249",null,null,"eric.demarez@free.fr",{"$f":"IF(ISBLANK(W69),\" \",\"Droits Réservés\")","v":" "},"eric",null,"2013-04-08"]
[62,"Rassemblement","RAP",43,{"$f":"IFERROR(VLOOKUP(D70,'Département _ Régions'!$C$4:$F$99,4),\"\")","v":"Auvergne"},"F","Craponne-sur-A",12,950,"Le plus grand rassemblement annuel, la ville éteind son éclairage pour l'occasion (Ciel -> 19/20)","les RAP",null,"v",45,19,27,"N",3,50,4,"E","http://astrosurf.com/rap/","http://avex.org.free.fr/gresac/360/rap.jpg","http://www.astrosurf.com/rap/logorap.jpg",null,"Photo F, Tapissier","eric",null,"2013-04-08"]
[63,"Rassemblement","RIVA (Site AVEX) ",60,{"$f":"IFERROR(VLOOKUP(D71,'Département _ Régions'!$C$4:$F$99,4),\"\")","v":"Picardie"},"F","Parnes",11,110,"Lieu où se tiennent les fameuses RIVA Rencontre Interclub Val d'oise Astronomique, par ext : grand Ouest parisien","AVEX Vexin",null,"v",49,12,45,"N",1,45,7,"E","http://avex.org.free.fr/","http://avex.org.free.fr/gresac/360/parnes.jpg","http://avex.org.free.fr/charte/avex-typo-rouge-glass-small.png",null,"Photo F, Tapissier","eric",null,"2013-04-08"]
[64,"Site usuel","Sarrians",84,{"$f":"IFERROR(VLOOKUP(D72,'Département _ Régions'!$C$4:$F$99,4),\"\")","v":"PACA"},"F","Sarrians",13,70,"PL acceptable, se mettre au milieu du champ ",null,"Forum Webastro","v",44,6,25,"N",4,58,11,"E","http://www.webastro.net/forum/showthread.php?p=320169 - post320169",{"$nulls":3},{"$f":"IF(ISBLANK(W72),\" \",\"Droits Réservés\")","v":" "},"eric",null,"2013-04-08"]
[65,"Site usuel","Saulx le Duc",21,{"$f":"IFERROR(VLOOKUP(D73,'Département _ Régions'!$C$4:$F$99,4),\"\")","v":"Bourgogne"},"F","Saulx-le-duc",17,390,"Plateau dégagé, pl légère au N, éclairage de Saulx coupés la nuit",null,"Forum Webastro","v",47,31,53,"N",5,1,4,"E","http://www.webastro.net/forum/showthread.php?p=317360 - post317360",{"$nulls":3},{"$f":"IF(ISBLANK(W73),\" \",\"Droits Réservés\")","v":" "},"eric",null,"2013-04-08"]
[66,"Site usuel","Sentein",{"v":9,"d":"09"},{"$f":"IFERROR(VLOOKUP(D74,'Département _ Régions'!$C$4:$F$99,4),\"\")","v":"Midi-Pyrénées"},"F","Sentein",19,1220,"Parking en terre, large et plat, chemin forestier, dégagé nord-ouest",null,"Forum Futura-Sciences","v",42,52,47,"N",0,55,8,"E","http://forums.futura-sciences.com/showthread.php?p=1415858&highlight=sentein - post1415858",{"$nulls":3},{"$f":"IF(ISBLANK(W74),\" \",\"Droits Réservés\")","v":" "},"eric",null,"2013-04-08"]
[67,"Site usuel","Seynes",30,{"$f":"IFERROR(VLOOKUP(D75,'Département _ Régions'!$C$4:$F$99,4),\"\")","v":"Languedoc-Roussillon"},"F","Seynes",15,240,"Repli du Club Antares en cas de vent","Club Astro Antares (30)",null,"v",44,6,57,"N",4,16,9,"E",{"$nulls":4},{"$f":"IF(ISBLANK(W75),\" \",\"Droits Réservés\")","v":" "},"eric",null,"2013-04-08"]
[68,"Site usuel","Signal d Uchon",71,{"$f":"IFERROR(VLOOKUP(D76,'Département _ Régions'!$C$4:$F$99,4),\"\")","v":"Bourgogne"},"F","Uchon",18,640,"Proche Paris, Petite montagne sauvage, amoncellement de rochers granitiques, belle lande, dominant les vallées. Ciel noir, M13 visible à l\\'oeil nu. Une auberge forestière toute proche pour passer le reste de la nuit (site n°368). ",null,"Forum Webastro","v",46,48,23,"N",4,15,14,"E","http://www.webastro.net/forum/showthread.php?p=322300 - post322300","http://mw2.google.com/mw-panoramio/photos/medium/15363985.jpg",null,"dobson.2005@gmail.com","©  Panoramio Saint Didier","eric",null,"2013-04-08"]
[69,"Site usuel","Site Alpin AVEX",{"v":5,"d":"05"},{"$f":"IFERROR(VLOOKUP(D77,'Département _ Régions'!$C$4:$F$99,4),\"\")","v":"PACA"},"F","Orcieres",18,1900,"Site astronomique de montagne AVEX : Un peu de PL émise par la station mais peu impactante du fait de l’altitude","AVEX Vexin",null,"v",44,41,54,"N",6,19,2,"E","http://avex.org.free.fr/","http://avex.org.free.fr/gresac/360/orciere.jpg","http://avex.org.free.fr/charte/avex-typo-rouge-glass-small.png",null,"Photo F, Tapissier","eric",null,"2013-04-08"]
[70,"Site usuel","Site AVEX  de Parnes ",60,{"$f":"IFERROR(VLOOKUP(D78,'Département _ Régions'!$C$4:$F$99,4),\"\")","v":"Picardie"},"F","Parnes",11,110,"Site Usuel AVEX, grand terrain","AVEX Vexin",null,"v",49,12,45,"N",1,45,7,"E","http://avex.org.free.fr/","http://avex.org.free.fr/gresac/360/parnes.jpg","http://avex.org.free.fr/charte/avex-typo-rouge-glass-small.png",null,"Photo F, Tapissier","eric",null,"2013-04-08"]
[71,"Site usuel","Site AVEX  d Enfer",95,{"$f":"IFERROR(VLOOKUP(D79,'Département _ Régions'!$C$4:$F$99,4),\"\")","v":"Ile-de-France"},"F","Wy-dit-joli-Village",10,140,"Site usuel du club AVEX, peu utilisé. Amélioration des conditions de pollution lumineuse après minuit","AVEX Vexin",null,"v",49,5,26,"N",1,49,7,"E","http://avex.org.free.fr/","http://avex.org.free.fr/gresac/360/enfer.jpg","http://avex.org.free.fr/charte/avex-typo-rouge-glass-small.png",null,"Photo F, Tapissier","eric",null,"2013-04-08"]
[72,"Site usuel","Site AVEX de Lalande",60,{"$f":"IFERROR(VLOOKUP(D80,'Département _ Régions'!$C$4:$F$99,4),\"\")","v":"Picardie"},"F","Lalande",14,170,"le meilleur site Astro du Bassin Parisien, site usuel AVEX","AVEX Vexin",null,"v",49,22,37,"N",1,49,0,"E","http://avex.org.free.fr/","http://avex.org.free.fr/gresac/360/lalande.jpg","http://avex.org.free.fr/charte/avex-typo-rouge-glass-small.png",null,"Photo F, Tapissier","eric",null,"2013-04-08"]
[73,"Site usuel","Solemont",25,{"$f":"IFERROR(VLOOKUP(D81,'Département _ Régions'!$C$4:$F$99,4),\"\")","v":"Franche-Comté"},"F","Solemont",15,560,null,null,"Forum Futura-Sciences","v",47,20,47,"N",6,42,59,"E","http://forums.futura-sciences.com/materiel-astronomique-photos-damateurs/171881-coordonnees-gps-sites-dobservation-france-3.html",{"$nulls":3},{"$f":"IF(ISBLANK(W81),\" \",\"Droits Réservés\")","v":" "},"eric",null,"2013-04-09"]
[74,"Site usuel","Sommet du Salbert",90,{"$f":"IFERROR(VLOOKUP(D82,'Département _ Régions'!$C$4:$F$99,4),\"\")","v":"Franche-Comté"},"F","Salbert",6,620,null,null,"Forum Futura-Sciences","v",47,39,35,"N",6,48,46,"E","http://forums.futura-sciences.com/materiel-astronomique-photos-damateurs/171881-coordonnees-gps-sites-dobservation-france-3.html",{"$nulls":3}," ","eric",null,"2013-04-09"]
[75,"Site usuel","Sommet du Ventoux",84,{"$f":"IFERROR(VLOOKUP(D83,'Département _ Régions'!$C$4:$F$99,4),\"\")","v":"PACA"},"F","Malaucene",19,1910,"Venté ++, rester sous le sommet",null,"Forum Webastro","v",44,10,19,"N",5,16,37,"E","http://www.webastro.net/forum/showthread.php?p=320169 - post320169",{"$nulls":3}," ","eric",null,"2013-04-09"]
[76,"Site usuel","Spot AVEX",23,{"$f":"IFERROR(VLOOKUP(D84,'Département _ Régions'!$C$4:$F$99,4),\"\")","v":"Limousin"},"F","St-Martin-Chateaux",19,700,"Site usuel de l'association AVEX","AVEX Vexin",null,"v",45,52,21,"N",1,51,47,"E","http://avex.org.free.fr/",null,"http://avex.org.free.fr/charte/avex-typo-rouge-glass-small.png",null," ","eric",null,"2013-04-09"]
[77,"Site usuel","St jean de Maurienne",73,{"$f":"IFERROR(VLOOKUP(D85,'Département _ Régions'!$C$4:$F$99,4),\"\")","v":"Rhône-Alpes"},"F","St-Jean-de-M",10,500,"Beaucoup de montagnes limitent l'horizon",null,"Forum Futura-Sciences","v",45,16,30,"N",6,21,45,"E","http://forums.futura-sciences.com/materiel-astronomique-photos-damateurs/171881-coordonnees-gps-sites-dobservation-france-2.html",{"$nulls":3}," ","eric",null,"2013-04-09"]
[78,"Site usuel","St Olive",{"v":1,"d":"01"},{"$f":"IFERROR(VLOOKUP(D86,'Département _ Régions'!$C$4:$F$99,4),\"\")","v":"Rhône-Alpes"},"F","St-Olive",15,290,"Plus élevé que Sulignat, géné par Villefranche",null,"Forum Webastro","v",46,1,37,"N",4,55,50,"E","http://www.webastro.net/forum/showthread.php?t=23855",{"$nulls":3}," ","eric",null,"2013-04-09"]
[79,"Site usuel","St Privat des vieux",30,{"$f":"IFERROR(VLOOKUP(D87,'Département _ Régions'!$C$4:$F$99,4),\"\")","v":"Languedoc-Roussillon"},"F","St-Privat-des-vieux",9,160,"PL génante, parking en gravier parfois fermé","Club Astro Antares (30)",null,"v",44,8,20,"N",4,8,7,"E",{"$nulls":4}," ","eric",null,"2013-04-09"]
[80,"Site usuel","St regis du coin",42,{"$f":"IFERROR(VLOOKUP(D88,'Département _ Régions'!$C$4:$F$99,4),\"\")","v":"Rhône-Alpes"},"F","St-Regis-du-Coin",18,1170,"Dans le Pilat, en bord de route",null,"Forum Webastro","v",45,16,16,"N",4,27,51,"E","http://www.webastro.net/forum/showthread.php?p=317593 - post317593",{"$nulls":3}," ","eric",null,"2013-04-09"]
[81,"Site usuel","Sulignat",{"v":1,"d":"01"},{"$f":"IFERROR(VLOOKUP(D89,'Département _ Régions'!$C$4:$F$99,4),\"\")","v":"Rhône-Alpes"},"F","Sulignat",15,210,null,null,"Forum Webastro","v",46,12,46,"N",4,56,10,"E","http://www.webastro.net/forum/showpost.php?p=240141&postcount=30",{"$nulls":3}," ","eric",null,"2013-04-09"]
[82,"Site usuel","Super Collet",38,{"$f":"IFERROR(VLOOKUP(D90,'Département _ Régions'!$C$4:$F$99,4),\"\")","v":"Rhône-Alpes"},"F","Le Collet-d'A",18,1670,"Accès voiture OK, Est bouché, PL par Chambéry au N",null,"Forum Futura-Sciences","v",45,23,34,"N",6,7,35,"E","http://forums.futura-sciences.com/materiel-astronomique-photos-damateurs/171881-coordonnees-gps-sites-dobservation-france-3.html",{"$nulls":3}," ","eric",null,"2013-04-09"]
[83,"Site usuel","Sur Lyand",{"v":1,"d":"01"},{"$f":"IFERROR(VLOOKUP(D91,'Département _ Régions'!$C$4:$F$99,4),\"\")","v":"Rhône-Alpes"},"F","Corbonod",18,1320,"Ce n'est pas rare qu'il y ait beaucoup de vent !",null,"Forum Webastro","v",45,57,6,"N",5,46,2,"E","http://www.webastro.net/forum/showthread.php?p=317335 - post317335",{"$nulls":3}," ","eric",null,"2013-04-09"]
[84,"Site usuel","Tour de Montfalet",38,{"$f":"IFERROR(VLOOKUP(D92,'Département _ Régions'!$C$4:$F$99,4),\"\")","v":"Rhône-Alpes"},"F","Laval",11,650,"Accès voiture délicat sur 75m (4x4 ?), PL par Grenoble au S et S-O, Est limité par massif",null,"Forum Futura-Sciences","v",45,15,22,"N",5,55,36,"E","http://forums.futura-sciences.com/materiel-astronomique-photos-damateurs/171881-coordonnees-gps-sites-dobservation-france-3.html",{"$nulls":3}," ","eric",null,"2013-04-09"]
[85,"Observatoire","Astro Chinon (observatoire)",37,{"$f":"IFERROR(VLOOKUP(D93,'Département _ Régions'!$C$4:$F$99,4),\"\")","v":"Centre"},"F","Chinon",9,90,"Seuls le centre ville de Chinon et la zone commerciale  nord (lampes ULOR 0) restent allumés la nuit, les quartiers alentours, les villages de la communes de Chinon sont éteints à  23h. Zone protégée contre toute construction  :  secteur viticole. Voie Lactée visible ainsi que plusieurs objets de Messier. Horizon ouest et nord-ouest  pollués. Les communes de la vallée de la Vienne sont éteintes dans un rayon de 15 km. Quant aux halos des agglomérations voisines, la ville de Tours est perceptible ainsi que la zone nord-ouest de l'observatoire (Avoine, centrale nucléaire). ","Astrochinon",null,"V12",47,10,9,"N",0,16,32,"E","http://www.astrochinon.fr/","http://astrochinon.fr/images/assoc/observatoire/vig-observatoire-1.jpg","http://astrochinon.fr/templates/bizblue/images/logo.gif",null,"©  Astrochinon","eric",null,"2013-05-11"]
[86,"Gîtes ou Camping","Betaillole (Gite)",19,{"$f":"IFERROR(VLOOKUP(D94,'Département _ Régions'!$C$4:$F$99,4),\"\")","v":"Limousin"},"F","St-Bonnet-Elvert",17,520,"Gîte de France, PL insignifiante, table et accueil généreux","Betaiilole","Forum Webastro","V12",45,10,9,"N",1,54,49,"E","http://betaillole.com/index.html","http://betaillole.com/images/betaillole.jpg","http://global.mmm.re/images/logo/logo_gitesdefrance.gif",null,"©  Gite Bétaillole","eric",null,"2013-04-10"]
[87,"Gîtes ou Camping","Gite du Larzac",12,{"$f":"IFERROR(VLOOKUP(D95,'Département _ Régions'!$C$4:$F$99,4),\"\")","v":"Midi-Pyrénées"},"F","Creissels",13,710,"Gite tenu par un astronome, ciel acceptable sur place, splendide à proximité","Gite du Larzac",null,"V12",44,4,16,"N",3,4,16,"E","http://www.legitedularzac.fr/index.html","http://www.larzac.org/images/larzac/accueillir/brunasextgrd.jpg",null,null,"©  Gite du Larzac","eric",null,"2013-04-10"]
[88,"Gîtes ou Camping","Relais du terrail (gite)",{"v":5,"d":"05"},{"$f":"IFERROR(VLOOKUP(D96,'Département _ Régions'!$C$4:$F$99,4),\"\")","v":"PACA"},"F","Ventavon",17,600,"Centre équestre, chambre d'hôte, proprios sympas, dégagé vers le sud, pas de PL","Relais du Terrail","Forum Webastro","V12",44,22,2,"N",5,53,41,"E","http://lerelaisduterrail.skyrock.com/","http://93.img.v4.skyrock.net/0915/39360915/pics/2107650387_1_83_gyCCEDea.jpg",null,null,"© Relais du terrail","eric",null,"2013-04-11"]
[89,"Observatoire","Sirene (observatoire)",84,{"$f":"IFERROR(VLOOKUP(D97,'Département _ Régions'!$C$4:$F$99,4),\"\")","v":"PACA"},"F","Lagarde-d'Apt",19,1100,"Observatoire","Sirene","Forum Webastro","V12",44,0,0,"N",5,29,13,"E","http://www.obs-sirene.com/","http://cyprien.pouzenc.free.fr/Divers/Panoramique%20Sirene.jpg","http://www.obs-sirene.com/sites/all/themes/sirene/images/logo.png",null,"Photo C, Pouzenc","eric",null,"2013-04-11"]
[90,"Observatoire","St Saturnin (observatoire)",49,{"$f":"IFERROR(VLOOKUP(D98,'Département _ Régions'!$C$4:$F$99,4),\"\")","v":"Pays de la Loire"},"F","St-Saturnin/Loire",11,70,"Observatoire du AAA (Association Astronomique d'Anjou)","Assoc Astro d'Anjou",null,"V12",47,23,11,"N",0,24,47,"W","http://aaanjou.pagesperso-orange.fr/index.html","http://aaanjou.pagesperso-orange.fr/images/cadran%20analemmatique/2007-cad%202-3%20(600%20x%20450).jpg","http://aaanjou.pagesperso-orange.fr/documents/LOGO%20AAA.jpg",null,"©  AAA","eric",null,"2013-04-11"]
[91,"Observatoire","Col de la Lebe (observatoire)",{"v":1,"d":"01"},{"$f":"IFERROR(VLOOKUP(D99,'Département _ Régions'!$C$4:$F$99,4),\"\")","v":"Rhône-Alpes"},"F","Sutrieu",17,860,"Observatoire du Valromey, dans le Bugey","Obs du Col de la Lebe",null,"V13",45,54,57,"N",5,37,36,"E","http://www.astroval-observatoire.fr/","http://www.astroval-observatoire.fr/images/Articles_photos/tous%20les%20intruments.jpg","http://www.astroval-observatoire.fr/images/Logo%20Obs%20II.png",null,"©  Obs de la Lebe","eric",null,"2013-04-11"]
[92,"Gîtes ou Camping","Labastide Murat (gite)",46,{"$f":"IFERROR(VLOOKUP(D100,'Département _ Régions'!$C$4:$F$99,4),\"\")","v":"Midi-Pyrénées"},"F","Labastide-Murat",15,370,"Gite de France, petit maison de vigne, 2 chambres, au milieu des bois, sur un promontoire",null,"Astres Chevelus","V13",44,38,9,"N",1,33,52,"E","http://www.astreschevelus.fr/articles.php?lng=fr&pg=55","http://www.astreschevelus.fr/photo/Gites/laba.jpg",null,null,"©  Astre Chevelus","eric",null,"2013-04-11"]
[93,"Gîtes ou Camping","Quissac (gite)",46,{"$f":"IFERROR(VLOOKUP(D101,'Département _ Régions'!$C$4:$F$99,4),\"\")","v":"Midi-Pyrénées"},"F","Quissac",15,400,"Gite de France dans le triangle noir, grand terrain, 3 chambres",null,"Astres Chevelus","V13",44,38,52,"N",1,44,1,"E","http://www.astreschevelus.fr/articles.php?lng=fr&pg=56","http://www.astreschevelus.fr/photo/Gites/quissac.jpg",null,null,"© Astre Chevelus","eric",null,"2013-04-11"]
[94,"Gîtes ou Camping","Astroguindaine (gite)",{"v":5,"d":"05"},{"$f":"IFERROR(VLOOKUP(D102,'Département _ Régions'!$C$4:$F$99,4),\"\")","v":"PACA"},"F","Villar-d'Arene",19,1900,"A la fois gîte et Observatoire, organisation de stages et/ou location au particulier.","Astroguindaine",null,"V14",45,2,33,"N",6,21,46,"E","http://www.astroguindaine.com/index.php?nav=1","http://www.astrosurf.com/jpbousquet/guindaine.jpg","http://www.astroguindaine.com/images/ressources/baniere-association-astro-guindaine.png",null,"©  Astroguindaine","eric",null,"2013-04-11"]
[95,"Observatoire","Astroguindaine (observatoire)",{"v":5,"d":"05"},{"$f":"IFERROR(VLOOKUP(D103,'Département _ Régions'!$C$4:$F$99,4),\"\")","v":"PACA"},"F","Villar-d'Arene",19,1900,"A la fois gîte et Observatoire, organisation de stages et/ou location au particulier.","Astroguindaine",null,"V14",45,2,33,"N",6,21,46,"E","http://www.astroguindaine.com/index.php?nav=1","http://www.astrosurf.com/jpbousquet/guindaine.jpg","http://www.astroguindaine.com/images/ressources/baniere-association-astro-guindaine.png",null,"©  Astroguindaine","eric",null,"2013-04-11"]
[96,"Gîtes ou Camping","Les Amis du Cele (gite 2)",46,{"$f":"IFERROR(VLOOKUP(D104,'Département _ Régions'!$C$4:$F$99,4),\"\")","v":"Midi-Pyrénées"},"F","Orniac",17,280,"2ème gite dépendant des Amis du Célé, plus isolé, accés délicat","Les Amis du Cele",null,"V14",44,31,32,"N",1,41,6,"E","http://www.gincv.com/centre-de-vacances-pres-375.html","http://www.gincv.com/centre-de-vacances-375-LesamisduCeleSite.jpg",null,null,"©  Amis du Célé","eric",null,"2013-04-11"]
[97,"Gîtes ou Camping","Les Amis du Cele (gite)",46,{"$f":"IFERROR(VLOOKUP(D105,'Département _ Régions'!$C$4:$F$99,4),\"\")","v":"Midi-Pyrénées"},"F","Orniac",17,140,"Gîte « Le Liauzou » à Orniac, vaste, avec cuisinier, pour Stars Parties","Les Amis du Cele",null,"V14",44,31,12,"N",1,40,42,"E","http://www.gincv.com/centre-de-vacances-pres-375.html","http://www.gincv.com/centre-de-vacances-375-LesamisduCeleSite.jpg",null,null,"©  Amis du Célé","eric",null,"2013-04-11"]
[98,"Observatoire","Observatoire de Lyon",69,{"$f":"IFERROR(VLOOKUP(D106,'Département _ Régions'!$C$4:$F$99,4),\"\")","v":"Rhône-Alpes"},"F","St Genis-Laval",2,290,"Observatoire historique encore utilisé par la SAL et l'UCBL, avec une lunette coudée unique","Obs de Lyon",null,"V14",45,41,43,"N",4,46,57,"E","http://www-obs.univ-lyon1.fr/","http://www-obs.univ-lyon1.fr/IMG/jpg/coudee.jpg","http://www-obs.univ-lyon1.fr/IMG/logo_ucbl_new.jpg",null,"© CRAL","eric",null,"2013-04-11"]
[99,"Observatoire","Parc aux etoiles (Observatoire)",78,{"$f":"IFERROR(VLOOKUP(D107,'Département _ Régions'!$C$4:$F$99,4),\"\")","v":"Ile-de-France"},"F","Triel/Seine",3,177,"Observatoire de Triel,ciel médiocre mais lunette mytique qui a vu passé des grands noms...","Parc aux Etoiles",null,"V14",48,59,55,"N",2,0,37,"E","http://www.parcauxetoiles.fr/","http://www.parcauxetoiles.fr/images/parc.jpg","http://www.parcauxetoiles.fr/images/logo.jpg",null,"©  Parc aux Etoiles","eric",null,"2013-04-11"]
[100,"Gîtes ou Camping","St martin-chateaux (gite)",23,"Limousin","F","St-Martin-Chateaux",19,450,"Gîte de \"La Clavelle\" : Maison idépendante, 6 pers, Pollution peu génante, dégagé++","St Martin-Chateaux",null,"V14",45,52,6,"N",1,47,17,"E","http://www.saint-martin-chateau.fr/smart/tourisme/githam.php","http://www.saint-martin-chateau.fr/smart/tourisme/img/clavl.jpg",null,null,{"$f":"IF(ISBLANK(W108),\" \",\"Droits Réservés\")","v":"Droits Réservés"},"Xavier",null,"2013-04-08"]
[101,"Site usuel","Col de la Casse Froide",69,"Rhône-Alpes","F","Beaujeu",18,740,"Horizons dégagés (sauf sud-est) - Facilité d’accès : 15 minutes de virages-  Possibilité de garer une dizaine de véhicule - A noter : champs problématique avant la fauche des foins.","AstroSaône","Forum Webastro","V15",46,7,15,"N",4,31,49,"E","http://www.astrosaone.fr/spip/",null,"http://www.astrosaone.fr/spip/local/cache-vignettes/L140xH140/siteon0-8aa3a.png",null,{"$f":"IF(ISBLANK(W109),\" \",\"Droits Réservés\")","v":" "},"Xavier",null,"2013-04-08"]
[102,"Site usuel","La Roche de Vic",19,"Limousin","F","Albussac",18,636,"Table d'orientation, panorama 360°, Faible PL au Sud et O-NO, belle Voie Lactée, M31 à l'oeil nu",null,"MP Webastro","V15",45,7,15,"N",1,47,22,"E",null,"http://p4.storage.canalblog.com/42/45/342075/20517707.jpg",null,"dedios.yan@caramail.com","© Philippe Courant","Xavier",null,"2013-04-08"]
[103,"Gîtes ou Camping","Le Clos du Lac (camping)",{"v":5,"d":"05"},"PACA","F","St-Apollinaire",19,1450,"Camping***, lieu des RASSP, petit village dominant le lac, micro climat (?)","Le Clos du Lac","Forum Webastro","V15",44,33,42,"N",6,20,46,"E","http://www.camping-closdulac.com/",{"$nulls":3},{"$f":"IF(ISBLANK(W111),\" \",\"Droits Réservés\")","v":" "},"Xavier",null,"2013-04-08"]
[104,"Gîtes ou Camping","Le Mont Orel (camping)",{"v":5,"d":"05"},"PACA","F","St-Andre-d'Embrun",18,1160,"Camping à la ferme, isolé, micro climat","Camping du mont d'Orel","Forum Webastro","V15",44,34,20,"N",6,32,20,"E","http://www.serreponcon-tourisme.com/fiche-presentation_camping-506-FR-K-cfMONTOREL-ETE-HEBERGEMENTSP.html","http://www.serreponcon-tourisme.com/images/prestataires/camping-le-mont-orel-st-andre-d-embrun-lac-de-serre-poncon-557.jpg",null,null,"© Comité de Promotion de Serre-Ponçon","Xavier",null,"2013-04-08"]
[105,"Site usuel","Maury",66,"Languedoc-Roussillon","F","Maury",19,357,"Parking, qq lampadaires au loin, qq voitures, PL par Perpignan au SE",null,"MP Webastro","V15",42,49,56,"N",2,35,37,"E",null,"http://static.panoramio.com/photos/1920x1280/30591298.jpg",null,"inico@aliceadsl.fr","© Panoramio - mrblagues","Xavier",null,"2013-04-08"]
[106,"Site usuel","Relange",88,"Lorraine","F","Relanges",14,310,"Dégagé 360° , PL par l'église de Darney au SE",null,"MP Webastro","V15",48,6,34,"N",6,1,25,"E",{"$nulls":3},"inico@aliceadsl.fr",{"$f":"IF(ISBLANK(W114),\" \",\"Droits Réservés\")","v":" "},"Xavier",null,"2013-04-08"]
[107,"Site usuel","Suc au May",19,"Limousin","F","Chaumeil",19,900,"Table d'orientation, au porte du plateau de Millevache, parking herbeux, venté, faible PL O-SO",null,"MP Webastro","V15",45,28,17,"N",1,50,33,"E",null,"http://p0.storage.canalblog.com/02/93/208348/61379454.jpg",null,"dedios.yan@caramail.com","© Charlot 94","Xavier",null,"2013-04-08"]
[108,"Site usuel","Stade de Montagny Ste Felicite",60,"Picardie","F","Montagny-Ste-F",8,110,"Praticable si pas de match ! Voie lactée et qq Messier visibles, sud dégagé, PL à l'ouest par Roissy",null,"Forum Webastro","V16",49,7,35,"N",2,44,8,"E",{"$nulls":4},{"$f":"IF(ISBLANK(W116),\" \",\"Droits Réservés\")","v":" "},"Xavier",null,"2013-04-08"]
[109,"Gîtes ou Camping","Le Petit Telle",{"v":4,"d":"04"},"PACA","F","Puimoisson",19,680,"Gîte **** - mas en pierre de 1730 - dégagé 360°- mvlon 6,9 – sqm 21,76 – décl lim obs 47°10' Sud","Le Petit Telle",null,"V17",43,53,42,"N",6,4,49,"E","http://www.gite-provence-verdon.com","http://www.gite-provence-verdon.com/wp-content/vue-sur-la-cour-interieure-du-gite-du-petit-telle1.jpg",null,null,"© Le Petit Telle","Xavier",null,"2013-04-08"]
[110,"Site usuel","Le Plomb du Cantal",15,"Auvergne","F","Aldepierre-B",20,1820,"Point culminant du Cantal. Accès par un téléphérique ou …à pied!","Plomb du Cantal","http://www.webastro.net/forum/showthread.php?p=339374 - post339374","V17",45,3,31,"N",2,45,41,"E",null,"http://upload.wikimedia.org/wikipedia/commons/9/9c/PlombCantal.JPG",null,null,{"$f":"IF(ISBLANK(W118),\" \",\"Droits Réservés\")","v":"Droits Réservés"},"Xavier",null,"2013-04-08"]
[111,"Observatoire","Obs de Montredon Labessonnie",81,"Midi-Pyrénées","F","Montredon-L",18,530,"Le seul site professionnel d'animation en astronomie du Tarn","Obs de Montredon-Labessonnie","Forum Webastro","V17",43,43,16,"N",2,20,27,"E","http://pagesperso-orange.fr/planetarn/","http://pagesperso-orange.fr/planetarn/visite/observatoire3.jpg",null,"planetarn@orange.fr","© P.E.G.A.A.S.E.","Xavier",null,"2013-04-08"]
[112,"Observatoire","Observatoire de Flagey",25,"Franche-Comté","F","Flagey",13,615,null,"Observatoire de Flagey",null,"V17",47,2,23,"N",6,7,34,"E","http://www.felopaul.com/","http://www.felopaul.com/cons/cons73a.jpg",null,null,"© 2009-2013 BOURGON Laurent","Xavier",null,"2013-04-08"]
[113,"Observatoire","Observatoire du Ligoret",37,"Centre","F","Tauxigny",14,90,"Observatoire de la Société Astronomique de Touraine","Astrotouraine","Forum Webastro","V17",47,13,25,"N",0,49,59,"E","http://www.astrotouraine.com","http://www.astrotouraine.com/album/albums/userpics/thumb_observatoire.jpg",null,"sat.animations@orange.fr","© SAT 2013","Xavier",null,"2013-04-08"]
[114,"Rassemblement","Aérodrome du Chevalet ",{"v":5,"d":"05"},"Hautes Alpes","F","Aspres sur Buëch",10,830,"Site du rassemblement annuel des RAHB.","RAHB","Mail GRESAC","V17",44,31,13,"N",5,44,11,"E","http://www.rahb.fr/","http://a392.idata.over-blog.com/4/15/06/42/evenementiel/Rahb4.JPG",null,null,"© Claude Rivas","Xavier",null,"2013-04-08"]
[115,"Site usuel","Menez-bre",22,{"$f":"IFERROR(VLOOKUP(D123,'[1]Département _ Régions'!$C$4:$F$99,4),\"\")","v":"Bretagne"},"F","Louargat",15,300,"Un \"sommet\" Breton réputé, très dégagé et... venté ! 100m plus bas on est abrité par des arbres.",null,"Forum Futura-Sciences","V17",48,34,34,"N",3,18,28,"W","http://forums.futura-sciences.com/post1408526.html - 1408526","http://static.panoramio.com/photos/1920x1280/62383881.jpg",null,null,"© Panoramio - E.PAVEN","Xavier",null,"2013-04-12"]
[116,"Site usuel","Mont Pinçon",14,{"$f":"IFERROR(VLOOKUP(D124,'[1]Département _ Régions'!$C$4:$F$99,4),\"\")","v":"Basse-Normandie"},"F","Le Plessis-G",15,340,"Le site se trouve près d'une table d'oriantation et surplombe le bocage normand. Endroit un peu humide, mais horizon dégagé à 360°. Faible trace de pollution lumineuse au Nord mais antenne de télé un peu génante.",null,"Mail GRESAC","V17",48,58,16,"N",0,37,51,"W",null,"http://www.normandie44lamemoire.com/les%20monuments/imagesmonuments/montpinconvue1.jpg",null,null,"© Philippe CORVE","Xavier",null,"2013-04-12"]
[117,"Site usuel","Beaucroissant",38,{"$f":"IFERROR(VLOOKUP(D125,'[1]Département _ Régions'!$C$4:$F$99,4),\"\")","v":"Rhône-Alpes"},"F","Beaucroissant",13,440,"Le site n'est pas spécialement humide et la pollution lumineuse est plutôt faible pour un site en plaine. On peux y faire de bonnes observations. Place pour 2 véhicules  ","Albedo 38","Mail GRESAC","V18",45,21,33,"N",5,27,32,"E","http://albedo38.free.fr/index.php/accueil",{"$nulls":3},{"$f":"IF(ISBLANK(W125),\" \",\"Droits Réservés\")","v":" "},"Xavier",null,"2013-04-12"]
[118,"Site usuel","Col du Blanchet",38,{"$f":"IFERROR(VLOOKUP(D126,'[1]Département _ Régions'!$C$4:$F$99,4),\"\")","v":"Rhône-Alpes"},"F","Montferrat",14,690,"PL assez moyenne, accès délicat (accidenté), parfois venté et neigeux","Albedo 38","Mail GRESAC","V18",45,28,33,"N",5,35,49,"E","http://albedo38.free.fr/index.php/accueil",{"$nulls":3}," ","Xavier",null,"2013-04-12"]
[119,"Site usuel","Croix du Fau",38,{"$f":"IFERROR(VLOOKUP(D127,'[1]Département _ Régions'!$C$4:$F$99,4),\"\")","v":"Rhône-Alpes"},"F","Quincieu",15,730,"360°, venté, proche route peu fréquentée, belle vue, chemin herbeux, pas trop humide",null,"Mail GRESAC","V18",45,16,51,"N",5,22,46,"E",{"$nulls":4}," ","Xavier",null,"2013-04-12"]
[120,"Site usuel","L Epine",{"v":5,"d":"05"},{"$f":"IFERROR(VLOOKUP(D128,'[1]Département _ Régions'!$C$4:$F$99,4),\"\")","v":"PACA"},"F","L'Epine",19,1020,"Eloigné des importantes zones de pollution lumineuse, le ciel y est très noir, et à plus de 1000m d'altitude l'atmosphère est bien sèche. Le vent et la turbulence peuvent y être important mais le ciel profond en visuel est toujours un régal. Idéal en période de nouvelle Lune et lorsque les températures deviennent plus clémentes.","Albedo 38","Mail GRESAC","V18",44,23,55,"N",5,36,20,"E","http://albedo38.free.fr/index.php/accueil",{"$nulls":3}," ","Xavier",null,"2013-04-12"]
[121,"Site usuel","Les Estables (nord-est)",43,{"$f":"IFERROR(VLOOKUP(D129,'[1]Département _ Régions'!$C$4:$F$99,4),\"\")","v":"Auvergne"},"F","Les Estables",19,1510,"PARFAITEMENT dégagé au sud. il s'agit d'un parking (qui peut accueillir pas mal d'astronomes amateurs). Par contre il a l'inconvénient d'être contre une route heureusement peu fréquentée. Site proche du centre de vacances VAL/VVf des Estables",null,"Mail GRESAC","V19",44,54,46,"N",4,10,12,"E",{"$nulls":4}," ","Xavier",null,"2013-04-12"]
[122,"Site usuel","Les Estables (sud)",43,{"$f":"IFERROR(VLOOKUP(D130,'[1]Département _ Régions'!$C$4:$F$99,4),\"\")","v":"Auvergne"},"F","Les Estables",19,1400,"Très dégagé au sud. Il s'agit d'une route (qui mène qu'à 2 maisons)=> ne peut accueillir qu'1 ou 2 astronomes amateurs). Demi tour difficile si présence d'une remorque, Site proche du centre de vacances VAL/VVf des Estables.",null,"Mail GRESAC","V19",44,53,5,"N",4,9,13,"E",null,"http://gresac.free.fr/photos/estables.jpg",null,null,"Droits Réservés","Xavier",null,"2013-04-12"]
[123,"Observatoire","Observatoire de Haute Provence",{"v":4,"d":"04"},{"$f":"IFERROR(VLOOKUP(D131,'[1]Département _ Régions'!$C$4:$F$99,4),\"\")","v":"PACA"},"F","St Michel-l'Obs",18,650,"Unité de service et recherche du CNRS l'OHP fait partie de l'OSU (Obs Astro Marseille-Provence) SQM : 21,35","Obs de Haute-Provence",null,"V19",43,55,54,"N",5,42,44,"E","http://www.obs-hp.fr/informations.shtml","http://www.obs-hp.fr/bandeau_image_OHP_CNRS_900px.jpg","http://www.obs-hp.fr/www/logo4s.gif",null,"Droits Réservés","Xavier",null,"2013-04-12"]
[124,"Observatoire","Observatoire de la Sinne",13,{"$f":"IFERROR(VLOOKUP(D132,'[1]Département _ Régions'!$C$4:$F$99,4),\"\")","v":"PACA"},"F","Vauvenargues",17,590,"Observatoire du club de l'AAAOV","AAAOV Observatoire de Vauvenargues",null,"V19",43,33,39,"N",5,40,16,"E","http://astrosurf.com/aaaov/","http://astrosurf.com/aaaov/presentation/bastide_aaaov.jpg","http://astrosurf.com/aaaov/Src/bandeau_800.jpg",null,"© AAAOV","Xavier",null,"2013-04-12"]
[125,"Observatoire","Observatoire de Senau",33,{"$f":"IFERROR(VLOOKUP(D133,'[1]Département _ Régions'!$C$4:$F$99,4),\"\")","v":"Aquitaine"},"F","Vayres",9,30,"Observatoire du club Vega de la Lyre, privé mais accessible sur réservation ou tous les samedi à partir de 21H.","Vega de la Lyre",null,"V19",44,52,36,"N",0,18,49,"W","http://www.astrosurf.com/vega-lyre/index.html","http://www.astrosurf.com/vega-lyre/wpimages/wp7382ca3f_0a.jpg","http://www.astrosurf.com/vega-lyre/wpimages/wp4934b8d6.gif",null,"© Véga de la Lyre","Xavier",null,"2013-04-12"]
[126,"Observatoire","Observatoire Marc Bianchi",{"v":4,"d":"04"},{"$f":"IFERROR(VLOOKUP(D134,'[1]Département _ Régions'!$C$4:$F$99,4),\"\")","v":"PACA"},"F","St-Etienne-les-O",19,1600,"Observatoire de la societe astronomique de la montagne de Lure","SA de la Montagne de Lure",null,"V19",44,6,46,"N",5,46,49,"E","http://www.astrosurf.com/saml/index.html","http://www.astrosurf.com/saml/LurelejourLurelanuit/Resources/ombstephane.jpeg","http://www.astrosurf.com/saml/Resources/Logo%20SAML.jpg",null,"© Stéphane Dumont, juillet 2007","Xavier",null,"2013-04-23"]
[127,"Site usuel","Vassiviere ",87,{"$f":"IFERROR(VLOOKUP(D135,'[1]Département _ Régions'!$C$4:$F$99,4),\"\")","v":"Limousin"},"F","Vassivière",17,660,"Plage de Lac, frequentée occasionnellement par des touristes, peu de turbu , bcp d’humidité","AVEX Vexin",null,"V20",45,47,35,"N",1,52,55,"E","http://avex.org.free.fr/","http://avex.org.free.fr/gresac/360/vassiviere.jpg","http://avex.org.free.fr/charte/avex-typo-rouge-glass-small.png",null,"© Frédéric Tapissier","Xavier",null,"2013-04-23"]
[128,"Site usuel","Dalle de St Jean",21,{"$f":"IFERROR(VLOOKUP(D136,'[1]Département _ Régions'!$C$4:$F$99,4),\"\")","v":"Bourgogne"},"F","St Jean-de-Bœuf",16,560,"Dalle coulée par la SAB pour poser son Dobson","SAB Bourgogne",null,"V21",47,12,48,"N",4,45,25,"E","http://astrosurf.com/sab/","http://gresac.free.fr/photos/obsSJB.jpg",null,null,"© SAB","Xavier",null,"2013-04-23"]
[129,"Observatoire","Obs des Hautes-Plates",21,{"$f":"IFERROR(VLOOKUP(D137,'[1]Département _ Régions'!$C$4:$F$99,4),\"\")","v":"Bourgogne"},"F","Corcelles-les-Monts",10,420,"Obs de la SAB ","SAB Bourgogne",null,"V21",47,18,9,"N",4,57,39,"E","http://astrosurf.com/sab/","http://www.sab-astro.fr/images/Evenements/2013-2014/Observations_publiques/ohp.jpg",null,null,"© SAB","Xavier",null,"2013-04-23"]
[130,"Observatoire","Observatoire de Marseille",13,{"$f":"IFERROR(VLOOKUP(D138,'[1]Département _ Régions'!$C$4:$F$99,4),\"\")","v":"PACA"},"F","Marseille",0,65,"Association Andromède","Andromede ",null,"V21",43,18,20,"N",5,23,41,"E","http://andromede.id.st/","http://ekladata.com/andromede.id.st/perso/planetarium-andromede.jpg","http://www.andromede13.info/images/logoand_trsp.gif",null,"© Association ANDROMEDE","Xavier",null,"2013-04-23"]
[131,"Observatoire","Lunette coudée (obs, de Nice)",{"v":6,"d":"06"},{"$f":"IFERROR(VLOOKUP(D139,'[1]Département _ Régions'!$C$4:$F$99,4),\"\")","v":"PACA"},"F","Nice",4,360,"Lunette coudée du XIX de l'obs, de Nice, ouverte au public et gérée par l'Association Novae","Association Novae",null,"V22",43,43,31,"N",7,18,0,"E","http://novae06.free.fr/blogs.php?lng=fr","http://novae06.free.fr//photo/album_coude//p0003991.jpg","http://novae06.free.fr/img/nos_coordonnees/logo-novae.jpg",null,"© Association NOVAE","Xavier",null,"2013-04-23"]
[132,"Gîtes ou Camping","Observatoire de Bracou",63,{"$f":"IFERROR(VLOOKUP(D140,'[1]Département _ Régions'!$C$4:$F$99,4),\"\")","v":"Auvergne"},"F","Isserteaux",17,650,"Gites annexes a l'Obs du Bracou, de l'ASTRAP, 1 gite 4 pers, 1 gite 5/8/10 pers","Astrap",null,"V22",45,39,30,"N",3,22,50,"E","http://www.astrap.org/index.php?option=com_content&task=view&id=51&Itemid=39","http://gresac.free.fr/photos/astrap.jpg",null,null,{"$f":"IF(ISBLANK(W140),\" \",\"Droits Réservés\")","v":"Droits Réservés"},"Xavier",null,"2013-04-23"]
[133,"Observatoire","Observatoire de Bracou",63,{"$f":"IFERROR(VLOOKUP(D141,'[1]Département _ Régions'!$C$4:$F$99,4),\"\")","v":"Auvergne"},"F","Isserteaux",17,650,"Observatoire de l'association ASTRAP","Astrap",null,"V22",45,39,30,"N",3,22,50,"E","http://www.astrap.org/",{"$nulls":3},{"$f":"IF(ISBLANK(W141),\" \",\"Droits Réservés\")","v":" "},"Xavier",null,"2013-04-23"]
[134,"Observatoire","Observatoire de Calern",{"v":6,"d":"06"},{"$f":"IFERROR(VLOOKUP(D142,'[1]Département _ Régions'!$C$4:$F$99,4),\"\")","v":"PACA"},"F","Caussols",19,1270,"Un des 3 sites de l'Observatoire de la Cote D'Azur OCA - SQM 21 - Bortle 4 à 5","Obs de Cote d'Azur",null,"V22",43,45,12,"N",6,55,14,"E","http://www.oca.eu/","https://www.oca.eu/IMG/image/COMOCA/DSC_0034.jpg","https://www.oca.eu/local/cache-vignettes/L476xH135/etablogo-27763.png",null,{"$f":"IF(ISBLANK(W142),\" \",\"Droits Réservés\")","v":"Droits Réservés"},"Xavier",null,"2013-04-23"]
[135,"Observatoire","Observatoire de Meudon",92,{"$f":"IFERROR(VLOOKUP(D143,'[1]Département _ Régions'!$C$4:$F$99,4),\"\")","v":"Ile-de-France"},"F","Meudon",1,160,"Observatoire Historique sur un site Renaissance (XVIème siècle)","Obs Paris Meudon",null,"V22",48,48,19,"N",2,13,52,"E","http://www.obspm.fr/","http://www.obspm.fr/IMG/jpg/obs_paris_sitemeudon_dproust.jpg","http://www.obspm.fr/IMG/siteon0.png",null,"© Observatoire de Paris - Dominique Proust ","Xavier",null,"2013-04-23"]
[136,"Observatoire","Observatoire de Nice",{"v":6,"d":"06"},{"$f":"IFERROR(VLOOKUP(D144,'[1]Département _ Régions'!$C$4:$F$99,4),\"\")","v":"PACA"},"F","Nice",4,360,"Un des 3 sites de l'Observatoire de la Cote D'Azur OCA, lunette coudée du XIX gérée par Novae","Obs de Cote d'Azur",null,"V22",43,43,39,"N",7,17,57,"E","http://www.oca.eu/","https://www.oca.eu/IMG/image/COMOCA/DSC_0076%281%29.jpg","https://www.oca.eu/local/cache-vignettes/L476xH135/etablogo-27763.png",null,"© Observatoire de la Côte d’Azur","Xavier",null,"2013-04-23"]
[137,"Observatoire","Observatoire de Paris",75,{"$f":"IFERROR(VLOOKUP(D145,'[1]Département _ Régions'!$C$4:$F$99,4),\"\")","v":"Ile-de-France"},"F","Paris 14",0,60,"Le batiment Perrault pour le plaisir des yeux, visite sur inscription - SQM : 17,27","Obs Paris Meudon",null,"V22",48,50,12,"N",2,20,12,"E","http://www.obspm.fr/","http://www.obspm.fr/IMG/jpg/bat_perrault_servajean.jpg","https://www.oca.eu/local/cache-vignettes/L476xH135/etablogo-27763.png",null,"© Observatoire de Paris -Gérard Servajean","Xavier",null,"2013-04-23"]
[138,"Observatoire","Observatoire de Roquevignon",{"v":6,"d":"06"},{"$f":"IFERROR(VLOOKUP(D146,'[1]Département _ Régions'!$C$4:$F$99,4),\"\")","v":"PACA"},"F","Grasse",11,530,"Un des 3 sites de l'Observatoire de la Cote D'Azur OCA - SQM : 20 - Bortle : 5 à 6","Obs de Cote d'Azur",null,"V22",43,39,55,"N",6,54,54,"E","http://www.oca.eu/",null,"https://www.oca.eu/local/cache-vignettes/L476xH135/etablogo-27763.png",null,{"$f":"IF(ISBLANK(W146),\" \",\"Droits Réservés\")","v":" "},"Xavier",null,"2013-04-23"]
[139,"Observatoire","Obs du Pic Chateau Renard",{"v":5,"d":"05"},{"$f":"IFERROR(VLOOKUP(D147,'[1]Département _ Régions'!$C$4:$F$99,4),\"\")","v":"PACA"},"F","St Veran",20,2930,"Géré par Astroqueyras, Obs le plus haut de France, 300j/an  de ciel clair, accés par chemin de terre","Astroqueyras",null,"V23",44,41,49,"N",6,54,23,"E","http://www.astroqueyras.com/","http://www.astroqueyras.com/images/lepic_obs.jpg","http://www.astroqueyras.com/images/banner_AQRMdroite.jpg",null,"© AstroQeyras","Xavier",null,"2013-04-23"]
[140,"Site usuel","Memorial de Saucats",33,{"$f":"IFERROR(VLOOKUP(D148,'[1]Département _ Régions'!$C$4:$F$99,4),\"\")","v":"Aquitaine"},"F","Saucats",15,60,"Autour de l'obélisque, dégagé, large, goudronné, éviter le 14/07, attention à l'arrosage !","SAB Bordeaux (33)","Mail GRESAC","V24",44,37,48,"N",0,37,51,"W","http://astrosurf.com/sab33/","http://mw2.google.com/mw-panoramio/photos/medium/49381389.jpg","http://www.astrosurf.com/sab33/images/banniere3.png",null,"© Panoramio - Llann Créü","Xavier",null,"2013-04-23"]
[141,"Gîtes ou Camping","Camping \"le paradis\"",33,{"$f":"IFERROR(VLOOKUP(D149,'[1]Département _ Régions'!$C$4:$F$99,4),\"\")","v":"Aquitaine"},"F","Abzac",10,10,"Camping familial, Pas trop de PL, voie lactée visible (voire M13 parfois), quelques arbres...","Camping \"Le Paradis\"","Mail GRESAC","v25",45,0,48,"N",0,6,32,"W","http://campingleparadis.free.fr/","http://www.camping-residentiel-le-paradis.fr/index_htm_files/Abzac_camping_Paradis_lac_et_mobilhome_4218.JPG","http://www.camping-residentiel-le-paradis.fr/index_htm_files/le_paradis_abzac_logo_2012_relief.png",null,{"$f":"IF(ISBLANK(W149),\" \",\"Droits Réservés\")","v":"Droits Réservés"},"Xavier",null,"2013-04-23"]
[142,"Observatoire","Obs du Pic du Midi de Bigorre",65,{"$f":"IFERROR(VLOOKUP(D150,'[1]Département _ Régions'!$C$4:$F$99,4),\"\")","v":"Midi-Pyrénées"},"F","Bagneres-de-B",19,2870,"Accés par téléphérique depuis La Mongie (assez couteux : les tarif d'accès au Pic sont de l'ordre de 30€ mais pour y passer la nuit c'est de l'ordre de 200€,,,) - SQM : 21,81","Pic du Midi",null,"V25",42,56,15,"N",0,8,28,"E","http://www.picdumidi.com/web/3-pic-du-midi-site-officiel-pyrenees-france-tourisme-observatoire-astronomie-vacances-soirees-restaurant-hebergement-montagne-panorama-sud-ouest.php","http://avex.org.free.fr/gresac/360/pic-du-midi.jpg","http://www.picdumidi.com/img/picdumidi/logo-site.png",null,"© AVEX 2008 //// Frédéric Tapissier","Xavier",null,"2013-04-23"]
[143,"Observatoire","Observatoire de Sabarat",{"v":9,"d":"09"},{"$f":"IFERROR(VLOOKUP(D151,'[1]Département _ Régions'!$C$4:$F$99,4),\"\")","v":"Midi-Pyrénées"},"F","Sabarat",18,350,"Une association, des stages, des soirée publiques… T450 sous coupole","Obs de Sabarat",null,"V25",43,6,25,"N",1,23,14,"E","http://www.observatoire-sabarat.com/index.php","http://www.observatoire-sabarat.com/images/stories/stages/stages.jpg","http://www.observatoire-sabarat.com/templates/rhuk_solarflare_ii/images/logo.gif",null,{"$f":"IF(ISBLANK(W151),\" \",\"Droits Réservés\")","v":"Droits Réservés"},"Xavier",null,"2013-04-23"]
[144,"Gîtes ou Camping","La ferme des étoiles",32,{"$f":"IFERROR(VLOOKUP(D152,'[1]Département _ Régions'!$C$4:$F$99,4),\"\")","v":"Midi-Pyrénées"},"F","Mauroux",17,210,"Grande demeure Gasconne, séjours astro, chambres d'hôtes, location chalets…","La Ferme des Etoiles",null,"V26",43,55,11,"N",0,49,13,"E","http://www.fermedesetoiles.com/","http://www.fermedesetoiles.com/images/index/ferme-des-etoiles-01.jpg","http://www.fermedesetoiles.com/images/logo.png",null,"© A ciel ouvert","Xavier",null,"2013-04-23"]
[145,"Observatoire","La ferme des étoiles",32,{"$f":"IFERROR(VLOOKUP(D153,'[1]Département _ Régions'!$C$4:$F$99,4),\"\")","v":"Midi-Pyrénées"},"F","Mauroux",17,210,"Possibilité de louer le T620, également stages (hébergement sur place), animations, formations…","La Ferme des Etoiles",null,"V26",43,55,11,"N",0,49,13,"E","http://www.fermedesetoiles.com/","http://www.fermedesetoiles.com/images/index/ferme-des-etoiles-01.jpg","http://www.fermedesetoiles.com/images/logo.png",null,"© A ciel ouvert","Xavier",null,"2013-04-23"]
[146,"Gîtes ou Camping","Le Gite aux étoiles",55,{"$f":"IFERROR(VLOOKUP(D154,'[1]Département _ Régions'!$C$4:$F$99,4),\"\")","v":"Lorraine"},"F","Viéville-sous-les-C",17,280,"Maison du XVIIIe, 16 pers, à côté de l'Obs des Cotes de Meuse, agréé jeunesse et sport","Le Gite aux Etoiles",null,"V26",49,0,5,"N",5,41,9,"E","http://observatoire.t83.free.fr/spip.php?article5","http://observatoire.t83.free.fr/IMG/jpg/grande-salle-1-500.jpg",null,null,{"$f":"IF(ISBLANK(W154),\" \",\"Droits Réservés\")","v":"Droits Réservés"},"Xavier",null,"2013-04-24"]
[147,"Gîtes ou Camping","Le Hameau des etoiles",32,{"$f":"IFERROR(VLOOKUP(D155,'[1]Département _ Régions'!$C$4:$F$99,4),\"\")","v":"Midi-Pyrénées"},"F","Fleurance",17,140,"Un village de vacances VAL-VVF entièrement dédié à l'Astronomie, avec animation et matériel, stages, formation","Le Hameau des Etoiles",null,"V26",43,48,54,"N",0,37,1,"E","http://www.fermedesetoiles.com/sites/page/18/le_hameau_des_etoiles","http://www.fermedesetoiles.com/images/sites/diaporamas/hde/dome-exterieur.jpg","http://www.fermedesetoiles.com/images/logo.png",null,{"$f":"IF(ISBLANK(W155),\" \",\"Droits Réservés\")","v":"Droits Réservés"},"Xavier",null,"2013-04-24"]
[148,"Observatoire","Obs des Cotes de Meuse",55,{"$f":"IFERROR(VLOOKUP(D156,'[1]Département _ Régions'!$C$4:$F$99,4),\"\")","v":"Lorraine"},"F","Viéville-sous-les-C",17,280,"T83, un des plus grand ouvert au public, visites, observations, soirées organisées, pas de PL des 23h","Observatoire des Cotes de Meuse",null,"V26",49,0,5,"N",5,41,9,"E","http://observatoire.t83.free.fr/","http://observatoire.t83.free.fr/IMG/jpg/observatoire_sous_les_etoiles_de_l_est2_reduit_50.jpg","http://observatoire.t83.free.fr/local/cache-vignettes/L1000xH245/siteon0-157a2.jpg",null,{"$f":"IF(ISBLANK(W156),\" \",\"Droits Réservés\")","v":"Droits Réservés"},"Xavier",null,"2013-04-24"]
[149,"Site usuel","Mont St Michel de Brasparts",29,{"$f":"IFERROR(VLOOKUP(D157,'[1]Département _ Régions'!$C$4:$F$99,4),\"\")","v":"Bretagne"},"F","Brasparts",17,380,"Un des plus beaux sites d'observation en Bretagne (Monts d'Arrée), ciel pur",null,"Forum Webastro","V27",48,21,1,"N",3,56,49,"W","http://www.webastro.net/forum/showthread.php?p=356405 - post356405","http://static.panoramio.com/photos/1920x1280/9293950.jpg",null,null,"© Panoramio - Timfert","Xavier",null,"2013-04-24"]
[150,"Observatoire","Observatoire Pierre Joannard",{"v":1,"d":"01"},{"$f":"IFERROR(VLOOKUP(D158,'[1]Département _ Régions'!$C$4:$F$99,4),\"\")","v":"Rhône-Alpes"},"F","Ramasse",14,600,"Observatoire de l'association astronomique de L'Ain (Bourg-en-Bresse et Haut Bugey)","Assoc. Astronomique de l'Ain",null,"V28",46,11,35,"N",5,20,18,"E","http://astro.ain.free.fr/","http://astro.ain.free.fr/image7S6.JPG",null,null,{"$f":"IF(ISBLANK(W158),\" \",\"Droits Réservés\")","v":"Droits Réservés"},"Xavier",null,"2013-04-24"]
[151,"Site usuel","Terrain de Florimont",{"v":1,"d":"01"},{"$f":"IFERROR(VLOOKUP(D159,'[1]Département _ Régions'!$C$4:$F$99,4),\"\")","v":"Rhône-Alpes"},"F","Gex",13,980,"Site d'observation du Club Astro du Pays de Gex, prété au club par la mairie de GEX ","Orion Pays de Gex",null,"V28",46,21,16,"N",6,2,44,"E","http://www.orion.asso.cc-pays-de-gex.fr/association/assoc.html","http://www.orion.asso.cc-pays-de-gex.fr/actualite/pages/10.jpg","http://www.orion.asso.cc-pays-de-gex.fr/images/logo_bw.gif",null,"Droits Réservés","Xavier",null,"2013-04-24"]
[152,"Gîtes ou Camping","Gite de L Aiglière",{"v":5,"d":"05"},{"$f":"IFERROR(VLOOKUP(D160,'[1]Département _ Régions'!$C$4:$F$99,4),\"\")","v":"PACA"},"F","Veynes",19,1100,"Batiments neufs, style local, 3 unités autonomes pour 2 à 6 personnes, lieu des RADHI","L'Aigliere","Mail GRESAC","V29",44,34,19,"N",5,49,31,"E","http://www.laigliere.com/","http://gresac.free.fr/photos/bolGallery/AIGLIERE-sud-est%20(Copier).jpeg","http://gresac.free.fr/photos/aigliontransG%20(Copier).gif",null,"Droits Réservés","Xavier",null,"2013-04-24"]
[153,"Observatoire","Obs de Haute Corréo",{"v":5,"d":"05"},{"$f":"IFERROR(VLOOKUP(D161,'[1]Département _ Régions'!$C$4:$F$99,4),\"\")","v":"PACA"},"F","La Roche-des-Arnauds",18,1160,"Observatoire de L'association Copernic, reservé au membre sauf événements spéciaux (pour l'instant !)","Association Copernic","Mail GRESAC","V29",44,33,44,"N",5,59,53,"E","http://www.asso-copernic.org/","http://www.asso-copernic.org/blog/wp-content/myfotos/materiel/photo_telesc.jpg","http://www.asso-copernic.org/images/index_01.jpg",null,"Droits Réservés","Xavier",null,"2013-04-24"]
[155,"Gîtes ou Camping","Le Mas des Gres",{"v":5,"d":"05"},{"$f":"IFERROR(VLOOKUP(D162,'[1]Département _ Régions'!$C$4:$F$99,4),\"\")","v":"PACA"},"F","Moydans",19,800,"Authentique ferme de Haute Provence, gites, chambres et table d'hôtes, spécialisée Astro, piscine, SQM : 21,6","Le Mas des Gres","Forum Astrosurf","V30",44,24,30,"N",5,30,52,"E","http://www.mas-des-gres.com/","http://www.mas-des-gres.com/panoOMGpp.jpg",null,null,"Droits Réservés","Xavier",null,"2013-04-24"]
[156,"Gîtes ou Camping","Les Thiers",{"v":3,"d":"03"},{"$f":"IFERROR(VLOOKUP(D163,'[1]Département _ Régions'!$C$4:$F$99,4),\"\")","v":"Auvergne"},"F","Isle-et-Bardais",18,220,"Gite de France N°11064, pas de PL directe, obs possible à côté, bordure forêt Tronçais, 1 ch, sem ou we","WOOEL.COM","Forum Astrosurf","V30",46,41,9,"N",2,43,39,"E","http://www.wooel.com/fr/gite-n-11064-holiday-1-star-isle-et-bardais-189699.aspx",{"$nulls":3}," ","Xavier",null,"2013-04-24"]
[157,"Site usuel","Col de St Bonnet",69,{"$f":"IFERROR(VLOOKUP(D164,'[1]Département _ Régions'!$C$4:$F$99,4),\"\")","v":"Rhône-Alpes"},"F","Montmelas-St-S",16,640,"Large, terre battue, qq arbres, dégagé++ Sud, peu de passage… edit : l’endroit est franchement pas terrible car beaucoup de sapin autour ! Champ de vision coté Est est très restreint, trop de grands sapins et arbres qui gâchent pas mal la vue",null,"Forum Webastro","V31",46,1,20,"N",4,35,27,"E","http://www.webastro.net/forum/showthread.php?p=360545 - post360545",{"$nulls":3}," ","Xavier",null,"2013-04-24"]
[158,"Gîtes ou Camping","Grand Champ",{"v":4,"d":"04"},{"$f":"IFERROR(VLOOKUP(D165,'[1]Département _ Régions'!$C$4:$F$99,4),\"\")","v":"PACA"},"F","Montlaux",18,690,"5 chambres (2 à 5 pers), gite de France ***, mini camping, piscine,wifi","Gite de Grand-Champ","Forum Astrosurf","V31",44,3,18,"N",5,48,60,"E","http://www.grandchamp04.fr/","http://static3.bareka.com/photos/medium/5635482.jpg",null,null,"© Panoramio -Spijker","Xavier",null,"2013-04-24"]
[159,"Gîtes ou Camping","Le pas du Loup",{"v":5,"d":"05"},{"$f":"IFERROR(VLOOKUP(D166,'[1]Département _ Régions'!$C$4:$F$99,4),\"\")","v":"PACA"},"F","St Martin-de-Q",19,1500,"Chalet de montagne, formules pension, 1/2 pension, gestion libre, obs, planetarium, gite de France**","Le Pas du Loup","Forum Astrosurf","V31",44,49,50,"N",6,33,52,"E","http://lepasduloup.free.fr/index.html","http://lepasduloup.free.fr/panoramiquechalet.jpg","http://eric.demarez.free.fr/img/logo-gite-le-pas-du-loup-GF.gif",null,{"$f":"IF(ISBLANK(W166),\" \",\"Droits Réservés\")","v":"Droits Réservés"},"Xavier",null,"2013-04-24"]
[160,"Observatoire","Obs de Briançon les Ecrins",{"v":5,"d":"05"},{"$f":"IFERROR(VLOOKUP(D167,'[1]Département _ Régions'!$C$4:$F$99,4),\"\")","v":"PACA"},"F","St Martin-de-Q",19,1500,"Plusieurs telescopes et lunettes dont un 500mm sous toit ouvrant, esplanade d'observation","Le Pas du Loup","Forum Astrosurf","V31",44,49,50,"N",6,33,52,"E","http://lepasduloup.free.fr/index.html","http://lepasduloup.free.fr/panoramiquechalet.jpg","http://eric.demarez.free.fr/img/Logo-OAB-GF.gif",null,{"$f":"IF(ISBLANK(W167),\" \",\"Droits Réservés\")","v":"Droits Réservés"},"Xavier",null,"2013-04-24"]
[161,"Gîtes ou Camping","Ferme du Casage",26,{"$f":"IFERROR(VLOOKUP(D168,'[1]Département _ Régions'!$C$4:$F$99,4),\"\")","v":"Rhône-Alpes"},"F","Eygalayes",19,860,"Ferme, Gîte de France **, jardin bio, un gîte et 2 appt, 36 places au total","Ferme du Casage","Forum Astrosurf","V32",44,14,18,"N",5,35,25,"E","http://www.casage.fr/","http://www.casage.fr/images/gite_est.jpg",null,null,"© Le Casage","Xavier",null,"2013-04-30"]
[162,"Gîtes ou Camping","Les Chalets Cocody",{"v":4,"d":"04"},{"$f":"IFERROR(VLOOKUP(D169,'[1]Département _ Régions'!$C$4:$F$99,4),\"\")","v":"PACA"},"F","Jausiers",19,1500,"Chalets indiv, lampadaires jusqu'à 23h, PL et arboré, surtout interessant  pour proximité Restefond","Les Chalets Cocody","Forum Astrosurf","V32",44,24,42,"N",6,45,16,"E","http://pagesperso-orange.fr/chalets.cocody/COCODY_1.htm","http://pagesperso-orange.fr/chalets.cocody/ete.jpg",null,null,{"$f":"IF(ISBLANK(W169),\" \",\"Droits Réservés\")","v":"Droits Réservés"},"Xavier",null,"2013-04-30"]
[163,"Gîtes ou Camping","Mas des Grailles",{"v":4,"d":"04"},{"$f":"IFERROR(VLOOKUP(D170,'[1]Département _ Régions'!$C$4:$F$99,4),\"\")","v":"PACA"},"F","Cruis",19,680,"Mas provencal, piscine, 5 ch, grande salle d'activité, Gite de France, recommandé par petit futé","Le Mas des Grailles","Forum Astrosurf","V32",44,3,42,"N",5,51,15,"E","http://www.mas-des-grailles.com/","http://www.mas-des-grailles.com/images/le-mas.jpg",null,null,"Droits Réservés","Xavier",null,"2013-04-30"]
[164,"Gîtes ou Camping","Domaine de la Blaque",83,{"$f":"IFERROR(VLOOKUP(D171,'[1]Département _ Régions'!$C$4:$F$99,4),\"\")","v":"PACA"},"F","Varages",17,460,"3 gîtes 2 chambres d’hôtes, piscine, tennis, 1 observatoire dispo vide avec courant ,Internet, etc.. Propriété d'un passioné d'astronomie et photographe astro de talent.","Lablaque","Mail GRESAC","V33",43,36,46,"N",5,57,48,"E","http://www.lablaque.com/index.php?page=accueil","http://www.lablaque.com/source/dehaut.jpg","http://www.lablaque.com/source/hautdebase2.gif",null,"Droits Réservés","Xavier",null,"2013-04-30"]
[165,"Observatoire","Observatoire de Cestas",33,{"$f":"IFERROR(VLOOKUP(D172,'[1]Département _ Régions'!$C$4:$F$99,4),\"\")","v":"Aquitaine"},"F","Cestas",13,60,"Observatoire de l'association AED (loi 1901), 4 coupoles de 4,2m (L150, T560, C11, C8)","AED observatoire de Cestat",null,"V33",44,42,7,"N",0,46,46,"W","http://aed.cestas.free.fr/club%20astronomie%20observatoire%20de%20cestas.htm","http://aed.cestas.free.fr/Images%20observatoire/ACT%20PANO%20OBS.jpg",null,null,"Droits Réservés","Xavier",null,"2013-04-30"]
[166,"Observatoire","Observatoire de Dax",40,{"$f":"IFERROR(VLOOKUP(D173,'[1]Département _ Régions'!$C$4:$F$99,4),\"\")","v":"Aquitaine"},"F","Dax",6,30,"Siège de la SAF Aquitaine, T318, T250, L128, planétarium…","Obs de Dax",null,"V33",43,41,36,"N",1,1,50,"W","http://www.astrosurf.com/obsdax/home.htm","http://astrosurf.com/obsdax/vue_obs1.jpg","http://www.astrosurf.com/obsdax/daxlogo.gif",null,"Droits Réservés","Xavier",null,"2013-04-30"]
[167,"Observatoire","Observatoire d Hesloup",61,{"$f":"IFERROR(VLOOKUP(D174,'[1]Département _ Régions'!$C$4:$F$99,4),\"\")","v":"Basse-Normandie"},"F","Heloup",9,200,"T300 sous coupole de la section Astronomie de l'assoc Sports et Loisirs d'Hesloup","Observatoire d'Hesloup",null,"V33",48,23,53,"N",0,1,47,"E","http://observatoire-astro-hesloup.over-blog.com/","http://a401.idata.over-blog.com/401x242/0/28/84/78/OBSERVATOIRE-C-TE-1---COUCHER-DE-SOLEIL---Copie-copie-2.jpg",null,null,"Droits Réservés","Xavier",null,"2013-04-30"]
[168,"Observatoire","Observatoire du Mont Chiran",{"v":4,"d":"04"},{"$f":"IFERROR(VLOOKUP(D175,'[1]Département _ Régions'!$C$4:$F$99,4),\"\")","v":"PACA"},"F","Blieux",20,1850,"Ancien observatoire du CNRS, il est maintenant ouvert à tout public curieux des choses du ciel.\nLe refuge permet aussi aux randonneurs de profiter d'une halte sur un itinéraire de montagne","Obs du Mont Chiran",null,"V33",43,52,5,"N",6,19,0,"E","http://www.astro-blieux.fr/V3/fr/observatoire/astronomie-verdon.php","http://www.astro-blieux.fr/images/coupole.jpg",null,null,"Droits Réservés","Xavier",null,"2013-04-30"]
[169,"Site usuel","Cret Malherbe",42,{"$f":"IFERROR(VLOOKUP(D176,'[1]Département _ Régions'!$C$4:$F$99,4),\"\")","v":"Rhône-Alpes"},"F","Marcenod",16,940,"Attention chemin défoncé, PL au Sud","SAL","SAL","V34",45,34,56,"N",4,30,19,"E","http://www.soaslyon.org/",null,"http://www.soaslyon.org/images/banners/sal_banner_stef.jpg",null," ","Xavier",null,"2013-04-30"]
[170,"Observatoire","Observatoire du CAV",85,{"$f":"IFERROR(VLOOKUP(D177,'[1]Département _ Régions'!$C$4:$F$99,4),\"\")","v":"Pays de la Loire"},"F","Le Tablier",15,45,"Observatoire du Centre Astronomique Vendéen,  2 coupoles","Centre Astro Vendéen",null,"V34",46,32,48,"N",1,19,38,"W","http://astrosurf.com/cav/index.html","http://astrosurf.com/cav/presentation/panorama.jpg","http://www.astrosurf.com/cav/img/haut.jpg",null,"Droits Réservés","Xavier",null,"2013-04-30"]
[171,"Observatoire","Observatoire du Relong",38,{"$f":"IFERROR(VLOOKUP(D178,'[1]Département _ Régions'!$C$4:$F$99,4),\"\")","v":"Rhône-Alpes"},"F","St Quentin-F",6,345,"T300 T200 sous coupole, observatoire du Club Sirius de Villefontaine","Club Sirius 38",null,"V34",45,37,43,"N",5,7,54,"E","http://sirius.astroclub.free.fr/s2wp/","http://sirius.astroclub.free.fr/s2wp/images/instruments/relong/Image46.jpg","http://sirius.astroclub.free.fr/s2wp/images/logo_sirius.jpg",null,"Droits Réservés","Xavier",null,"2013-04-30"]
[172,"Observatoire","Balcon des étoiles",31,{"$f":"IFERROR(VLOOKUP(D179,'[1]Département _ Régions'!$C$4:$F$99,4),\"\")","v":"Midi-Pyrénées"},"F","Latrape",11,290,null,"Les Pleiades",null,"V35",43,16,36,"N",1,16,39,"E","http://www.les-pleiades.asso.fr/","http://www.les-pleiades.asso.fr/images/galerie/visite/17.JPG",null,null,"Droits Réservés","Xavier",null,"2013-04-30"]
[173,"Observatoire","Observatoire de Besançon",25,{"$f":"IFERROR(VLOOKUP(D180,'[1]Département _ Régions'!$C$4:$F$99,4),\"\")","v":"Franche-Comté"},"F","Besançon",2,300,"Observatoire géré par l'AAFC (Association Astro Franche-Comté)","Obs de Besançon",null,"V35",47,14,55,"N",5,59,22,"E","http://www.culture.gouv.fr/documentation/memoire/VISITES/besancon-obs/lieu_frameset.htm","http://www.culture.gouv.fr/Wave/image/memoire/0985/ivr43_02251155xa_p.jpg",null,null,"Mongreville, Jérôme © Inventaire général, ADAGP, 2002","Xavier",null,"2013-04-30"]
[174,"Observatoire","Observatoire de Bordeaux",33,{"$f":"IFERROR(VLOOKUP(D181,'[1]Département _ Régions'!$C$4:$F$99,4),\"\")","v":"Aquitaine"},"F","Floirac",1,70,"Le Laboratoire d'Astrophysique de Bordeaux (LAB) est une unité mixte de recherche du Centre National de la Recherche Scientifique (CNRS) et de l'Université Bordeaux 1. C'est une composante de l'Observatoire Aquitain des Sciences de l'Univers et est située à Floirac. ","Obs de Bordeaux",null,"V35",44,50,6,"N",0,31,39,"W","http://www.obs.u-bordeaux1.fr/","http://www.obs.u-bordeaux1.fr/images/gd%20equat2004jpg.jpg","http://www.obs.u-bordeaux1.fr/images/9ter_nouvelle_page_4umr.jpg",null,"© L.A.B.","Xavier",null,"2013-04-30"]
[175,"Observatoire","Observatoire de Grenoble",38,{"$f":"IFERROR(VLOOKUP(D182,'[1]Département _ Régions'!$C$4:$F$99,4),\"\")","v":"Rhône-Alpes"},"F","Grenoble",1,210,"L’OSUG est un Observatoire des Sciences de l’Univers (OSU) et une école interne de l’Université Joseph Fourier - Grenoble 1","Obs de Grenoble",null,"V35",45,11,39,"N",5,45,40,"E","http://ipag.osug.fr/","http://www.imcce.fr/promenade/images/jpg3/358.jpg","http://www.exobiologie.fr/wp-content/uploads/2013/01/logo_ipag.png",null,"© IPAG","Xavier",null,"2013-04-30"]
[176,"Observatoire","Observatoire de Lille",59,{"$f":"IFERROR(VLOOKUP(D183,'[1]Département _ Régions'!$C$4:$F$99,4),\"\")","v":"Nord-Pas-de-Calais"},"F","Lille",0,30,"Ce laboratoire est une équipe de l'IMCCE (UMR 8028 du CNRS)","Obs de Lille",null,"V35",50,36,54,"N",3,4,17,"E","http://www.univ-lille1.fr/lal/","http://www.univ-lille1.fr/lal/site_images/obs2_univ_lille.jpg","http://www.univ-lille1.fr/lal/site_images/ustl_astro.gif",null,{"$f":"IF(ISBLANK(W183),\" \",\"Droits Réservés\")","v":"Droits Réservés"},"Xavier",null,"2013-04-30"]
[177,"Observatoire","Observatoire de Strasbourg",67,{"$f":"IFERROR(VLOOKUP(D184,'[1]Département _ Régions'!$C$4:$F$99,4),\"\")","v":"Alsace"},"F","Strasbourg",0,140,"L'Observatoire astronomique de Strasbourg est un Observatoire des Sciences de l'Univers (OSU), une école interne et UFR de l’Université de Strasbourg, ainsi qu’une Unité Mixte de Recherche entre l’Université et le CNRS.","Observatoire de Strasbourg",null,"V35",48,35,0,"N",7,46,4,"E","http://astro.unistra.fr/",{"$nulls":3},{"$f":"IF(ISBLANK(W184),\" \",\"Droits Réservés\")","v":" "},"Xavier",null,"2013-04-30"]
[178,"Observatoire","Observatoire du Pic des Fees",83,{"$f":"IFERROR(VLOOKUP(D185,'[1]Département _ Régions'!$C$4:$F$99,4),\"\")","v":"PACA"},"F","Hyeres",1,210,"Depuis 1983 l'observatoire est installé au sommet du Pic des Fées. C'est un observatoire doté d'une infrastructure et d'un équipement astronomique complet (télescopes de 150 à 500 mm, caméras CCD, salle de cours, bibliothèque, ...).","Obs du Pic des Fées",null,"V35",43,5,44,"N",6,6,50,"E","http://www.astrosurf.com/opf/","http://www.astrosurf.com/opf/img/VueOPF.jpg","http://www.astrosurf.com/opf/img/logo2.gif",null,{"$f":"IF(ISBLANK(W185),\" \",\"Droits Réservés\")","v":"Droits Réservés"},"Xavier",null,"2013-04-30"]
[179,"Observatoire","Observatoire GAP 47",47,{"$f":"IFERROR(VLOOKUP(D186,'[1]Département _ Régions'!$C$4:$F$99,4),\"\")","v":"Aquitaine"},"F","Montayral",11,190,"Observatoire géré par l'association GAP47. Accès libre aux astronomes amateurs. Deux coupoles (3.50 et 5m), planétarium dur 15 places, T510, T310, T200, Dobson400, et autres. Coronographe 100, Coronado 60. Centre d'accueil municipal tous publics tout proche. Lumières de l'agglomération au nord, en contrebas, peu gênantes par temps sec. Note de PL du GRESAC affectée par la présence voisine d'un aérodrome pourtant éteint la nuit, probablement plus proche de 6,5 voire 7. les SQM sont aux alentour de 21.20 (21.15 par nuit moyenne, 21.25 avec une bonne transparence)","GAP 47",null,"V35",44,27,50,"N",1,0,3,"E","http://www.astrosurf.com/gap47/","http://www.astrosurf.com/gap47/locaux/images/2003-05%20Observatoire%2002.jpg","http://www.astrosurf.com/gap47/images_menu1/obs-02.jpg",null,{"$f":"IF(ISBLANK(W186),\" \",\"Droits Réservés\")","v":"Droits Réservés"},"Xavier",null,"2013-04-30"]
[180,"Gîtes ou Camping","Le Ranquas",34,{"$f":"IFERROR(VLOOKUP(D187,'[1]Département _ Régions'!$C$4:$F$99,4),\"\")","v":"Languedoc-Roussillon"},"F","St Maurice-Navacelles",19,570,"Ferme \"rustique\" dans le Larzac méridional, 14 places, pension, 1/2 pension, pique-nique, WIFI","Gite \"Le Ranquas\"",null,"V36",43,50,39,"N",3,33,48,"E","http://le.ranquas.free.fr/","http://le.ranquas.free.fr/photos/rancas_1.jpg",null,null,{"$f":"IF(ISBLANK(W187),\" \",\"Droits Réservés\")","v":"Droits Réservés"},"Xavier",null,"2013-04-30"]
[181,"Gîtes ou Camping","Les Boulines",83,{"$f":"IFERROR(VLOOKUP(D188,'[1]Département _ Régions'!$C$4:$F$99,4),\"\")","v":"PACA"},"F","Tourves",13,330,"Gîte 4 personne, possibilité animation Astro avec C11, piscine","Les Boulines","Mail GRESAC","V36",43,23,56,"N",5,53,3,"E","http://www.boulines.com/fr/gite/index.html","http://www.boulines.com/images/gite/piscine_1.jpg","http://www.boulines.com/images/cadran_1_100.jpg",null,"© Les Boulines","Xavier",null,"2013-04-30"]
[182,"Gîtes ou Camping","Gite du Col de Beal",63,{"$f":"IFERROR(VLOOKUP(D189,'[1]Département _ Régions'!$C$4:$F$99,4),\"\")","v":"Auvergne"},"F","St Pierre la B",19,1390,"Gite 28 places, auberge 70 couverts, local pour le matériel,  observatoire ornitho adjacent, boutique","Gite du Col de Beal",null,"V37",45,41,8,"N",3,46,58,"E","http://www.bivouak.net/album_photos/photos.php?id=11331&id_sport=4","http://www.bivouak.net/album_photos/g/Gite_auberge_du_Col_du_Beal_11331.jpg",null,null,{"$f":"IF(ISBLANK(W189),\" \",\"Droits Réservés\")","v":"Droits Réservés"},"Xavier",null,"2013-04-30"]
[183,"Site usuel","Pech de Thaya",46,{"$f":"IFERROR(VLOOKUP(D190,'[1]Département _ Régions'!$C$4:$F$99,4),\"\")","v":"Midi-Pyrénées"},"F","Sauliac-sur-Cele",17,300,"Fréquenté par le club d'Astro du Gigouzac, dans le triangle noir, 360°","Club Astro de Gigouzac (46)","Forum Astrosurf","V37",44,31,53,"N",1,41,17,"E","http://astrosurf.com/clubgigouzac/index_b.htm","http://astrosurf.com/clubgigouzac/photos_racq_2004_fichiers/racq04_4.jpg","http://astrosurf.com/clubgigouzac/communs/LogoGigouzac.jpg",null,"Droits Réservés","Xavier",null,"2013-04-30"]
[185,"Rassemblement","Champ du feu",67,{"$f":"IFERROR(VLOOKUP(D191,'[1]Département _ Régions'!$C$4:$F$99,4),\"\")","v":"Alsace"},"F","Belmont",16,1050,"Rassemblement d'un collectif de 4 Clubs de l'Est, tous les 6 mois, pour protéger le site,,,","Collectif pour la prot. du ciel au CDF","Forum Futura-Sciences","V38",48,24,10,"N",7,16,4,"E","http://astrosurf.com/astrocdf67/","http://www.astrosurf.com/astrocdf67/ressources/20120915_19h04_cdf_nda_telescopes_alignes.JPG","http://astrosurf.com/astrocdf67/img/a_titre_site.jpg",null,"Droits Réservés","Xavier",null,"2013-04-30"]
[186,"Site usuel","Desendans",25,{"$f":"IFERROR(VLOOKUP(D192,'[1]Département _ Régions'!$C$4:$F$99,4),\"\")","v":"Franche-Comté"},"F","Desandans",12,380,"Site usuel du club \"Ciel Montbeliard\"","Ciel Montbelliard (25)",null,"V39",47,32,24,"N",6,40,22,"E","http://www.astrosurf.com/montbeliard/index.html",null,"http://www.montbeliard.fr/typo3temp/pics/b3224cf033.jpg",null," ","Xavier",null,"2013-04-30"]
[187,"Site usuel","Ecot",25,{"$f":"IFERROR(VLOOKUP(D193,'[1]Département _ Régions'!$C$4:$F$99,4),\"\")","v":"Franche-Comté"},"F","Ecot",13,520,"Site usuel du club \"Ciel Montbeliard\"","Ciel Montbelliard (25)",null,"V39",47,24,55,"N",6,43,37,"E","http://www.astrosurf.com/montbeliard/index.html",null,"http://www.montbeliard.fr/typo3temp/pics/b3224cf033.jpg",null," ","Xavier",null,"2013-04-30"]
[188,"Site usuel","Mont Bart",25,{"$f":"IFERROR(VLOOKUP(D194,'[1]Département _ Régions'!$C$4:$F$99,4),\"\")","v":"Franche-Comté"},"F","Bart",5,450,"Site d'observations publiques organisées par le club \"Ciel Montbeliard\"","Ciel Montbelliard (25)",null,"V39",47,29,9,"N",6,45,43,"E","http://www.astrosurf.com/montbeliard/index.html",null,"http://www.montbeliard.fr/typo3temp/pics/b3224cf033.jpg",null," ","Xavier",null,"2013-04-30"]
[189,"Site usuel","Col du Semnoz",74,{"$f":"IFERROR(VLOOKUP(D195,'[1]Département _ Régions'!$C$4:$F$99,4),\"\")","v":"Rhône-Alpes"},"F","St Jorioz",17,1500,"Grand parking abrité, dégagé S, W et E, accessible en hiver, légère PL au N, fréquenté par club Thyco Brahe","Tycho Brahe (74)","Mail GRESAC","V40",45,48,22,"N",6,6,4,"E","http://www.tychobrahe.org/","http://www.tychobrahe.org/img/photos/startiflette/DSC_00282.jpg","http://www.tychobrahe.org/img/photos/index/bandeau2.gif",null,"Droits Réservés","Xavier",null,"2013-04-30"]
[190,"Site usuel","Fort de Pugey",25,{"$f":"IFERROR(VLOOKUP(D196,'[1]Département _ Régions'!$C$4:$F$99,4),\"\")","v":"Franche-Comté"},"F","Pugey",11,460,"Site usuel de l' AAFC (Association Astronomique de Franche Comté)","AAFC Franche-Comté (25)",null,"V41",47,10,55,"N",5,58,59,"E","http://www.aafc.fr/",null,"http://www.aafc.fr/themes/aafc/images/logo_small.png",null," ","Xavier",null,"2013-04-30"]
[191,"Site usuel","Chalet de l'Anglettaz",74,{"$f":"IFERROR(VLOOKUP(D197,'[1]Département _ Régions'!$C$4:$F$99,4),\"\")","v":"Rhône-Alpes"},"F","Aviernoz",17,1500,"Accessible en voiture à certaines dates (sauf neige !) par chemin carrossable, auberge, pas de couchage","SI Aviernoz","Forum Webastro","V42",45,57,50,"N",6,14,36,"E",{"$nulls":4}," ","Xavier",null,"2013-05-01"]
[192,"Site usuel","Champ des Etoiles",60,{"$f":"IFERROR(VLOOKUP(D198,'[1]Département _ Régions'!$C$4:$F$99,4),\"\")","v":"Picardie"},"F","Bethisy-St-Pierre",11,114,"Site usuel d'observation du CAASV (Club Astro-Amateur de St Sauveur)","CAASV Saint-Sauveur",null,"V42",49,18,30,"N",2,48,40,"E","http://www.caasv.org/accueil.php","http://www.caasv.org/images/site/sitesmall007.jpg","http://www.caasv.org/images/logo.gif",null,"Droits Réservés","Xavier",null,"2013-05-01"]
[193,"Gîtes ou Camping","Gite de la Perdrix",25,{"$f":"IFERROR(VLOOKUP(D199,'[1]Département _ Régions'!$C$4:$F$99,4),\"\")","v":"Franche-Comté"},"F","Hauterive-la-F",17,1080,"Gite d'étape","Observatoire de la Perdrix Pontarlier",null,"V42",46,57,37,"N",6,27,25,"E","http://astrosurf.com/la-perdrix/index.html","http://astrosurf.com/la-perdrix/images/images-observatoire/panoweb.jpg","http://astrosurf.com/la-perdrix/images/images-site/LOGOCLUB.JPG",null,"Droits Réservés","Xavier",null,"2013-05-01"]
[194,"Observatoire","Observatoire d'Arcay",18,{"$f":"IFERROR(VLOOKUP(D200,'[1]Département _ Régions'!$C$4:$F$99,4),\"\")","v":"Centre"},"F","Arcay",11,160,"Observatoire de la SAPC (Societe Astronomique Populaire du centre) en haut d'un chateau d'eau !","SAPC (SA pop centre)",null,"V42",46,56,48,"N",2,20,6,"E","http://www.astrosurf.com/sapc/","http://www.astrosurf.com/sapc/presentation/t400.jpg","http://www.astrosurf.com/sapc/logos/logofete.jpg",null,"Droits Réservés","Xavier",null,"2013-05-01"]
[195,"Observatoire","Observatoire de la Perdrix",25,{"$f":"IFERROR(VLOOKUP(D201,'[1]Département _ Régions'!$C$4:$F$99,4),\"\")","v":"Franche-Comté"},"F","Hauterive-la-F",17,1080,"Observatoire du Club Astro de Pontarlier","Observatoire de la Perdrix Pontarlier",null,"V42",46,57,37,"N",6,27,25,"E","http://astrosurf.com/la-perdrix/index.html","http://astrosurf.com/la-perdrix/images/images-site/observatoire.jpg","http://astrosurf.com/la-perdrix/images/images-site/LOGOCLUB.JPG",null,"Droits Réservés","Xavier",null,"2013-05-01"]
[196,"Site usuel","Notre Dame de Vaulx",38,{"$f":"IFERROR(VLOOKUP(D202,'[1]Département _ Régions'!$C$4:$F$99,4),\"\")","v":"Rhône-Alpes"},"F","Notre-Dame-de-Vaulx",16,1150,"Une grande partie ouest du ciel est barrée par le connex (montagne). Au sud, La Mure (10 km) produit la pollution lumineuse d\\'une ville de 6000 hab environ (donc limitée). Petit problème : la commune de notre dame de vaulx (minuscule en contrebas) est sur éclairée par des lampadaires lanternes qui procurent une gêne. Le tout forme un site en moyenne altitude facile d'accès qui n'offre pas toutes les possibilités qu'on pourrait attendre mais qui est exploitable.",null,"Mail GRESAC","V101",44,59,4,"N",5,44,9,"E",{"$nulls":4}," ","Xavier",null,"2013-05-01"]
[197,"Gîtes ou Camping","Gite Rural de la pinea",{"v":6,"d":"06"},{"$f":"IFERROR(VLOOKUP(D203,'[1]Département _ Régions'!$C$4:$F$99,4),\"\")","v":"PACA"},"F","Breil-sur-Roya",19,480,"Gite de France 4 pers, ciel correct, PL maitrisée, conseils Astro, proche site d'altitude","La Pinea","Mail GRESAC","V43",43,56,26,"N",7,29,36,"E","http://vjac.free.fr/skyshows/","http://vjac.free.fr/skyshows/observingsites/2008jan19_gougoule-night_2000x392.jpg",null,null,"© Vincent JACQUES","Xavier",null,"2013-05-01"]
[198,"Gîtes ou Camping","Mas de L Angrola",34,{"$f":"IFERROR(VLOOKUP(D204,'[1]Département _ Régions'!$C$4:$F$99,4),\"\")","v":"Languedoc-Roussillon"},"F","Serignan",5,5,"2 logements (7 et 4 personnes), piscine, dans un village mais avec  T200 et L127 disponibles","Le Mas de l'Angrola","Forum Astrosurf","V43",43,16,57,"N",3,16,37,"E","http://www.gites-langrola.com/","http://www.gites-langrola.com/_MG_3743_4_5_tonemapp-2%20314x208.jpg",null,null,"©Mas de l'Angrola","Xavier",null,"2013-05-01"]
[199,"Site usuel","Val des Nymphes",26,{"$f":"IFERROR(VLOOKUP(D205,'[1]Département _ Régions'!$C$4:$F$99,4),\"\")","v":"Rhône-Alpes"},"F","La Garde-Adhemar",13,150,"Site usuel du Club Astroteil sur le parking de la chapelle du Val des Nymphes","Astroteil (26)",null,"V43",44,23,41,"N",4,46,31,"E","http://astroteil.webastro.net/page_accueil.html",null,"http://astroteil.webastro.net/images/astro%20panneau.jpg",null,{"$f":"IF(ISBLANK(W205),\" \",\"Droits Réservés\")","v":" "},"Xavier",null,"2013-05-01"]
[200,"Site usuel","Allons",47,{"$f":"IFERROR(VLOOKUP(D206,'Département _ Régions'!$C$4:$F$99,4),\"\")","v":"Aquitaine"},"F","Allons",19,140,"ATTENTION SITE PRIVE, sur autorisation (voir les chemins proches), lieu du marathon Messier annuel de la SAB ","SAB Bordeaux (33)","Mail GRESAC","V44",44,9,32,"N",0,3,14,"W","http://astrosurf.com/sab33/","http://www.astrosurf.com/sab33/images/observations.jpg","http://astrosurf.com/sab33/images/forum/logo.gif",null,"Société Astronomique de Bordeaux","jm",null,"2013-04-20"]
[201,"Gîtes ou Camping","Ferme de l'Argente",47,{"$f":"IFERROR(VLOOKUP(D207,'[2]Département _ Régions'!$C$4:$F$99,4),\"\")","v":"Aquitaine"},"F","Allons",19,130,"Gite de F, Ch d'hotes, 14 pers,  produit locaux, act. equestres, elevage cerf, fréquenté par SA Bordeaux","Ferme de l'Argente","Forum Webastro","V44",44,11,2,"N",0,3,59,"W","http://www.fermedelargente.fr/index.html","http://www.foie-gras-fermier.com/images/zoom/gite-1.jpg","http://www.fermedelargente.fr/images/domaine.png",null,{"$f":"IF(ISBLANK(W207),\" \",\"Droits Réservés\")","v":"Droits Réservés"},"jm",null,"2013-04-20",{"$f":"LEN(J207)","v":104}]
[202,"Site usuel","Col des Limouches",26,{"$f":"IFERROR(VLOOKUP(D208,'Département _ Régions'!$C$4:$F$99,4),\"\")","v":"Rhône-Alpes"},"F","Chateaudouble",19,1090,"Site  où l'Assoc Dromoise d'Astro Les Péiades organise une soirée annuelle d'observation","Pléiades 26",null,"V45",44,53,13,"N",5,9,30,"E","http://astrosurf.com/pleiades26/",{"$nulls":3}," ","jm",null,"2013-04-20"]
[203,"Observatoire","Observatoire de Boisricheux",28,{"$f":"IFERROR(VLOOKUP(D209,'Département _ Régions'!$C$4:$F$99,4),\"\")","v":"Centre"},"F","Pierres",14,160,"Observatoire de la section Astro du CCLER, Newton de 400mm sur un ancien château d'eau","Obs de Boisricheux",null,"V46",48,34,48,"N",1,31,58,"E","http://boisricheux.free.fr/","http://boisricheux.free.fr/images/sanduleak.jpg","http://boisricheux.free.fr/images/titre_obs5.jpg",null,"Droits Réservés","jm",null,"2013-04-20"]
[204,"Observatoire","Observatoire de Rouen",76,{"$f":"IFERROR(VLOOKUP(D210,'Département _ Régions'!$C$4:$F$99,4),\"\")","v":"Haute-Normandie"},"F","Rouen",0,40,"Obs en ville, pls instruments dont un T300 et une L160 centenaire, ouvert régulièrement au public","Obs de Rouen","Mail GRESAC","V47",49,26,50,"N",1,6,2,"E","http://www.astrosurf.com/obsrouen/","http://www.astrosurf.com/obsrouen/gully.jpg","http://www.astrosurf.com/obsrouen/logo'.jpg",null,"Droits Réservés","jm",null,"2013-04-20"]
[205,"Site usuel","Les Vernes",13,{"$f":"IFERROR(VLOOKUP(D211,'Département _ Régions'!$C$4:$F$99,4),\"\")","v":"PACA"},"F","Artigues",18,500,"site facile d'acces, léger halo au Nord-Est, petit resto à Rians ! Site des RAGBR 2008","astrosurf","Mail GRESAC","V47",43,34,29,"N",5,47,59,"E","http://www.astrosurf.com/ubb/Forum13/HTML/001369.html","http://img297.imageshack.us/img297/4995/1002901kp5.jpg",null,null,"Droits Réservés","jm",null,"2013-04-20"]
[206,"Site usuel","La Combe aux Cerisiers",70,{"$f":"IFERROR(VLOOKUP(D212,'Département _ Régions'!$C$4:$F$99,4),\"\")","v":"Franche-Comté"},"F","Oiselay-et-Grachaux",16,360,"Site fréquenté par le club AAFC (Franche-Comté)","AAFC Franche-Comté (25)","Mail GRESAC","V48",47,24,13,"N",5,55,24,"E","http://www.aafc.fr/","http://img174.imageshack.us/img174/5948/aafcbonnevantiz0.jpg","http://www.aafc.fr/themes/aafc/images/logo_small.png",null,"Droits Réservés","jm",null,"2013-04-20"]
[207,"Site usuel","Baracuchet",63,{"$f":"IFERROR(VLOOKUP(D213,'Département _ Régions'!$C$4:$F$99,4),\"\")","v":"Auvergne"},"F","St Antheme",19,1260,"Plusieurs endroits possibles avant le col, lande, 360°, beau site, arriver de jour, gite pas loin  ",null,"Forum Astrosurf","V49",45,34,40,"N",3,55,38,"E","http://www.astrosurf.com/ubb/Forum13/HTML/001382.html",{"$nulls":3}," ","jm",null,"2013-04-20"]
[208,"Site usuel","Col des Supeyres",63,{"$f":"IFERROR(VLOOKUP(D214,'Département _ Régions'!$C$4:$F$99,4),\"\")","v":"Auvergne"},"F","Valcivieres",19,1360,"Parking, chemin terre/cailloux, 360°, beau site,  arriver de jour pour éviter les surprises du terrain",null,"Forum Astrosurf","V49",45,35,35,"N",3,50,43,"E","http://www.astrosurf.com/ubb/Forum13/HTML/001382.html",{"$nulls":3}," ","jm",null,"2013-04-20"]
[209,"Gîtes ou Camping","Le Jas du Mas",63,{"$f":"IFERROR(VLOOKUP(D215,'Département _ Régions'!$C$4:$F$99,4),\"\")","v":"Auvergne"},"F","St Antheme",19,1250,"prox Baracuchet, gite d'étape 16 pl et 10pl en ch d'hotes, 1/2 p en 2008  puis autogestion, hiver fermé","Le Jas du Mas","Forum Astrosurf","V49",45,34,37,"N",3,52,59,"E","http://www.rando-accueil.com/Massif_Central/RP_JAS-DU-MAS.php","http://mw2.google.com/mw-panoramio/photos/medium/21906932.jpg","http://www.rando-accueil.com/Image/LOGO/Rando-Accueil.gif",null,"tib01 - Panoramio","jm",null,"2013-04-20"]
[210,"Site usuel","Notre Dame de Lorette",62,{"$f":"IFERROR(VLOOKUP(D216,'Département _ Régions'!$C$4:$F$99,4),\"\")","v":"Nord-Pas-de-Calais"},"F","Albain-St-Nazaire",5,160,"Sur une bute",null,"Forum Webastro","V50",50,24,1,"N",2,43,10,"E","http://www.webastro.net/forum/showthread.php?t=30290","http://mw2.google.com/mw-panoramio/photos/medium/1848538.jpg",null,null," sanglier76 - Panoramio","jm",null,"2013-04-20"]
[211,"Site usuel","Vaysse Rodier",12,{"$f":"IFERROR(VLOOKUP(D217,'Département _ Régions'!$C$4:$F$99,4),\"\")","v":"Midi-Pyrénées"},"F","Vezins-de-Levezou",19,980,"Le mieux à 1/2h de Rodez, fréquenté par 4A Andromede (Aveyron)","4A Andromede Aveyron","Mail GRESAC","V50",44,18,52,"N",2,53,39,"E","http://astrosurf.com/andromede/","http://gresac.free.fr/photos/vaysse-rodier.jpg","http://astrosurf.com/andromede/LOGO-ANDROMEDE-4A.jpg",null,{"$f":"IF(ISBLANK(W217),\" \",\"Droits Réservés\")","v":"Droits Réservés"},"jm",null,"2013-04-20"]
[212,"Site usuel","Causse Comtal",12,{"$f":"IFERROR(VLOOKUP(D218,'Département _ Régions'!$C$4:$F$99,4),\"\")","v":"Midi-Pyrénées"},"F","Sebazac-Concoures",17,600,"Attention, terrain communal utilisé par 4A avec autorisation, accés libre avec respect ! PL au SW","4A Andromede Aveyron","Mail GRESAC","V51",44,25,38,"N",2,39,0,"E","http://astrosurf.com/andromede/","http://gresac.free.fr/photos/montage.jpg","http://astrosurf.com/andromede/LOGO-ANDROMEDE-4A.jpg",null,{"$f":"IF(ISBLANK(W218),\" \",\"Droits Réservés\")","v":"Droits Réservés"},"jm",null,"2013-04-20"]
[213,"Site usuel","Col de Vence",{"v":6,"d":"06"},{"$f":"IFERROR(VLOOKUP(D219,'Département _ Régions'!$C$4:$F$99,4),\"\")","v":"PACA"},"F","Vence",18,960,"Site Novae, acces rapide, assez fréquenté en été, un peu humide et venté, de plus en plus de PL ","Association Novae","Mail GRESAC","V51",43,45,37,"N",7,4,29,"E","http://www.astrosurf.com/novae/",{"$nulls":3},{"$f":"IF(ISBLANK(W219),\" \",\"Droits Réservés\")","v":" "},"jm",null,"2013-04-24"]
[214,"Site usuel","Arith",73,{"$f":"IFERROR(VLOOKUP(D220,'Département _ Régions'!$C$4:$F$99,4),\"\")","v":"Rhône-Alpes"},"F","Arith",16,880,"Parking, pas de passage, horiz OK Sud et Est (30° à l'W), pas de PL visible, ciel de montagne",null,"Forum Webastro","V52",45,42,48,"N",6,4,0,"E",{"$nulls":4},{"$f":"IF(ISBLANK(W220),\" \",\"Droits Réservés\")","v":" "},"jm",null,"2013-04-24"]
[215,"Observatoire","Obs des Monts du Gueret",23,{"$f":"IFERROR(VLOOKUP(D221,'Département _ Régions'!$C$4:$F$99,4),\"\")","v":"Limousin"},"F","Ste Feyre",17,650,"Dans le parc animalier des Loups de Chabrière, T450, \"Station de Nuit\" de l'AFA","Parc Animalier des Loups de Chabrière","Forum Astrosurf","V53",46,7,38,"N",1,53,30,"E","http://www.astrosurf.com/adaes/sortie-100515.html","http://www.astrosurf.com/adaes/photos/sorties/100515/IMG_0015.jpg","http://www.afanet.fr/stations/images/Gd_Logos_stations.jpg",null,"© ADAES","jm",null,"2013-04-24"]
[216,"Observatoire","Col de la Serreyredes",30,{"$f":"IFERROR(VLOOKUP(D222,'Département _ Régions'!$C$4:$F$99,4),\"\")","v":"Languedoc-Roussillon"},"F","L'Esperou",18,1300,"Astro-Gard, Bergerie du Col de la Serreyredes, anim, expo, obs, loc, T410, T255, coronado,,,","Astro-Gard",null,"V54",44,6,11,"N",3,32,29,"E","http://www.astrogar.com/index.html","http://www.astrogar.com/Telescope%20410/T41003.jpg","http://www.astrogar.com/Images%20Communes/Astrogar_Comp6.jpg",null,{"$f":"IF(ISBLANK(W222),\" \",\"Droits Réservés\")","v":"Droits Réservés"},"jm",null,"2013-11-29"]
[217,"Site usuel","Lac des Bouillouses",66,{"$f":"IFERROR(VLOOKUP(D223,'Département _ Régions'!$C$4:$F$99,4),\"\")","v":"Languedoc-Roussillon"},"F","Les Angles",19,2010,"Très bon site, accés facile mais attention aux restrictions, gite libre (print/aut) ou gardé (hiver)","Planetarn","Mail Gresac","V55",42,33,36,"N",2,0,15,"E","http://pagesperso-orange.fr/planetarn/manu/Sortiebouillouses2.htm","http://pagesperso-orange.fr/planetarn/manu/Sortiebouillouses2_fichiers/panolacbr.JPG",null,null,"Droits Réservés","jm",null,"2013-04-24"]
[218,"Site usuel","Les Pansieres",81,{"$f":"IFERROR(VLOOKUP(D224,'Département _ Régions'!$C$4:$F$99,4),\"\")","v":"Midi-Pyrénées"},"F","Lacaune",19,1000,"Meilleur site du Tarn, PL quasi absente, accessible en voiture, après le Col du Picotalen","Le \"Site à Manu\"","Mail Gresac","V55",43,40,22,"N",2,38,29,"E","http://pagesperso-orange.fr/planetarn/manu/MANU.htm","http://pagesperso-orange.fr/planetarn/manu/CROA07/CROAjuilaoutsept_fichiers/soireeroucousb.JPG",null,null,"Droits Réservés","jm",null,"2013-04-24"]
[219,"Site usuel","Pailhere",{"v":9,"d":"09"},{"$f":"IFERROR(VLOOKUP(D225,'Département _ Régions'!$C$4:$F$99,4),\"\")","v":"Midi-Pyrénées"},"F","Mijanes",19,1930,"Venté, mais moins que le Col, attention aux chemins au sud, nuages et accès délicat sans 4x4","Planetarn","Mail GRESAC","V55",42,44,16,"N",2,0,44,"E","http://pagesperso-orange.fr/planetarn/manu/etudesitesastro/ARest.htm","http://pagesperso-orange.fr/planetarn/manu/15-17-07/Pyrjuillet053.jpg",null,null,"Droits Réservés","jm",null,"2013-04-24"]
[220,"Site usuel","Franc",43,{"$f":"IFERROR(VLOOKUP(D226,'Département _ Régions'!$C$4:$F$99,4),\"\")","v":"Auvergne"},"F","Montregard",19,1070,"Site situé pas très loin de Saint Bonnet le froid. C'est en fait un ancien tronçon de route qui est désormais à l'abandon car la départementale passe maintenant un poil plus au nord-est. Site TRES bien dégagé au sud. Facile d'accès aux très gros instruments (ancienne route => on peut facilement poser un très gros télescope). Phares du (peu) de voiture circulant sur la départementale un peu génants, mais on est un peu en contrebas quand même.",null,"Mail GRESAC","V56",45,9,17,"N",4,22,30,"E",{"$nulls":4}," ","jm",null,"2013-04-24"]
[221,"Site usuel","Givry",77,{"$f":"IFERROR(VLOOKUP(D227,'Département _ Régions'!$C$4:$F$99,4),\"\")","v":"Ile-de-France"},"F","Pecy",12,130,"Faible PL de Provins au SE, accès par N4 puis D205, Bortle estimé à 3",null,"Mail GRESAC","V56",48,38,32,"N",3,4,19,"E",{"$nulls":4}," ","jm",null,"2013-04-24"]
[222,"Site usuel","La Villeneuve",78,{"$f":"IFERROR(VLOOKUP(D228,'Département _ Régions'!$C$4:$F$99,4),\"\")","v":"Ile-de-France"},"F","Hermeray",11,160,"Chemin de terre à éviter après la pluie, les lampadaires voisins s'éteignent vers 23h30 (PL : 7)",null,"Mail GRESAC","V56",48,39,41,"N",1,40,22,"E",{"$nulls":4}," ","jm",null,"2013-04-24"]
[223,"Rassemblement","GRAO",56,{"$f":"IFERROR(VLOOKUP(D229,'Département _ Régions'!$C$4:$F$99,4),\"\")","v":"Bretagne"},"F","Gern",15,170,"Grande Rencontre des Astronomes de l'Ouest","Assoc.  des Astronomes Amateurs d'Armorique",null,"V57",48,1,56,"N",3,3,36,"W","https://sites.google.com/site/astronomesamateursdarmorique/home",{"$nulls":3}," ","jm",null,"2013-04-24"]
[224,"Site usuel","Mouilly",55,{"$f":"IFERROR(VLOOKUP(D230,'Département _ Régions'!$C$4:$F$99,4),\"\")","v":"Lorraine"},"F","Mouilly",17,360,"Horizon degagé 360°, quelques halos lumineux. Chemin praticable tout temps",null,"Mail Gresac","V57",49,3,26,"N",5,32,38,"E",{"$nulls":3},"bluedob@hotmail.com"," ","jm",null,"2013-04-24"]
[225,"Observatoire","Observatoire Bretagne Atlantique",44,{"$f":"IFERROR(VLOOKUP(D231,'Département _ Régions'!$C$4:$F$99,4),\"\")","v":"Pays de la Loire"},"F","Severac",8,40,"L'observatoire de VOYAGER 3 Astronomie à Sévérac (Loire-Atlantique)",null,null,"V57",47,32,50,"N",2,4,53,"W",{"$nulls":4}," ","jm",null,"2013-04-24"]
[226,"Observatoire","Observatoire de Le Soler",66,{"$f":"IFERROR(VLOOKUP(D232,'[2]Département _ Régions'!$C$4:$F$99,4),\"\")","v":"Languedoc-Roussillon"},"F","Le Soler",4,70,"Observatoire de l'Association Terre-Univers de Le Soler","Association Terre-Univers",null,"V57",42,41,1,"N",2,47,57,"E","http://www.astrosurf.com/terreunivers/index.html","http://www.astrosurf.com/terreunivers/img/materiels/lobservatoire.jpg","http://www.astrosurf.com/terreunivers/img/logoterreunivers.png",null,"Droits Réservés","jm",null,"2013-04-24",{"$f":"LEN(J232)","v":55}]
[227,"Site usuel","Borne 504",66,{"$f":"IFERROR(VLOOKUP(D233,'Département _ Régions'!$C$4:$F$99,4),\"\")","v":"Languedoc-Roussillon"},"F","Osseja",19,2200,"Accès facile en voiture, sans PL, dommage que Barcelone pourtant 100km déteriore l'horizon sud","Planetarn","Mail GRESAC","V58",42,21,22,"N",2,1,24,"E","http://pagesperso-orange.fr/planetarn/manu/etudesitesastro/PO.htm",{"$nulls":3}," ","jm",null,"2013-04-24"]
[228,"Observatoire","Chanseves",19,{"$f":"IFERROR(VLOOKUP(D234,'Département _ Régions'!$C$4:$F$99,4),\"\")","v":"Limousin"},"F","Montceaux-sur-D",17,460,"Bord d'aérodrome, site privé fréquenté par l'AAL (T540, C8, C11) contacter l'association","AAL","Mail Gresac","V58",45,5,56,"N",1,51,22,"E","http://www.astrosurf.com/aal/association.html","http://www.astrosurf.com/aal/association/obs.jpg",null,null,"Droits Réservés","jm",null,"2013-04-24"]
[230,"Site usuel","Col d Agnes",{"v":9,"d":"09"},{"$f":"IFERROR(VLOOKUP(D235,'Département _ Régions'!$C$4:$F$99,4),\"\")","v":"Midi-Pyrénées"},"F","Aulus-les-Bains",20,1580,"Site de bonne qualité, facile d'accès  Horizon sud TB","Forum Astrosurf","Mail GRESAC","V58",42,47,39,"N",1,22,24,"E","http://www.astrosurf.com/ubb/Forum15/HTML/000395.html",{"$nulls":3}," ","jm",null,"2013-04-24"]
[232,"Site usuel","La Bonaigua",null,{"$f":"IFERROR(VLOOKUP(D236,'Département _ Régions'!$C$4:$F$99,4),\"\")","v":""},"E","Valqueira",19,2080,"Très bon site, nord limité par montagne, pas de halos visible, hotel fermé en mai, donc aucune lumiere parasite.",null,null,"V58",42,39,50,"N",0,58,48,"E",{"$nulls":3},"bluedob@hotmail.com"," ","jm",null,"2013-04-24"]
[233,"Rassemblement","Festival Astro de Tautavel",66,{"$f":"IFERROR(VLOOKUP(D237,'Département _ Régions'!$C$4:$F$99,4),\"\")","v":"Languedoc-Roussillon"},"F","Tautavel",17,110,"Gratuit (conf., ateliers, stands, obs.) PL à 9,9 car éclairage éteint",null,null,"V59",42,48,57,"N",2,44,6,"E",{"$nulls":4},"langrola - Panoramio","jm",null,"2013-04-24"]
[234,"Rassemblement","Astrociel",26,{"$f":"IFERROR(VLOOKUP(D238,'Département _ Régions'!$C$4:$F$99,4),\"\")","v":"Rhône-Alpes"},"F","Valdrome",19,1310,"Obs., conf., ateliers, expo., camping et resto à proximité - SQM : 21,55","SAF",null,"V59",44,28,58,"N",5,36,18,"E","http://astrosurf.com/saf/","http://astrosurf.com/saf/news/RAC2007/AMBIANCE/PM_PANORAMA_STATION_VIGNETTE.jpg","http://astrosurf.com/saf/news/RAC2007/logo_saf.jpg",null,{"$f":"IF(ISBLANK(W238),\" \",\"Droits Réservés\")","v":"Droits Réservés"},"jm",null,"2013-04-24"]
[235,"Rassemblement","Festival Astro de Fleurance",32,{"$f":"IFERROR(VLOOKUP(D239,'Département _ Régions'!$C$4:$F$99,4),\"\")","v":"Midi-Pyrénées"},"F","Mauroux",17,210,"Annuel, 7 jours en aout (conf., ateliers, obs…), également Festival Astro Jeunes","Festival Astro Fleurance",null,"V60",43,55,11,"N",0,49,13,"E","http://www.fermedesetoiles.com/","http://www.fermedesetoiles.com/images/sites/diaporamas/fde/ferme-des-etoiles-vue-du-ciel.jpg","http://www.fermedesetoiles.com/images/logo.png",null,"Droits Réservés","jm",null,"2013-04-24"]
[236,"Rassemblement","Campement aux Etoiles",37,{"$f":"IFERROR(VLOOKUP(D240,'Département _ Régions'!$C$4:$F$99,4),\"\")","v":"Centre"},"F","Razines",12,60,"Annuel, un week-end, lumière éteinte la nuit (Indice de PL 8,5)","Astrochinon","Forum Webastro","V60",46,58,19,"N",0,22,54,"E","http://www.astrochinon.fr/","http://www.astrochinon.fr/images/campement/campement_2011/Campement_2011_05_28_02.jpg","http://www.astrochinon.fr/templates/bizblue/images/logo.gif",null,"Droits Réservés","jm",null,"2013-04-24"]
[237,"Rassemblement","Le Poizat",{"v":1,"d":"01"},{"$f":"IFERROR(VLOOKUP(D241,'Département _ Régions'!$C$4:$F$99,4),\"\")","v":"Rhône-Alpes"},"F","Le Poizat",16,860,"Au village de Vacances des Claimontelles, pls clubs présents, villages alentour éteints","Nature Extrème","Forum Astrosurf","V61",46,8,59,"N",5,42,20,"E","http://nature-extreme.forumactif.com/astronomie-f3/rencontre-astronomique-du-poizat-01-t914.htm","http://i44.servimg.com/u/f44/11/84/34/35/img_0110.jpg",null,null,"Droits Réservés","jm",null,"2013-04-24"]
[238,"Site usuel","Merlogne",{"v":1,"d":"01"},{"$f":"IFERROR(VLOOKUP(D242,'Département _ Régions'!$C$4:$F$99,4),\"\")","v":"Rhône-Alpes"},"F","Lalleyriat",17,1140,"Accidenté, raide,  mais accessible en voiture, Genéve à l'E, grand pré avec vaches !","Nature Extrème","Mail GRESAC","V61",46,7,42,"N",5,43,15,"E","http://nature-extreme.forumactif.com/astronomie-f3/week-end-astro-du-3-sept-05-t199.htm",{"$nulls":3}," ","jm",null,"2013-04-24"]
[239,"Gîtes ou Camping","Camping Domaine de Briange",{"v":7,"d":"07"},{"$f":"IFERROR(VLOOKUP(D243,'Département _ Régions'!$C$4:$F$99,4),\"\")","v":"Rhône-Alpes"},"F","St Remeze",18,380,"Essayé et approuvé par l'AAA, accepte d'éteindre ses éclairages, animations astro, bungalows, gites,,,","Domaine de Briange","Mail GRESAC","V61",44,24,25,"N",4,30,54,"E","http://www.campingdebriange.com/?domaine-de-briange","http://www.campingdebriange.com/IMG/jpg/accueilsite-3.jpg","http://www.campingdebriange.com/camping/css/img/logobriange3.png",null,"Droits Réservés","jm",null,"2013-04-24"]
[240,"Site usuel","Kerguchet",22,{"$f":"IFERROR(VLOOKUP(D244,'Département _ Régions'!$C$4:$F$99,4),\"\")","v":"Bretagne"},"F","Merleac",18,300,"Chemin agricole",null,"Forum Futura-Science","V62",48,15,44,"N",2,56,31,"W","http://forums.futura-sciences.com/post1745637.html",{"$nulls":3}," ","jm",null,"2013-04-24"]
[241,"Site usuel","Cret de l oeillon",42,{"$f":"IFERROR(VLOOKUP(D245,'Département _ Régions'!$C$4:$F$99,4),\"\")","v":"Rhône-Alpes"},"F","Doizieu",17,1300,"grand parking, sensible vent et humidité, Voie Lactée OK, M13 à œil nu, PL N-W et E, fréquenté",null,"Forum Webastro","V62",45,23,28,"N",4,36,29,"E","http://www.webastro.net/forum/showthread.php?t=32664","http://mw2.google.com/mw-panoramio/photos/medium/4801223.jpg",null,null,"Droits Réservés","jm",null,"2013-04-24"]
[242,"Observatoire","Parc du Cosmos",30,{"$f":"IFERROR(VLOOKUP(D246,'Département _ Régions'!$C$4:$F$99,4),\"\")","v":"Languedoc-Roussillon"},"F","Les Angles",3,80,"Parc d'attraction sur le théme de l'Astronomie, visite guidée, siège et observatoire du club ","Astro Club Hesperos",null,"V62",43,57,43,"N",4,45,13,"E","http://www.parcducosmos.eu/","http://mw2.google.com/mw-panoramio/photos/medium/1981909.jpg","http://www.parcducosmos.eu/wp-content/themes/MyTwentyEleven/images/logo.png",null,"Droits Réservés","jm",null,"2013-04-24"]
[243,"Rassemblement","Cosmons",83,{"$f":"IFERROR(VLOOKUP(D247,'Département _ Régions'!$C$4:$F$99,4),\"\")","v":"PACA"},"F","Mons",16,750,"Manif publique organisée par l'assoc Pegase avec les Clubs Copernic Fréjus et AMAS Marseille,",null,"Forum Astrosurf","V63",43,41,22,"N",6,42,48,"E","http://www.astrosurf.com/ubb/Forum13/HTML/001454.html","http://vernet.david.free.fr/Cosmons2007/panomonsMini.JPG",null,null,"Droits Réservés","jm",null,"2013-04-24"]
[244,"Site usuel","Col de joux Plane",74,{"$f":"IFERROR(VLOOKUP(D248,'Département _ Régions'!$C$4:$F$99,4),\"\")","v":"Rhône-Alpes"},"F","Samoens",18,1710,"Grand parking",null,"Forum Webastro","V63",46,7,44,"N",6,42,48,"E","http://www.webastro.net/forum/showthread.php?t=32863","http://mw2.google.com/mw-panoramio/photos/medium/4493117.jpg",null,null,"Droits Réservés","jm",null,"2013-04-29"]
[245,"Site usuel","Col de la croix de Fer",73,{"$f":"IFERROR(VLOOKUP(D249,'Département _ Régions'!$C$4:$F$99,4),\"\")","v":"Rhône-Alpes"},"F","St-Sorlin-d'Arves",19,2060,"Attention site classé (et gardé !), 360°, très peu de PL par St Sorlin, camping interdit, ",null,"Forum Webastro","V64",45,13,25,"N",6,12,9,"E","http://www.webastro.net/forum/showthread.php?t=33349","http://img501.imageshack.us/img501/8784/pano2wu2.jpg",null,null,"Droits Réservés","jm",null,"2013-04-29"]
[246,"Site usuel","Neuvillers Sur Fave",88,{"$f":"IFERROR(VLOOKUP(D250,'Département _ Régions'!$C$4:$F$99,4),\"\")","v":"Lorraine"},"F","Neuvillers-Sur-Fave",11,410,"Site usuel du club DENEB de ST Dié (stade de foot ou  terrain d'aéromodélisme) chemin de terre","DENEB assoc astro St Dié",null,"V65",48,16,43,"N",7,1,31,"E","http://deneb88.1fr1.net/",null,"http://i14.servimg.com/u/f14/14/54/51/10/nouvel13.jpg",null," ","jm",null,"2013-04-29"]
[247,"Site usuel","Charemont",88,{"$f":"IFERROR(VLOOKUP(D251,'Département _ Régions'!$C$4:$F$99,4),\"\")","v":"Lorraine"},"F","Frapelle",14,460,"Site utilisé par DENEB (l'assoc Astro de St Dié) pour la nuit des étoiles","DENEB Assoc Astro St Dié",null,"V65",48,17,57,"N",7,2,52,"E","http://deneb88.1fr1.net/",null,"http://i14.servimg.com/u/f14/14/54/51/10/nouvel13.jpg",null," ","jm",null,"2013-04-29"]
[248,"Observatoire","Observatoire de Rocbaron",83,{"$f":"IFERROR(VLOOKUP(D252,'Département _ Régions'!$C$4:$F$99,4),\"\")","v":"PACA"},"F","Rocbaron",12,360,"Observatoire Astronomique de Toulon (Club Cassiopée)","Observatoire de Rocbaron",null,"V66",43,19,7,"N",6,5,47,"E","http://www.observatoire-rocbaron.com/index.php","http://www.observatoire-rocbaron.com/images/photos/observatoire/01.jpg",null,null,"Droits Réservés","jm",null,"2013-04-29"]
[249,"Rassemblement","Festival de Rocbaron",83,{"$f":"IFERROR(VLOOKUP(D253,'Département _ Régions'!$C$4:$F$99,4),\"\")","v":"PACA"},"F","Rocbaron",12,360,"Festival \"La tête dans les étoile\" de Rocbaron","Observatoire de Rocbaron",null,"V66",43,19,7,"N",6,5,47,"E","http://www.observatoire-rocbaron.com/index.php","http://www.observatoire-rocbaron.com/Affiches/ll_astro-rocbaron-2012.jpg",null,null,"Droits Réservés","jm",null,"2013-04-29"]
[250,"Site usuel","Montagne de lure",{"v":4,"d":"04"},{"$f":"IFERROR(VLOOKUP(D254,'Département _ Régions'!$C$4:$F$99,4),\"\")","v":"PACA"},"F","St-Etienne-les-O",19,1570,"Parking au pied des pistes de ski, 150 m au N de l'Obs Marc Bianchi de la SAML, plat, dégagé au S. Testé par AVEX : excellent site avec une Pollution Lumineuse peut impactante au dessus de 8° a 1600m d'altitude il permet un gain de transparence considérable Attention le vent peut etre violent. Avex a testé le sommet site deux - trois Km plus loin (1800m d'altitude) mais le vent du Nord (Mistral) est insoutenable, aussi l'observation autour de l'observatoire est la plus sage des précautions. Il y a des baraquements qui servent de locaux technique l'hivers (il y a des pistes de Ski) aupres desquels on peut s'abriter du vent ou une petite clairière a 12 m au N-O de l'observatoire (la Photo a 360 a été prise sur le monticule au nord de cette position) ou le vent est nettement moins fort\n","SA de la Montagne de Lure","Mail GRESAC","V67",44,6,52,"N",5,46,51,"E","http://www.astrosurf.com/saml/index.html","http://avex.org.free.fr/gresac/360/360-spot-avex-montagne-de-lure-gresac.jpg","http://www.astrosurf.com/saml/Resources/Logo%20SAML.jpg",null,"Droits Réservés","jm",null,"2013-04-29"]
[251,"Site usuel","Montalet",81,{"$f":"IFERROR(VLOOKUP(D255,'Département _ Régions'!$C$4:$F$99,4),\"\")","v":"Midi-Pyrénées"},"F","Lacaune",19,1200,"au début du chemin qui mène à la base militaire, abrité","Le site à Manu","Mail GRESAC","V67",43,40,53,"N",2,44,1,"E","http://pagesperso-orange.fr/planetarn/manu/montalet.htm","http://gresac.free.fr/photos/site-vue-du-roc.JPG",null,null,"Droits Réservés","jm",null,"2013-04-29"]
[252,"Gîtes ou Camping","Pecabrier",24,{"$f":"IFERROR(VLOOKUP(D256,'Département _ Régions'!$C$4:$F$99,4),\"\")","v":"Aquitaine"},"F","Savignac-de-M",16,160,"Gîte, au lieu dit Pécabrier, chez M. Labrousse 05 53 07 12 46, Observation possible dans un champ mis à disposition par le propriétaire",null,"Forum Webastro","V78",44,57,11,"N",0,55,58,"E","http://www.webastro.net/forum/showthread.php?t=34081&highlight=sous+ciel+pur","http://www.sarlat-tourisme.com/photos/3cd1e931a9ad6b4a9fbd0261722a669d.jpg",null,null,"Droits Réservés","jm",null,"2013-04-29"]
[253,"Site usuel","Artas",38,{"$f":"IFERROR(VLOOKUP(D257,'Département _ Régions'!$C$4:$F$99,4),\"\")","v":"Rhône-Alpes"},"F","Roche",14,410,"Au bord d'une route peu fréquentée",null,"Forum Webastro","V68",45,34,10,"N",5,8,27,"E","http://www.webastro.net/forum/showthread.php?p=440334#post440334",{"$nulls":3}," ","jm",null,"2013-04-29"]
[254,"Observatoire","Observatoire d Aniane",34,{"$f":"IFERROR(VLOOKUP(D258,'Département _ Régions'!$C$4:$F$99,4),\"\")","v":"Languedoc-Roussillon"},"F","Aniane",14,180,"Réouverture en 2008, T250, T600... à terme 7 coupoles, des chalets d'accueil...","Observatoire d'Aniane","Mail GRESAC","V68",43,40,54,"N",3,36,9,"E","http://www.observatoire-aniane.com/","http://www.observatoire-aniane.com/squelettes/images/sommaire.jpg",null,null,"Droits Réservés","jm",null,"2013-04-29"]
[255,"Site usuel","Route Coingt Jeantes",{"v":2,"d":"02"},{"$f":"IFERROR(VLOOKUP(D259,'Département _ Régions'!$C$4:$F$99,4),\"\")","v":"Picardie"},"F","Jeantes",16,210,"Très bon horizon très largement dégagé. Pollution lumineuse visible-malheureusement- de Reims, Vervins-Plomion, Hirson pour le plus gros...",null,"Forum Webastro","V69",49,47,38,"N",4,4,23,"E","http://www.webastro.net/forum/showthread.php?t=34989",{"$nulls":3},"Droits Réservés","jm",null,"2013-04-29"]
[256,"Site usuel","La Boissiere",34,{"$f":"IFERROR(VLOOKUP(D260,'Département _ Régions'!$C$4:$F$99,4),\"\")","v":"Languedoc-Roussillon"},"F","La Boissiere",15,182,"Pour les soirées de dernière minute, PL acceptable,  rapide d'accès avec une bonne partie par une 4 voies (site fréquenté par le CAC)",null,"Mail GRESAC","V69",43,40,12,"N",3,38,7,"E",{"$nulls":4},"Droits Réservés","jm",null,"2013-04-29"]
[257,"Site usuel","Nougayrac",46,{"$f":"IFERROR(VLOOKUP(D261,'Département _ Régions'!$C$4:$F$99,4),\"\")","v":"Midi-Pyrénées"},"F","St-Martin-Labouval",17,340,"facile d'accès, 360°, ","Les Petits Secrets","Forum Webastro","V70",44,29,17,"N",1,42,25,"E",{"$nulls":4},"Droits Réservés","jm",null,"2013-04-29"]
[258,"Site usuel","Necropole Militaire",67,{"$f":"IFERROR(VLOOKUP(D262,'Département _ Régions'!$C$4:$F$99,4),\"\")","v":"Alsace"},"F","Grendelbruch",12,640,"Quitter Grendelbruch par la Route du Champ du Feu direction le Hohbul. Petit parking pour 4 voitures; site à 900 m d 'altitude surplombant la vallée de la Bruche. Horizon dégagé sur quasiement 360 °. Bonne transparence du ciel au zénith; mais horizon nord perturbé par la pollution lumineuse de Strasbourg au loin. Mais permet de bonnes observations de la région du Sagittaire l 'été sans pollution lumineuse de cette zone. Voie Lactée évidente. Situé à 30 minutes de route de Strasbourg (contre 1h10 pour le Champ de Feu); accès facile par autoroute puis voie rapide.",null,"Forum Webastro","V70",48,29,16,"N",7,18,37,"E","http://www.webastro.net/forum/showthread.php?t=35131","http://mw2.google.com/mw-panoramio/photos/medium/10136287.jpg",null,null,"Elgaston - Panoramio","jm",null,"2013-04-29"]
[259,"Site usuel","Refuge de Sales",74,{"$f":"IFERROR(VLOOKUP(D263,'Département _ Régions'!$C$4:$F$99,4),\"\")","v":"Rhône-Alpes"},"F","Sixt-Fer-à-Cheval",19,1880,"Refuge accessible à PIEDS (2h15 de marche sur sentier délicat) prévoir matériel léger, ouvert juin à sept Site pour les randonneurs experimentés et astronomes amateurs. Très bon ciel. Polution lumineuse inexistante.  Toutes directions dégagées sauf EST et OUEST ~25° au dessus de l'horizon : barre rocheuse. Site privilégié par l'altitude. 2h15 de marche jusqu'au refuge. AVIS IMPORTANT: => encombrement à réduire pour le matériel. Maxi conseillé ~120mm selon possibilitées de transport  du genre maksutov ou lunette compacte. Ne pas sur-estimer ses capacités ; le sentier est parfois difficile. Arriver de jour pour ne pas se perdre. Réservation couchage au 04.50.34.47.01","Refuge de Sales","Mail GRESAC","V71",45,59,20,"N",6,45,10,"E","http://www.refugedesales.com/index.htm","http://mw2.google.com/mw-panoramio/photos/medium/6005679.jpg",null,null,"Pierre Alex - Panoramio","jm",null,"2013-04-29"]
[260,"Gîtes ou Camping","Camping Le Ventoulou",46,{"$f":"IFERROR(VLOOKUP(D264,'Département _ Régions'!$C$4:$F$99,4),\"\")","v":"Midi-Pyrénées"},"F","Thegra",16,350,"Camping**** au cœur du parc régional des Causses et du Quercy, avec un espace plat \"astro-compatible\"","Le Ventoulou","Forum Astrosurf","V71",44,49,34,"N",1,46,43,"E","http://www.camping-leventoulou.com",{"$nulls":3},{"$f":"IF(ISBLANK(W264),\" \",\"Droits Réservés\")","v":" "},"jm",null,"2013-04-29"]
[261,"Site usuel","Pointe du Van",29,{"$f":"IFERROR(VLOOKUP(D265,'Département _ Régions'!$C$4:$F$99,4),\"\")","v":"Bretagne"},"F","Cleden-Cap-Sizun",16,65,"Dans un parc naturel, sur un parking gratuit",null,"Forum Webastro","V72",48,3,36,"N",4,42,28,"W","http://www.webastro.net/forum/showthread.php?p=460189 - post460189","http://mw2.google.com/mw-panoramio/photos/medium/7188918.jpg",null,null,{"$f":"IF(ISBLANK(W265),\" \",\"Droits Réservés\")","v":"Droits Réservés"},"jm",null,"2013-04-29"]
[262,"Gîtes ou Camping","Camping du pont du Tarn",48,{"$f":"IFERROR(VLOOKUP(D266,'Département _ Régions'!$C$4:$F$99,4),\"\")","v":"Languedoc-Roussillon"},"F","Florac",12,580,"Très bon camping pour des vacances mixtes astro et famille. Astro car on peut accéder à plusieurs spot interessant : La citerne (causse Méjean) à 30mm, La cham des bondons à 20 mn, le sommet du mont lozère à 45 mn. Famille car au bord du Tarn, piscine, animation, snack, babyfoot, minigolf etc. Accueil très sympa. Tente ou location mobilhome. Ouvert en demi saison. Ils donnent la clef de la barrière aux astronomes pour rentrer tard sans laisser le matos dehors...","Camping du pont du Tarn","Mail GRESAC","V72",44,20,9,"N",3,35,23,"E","http://www.camping-florac.com/index.html","http://www.camping-florac.com/images/camping.jpg",{"$nulls":3},"jm",null,"2013-04-29"]
[263,"Site usuel","La Cham des Bondons 1",48,{"$f":"IFERROR(VLOOKUP(D267,'Département _ Régions'!$C$4:$F$99,4),\"\")","v":"Languedoc-Roussillon"},"F","Les-Bondons",19,1200,"Plus accessible que le mont lozère, ce spot est interessant car en (relative) altitude : 1200 m. Parfaitement dégagé au sud. Petits halo de Florac/bondons vers le sud-ouest. Très peu de voitures passent sur la route la nuit. Assez proche des campings situés sur le bord du tarn (notamment camping à Bédoues ou camping du pont du tarn à Florac) Demi tour facile pour remorque. S\\'il y a beaucoup de vent du nord, on peut se rabattre sur un point un peu plus bas et vraiment bien abrité (mais moinbs dégagé bien sur) Site N°264 \"Bondons 2\"",null,"Mail GRESAC","V72",44,24,11,"N",3,36,51,"E",null,"http://mw2.google.com/mw-panoramio/photos/medium/4802515.jpg",null,null,"Aurélien Knockaert - Panoramio","jm",null,"2013-04-29"]
[264,"Site usuel","La Cham des Bondons 2",48,{"$f":"IFERROR(VLOOKUP(D268,'Département _ Régions'!$C$4:$F$99,4),\"\")","v":"Languedoc-Roussillon"},"F","Les-Bondons",19,990,"Moins dégagé que le site  \"Bondons 1\" (N°263) mais plus abrité du vent et plus bas,",null,"Mail GRESAC","V72",44,23,37,"N",3,37,11,"E",{"$nulls":4},{"$f":"IF(ISBLANK(W268),\" \",\"Droits Réservés\")","v":" "},"jm",null,"2013-04-29"]
[265,"Site usuel","Mont Lozere",48,{"$f":"IFERROR(VLOOKUP(D269,'Département _ Régions'!$C$4:$F$99,4),\"\")","v":"Languedoc-Roussillon"},"F","Cubierettes",19,1560,"Le meilleur site du coin, et je dirai même de la région (meilleur que la citerne sur le causse Méjean car altitude plus haute). 1560 m d\\'altitude. A 700m du col Finiels par un chemin de terre. Demi tour possible avec remorque sur place (intersection de 2 chemins de terre) Vue à quasiment 360° . Horizon sud pris sur quelques degrès par la montagne. Les phares des voitures passant le col en arrivant par le nord gênent un peu de temps en temps => fermer les yeux par moment, mais le site en vaut largement la peine Venteux => vêtements chauds de rigueur, même en été.",null,"Mail GRESAC","V72",44,25,39,"N",3,46,29,"E",null,"http://mw2.google.com/mw-panoramio/photos/medium/7000537.jpg",null,null,"Droits Réservés","jm",null,"2013-04-29"]
[266,"Site usuel","Morainvilliers",78,{"$f":"IFERROR(VLOOKUP(D270,'Département _ Régions'!$C$4:$F$99,4),\"\")","v":"Ile-de-France"},"F","Morainvilliers",6,170,"très calme. peu de passage, non génant, aucune lumière artificielle, halot des 2 communes environnantes",null,"Forum Webastro","V73",48,55,7,"N",1,56,19,"E","http://www.webastro.net/forum/showthread.php?t=36136","http://gresac.free.fr/photos/Morainvilliers.jpg",null,"wilfried.colomina@club-internet.fr","Droits Réservés","jm",null,"2013-04-29"]
[267,"Gîtes ou Camping","Hotellerie de la Sainte Baume",83,{"$f":"IFERROR(VLOOKUP(D271,'Département _ Régions'!$C$4:$F$99,4),\"\")","v":"PACA"},"F","Plan d'Aups",14,670,"en dortoir, maison d'accueil religieuse, contact 04 42 62 55 56",null,"Forum Webastro","V73",43,20,9,"N",5,45,28,"E","http://www.webastro.net/forum/showthread.php?t=35067&highlight=aups","http://www.webastro.net/upload/images/8428-1221675705.jpg",null,null,"Droits Réservés","jm",null,"2013-04-29"]
[268,"Site usuel","Plaine du Verger",72,{"$f":"IFERROR(VLOOKUP(D272,'Département _ Régions'!$C$4:$F$99,4),\"\")","v":"Pays de la Loire"},"F","Le Mans",4,60,"Dans le parc  l'Arche de la Nature, lieu des soirées publiques d'Astromaine,  dégagé mais près du Mans...","Astromaine","Mail GRESAC","V73",47,59,21,"N",0,14,57,"E","http://www.astromaine.fr/site/bienvenue.html","http://gresac.free.fr/photos/Nuit_des_etoiles_2008.JPEG","http://www.astromaine.fr/site/bienvenue_files/logo%20caum%20V2005.png",null,"Droits Réservés","jm",null,"2013-04-29"]
[269,"Site usuel","Carrière Rouge",50,{"$f":"IFERROR(VLOOKUP(D273,'Département _ Régions'!$C$4:$F$99,4),\"\")","v":"Basse-Normandie"},"F","La feuillie",17,30,"le lieu d'observation est un petit belvedere au dessin d'une carrière rouge. l'horizon est ultra dégagé de chaque coté, sauf au nord, ou quelques buissons peuvent etre genants. PL du à l'usine de la carriere à l'est, mais qui s'éteignent à 23h, PL au nord, due à une ville à 15km. le belvedere peut accueillir 3 instruments facile, 4 si personne ne bouge de sa place.","L'astronomie selon Fulie","Mail GRESAC","V74",49,9,7,"N",1,29,25,"W","http://astrofulie.blog4ever.com/","http://static.blog4ever.com/2008/03/190524/photo_190524_4464181_201004074227867.jpeg",null,"bull2812@hotmail.com","Droits Réservés","jm",null,"2013-04-29"]
[270,"Site usuel","Le Montalet",81,{"$f":"IFERROR(VLOOKUP(D274,'Département _ Régions'!$C$4:$F$99,4),\"\")","v":"Midi-Pyrénées"},"F","Lacaune",19,1180,"Le toit du tarn Très bon site de moyenne altitude, ne pas se placer sur la route au point le plus haut, la statue de la vierge au nord, est éclairée parfois la nuit","Le site à Manu","Mail GRESAC","V74",43,40,53,"N",2,44,0,"E","http://pagesperso-orange.fr/planetarn/manu/montalet.htm","http://pagesperso-orange.fr/planetarn/manu/altitude.JPG",null,null,"Droits Réservés","jm",null,"2013-04-29"]
[271,"Site usuel","Col Blan",null,{"$f":"IFERROR(VLOOKUP(D275,'Département _ Régions'!$C$4:$F$99,4),\"\")","v":""},"AND","Pas de la Casa",19,2580,"Excellent site à 2550m sauf horizon nord moyen","Le site à Manu","Mail GRESAC","V74",42,31,39,"N",1,43,16,"E","http://pagesperso-orange.fr/planetarn/manu/CROA2008/Cols-Blan-Puymorens7-9septembre2008.htm","http://pagesperso-orange.fr/planetarn/manu/CROA2008/arriveecb.jpg",null,null,"Droits Réservés","jm",null,"2013-04-29"]
[272,"Site usuel","Col du Puymorens",66,{"$f":"IFERROR(VLOOKUP(D276,'Département _ Régions'!$C$4:$F$99,4),\"\")","v":"Languedoc-Roussillon"},"F","Porte-Puymorens",19,2120,"Très bon site en cas de vent car bien abrité, par nuit sans vent préférer le Col Blan à quelques km de là, moins turbulent","Le site à Manu","Mail GRESAC","V74",42,34,28,"N",1,49,39,"E","http://pagesperso-orange.fr/planetarn/manu/CROA2008/Cols-Blan-Puymorens7-9septembre2008.htm","http://pagesperso-orange.fr/planetarn/manu/CROA2008/colblan-maia.jpg",null,null,"Droits Réservés","jm",null,"2013-04-29"]
[273,"Site usuel","Sainte Suzanne",53,{"$f":"IFERROR(VLOOKUP(D277,'Département _ Régions'!$C$4:$F$99,4),\"\")","v":"Pays de la Loire"},"F","Sainte-Suzanne",10,110,"\"trou perdu\" (malgré tout très facilement accessible) il n'y a quasiment aucun halo et le village éteint ses lumières après minuit (L'indice de PL passe à 8,5 !), sur les terrains du complexe sportif d'ou l'horizon sud est très bien dégagé (quasiment jusqu'a 0°). Acces libre et parking - mais a éviter les soirs de matchs, fréquenté par Astromaine","Astromaine","Mail GRESAC","V75",48,5,40,"N",0,21,23,"W","http://www.astromaine.fr/site/bienvenue.html","http://mw2.google.com/mw-panoramio/photos/medium/39171088.jpg","http://www.astromaine.fr/site/bienvenue_files/logo%20caum%20V2005.png",null,"Droits Réservés","jm",null,"2013-04-29"]
[274,"Site usuel","Mont Tauch",11,{"$f":"IFERROR(VLOOKUP(D278,'Département _ Régions'!$C$4:$F$99,4),\"\")","v":"Languedoc-Roussillon"},"F","Tuchan",18,200,"quand vous êtes dans Tuchan prendre la direction du mont tauch qui surplombe Tuchan. tout en haut on arrive sur un parc Eolien, on peut se mettre une ciquantaine de metre avant le sommet afin de ne pas être géner par celle-ci","Forum Futura-Sciences",null,"V75",42,53,35,"N",2,42,38,"E","http://forums.futura-sciences.com/thread250355.html","http://mw2.google.com/mw-panoramio/photos/medium/63330067.jpg",null,null,"Jean-Pierre Giroudon - Panoramio","jm",null,"2013-04-29"]
[275,"Site usuel","Pointe du Raz",29,{"$f":"IFERROR(VLOOKUP(D279,'Département _ Régions'!$C$4:$F$99,4),\"\")","v":"Bretagne"},"F","Plogoff",18,30,"Entre le sémaphore et la pointe du Raz, un bel endroit, mais il faut emprunter une route jusqu\\'au sémaphore qui est normalement interdite à la circulation.","Galerie Photo","Mail GRESAC","V76",48,2,21,"N",4,44,3,"W","http://www.pixheaven.net/photo.php?nom=080927_1934-46boule","http://www.pixheaven.net/icones_page/080927_1985-97boule.jpg",null,"laurent.laveder@laposte.net",{"$f":"IF(ISBLANK(W279),\" \",\"Droits Réservés\")","v":"Droits Réservés"},"jm",null,"2013-04-29"]
[276,"Site usuel","Cirque de Troumouse",65,{"$f":"IFERROR(VLOOKUP(D280,'Département _ Régions'!$C$4:$F$99,4),\"\")","v":"Midi-Pyrénées"},"F","Gedre",20,2100,"les rempart environnant ne s'élèvent pas  bcp au dessus de l'horizon et ne gênent pas l'obs des objets bas mais ils fournissent des remparts contre la PL très efficace, l'accès se fait par une route très bien entretenue, mais il faut s'acquitter d'un droit de passage de 4 € (au moins jusqu'a 20h) attention la nuit et souvent froide, même en été. En outre le site est somptueux, parking à l'entrée du plateau. Beaucoup d'animaux en pâture l'été (vaches et moutons),","AVEX Vexin",null,"V76",42,43,41,"N",0,5,47,"E","http://avex.org.free.fr/","http://avex.org.free.fr/gresac/360/tremousse.jpg","http://avex.org.free.fr/charte/avex-typo-rouge-glass-small.png",null,{"$f":"IF(ISBLANK(W280),\" \",\"Droits Réservés\")","v":"Droits Réservés"},"jm",null,"2013-04-30"]
[277,"Observatoire","Observatoire de S Caprais",81,{"$f":"IFERROR(VLOOKUP(D281,'Département _ Régions'!$C$4:$F$99,4),\"\")","v":"Midi-Pyrénées"},"F","Rabastens",17,200,"2 coupoles, un T400 et un T200, géré par l'association Albireo","Observatoire de St-Caprais","Forum Webastro","V77",43,52,26,"N",1,43,6,"E","http://astrosurf.com/albireo/observatoire.htm","http://www.astrosurf.com/albireo/images/observatoire_940mm.jpg","http://astrosurf.com/albireo/images/logo_2008_petit.jpg",null,"© Albireo","jm",null,"2013-04-30"]
[278,"Gîtes ou Camping","Logis des Bessons",17,{"$f":"IFERROR(VLOOKUP(D282,'Département _ Régions'!$C$4:$F$99,4),\"\")","v":"Poitou-Charentes"},"F","Migron",15,20,null,"Gîtes de France","Forum Webastro","V77",45,49,9,"N",0,23,55,"W",null,"http://www.bienvenue-a-la-ferme.com/thumb/generate/800x600/vue_aerienne_logis_des_bessons_2.jpg",null,null,{"$f":"IF(ISBLANK(W282),\" \",\"Droits Réservés\")","v":"Droits Réservés"},"jm",null,"2013-04-30"]
[280,"Site usuel","Mont Saint Pierre",57,{"$f":"IFERROR(VLOOKUP(D283,'Département _ Régions'!$C$4:$F$99,4),\"\")","v":"Lorraine"},"F","Villers-Stoncourt",12,325,"Site fréquenté par les clubs locaux, rassemblement annuel : Le \"GRAAL\". Site très accéssible, sur un promontoire, une chapelle, un petit cimetière, une croix de Lorraine et une barrière,,, toujours ouverte !  Horizon 360°. Parfois venté, mais quelques arbres peuvent abriter. Quelques halots de PL...",null,"Forum Webastro","V78",49,3,19,"N",6,26,31,"E","http://www.webastro.net/forum/showthread.php?p=486813#post486813","http://mw2.google.com/mw-panoramio/photos/medium/85601608.jpg",null,null,{"$f":"IF(ISBLANK(W283),\" \",\"Droits Réservés\")","v":"Droits Réservés"},"jm",null,"2013-04-30"]
[281,"Rassemblement","Mont Saint Pierre",57,{"$f":"IFERROR(VLOOKUP(D284,'Département _ Régions'!$C$4:$F$99,4),\"\")","v":"Lorraine"},"F","Villers-Stoncourt",12,325,"Site fréquenté par les clubs locaux, rassemblement annuel : Le \"GRAAL\". Site très accéssible, sur un promontoire, une chapelle, un petit cimetière, une croix de Lorraine et une barrière,,, toujours ouverte !  Horizon 360°. Parfois venté, mais quelques arbres peuvent abriter. Quelques halots de PL...",null,"Forum Webastro","V78",49,3,19,"N",6,26,31,"E","http://www.webastro.net/forum/showthread.php?p=486813#post486813","http://mw2.google.com/mw-panoramio/photos/medium/85601608.jpg",null,null,"par joel57 - Panoramio","jm",null,"2013-04-30"]
[282,"Gîtes ou Camping","Camping du Lit au Roi",{"v":1,"d":"01"},{"$f":"IFERROR(VLOOKUP(D285,'Département _ Régions'!$C$4:$F$99,4),\"\")","v":"Rhône-Alpes"},"F","Massignieu-de-rives",14,240,"Ce camping 4 étoiles est situé à un quinzaine de kilomètres du sommet du GRAND COLOMBIER note 8,9 sur votre indice de pollution. Et à une vingtaine de kilomètres de l\\'observatoire de la LEBE ( téléscope de 620 mm). De plus cette région ( LE BUGEY) est un coin sympa avec plein de petits lacs, pas très loin des Alpes. La pollution lumineuse n\\'est pas encore un handicap, il y a des coins ou l\\'on peut installer son scope sous un ciel sombre. Il y a aussi plein de petits restos sympas et des petits vins qui le sont aussi ( à consommer avec modération). Un astronome amateur peut y emener sa petite famille Chacun trouvera de quoi se faire plaisir.","Camping du lit au Roi","Mail GRESAC","V79",45,46,5,"N",5,46,9,"E","http://www.camping-savoie.com","http://www.camping-savoie.com/admin/assets/uploads/files/b25bd-3.jpg",null,null,{"$f":"IF(ISBLANK(W285),\" \",\"Droits Réservés\")","v":"Droits Réservés"},"jm",null,"2013-04-30"]
[283,"Site usuel","Petit Tenquin",57,{"$f":"IFERROR(VLOOKUP(D286,'Département _ Régions'!$C$4:$F$99,4),\"\")","v":"Lorraine"},"F","Hilsprich",11,210,"site très correct concernant la qualité du ciel, accès facile, mais la présence d'un cours d'eau peut générer en automne des brumes qui perturbent parfois les observations","Forum Webastro","Mail GRESAC","V79",48,59,39,"N",6,53,9,"E","http://www.webastro.net/forum/showthread.php?t=37211",{"$nulls":3}," ","jm",null,"2013-04-30"]
[284,"Site usuel","Laning",57,{"$f":"IFERROR(VLOOKUP(D287,'Département _ Régions'!$C$4:$F$99,4),\"\")","v":"Lorraine"},"F","Fremestroff",10,330,"site de moins en moins utilisé à cause de son éloignement, mais toujours facile d'accès, et assez correct concernant la pollution lumineuse","Forum Webastro","Mail GRESAC","V79",49,1,27,"N",6,47,25,"E","http://www.webastro.net/forum/showthread.php?t=37211",{"$nulls":3}," ","jm",null,"2013-04-30"]
[285,"Site usuel","Bistroff",57,{"$f":"IFERROR(VLOOKUP(D288,'Département _ Régions'!$C$4:$F$99,4),\"\")","v":"Lorraine"},"F","Bistroff",11,315,"site très facile d'accès, disposant d'assez bonnes conditions pour l'observation et la photo","Forum Webastro","Mail GRESAC","V79",48,59,9,"N",6,43,4,"E","http://www.webastro.net/forum/showthread.php?t=37211",{"$nulls":3}," ","jm",null,"2013-04-30"]
[286,"Site usuel","Guerting",57,{"$f":"IFERROR(VLOOKUP(D289,'Département _ Régions'!$C$4:$F$99,4),\"\")","v":"Lorraine"},"F","Guerting",10,330,"site fréquemment utilisé par le Club Polaris du Foyer St Maurice de Freyming-Merlebach lors d'observations et de rassemblements","Forum Webastro","Mail GRESAC","V79",49,10,51,"N",6,36,21,"E","http://www.webastro.net/forum/showthread.php?t=37211",{"$nulls":3}," ","jm",null,"2013-05-01"]
[287,"Gîtes ou Camping","Les Moynes",46,{"$f":"IFERROR(VLOOKUP(D290,'Département _ Régions'!$C$4:$F$99,4),\"\")","v":"Midi-Pyrénées"},"F","Saint-Simon",16,330,"Gîte présenté dans un ancien numéro de l'ANPCEN : \"Une propriété de 12 Hectares, au coeur du Parc Naturel Régional des Causses du Quercy authentique et sauvage, bercé par le chant de la chouette hulotte, vous passerez des vacances relaxantes en chambres d'hôtes dans notre bergerie, ou en gîte dans une maison quercynoise\"","Gîtes Les Moynes","ANPCEN","V79",44,42,18,"N",1,48,58,"E","http://les.moynes.free.fr/index.html","http://les.moynes.free.fr/DSCN0276.jpg","http://les.moynes.free.fr/gite_France.gif",null,"Droits Réservés","jm",null,"2013-05-01"]
[288,"Gîtes ou Camping","Gite Eramaydou",65,{"$f":"IFERROR(VLOOKUP(D291,'Département _ Régions'!$C$4:$F$99,4),\"\")","v":"Midi-Pyrénées"},"F","Bonrepos",12,450,"Face aux Pyrénées, une ancienne ferme en \"U\" située au bord du village et au milieu des champs. L'extérieur a le charme des vieilles maisons rurales construites en terre et en galets mais l'intérieur est de construction récente et dispose de tout le confort des villas modernes","Gite Eramaydou","Forum Webastro","V80",43,11,32,"N",0,22,18,"E","http://www.eramaydou.com/","http://www.eramaydou.com/Content/Gite-Exterieur.JPG",null,null,"Droits Réservés","jm",null,"2013-05-01"]
[289,"Gîtes ou Camping","Gite La fontaine",{"v":4,"d":"04"},{"$f":"IFERROR(VLOOKUP(D292,'Département _ Régions'!$C$4:$F$99,4),\"\")","v":"PACA"},"F","Simiane-La-Rotonde",18,610,"Le gîte équestre de La Fontaine est en Provence, prés du village de Simiane La Rotonde, entre le Lubéron, le Mont Ventoux et la montagne de Lure. Dans une ambiance chaleureuse et conviviale, le maître de maison vous régalera d’une cuisine mitonnée selon les saisons de produits du terroir. Notre capacité d’accueil de 8 chambres vous assurera le repos et la tranquillité d’un séjour bien mérité…","La Fontaine","Forum Webastro","V80",43,58,15,"N",5,33,58,"E","http://www.likhom.com/site_adherent.asp?site=www.gite-la-fontaine.com&code=PR0405004","http://www.gite-la-fontaine.com/images/page%20maison/PISCINE-G.jpg","http://www.gite-la-fontaine.com/logo_blanc.JPG",null,"Droits Réservés","jm",null,"2013-05-01"]
[290,"Site usuel","La Maladrerie",{"v":7,"d":"07"},{"$f":"IFERROR(VLOOKUP(D293,'Département _ Régions'!$C$4:$F$99,4),\"\")","v":"Rhône-Alpes"},"F","Bidon",17,230,"Sur la route des gorges, dans la direction de Pont-Saint-Esprit à Vallon-Pont-d'Arc, entre Bidon et la Maladrerie des Templiers : sur la gauche, un parking en partie goudronné avec des barrières protégeant du vide. Peu de circulation la nuit sur la route. L'altitude de ce site n'est pas fulgurante mais l'éloignement de la vallée du Rhône est un atout.",null,"Mail GRESAC","V80",44,20,2,"N",4,30,53,"E",null,"http://mw2.google.com/mw-panoramio/photos/medium/73148293.jpg",null,"loulou7331@hotmail.com","Unda J. - Panoramio","jm",null,"2013-05-01"]
[291,"Gîtes ou Camping","Les Granges",{"v":5,"d":"05"},{"$f":"IFERROR(VLOOKUP(D294,'Département _ Régions'!$C$4:$F$99,4),\"\")","v":"PACA"},"F","Etoile-Saint-Cyrice",16,900,"Gîte dédié à l'Astro, 4 terrasses d'observation pour le materiel des clients et trois observatoires \"maison\" (T500, L66, L102, L127, L150, SC250).  CCD HR et formation CCD pour clients en formule astro. Le gite entier est dispo (max 7 personnes) mais fait aussi B&B pour les personnes seules ou les couples, etc... Tenu par un Astram Anglais... diplomé !","Gîte Les Granges","Forum Webastro","V82",44,18,52,"N",5,37,34,"E","http://www.sunstarfrance.com/","http://www.lesgrangesastro.talktalk.net/images/astron10el.jpg",null,null,{"$f":"IF(ISBLANK(W294),\" \",\"Droits Réservés\")","v":"Droits Réservés"},"jm",null,"2013-05-01"]
[292,"Site usuel","Thoux",32,{"$f":"IFERROR(VLOOKUP(D295,'Département _ Régions'!$C$4:$F$99,4),\"\")","v":"Midi-Pyrénées"},"F","Thoux",17,190,"on peut garer plusieurs voitures entre la croix et la ferme et positionner le matos entre les voitures sur le bord de la route qui n'est pas très pratiquée en principe. 11 à 12 étoiles visibles à l'oeil nu dans Pégase.",null,"Forum Webastro","V81",43,40,57,"N",0,58,52,"E","http://www.webastro.net/forum/showthread.php?p=506346#post506346",{"$nulls":3}," ","jm",null,"2013-05-01"]
[293,"Site usuel","Lias",32,{"$f":"IFERROR(VLOOKUP(D296,'Département _ Régions'!$C$4:$F$99,4),\"\")","v":"Midi-Pyrénées"},"F","Lias",15,300,"Route carossable mais déformée, attention au verglas. Ouest et Sud OK. Nord exploitable. Toulouse visible à l'Est. SQM : Polaire 20.60 - Zénith 20.98",null,"Forum Webastro","V81",43,33,34,"N",1,6,55,"E","http://www.webastro.net/forum/showthread.php?t=38274&page=6","http://i74.servimg.com/u/f74/09/04/61/72/pano_w10.jpg",null,null,"Droits Réservés","jm",null,"2013-05-01"]
[294,"Site usuel","Col du Coq (2)",38,{"$f":"IFERROR(VLOOKUP(D297,'Département _ Régions'!$C$4:$F$99,4),\"\")","v":"Rhône-Alpes"},"F","St-Pierre-de-Ch",16,1400,"Site fréquenté par le Club d'Astro du Grésivaudan","Club Astro Grésivaudan","Forum Webastro","V83",45,18,10,"N",5,50,9,"E","http://www.astro-gresivaudan.fr/accueil.php3",{"$nulls":3}," ","jm",null,"2013-05-01"]
[295,"Site usuel","La Frette",38,{"$f":"IFERROR(VLOOKUP(D298,'Département _ Régions'!$C$4:$F$99,4),\"\")","v":"Rhône-Alpes"},"F","Le-Touvet",11,240,"Site fréquenté par le Club d'Astro du Grésivaudan","Club Astro Grésivaudan","Forum Webastro","V83",45,20,29,"N",5,57,33,"E","http://www.astro-gresivaudan.fr/accueil.php3",{"$nulls":3}," ","jm",null,"2013-05-01"]
[296,"Site usuel","Col du Coq (3)",38,{"$f":"IFERROR(VLOOKUP(D299,'Département _ Régions'!$C$4:$F$99,4),\"\")","v":"Rhône-Alpes"},"F","Saint-Pancrasse",16,1300,"Site fréquenté par le Club d'Astro du Grésivaudan","Club Astro Grésivaudan","Forum Webastro","V83",45,18,5,"N",5,50,22,"E","http://www.astro-gresivaudan.fr/accueil.php3",{"$nulls":3}," ","jm",null,"2013-05-01"]
[297,"Site usuel","Plateau de l'Arselle",38,{"$f":"IFERROR(VLOOKUP(D300,'Département _ Régions'!$C$4:$F$99,4),\"\")","v":"Rhône-Alpes"},"F","Chamrousse",12,1600,"Site fréquenté par le Club d'Astro du Grésivaudan","Club Astro Grésivaudan","Forum Webastro","V83",45,5,57,"N",5,52,38,"E","http://www.astro-gresivaudan.fr/accueil.php3","http://static4.bareka.com/photos/medium/12302755.jpg",null,null,"Droits Réservés","jm",null,"2013-05-01"]
[298,"Site usuel","Sentier de la ligne d'Anvin",62,{"$f":"IFERROR(VLOOKUP(D301,'Département _ Régions'!$C$4:$F$99,4),\"\")","v":"Nord-Pas-de-Calais"},"F","Audrehem",6,60,"Bon site de campagne avec un long chemin sinueux pour faire de l'astro peinard. Recommandé aux Astro-imageurs. Plus d'éclairage urbain après 23h !",null,"Forum Astrosurf","V84",50,47,12,"N",1,59,41,"E","http://www.astrosurf.com/ubb/Forum2/HTML/025528-4.html","http://img255.imageshack.us/img255/5533/imagesite3ah3.jpg",null,"karimchristelle@free.fr","Droits Réservés","jm",null,"2013-05-01"]
[299,"Site usuel","Route du Pavillon",69,{"$f":"IFERROR(VLOOKUP(D302,'Département _ Régions'!$C$4:$F$99,4),\"\")","v":"Rhône-Alpes"},"F","Cours-La-Ville",13,700,"Présence d'un champ permettant de garer 3 à 4 voitures. Suivant la saison un deuxième champ est ouvert et permet de garer un peu plus de véhicule.",null,"Mail GRESAC","V84",46,5,41,"N",4,20,36,"E",{"$nulls":3},"patrick.salvador@voila.fr"," ","jm",null,"2013-05-01"]
[300,"Site usuel","Plateau de Beille",{"v":9,"d":"09"},{"$f":"IFERROR(VLOOKUP(D303,'[3]Département _ Régions'!$C$4:$F$99,4),\"\")","v":"Midi-Pyrénées"},"F","Albies",{"v":9.8,"d":"10"},1800,"Bon site très facile d'accès , route déneigée en hiver. Attention toutefois en juillet aout il y a parait-il des campingcar avec risque de lumières intempestives! Grand parking, grand choix d'emplacements, Horizons sud est et ouest TB. Les pistes de ski montent à plus de 1950m mais interdites à la circulation et les gardes de l'ONF peuvent passer par là!","Le site à Manu","Forum Webastro","V84",42,43,34,"N",1,41,25,"E","http://pagesperso-orange.fr/planetarn/manu/CROA2008/BeilleBCB.htm","http://pagesperso-orange.fr/planetarn/manu/CROA2008/BeilleBCB_fichiers/runionastrobeille1.jpg",null,"manutarn@msn.com",null,"Alban",null,"2013-05-13","en attente réponse mail par WA"]
[301,"Site usuel","Les Sieges",34,{"$f":"IFERROR(VLOOKUP(D304,'[3]Département _ Régions'!$C$4:$F$99,4),\"\")","v":"Languedoc-Roussillon"},"F","Lauroux",{"v":9.3,"d":"9"},710,"SQM 21,45",null,"Forum Webastro","V85",43,49,10,"N",3,16,8,"E","http://www.webastro.net/forum/showthread.php?p=526586#post526586",null,null,"gabalou@gmail.com",null,"Alban",null,"2013-05-13"]
[302,"Site usuel","Freychenet",{"v":9,"d":"09"},{"$f":"IFERROR(VLOOKUP(D305,'[3]Département _ Régions'!$C$4:$F$99,4),\"\")","v":"Midi-Pyrénées"},"F","Freychenet",{"v":9.2,"d":"9"},840,"à une dizaine de kilomètres de Lavelanet en direction de Foix",null,"Forum Webastro","V85",42,54,20,"N",1,43,11,"E","http://www.webastro.net/forum/showthread.php?p=526607#post526607",null,null,"gruikeur@hotmail.fr",null,"Alban",null,"2013-05-13","en attente réponse mail 'IIIIIKK' sur WA"]
[303,"Site usuel","Ramble",74,{"$f":"IFERROR(VLOOKUP(D306,'[3]Département _ Régions'!$C$4:$F$99,4),\"\")","v":"Rhône-Alpes"},"F","Habere-Poche",8,1090,"Direction Habere Poche. --> tu traverse le village ( c'est toujours tout droit) direction RAMBLE. --> il y a un mega panneau avec un parking \"VOL A VOILE OU CHAR A VOILE\" un truc du genre sur le bord de la route à droite (suivant de quel coté tu arrives). --> Tu prends cette route tu es direct sur un grand parking, la tu traverse le parking pour monter vers une sorte d'entrepot 300m plus loin. Le site est là.",null,"Forum Webastro","V85",46,16,10,"N",6,27,50,"E","http://www.webastro.net/forum/showthread.php?p=521587#post521587",{"$nulls":4},"Alban",null,"2013-05-13","en attente réponse mail 'seriousmath' sur WA"]
[304,"Rassemblement","RAAGSO",47,{"$f":"IFERROR(VLOOKUP(D307,'[3]Département _ Régions'!$C$4:$F$99,4),\"\")","v":"Aquitaine"},"F","Nerac",{"v":8.8,"d":"9"},70,"Rassemblement de l'Astronomie Amateur du grand Sud Ouest. SQM : 21,3","RAAGSO",null,"V86",44,6,4,"N",0,18,39,"E","http://astrosurf.com/raagso/","http://gresac.free.fr/photos/panorama_terrain_RAAGSO1.jpg","http://www.ast.obs-mip.fr/projets/ama09-mip/images/vignettes/RAAGSO.jpg","raagso@astrosurf.com",null,"Alban",null,"2013-05-13"]
[305,"Site usuel","Ouroux",58,{"$f":"IFERROR(VLOOKUP(D308,'Département _ Régions'!$C$4:$F$99,4),\"\")","v":"Bourgogne"},"F","Ouroux-en-Morvan",19,620,"Chemin très praticable en voiture, orienté plein sud. Points négatifs : une ligne électrique qui longe le chemin et la ville de Château-Chinon qui diffuse un très faible halo quand le ciel est bien dégagé.",null,"Forum Webastro","V86",47,9,55,"N",3,58,12,"E","http://www.webastro.net/forum/showthread.php?t=18815",{"$nulls":3},{"$f":"IF(ISBLANK(W308),\" \",\"Droits Réservés\")","v":" "},"eric",null,"2013-05-15"]
[306,"Gîtes ou Camping","Les Rayes",{"v":4,"d":"04"},{"$f":"IFERROR(VLOOKUP(D309,'Département _ Régions'!$C$4:$F$99,4),\"\")","v":"PACA"},"F","St Geniez",19,1320,"Très bon ciel, horizon est/sud/ouest dégagé, le nord est masqué par la montagne Trainon, mais la polaire est visible. Attention, de la prairie à droite du complexe, les Pénitents des Mées sont visibles dans la vallée. Si l'éclairage est remis en service, ça risque de gâcher l'horizon Sud.","Les Rayes",null,"V86",44,14,47,"N",6,4,27,"E","http://www.lesrayes.fr/","http://www.lesrayes.fr/Acceuil_files/FACADES%20et%20ABORDS-leveled.jpg",null,null,"© Les Rayes","Xavier",null,"2013-11-29"]
[307,"Site usuel","Gouffre de Plougrescant",22,{"$f":"IFERROR(VLOOKUP(D310,'Département _ Régions'!$C$4:$F$99,4),\"\")","v":"Bretagne"},"F","Plougrescant",17,0,"il est très bien abrité du vent! Alors que ça souffle à 50 en bord de mer (pas très loin donc...), on ne sent rien sur le parking ! Côté ciel, la transparence est moyenne, mais on peut voir M13 en vision décalée. Les horizons N et W sont très noirs, avec une Voie Lactée magnifique. Côté sud par contre on est un peu gêné par Plougrescant, et plus loin Perros-Guirec et Lannion.",null,"Forum Webastro","V86",48,51,55,"N",3,13,49,"W","http://www.webastro.net/forum/showthread.php?p=453092#post453092",{"$nulls":4},"Xavier",null,"2013-05-14"]
[308,"Gîtes ou Camping","Les Contes D'Albret",47,{"$f":"IFERROR(VLOOKUP(D311,'Département _ Régions'!$C$4:$F$99,4),\"\")","v":"Aquitaine"},"F","Nérac",17,70,"Gîte, camping, restaurant, conserves artisanales… lieu du RAAGSO","Les Contes D'Albret",null,"V86",44,6,4,"N",0,18,39,"E","http://www.albret.com/",null,"http://lescontesdalbret.pagesperso-orange.fr/logos/logo3.jpg",null,{"$f":"IF(ISBLANK(W311),\" \",\"Droits Réservés\")","v":" "},"Xavier",null,"2013-05-14"]
[309,"Site usuel","Le Saleve 2",74,{"$f":"IFERROR(VLOOKUP(D312,'Département _ Régions'!$C$4:$F$99,4),\"\")","v":"Rhône-Alpes"},"F","Monnetier-Mornex",10,1200,"Parking parapente, table d'orientation",null,"Forum Webastro","v87",46,8,50,"N",6,11,18,"E",{"$nulls":4},"© seriousmath","Xavier",null,"2013-05-14"]
[310,"Site usuel","Salle des Fetes",62,{"$f":"IFERROR(VLOOKUP(D313,'Département _ Régions'!$C$4:$F$99,4),\"\")","v":"Nord-Pas-de-Calais"},"F","Audrehem",4,60,"parking derriere une salle pour mariage tres bien placé pour observer le ciel on peut y mettre une quinzaine de voitures sans se gener, tres bon site avec un certain confort pour les imageurs et en plus protegé du vent avc un vue plein sud et la polaire pour la MES. Plus d'éclairage urbain après 23h !",null,"Mail GRESAC","V87",50,46,44,"N",1,59,31,"E",{"$nulls":3},"karimchristelle@free.fr",{"$f":"IF(ISBLANK(W313),\" \",\"Droits Réservés\")","v":" "},"eric",null,"2013-05-02"]
[311,"Gîtes ou Camping","Camping des Roches",22,{"$f":"IFERROR(VLOOKUP(D314,'Département _ Régions'!$C$4:$F$99,4),\"\")","v":"Bretagne"},"F","Erquy",11,60,"Camping fréquenté par le Club Erquy-Nox pour leurs soirées d'observation","Camping des Roches","Erquynox","V88",48,36,39,"N",2,28,43,"W","http://www.camping-les-roches.com/","http://www.camping-les-roches.com/photos/camping.jpg","http://www.camping-les-roches.com/_style/_images/_guides/routard.jpg",null,"© Camping des Roches","eric",null,"2013-05-02"]
[312,"Site usuel","Mouline",44,{"$f":"IFERROR(VLOOKUP(D315,'Département _ Régions'!$C$4:$F$99,4),\"\")","v":"Pays de la Loire"},"F","La Chapelle/Erdre",10,30,"Site d'observation du Club du COCHER","Association Le Cocher",null,"V88",47,19,17,"N",1,34,11,"W","http://le.cocher.free.fr/","http://www.le-cocher.org/photos/Mouline_20_avril.jpg",null,null,"Photo C, Mazhi","eric",null,"2013-05-02"]
[313,"Observatoire","Centre Astro JM Salomon",77,{"$f":"IFERROR(VLOOKUP(D316,'Département _ Régions'!$C$4:$F$99,4),\"\")","v":"Ile-de-France"},"F","Buthiers",11,100,"Dans la base de Loisir de Buthier, 2 coupoles, T600,T510, T355, T200…","Base de Buthiers",null,"V89",48,17,34,"N",2,26,3,"E","http://www.base-de-buthiers.com/astronomie-l63-fr.html","http://www.base-de-buthiers.com/medias/images/activites/cajms1.jpg",null,null,"© Bases de Buthiers","eric",null,"2013-05-02"]
[315,"Site usuel","Rouillat Haut",63,{"$f":"IFERROR(VLOOKUP(D317,'Département _ Régions'!$C$4:$F$99,4),\"\")","v":"Auvergne"},"F","Aydat",17,960,null,null,"Forum Futura-Sciences","V90",45,40,57,"N",3,1,17,"E","http://forums.futura-sciences.com/materiel-astronomique-photos-damateurs/294373-croa-dune-observation-a-montagne.html",{"$nulls":3},"Photo Thétis","eric",null,"2013-05-02"]
[316,"Observatoire","Astroclub85",85,{"$f":"IFERROR(VLOOKUP(D318,'Département _ Régions'!$C$4:$F$99,4),\"\")","v":"Pays de la Loire"},"F","Serigne",6,60,"Lieu de rassemblement habituel de l'association Astroclub85. Réunions le 1er vendredi de chaque mois à 21h, les autres vendredis s'il fait beau. Bâtiment avec coupole.","Astroclub85",null,"V90",46,30,14,"N",0,50,50,"W","http://astrosurf.com/astroclub85/","http://www.astrosurf.com/astroclub85/images/observatoire.jpg","http://www.astrosurf.com/astroclub85/images/logoclub.jpg",null,"© AstroClub85","eric",null,"2013-05-02"]
[317,"Observatoire","Observatoire du Gros Cerveau",83,{"$f":"IFERROR(VLOOKUP(D319,'Département _ Régions'!$C$4:$F$99,4),\"\")","v":"PACA"},"F","Ollioules",4,220,"observatoire astronomique avec amphithéâtre emplacement pour instrument local. Observation du club tous les vendredis soir","Clubvega",null,"V90",43,9,0,"N",5,50,29,"E","http://www.clubvega.fr",null,"http://www.clubvega.fr/Club_V%C3%A9ga/Dossiers_files/shapeimage_1.jpg",null,"© Club Vega","eric",null,"2013-05-02"]
[318,"Observatoire","Les Cepheides",17,{"$f":"IFERROR(VLOOKUP(D320,'Département _ Régions'!$C$4:$F$99,4),\"\")","v":"Poitou-Charentes"},"F","Royan",2,10,"Observatoire situé sur la salle polyvalente du collège H Dunant","Les Céphéides",null,"V90",45,38,17,"N",1,3,0,"W","http://www.astronomieamateur17.com/pages/PRESENTATION_DU_CLUB_LES_CEPHEIDES_DE_ROYAN-6049904.html","http://lionsastroroyan.pagesperso-orange.fr/Cepheides/_wp_generated/wpa0e30b0f.jpg","http://www.valinfo.org/photpres/178156.0.jpg",null,"© Les Céphéides","eric",null,"2013-05-02"]
[319,"Observatoire","Alpha Centaure",26,{"$f":"IFERROR(VLOOKUP(D321,'Département _ Régions'!$C$4:$F$99,4),\"\")","v":"Rhône-Alpes"},"F","Rochefort-Samson",17,550,"Observatoire du Club d'Astronomie Alpha-centaure, coupole avec 520 mm coupole avec mak de 200 mm","Alpha-centaure",null,"V90",44,58,3,"N",5,10,7,"E","http://www.alpha-centaure.com/","http://www.alpha-centaure.com/presentation/hi-res/materiel/ulm_400_278.jpg","http://www.alpha-centaure.com/img/habillage/newlogo.jpg",null,"© Alpha Centaure","eric",null,"2013-05-02"]
[320,"Observatoire","Astrieves",38,{"$f":"IFERROR(VLOOKUP(D322,'Département _ Régions'!$C$4:$F$99,4),\"\")","v":"Rhône-Alpes"},"F","Gresse-en-Vercors",18,1260,"L’association Astrieves organise l’exploitation et l’animation de l’observatoire du Trièves à Gresse en Vercors","Astrieves",null,"V90",44,54,4,"N",5,33,15,"E","http://www.astrieves.org/",{"$nulls":3},{"$f":"IF(ISBLANK(W322),\" \",\"Droits Réservés\")","v":" "},"eric",null,"2013-05-01"]
[321,"Site usuel","Plateau des Chenes",83,{"$f":"IFERROR(VLOOKUP(D323,'Département _ Régions'!$C$4:$F$99,4),\"\")","v":"PACA"},"F","Flayosc",12,250,"Au Château de Berne. Ce plateau, situé au milieu des vignes du domaine de Berne est le site d'observation du Club d'Astronomie Cassini 83. Proche de Draguignan, il offre un bon seeing ","Cassini 83",null,"V90",43,31,0,"N",6,21,56,"E","http://www.astrosurf.com/cassini83/index.php","http://img98.imageshack.us/img98/186/img4932iu0.jpg",null,null,"© Cassini83","eric",null,"2013-05-01"]
[322,"Site usuel","Delta",74,{"$f":"IFERROR(VLOOKUP(D324,'Département _ Régions'!$C$4:$F$99,4),\"\")","v":"Rhône-Alpes"},"F","Viuz-La-Chiesaz",12,560,"Site d'aterrissage de vol libre",null,"Forum Webastro","V91",45,48,46,"N",6,3,10,"E","http://www.webastro.net/forum/showthread.php?p=572421#post572421",{"$nulls":3},{"$f":"IF(ISBLANK(W324),\" \",\"Droits Réservés\")","v":" "},"eric",null,"2013-05-01"]
[323,"Site usuel","Marcillac AAVV",16,{"$f":"IFERROR(VLOOKUP(D325,'Département _ Régions'!$C$4:$F$99,4),\"\")","v":"Poitou-Charentes"},"F","Brigueuil",18,300,"Sud bien dégagé, un hangar au nord masque les basses latitudes, au nord est un léger halo de la ville de Limoges, au sud ouest un leger halo de la ville de Saint Junien, mais le ciel demeure correct pour les observations. Site habituel d'observation du club AAVV : les Astronomes Amateurs du Val de Vienne","AAVV",null,"V91",45,58,19,"N",0,55,45,"E","http://astrosurf.com/aavv/",null,"http://astrosurf.com/aavv/logo%20AAVV%20jpg.jpg",null," ","eric",null,"2013-05-01"]
[324,"Site usuel","Les Nouelles",51,{"$f":"IFERROR(VLOOKUP(D326,'Département _ Régions'!$C$4:$F$99,4),\"\")","v":"Champagne-Ardenne"},"F","Beine-Nauroy",16,110,"un joli chemin de betteraves en goudron, en U donc pas de problème de\nsortie de véhicules, proche d'une départementale assez peu fréquentée,\npassage fréquent de patrouilles de gendarmerie (pour les inquiets), donc\nne pas oublier ses papiers, proximité d'une décharge (d'où bruit et un\npetit halo lumineux). Horizon dégagé  300°, les 60° au nord/nord-est sont visibles à partir\nde 10° (petit bois). Halo lumineux de Reims sur le Nord-ouest",null,"Mail GRESAC","V91",49,14,40,"N",4,14,28,"E",{"$nulls":4}," ","eric",null,"2013-05-01"]
[325,"Site usuel","Parking de La Doriaz",73,{"$f":"IFERROR(VLOOKUP(D327,'Département _ Régions'!$C$4:$F$99,4),\"\")","v":"Rhône-Alpes"},"F","Les Deserts",14,1120,"équipement conseillé en hiver","Site de C. Dessier","Forum Webastro","V91",45,36,41,"N",5,59,36,"E","http://dessch.wix.com/astrophotographie",{"$nulls":3}," ","eric",null,"2013-05-01"]
[326,"Site usuel","Malabe",13,{"$f":"IFERROR(VLOOKUP(D328,'Département _ Régions'!$C$4:$F$99,4),\"\")","v":"PACA"},"F","St Paul-les-Durance",17,290,"Site d'observation de l'Astroclub Aubagnais. Dégagé et sombre. Présence de lignes à haute tension vers le sud gênantes pour photos","Astro Club Aubagnais","Mail GRESAC","V92",43,40,6,"N",5,44,11,"E","http://www.astrosurf.com/aubagne/",null,"http://www.astrosurf.com/aubagne/miniacalogo.gif",null," ","eric",null,"2013-05-01"]
[327,"Site usuel","La Cayre",83,{"$f":"IFERROR(VLOOKUP(D329,'Département _ Régions'!$C$4:$F$99,4),\"\")","v":"PACA"},"F","Plan-d'Aups",16,680,"Un des sites d'observation de l'Astroclub Aubagnais. Site préservé du vent et spacieux mais lueurs de plus en plus génantes de Marseille. Horizon sud limité par la Ste Baume","Astro Club Aubagnais","Mail GRESAC","V92",43,20,23,"N",5,46,2,"E","http://www.astrosurf.com/aubagne/",null,"http://www.astrosurf.com/aubagne/miniacalogo.gif",null," ","eric",null,"2013-05-01"]
[328,"Site usuel","Le Regage",13,{"$f":"IFERROR(VLOOKUP(D330,'Département _ Régions'!$C$4:$F$99,4),\"\")","v":"PACA"},"F","Allauch",10,450,"Un des sites d'observation de l'Astroclub Aubagnais. Site moyen mais pas trop loin de Marseille","Astro Club Aubagnais","Mail GRESAC","V92",43,21,49,"N",5,33,42,"E","http://www.astrosurf.com/aubagne/",null,"http://www.astrosurf.com/aubagne/miniacalogo.gif",null," ","eric",null,"2013-05-01"]
[329,"Site usuel","Beauvais",49,{"$f":"IFERROR(VLOOKUP(D331,'Département _ Régions'!$C$4:$F$99,4),\"\")","v":"Pays de la Loire"},"F","Le Louroux-Beconnais",17,80,"Site avec horizon nord et sud bien degagé, legere pollution lumineuse a l'est, tres localisée, et quelques arbres coté ouest, pas vraiment genant. Terrain situé en bordure d'un chemin qui mene a deux maisons isolés ( pas de lampadaires ni autres source lumineuses) et surelevé par rapport aux environs ( au dessus des brumes nocturnes) respecter les lieux (privés), ne pas laisser de dechets. MVLON 6,5",null,"Forum Webastro","V92",47,31,22,"N",0,56,7,"W","http://www.webastro.net/forum/showthread.php?t=44004","http://gresac.free.fr/photos/site%20de%20beauvais.jpg",null,null,"Photo John Mc Burne","eric",null,"2013-05-01"]
[330,"Observatoire","Les Grosses Roches",36,{"$f":"IFERROR(VLOOKUP(D332,'Département _ Régions'!$C$4:$F$99,4),\"\")","v":"Centre"},"F","Jeu-les-Bois",17,180,"Observatoire de l'Association Astronomique de l'Indre T400","Assoc Astro Indre",null,"V93",46,40,5,"N",1,48,34,"E","http://aai.free-hosting.fr/","http://aai.free-hosting.fr/IMG/jpg/aai3-2.jpg?45/db1102f87179790c2953af402e339ea8a0561b76","http://aai.free-hosting.fr/local/cache-vignettes/L150xH91/siteon0-069ea.jpg",null,"© AAI","eric",null,"2013-05-01"]
[331,"Gîtes ou Camping","Refuge de Gioberney",{"v":5,"d":"05"},{"$f":"IFERROR(VLOOKUP(D333,'Département _ Régions'!$C$4:$F$99,4),\"\")","v":"PACA"},"F","La Chapelle-en-V",20,1600,"Le Chalet-Hôtel du Gioberney est situé dans un très beau cirque de la montagne, à l'aspect austère et sauvage, égayé par des cascades dont la célèbre \" voile de la mariée\" qui doit son nom à la légèreté et à la longueur de son panache.","Refuge de Gioberney","Forum Astrosurf","V93",44,50,29,"N",6,16,52,"E","http://valgaudemar.free.fr/gioberney.htm","http://valgaudemar.free.fr/refuges/gioberney/IMG_3340_small.jpg",null,null,"© Valgaudemar","eric",null,"2013-05-01"]
[332,"Site usuel","Moline en Champsaur",{"v":5,"d":"05"},{"$f":"IFERROR(VLOOKUP(D334,'Département _ Régions'!$C$4:$F$99,4),\"\")","v":"PACA"},"F","La Motte-en-C",19,1270,"Au bout d'une petite vallée de 10 km, la seule située entre celles du Champsaur et du Valgaudemar. Accès très facile, aucune habitation, un large parking plat pour s'installer. Altitude 1550m, très bonne transparence, mvlonZ 7.0 assuré, mais risque de turbulence, comme dans tout fond de vallée dominée par des 3000m et +. Horizon Sud bouché à h = 20°","Site de Bertrand Laville","Forum Astrosurf","V93",44,44,43,"N",6,7,1,"E","http://www.astrosurf.com/ubb/Forum15/HTML/001159.html",{"$nulls":3},{"$f":"IF(ISBLANK(W334),\" \",\"Droits Réservés\")","v":" "},"eric",null,"2013-05-01"]
[333,"Site usuel","Majastres",{"v":4,"d":"04"},{"$f":"IFERROR(VLOOKUP(D335,'Département _ Régions'!$C$4:$F$99,4),\"\")","v":"PACA"},"F","Majastres",17,1160,"Village perdu dans la montagne, peut-être un lampadaire vers la Mairie.  S'arreter le long de la route très peu fréquentée, avant ou après le village où l'indice de PL monte à 9,8 !","Site de Bertrand Laville","Mail GRESAC","V93",43,54,49,"N",6,17,20,"E","http://www.deepsky-drawings.com/moyensmoyens/observatoires",{"$nulls":3},{"$f":"IF(ISBLANK(W335),\" \",\"Droits Réservés\")","v":" "},"eric",null,"2013-05-01"]
[334,"Gîtes ou Camping","Auberge Gaillard",{"v":5,"d":"05"},{"$f":"IFERROR(VLOOKUP(D336,'Département _ Régions'!$C$4:$F$99,4),\"\")","v":"PACA"},"F","La Motte-en-C",19,1270,"A Moline-en-Champsaur. Gîte d'étape aux portes du parc des Ecrins, 25 couchages. Ouvert du 15/5 au 15/9. Tel : 04.92.44.37.48","Auberge Gaillard","Site de Bertrand Laville","V93",44,44,53,"N",6,7,24,"E","http://www.auberge-gaillard.fr/contact-acces/","http://st-bonnet.fr/images/stories/hebergement/Auberge_Gaillard.jpg",null,"auberge.gaillard@hotmail.fr","© Auberge Gaillard","eric",null,"2013-05-01"]
[335,"Gîtes ou Camping","La Roussiere",15,{"$f":"IFERROR(VLOOKUP(D337,'Département _ Régions'!$C$4:$F$99,4),\"\")","v":"Auvergne"},"F","Saint-Clement",19,1020,"Maison d'hôte \"de charme\", plusieurs chambres et dortoirs. Lieu du tournage du film \"Harry, un ami qui vous veut du bien\" en 1999.","La Roussiere","Forum Webastro","V94",44,58,55,"N",2,41,38,"E","http://www.laroussiere.fr/","http://miseajour.apicius.com/photos/laroussier-bienvenue-photodemeuredecharme-fr2.jpg","http://www.laroussiere.fr/maj/logos/guide_charme2013.jpg",null,"© La Roussière","eric",null,"2013-05-01"]
[336,"Gîtes ou Camping","L'île aux étoiles",46,{"$f":"IFERROR(VLOOKUP(D338,'Département _ Régions'!$C$4:$F$99,4),\"\")","v":"Midi-Pyrénées"},"F","Saint-Sulpice",17,330,"Tenu par un astronome, siège social de l'entreprise \"l'île aux étoiles\". Hébergement, séjour à thème, location de matériel et animations, Piscine, Wifi","L'Ile aux Etoiles","Forum Webastro","V94",44,35,21,"N",1,48,7,"E","http://beusse81.free.fr/lileauxetoiles/v3/","http://beusse81.free.fr/lileauxetoiles/v3/images/stories/01.jpg","http://gresac.free.fr/photos/ile-etoiles-petit.jpg",null,"© L'Ile aux Etoiles","eric",null,"2013-05-01"]
[337,"Site usuel","Noham",74,{"$f":"IFERROR(VLOOKUP(D339,'Département _ Régions'!$C$4:$F$99,4),\"\")","v":"Rhône-Alpes"},"F","Chainaz-les-Frasses",13,690,"Site situé en plaine, avec une pollution lumineuse modérée (surtout visible au Nord => Annecy et la présence d'un halo moins fort au Sud Ouest => Aix Les Bains et Chambery).Il s'agit d'un petit champ, présentant un presque 360°. Le presque est dû à la présence d'un petit bosquet. D'ailleurs, il permet de limiter les effets du vent, car nous sommes sur un petit sommet.Quant aux horizons Est et Sud Est, ils sont pratiquement exempts de lumières parasites et très peu de pollution lumineuse (normal, on est en direction du Massif des Bauge). Ce site est une bonne altérnative aux sites situées en altitudes (surtout en hiver à cause des dameuses). Autre point interessant, il est à moins de 10 min de la sortie RUMILLY - ALBY SUR CHERAN, le rendant aisément accessible.",null,"Forum Webastro","V95",45,47,4,"N",5,59,55,"E","http://www.webastro.net/forum/showthread.php?p=597907#post597907",{"$nulls":3},{"$f":"IF(ISBLANK(W339),\" \",\"Droits Réservés\")","v":" "},"eric",null,"2013-05-01"]
[338,"Gîtes ou Camping","Les Adieux",46,{"$f":"IFERROR(VLOOKUP(D340,'Département _ Régions'!$C$4:$F$99,4),\"\")","v":"Midi-Pyrénées"},"F","Cabrerets",17,280,"Gîte 4 personnes recommandé par l'Ile aux Etoiles","L'Ile aux Etoiles","Mail GRESAC","V95",44,31,4,"N",1,38,12,"E","http://beusse81.free.fr/lileauxetoiles/v2/?010/Partenaire",{"$nulls":3},{"$f":"IF(ISBLANK(W340),\" \",\"Droits Réservés\")","v":" "},"eric",null,"2013-05-01"]
[339,"Gîtes ou Camping","Hotel Le Grezalide",46,{"$f":"IFERROR(VLOOKUP(D341,'Département _ Régions'!$C$4:$F$99,4),\"\")","v":"Midi-Pyrénées"},"F","Grezes",12,300,"19 chambres classées 3 étoiles, certaines au 1er étage du corps principal XVII siècle et d'autres en rez de jardin avec terrasse privative, piscine. Pollution lumineuse limitée car village éteint la nuit. Recommandé par \"l'Ile aux Etoiles\". Hebergement \"écocitoyen\". Label \"Hôtel au Naturel\", Patrons sympas !","Le Grezalide","L'Ile aux Etoiles","V95",44,37,38,"N",1,49,7,"E","http://www.grezalide.com/hotel_fr.php","http://mw2.google.com/mw-panoramio/photos/medium/6782064.jpg","http://www.grezalide.com/images/logo%20hostellerie%20del%20arte_130.jpg",null,"© Panoramio  Yann LESELLIER","eric",null,"2013-05-01"]
[340,"Gîtes ou Camping","Hotel Les Esclargies",46,{"$f":"IFERROR(VLOOKUP(D342,'Département _ Régions'!$C$4:$F$99,4),\"\")","v":"Midi-Pyrénées"},"F","Rocamadour",10,270,"Situé à Rocamadour, près du Château, l’hôtel a été littéralement bâti autour des chênes. Plein de charme et d’ambiance pour cet hôtel perché sur les hauteurs de la cité magique de Rocamadour. Pollution lumineuse du château jusqu'à minuit. Label \"Hôtels au naturel\"","Les Esclargies",null,"V96",44,48,16,"N",1,37,11,"E","http://www.esclargies.com/","http://www.venere.com/img/hotel/3/0/0/4/254003/image_hotel_exterior_entrance_1.jpg","http://www.hotels-au-naturel.com/images/logohan.png",null,"© Les Esclargies","eric",null,"2013-05-01"]
[341,"Gîtes ou Camping","La Bastide aux Camelias",{"v":6,"d":"06"},{"$f":"IFERROR(VLOOKUP(D343,'Département _ Régions'!$C$4:$F$99,4),\"\")","v":"PACA"},"F","Eze",12,500,"Chambre d'hôte de charme à 2 pas du centre Astrorama. Près du village d'Eze, au cœur du Parc de la Grande Corniche, une bastide provençale entourée d'un jardin verdoyant et fleuri. Piscine, spa, sauna et hammam. Décoration raffinée et personnalisée dans les chambres : zen pour Yucco, douceur pour Jasmin, nostalgie exotique pour Carambole et sérénité pour Lilas. Petits déjeuners copieux. Accueil attentif et convivial.","La bastide aux camelias","Astronomie en chambre d'hote","V96",43,44,6,"N",7,20,42,"E","http://www.bastideauxcamelias.com/","http://www.samedimidi.com/img_chambres/zoom_1625.jpg","http://www.bastideauxcamelias.com/michelin.jpg",null,"© La Bastide Camelias","eric",null,"2013-05-01"]
[342,"Gîtes ou Camping","Le Grand Queyras",{"v":5,"d":"05"},{"$f":"IFERROR(VLOOKUP(D344,'Département _ Régions'!$C$4:$F$99,4),\"\")","v":"PACA"},"F","Molines-en-Q",19,1920,"Dans maison récente, proche village de caractère, avec 3 autres gîtes. 1er gîte : entrée au 1er étage. Séjour coin cuisine (2 lits gigognes), grande terrasse privative, l-vaisselle, micro-ondes, TV, 2 chambres (1 lit 2 pers, 2 lits 1 pers. superposés), salle de bains, wc, chauf. élect. Terrain. Possibilité de chambre suppl. indépendante avec salle d'eau-wc.Buanderie et local à matériel communs. Possibilité location de draps, fournis en période hors vacances. Parking. Le propriétaire, agriculteur, pourra vous faire découvrir son activité. Label \"Bienvenue à la Ferme\" et \"Gîte Panda\"","Gîte Panda","Forum Astrosurf","V95",44,43,30,"N",6,51,39,"E","http://www.gites-panda.fr/parc-naturel-regional/queyras/le-grand-queyras","http://www.gites-panda.fr/var/alparc/storage/images/mediatheque/images-gites/le-grand-queyras/le-grand-queyras4/38776-1-fre-FR/le-grand-queyras_diaporama.jpg","http://gresac.free.fr/photos/WWF_logo.jpg",null,"© Le Grand Queyras","eric",null,"2013-05-01"]
[343,"Gîtes ou Camping","La Buissoniere",63,{"$f":"IFERROR(VLOOKUP(D345,'Département _ Régions'!$C$4:$F$99,4),\"\")","v":"Auvergne"},"F","Saint Romain",14,950,"Le Centre d'accueil \"La Buissonnière\", dans le bourg de Saint-Romain, est une vaste bâtisse rénovée, entourée par un grand espace vert. Le panorama sur la vallée de l'Ance et sur les doux moutonnements des reliefs, ouvre au calme et au repos. Le Centre a une capacité d'accueil de 60 personnes réparties en chambres de 2, 4 et 6 lits sur 2 étages, dont 6 avec douche. Lavabo dans toutes les chambres. W.C., douches et lavabos aux étages. Salle à manger, 2 salles de classes, salle de veillée avec cheminée, jeux d'extérieur. Animation Astronomie","La Buissonnière",null,"V95",45,29,21,"N",3,53,44,"E","http://www.labuissonniere.net/","http://actiloisirs.free.fr/a_labuissonniere.jpg",null,null,"© La Buissonnière","eric",null,"2013-05-01"]
[345,"Gîtes ou Camping","Carres d etoiles",71,{"$f":"IFERROR(VLOOKUP(D346,'Département _ Régions'!$C$4:$F$99,4),\"\")","v":"Bourgogne"},"F","Toulon/Arroux",16,280,"au coeur de Diverti'Parc, parc de loisirs nature, venez passer une nuit à 2, 3 ou 4 personnes, sur pilotis, au milieu des Vaches du Monde, à 1,50 mètres du plancher des vaches ! Confortablement blottis dans votre lit en mezzanine vous aurez la tête dans les étoiles, grâce au dôme transparent ! Canapé convertible au rez de chaussée. Literie et intérieur confortable avec coin kitchenette, douche, wc et lavabo. Lunaire : kit de découverte astronomique et écran plat inclus dans la prestation de qualité (lits préparés à votre arrivée et kits de douche et d'entretien fournis) : de\n79€ à 125€ la nuitée pour 4 pers. selon saison.","Diverti'Parc",null,"V95",46,40,48,"N",4,8,22,"E","http://www.divertiparc.com/","http://tbn3.google.com/images?q=tbn:2Uvfz9YkqCh5iM:http://www.dkomaison.com/images/003/01/291_maison-tres.jpg","http://www.saintcerice.com/images/carre-d-etoiles-minilogo.jpg",null,"© Carré d'étoiles","eric",null,"2013-05-01"]
[346,"Site usuel","Carrefour de Pecqueuse",78,{"$f":"IFERROR(VLOOKUP(D347,'Département _ Régions'!$C$4:$F$99,4),\"\")","v":"Ile-de-France"},"F","Poigny-la-Foret",14,160,"vaste clairiére en foret de rambouillet avec voie lactée et ciel noir car sans eclairages ni villages proches. surface herbeuse rase proche petite route goudronnée",null,"Mail GRESAC","V95",48,41,38,"N",1,43,37,"E",{"$nulls":4},{"$f":"IF(ISBLANK(W347),\" \",\"Droits Réservés\")","v":" "},"eric",null,"2013-05-01"]
[347,"Gîtes ou Camping","Chez les Colin",25,{"$f":"IFERROR(VLOOKUP(D348,'Département _ Régions'!$C$4:$F$99,4),\"\")","v":"Franche-Comté"},"F","Hauterive-la-F",17,1110,"Au cœur de la forêt jurassienne, une maison d’hôtes aux charmes multiples : vieux meubles franc-comtois, senteurs de sapin et de cire, accueil attentionné, cuisine inventive et généreuse. Pour des séjours \"tout compris\" de ski de fond, aquarelle, randonnée ou shiatsu.","Chez les Colin","Astronomie en chambre d'hote","V96",46,57,51,"N",6,28,17,"E","http://www.chezlescolin.fr/","http://www.chezlescolin.fr/cache/img/thumb_2v1fsrlbel6ot1dqps5dxpsas_356x237_2ioz_lan3nd.png",null,null,"© Chez les Colin","eric",null,"2013-05-01"]
[348,"Gîtes ou Camping","Chambres et Jardin de Pierres",46,{"$f":"IFERROR(VLOOKUP(D349,'Département _ Régions'!$C$4:$F$99,4),\"\")","v":"Midi-Pyrénées"},"F","Espedaillac",16,320,"Chambres d'hôte. Au cœur du Parc Naturel des Causses du Quercy, une grange à la restauration exemplaire. Piscine et parc paysagé enchanteur mêlant essences végétales locales et roches du Causse. Les chambres confortables et spacieuses sont décorées avec goût. A la table d'hôtes, cuisine généreuse aux saveurs des produits du terroir. Un téléscope à disposition pour observer les étoiles... ","Chambres et jardin de pierres","Astronomie en chambre d'hote","V96",44,39,24,"N",1,46,23,"E","http://www.chambreetjardin.fr/","http://www.samedimidi.com/img_chambres/zoom_2897.jpg",null,null,"© CJP","eric",null,"2013-05-01"]
[348,"Site usuel","Moyemont",88,{"$f":"IFERROR(VLOOKUP(D350,'Département _ Régions'!$C$4:$F$99,4),\"\")","v":"Lorraine"},"F","Vagney",16,840,"Table d'orientation à 863 mètres d'altitude, se garer à l'auberge La Croix des Hêtres , puis 200m à pieds !",null,"Mail GRESAC","V97",48,2,12,"N",6,45,9,"E",null,"http://mw2.google.com/mw-panoramio/photos/medium/37629686.jpg",null,"croix.hetres@wanadoo.fr","© Panoramio CHRISASYL","eric",null,"2013-05-01"]
[349,"Gîtes ou Camping","Domaine de Saint Cerice",{"v":7,"d":"07"},{"$f":"IFERROR(VLOOKUP(D351,'Département _ Régions'!$C$4:$F$99,4),\"\")","v":"Rhône-Alpes"},"F","Vogue",12,210,"2 \"Carrés d'étoile\" au milieu des roulottes… (dés 07/09)","Domaine de St Cérice","Carré d'étoile","V97",44,32,52,"N",4,25,19,"E","http://www.saintcerice.com/","http://www.lagrangee.com/IMG/cache-300x226/rubon12-300x226.jpg","http://www.saintcerice.com/images/carre-d-etoiles-minilogo.jpg",null,"© Carré d'étoiles","eric",null,"2013-05-01"]
[350,"Gîtes ou Camping","La Grangee",37,{"$f":"IFERROR(VLOOKUP(D352,'Département _ Régions'!$C$4:$F$99,4),\"\")","v":"Centre"},"F","La Chapelle-Blanche-St-M",12,117,"Un gîte et 2 \"Carrés d'étoile\" au milieu des roulottes… (dés 06/09)","La Grangee","Carré d'étoile","V97",47,5,5,"N",0,47,6,"E","http://www.lagrangee.com/?lang=fr","http://www.lagrangee.com/IMG/cache-300x226/rubon12-300x226.jpg","http://www.saintcerice.com/images/carre-d-etoiles-minilogo.jpg",null,"© Carré d'étoiles","eric",null,"2013-04-29"]
[352,"Gîtes ou Camping","Hotel La croix des Hetres",88,{"$f":"IFERROR(VLOOKUP(D353,'Département _ Régions'!$C$4:$F$99,4),\"\")","v":"Lorraine"},"F","Vagney",16,840,"Une auberge à 200m de la table d'orientation de Moyemont (site GRESAC N°348) Hôtel et restaurant, l'éclairage à detection peut-être débranché à la demande. Label \"Hôtel au Naturel\"","Auberge la Croix des Hêtres","Mail GRESAC","V97",48,2,12,"N",6,45,9,"E","http://www.auberge-la-croix-des-hetres.fr/","http://www.auberge-la-croix-des-hetres.fr/images-cdh/auberge2007w.jpg","http://www.auberge-la-croix-des-hetres.fr/images-cdh/hotel-au-naturel.jpg","croix.hetres@wanadoo.fr","© La Croix des Hêtres","eric",null,"2013-04-29"]
[353,"Gîtes ou Camping","Camping des Randonneurs",{"v":4,"d":"04"},{"$f":"IFERROR(VLOOKUP(D354,'Département _ Régions'!$C$4:$F$99,4),\"\")","v":"PACA"},"F","Valbelle",17,540,"25 emplacement sur une aire naturelle de camping, Gîte de France. Si Valbelle éteint tous ces lampadaires, l'indice de PL pourrait atteindre 9,7 !","Les Randonneurs",null,"V99",44,9,4,"N",5,52,35,"E","http://www.campingdesrandonneurs.fr/","http://www.campingdesrandonneurs.fr/Photos/IMG_0017.JPG",null,null,"© Les Randonneurs","eric",null,"2013-04-29"]
[354,"Site usuel","Site AVEX de Cambasque",65,{"$f":"IFERROR(VLOOKUP(D355,'Département _ Régions'!$C$4:$F$99,4),\"\")","v":"Midi-Pyrénées"},"F","Cauterets",19,1360,"Site AVEX sur les Hauteur de Cauterets, à proximité des pistes de ski, très bonne PL malgrés la proximité \"envahissante\" de Cauterets, étoile polaire degagée, meridien tres dégagé","AVEX Vexin",null,"V98",42,53,2,"N",0,8,30,"W","http://avex.org.free.fr/",null,"http://avex.org.free.fr/charte/avex-typo-rouge-glass-small.png",null,{"$f":"IF(ISBLANK(W355),\" \",\"Droits Réservés\")","v":" "},"eric",null,"2013-04-29"]
[355,"Site usuel","Cimetiere militaire",51,{"$f":"IFERROR(VLOOKUP(D356,'Département _ Régions'!$C$4:$F$99,4),\"\")","v":"Champagne-Ardenne"},"F","Souain-Perthes-Les-H",17,150,"un point de depot de betteraves situé derriere le cimetiere 14-18 ; routes et village non visible du site","webastro","Mail GRESAC","V99",49,11,2,"N",4,32,5,"E","http://www.webastro.net/forum/showthread.php?p=621450#post621450",null,null,"l_boubou@yahoo.fr",{"$f":"IF(ISBLANK(W356),\" \",\"Droits Réservés\")","v":" "},"eric",null,"2013-04-29"]
[356,"Site usuel","La Forgette",13,{"$f":"IFERROR(VLOOKUP(D357,'Département _ Régions'!$C$4:$F$99,4),\"\")","v":"PACA"},"F","Arles",15,10,"Terrain d'observation du club des Astronomes Amateurs Du Delta.","Astronomes Amateurs du Delta","Mail GRESAC","V99",43,35,12,"N",4,43,40,"E","http://www.astrosurf.org/2ad/2ad.htm",null,"http://www.astrosurf.org/2ad/images/logo_2ad.gif",null,{"$f":"IF(ISBLANK(W357),\" \",\"Droits Réservés\")","v":" "},"eric",null,"2013-04-29"]
[357,"Site usuel","Vaupa",76,{"$f":"IFERROR(VLOOKUP(D358,'Département _ Régions'!$C$4:$F$99,4),\"\")","v":"Haute-Normandie"},"F","La Vaupaliere",8,120,"Au croisement de deux chemins, en plein milieu des champs, loin de tout lampadaires. Difficile de garer la voiture sans gener le passage. passages peu fréquents sur le chemin, mais attention quand meme…",null,"Mail GRESAC","V99",49,28,37,"N",0,58,42,"E",{"$nulls":4},{"$f":"IF(ISBLANK(W358),\" \",\"Droits Réservés\")","v":" "},"eric",null,"2013-04-29"]
[358,"Site usuel","Butte de Jouvernex",74,{"$f":"IFERROR(VLOOKUP(D359,'Département _ Régions'!$C$4:$F$99,4),\"\")","v":"Rhône-Alpes"},"F","Sciez",9,460,null,null,"Mail GRESAC","V100",46,19,47,"N",6,24,25,"E",{"$nulls":4},{"$f":"IF(ISBLANK(W359),\" \",\"Droits Réservés\")","v":" "},"eric",null,"2013-04-29"]
[359,"Site usuel","Col du Ranfolly",74,{"$f":"IFERROR(VLOOKUP(D360,'Département _ Régions'!$C$4:$F$99,4),\"\")","v":"Rhône-Alpes"},"F","Les Gets",17,1650,null,null,"Mail GRESAC","V100",46,8,20,"N",6,41,46,"E",null,"http://mw2.google.com/mw-panoramio/photos/medium/10754870.jpg",null,null,"© Panoramio Wil Kuijpers","eric",null,"2013-04-29"]
[360,"Site usuel","Monastere de Bethleem",74,{"$f":"IFERROR(VLOOKUP(D361,'Département _ Régions'!$C$4:$F$99,4),\"\")","v":"Rhône-Alpes"},"F","Boege",14,1380,"Parking du monastère de Béthléem, acces en hiver dégagé, horizon sud dégagé",null,"Mail GRESAC","V100",46,13,33,"N",6,21,30,"E",null,"http://mw2.google.com/mw-panoramio/photos/medium/1007515.jpg",null,null,"© Panoramio Bruno M","eric",null,"2013-04-29"]
[361,"Site usuel","Parking d Avoriaz",74,{"$f":"IFERROR(VLOOKUP(D362,'Département _ Régions'!$C$4:$F$99,4),\"\")","v":"Rhône-Alpes"},"F","Morzine",17,1810,"site dégagé, souvent au dessus des stratus en hiver, mais praticable uniquement hors saison de ski pollution lumineuse variable en fonction de la saison",null,"Mail GRESAC","V100",46,11,48,"N",6,46,6,"E",null,"http://mw2.google.com/mw-panoramio/photos/medium/12509133.jpg",null,null,"© Panoramio Wim Constant","eric",null,"2013-04-29"]
[362,"Site usuel","Ajon",74,{"$f":"IFERROR(VLOOKUP(D363,'Département _ Régions'!$C$4:$F$99,4),\"\")","v":"Rhône-Alpes"},"F","Onnion",16,1400,"zone dégagée, non accessible en hiver, beau panorama sur le Mt Blanc",null,"Mail GRESAC","V100",46,12,19,"N",6,28,26,"E",{"$nulls":4},{"$f":"IF(ISBLANK(W363),\" \",\"Droits Réservés\")","v":" "},"eric",null,"2013-04-29"]
[363,"Gîtes ou Camping","Camping  Gorges du Chambon",16,{"$f":"IFERROR(VLOOKUP(D364,'Département _ Régions'!$C$4:$F$99,4),\"\")","v":"Poitou-Charentes"},"F","Eymouthiers",18,145,"très beau camping éloigné de la pollution lumineuse et assez peu éclairé en dehors des bâtiments sanitaires. Vastes espaces sans lumières et sans arbres gênants.","Gorges du Chambon","Mail GRESAC","V101",45,36,34,"N",0,33,26,"E","http://www.gorgesduchambon.fr/","http://www.gorgesduchambon.fr/img/ima1.jpg","http://www.gorgesduchambon.fr/logos/27.gif",null,"© Gorges du Chambon","eric",null,"2013-04-29"]
[364,"Gîtes ou Camping","Camping Le Cap Horn",22,{"$f":"IFERROR(VLOOKUP(D365,'Département _ Régions'!$C$4:$F$99,4),\"\")","v":"Bretagne"},"F","Plouézec",10,40,"Camping sans pollution lumineuse extérieure. Eclairage bas et clairsemé dans la partie \"panoramique\" et pas du tout d'éclairage dans la vaste zone consacrée aux tentes. Pas d'arbres gênants.","Le Cap Horn","Mail GRESAC","V101",48,45,39,"N",2,57,52,"W","http://www.lecaphorn.com/camping-france.html","http://www.campingdefrance.com/images/1706.jpg",null,null,"© Le Cap Horn","eric",null,"2013-04-29"]
[365,"Site usuel","Parking des Ebats",73,{"$f":"IFERROR(VLOOKUP(D366,'Département _ Régions'!$C$4:$F$99,4),\"\")","v":"Rhône-Alpes"},"F","Montcel",16,1285,"Un ciel noir d’ encre, 360 °, un parking pour mettre 50 tubes , des tables , des chaises. Un Sud qui descend aussi bas qu’ à La Margériaz ! Pas de villes ou villages visibles ! A mi chemin , pour les Annéciens et les Chambériens ! Facile à expliquer : c’ est la route qui monte au Revard par Grésy sur aix ( la route principale ! ) et quand on quitte la route , 2 lacets très serrés nous surélèvent de 30 m par rapport à la route en 400m de trajet final !",null,"Forum Webastro","V102",45,41,34,"N",6,0,0,"E","http://www.webastro.net/forum/showthread.php?t=47321","http://www.webastro.net/upload/images/9645-1244982809.jpg",null,null,"Photo Human Go Too","eric",null,"2013-04-29"]
[366,"Site usuel","Croix de Pars",69,{"$f":"IFERROR(VLOOKUP(D367,'Département _ Régions'!$C$4:$F$99,4),\"\")","v":"Rhône-Alpes"},"F","Yzeron",16,810,"Le ciel y est plus que moyen, on y voit à peine la voie lactée... (Lyon est à une quinzaine de km , c'est pour dire !)",null,"Forum Webastro","V102",45,43,15,"N",4,34,6,"E","http://www.webastro.net/forum/showthread.php?t=47344",{"$nulls":3},{"$f":"IF(ISBLANK(W367),\" \",\"Droits Réservés\")","v":" "},"eric",null,"2013-04-29"]
[367,"Site usuel","Ferme des Essarts",{"v":2,"d":"02"},{"$f":"IFERROR(VLOOKUP(D368,'Département _ Régions'!$C$4:$F$99,4),\"\")","v":"Picardie"},"F","Retheuil",14,140,"Nouveau site du CAASV. Bien moins polué que le précédent. Horizon dégagé à 360° surface d\\'acceuil de 500m² La petite route en bordure n\\'est que peu fréquenté.","CAASV Saint-Sauveur",null,"V102",49,18,48,"N",2,58,50,"E","http://www.caasv.org/accueil.php","http://www.caasv.org/images/site/sitesmall007.jpg","http://www.caasv.org/images/logo.gif",null,"© CAASV","eric",null,"2013-04-29"]
[368,"Gîtes ou Camping","Camping La Barette",48,{"$f":"IFERROR(VLOOKUP(D369,'Département _ Régions'!$C$4:$F$99,4),\"\")","v":"Languedoc-Roussillon"},"F","Le Pont-de-Montvert",19,1250,"Aire naturelle de camping à Finiels, très sympa pas trop éclairé et possibilité  de s'installer en haut du camping et là pas d’éclairage .\non peut observer l'horizon sud  très bas sur l'horizon ciel parfait . pas d'électricité dans la partie haute du camping.:)","Camping La Barette","Forum Webastro","V102",44,24,11,"N",3,44,31,"E","http://www.gites-mont-lozere.com/campinglabarette.htm","http://www.gites-mont-lozere.com/images/camping2b.jpg",null,null,"© La Barette","eric",null,"2013-04-29"]
[369,"Gîtes ou Camping","Aub. la Croix de Messire Jean",71,{"$f":"IFERROR(VLOOKUP(D370,'Département _ Régions'!$C$4:$F$99,4),\"\")","v":"Bourgogne"},"F","Uchon",18,640,"Auberge (hôtel et restaurant) à proximité du signal d'Uchon (site n°68). L'éclairage extérieur peut être coupé. S'y tiennent parfois des star-parties","La croix de Messire","Forum Webastro","V102",46,48,27,"N",4,15,26,"E","http://monsite.orange.fr/lacroixmessirejean/index.jhtml","http://lacroixmessirejean.monsite-orange.fr/image/0-picture.gif",null,"dobson.2005@gmail.com","© La Croix Messire Jean","eric",null,"2013-04-29"]
[370,"Site usuel","Orreaga  (Roncesvales)",null,{"$f":"IFERROR(VLOOKUP(D371,'Département _ Régions'!$C$4:$F$99,4),\"\")","v":""},"E","Orreaga",19,1470,"la route part de l'èglise qui est sur la route avant roncevales (toute petite route pour monter dans la montagne) super site (il faut monter sur un tallus +-15m) pas difficile visibilitè sur presque 360° jusqu'a l'horison. vraiment un très beau site ... lègeres lumieres de Roncevales en bas mais pas du tout gènant",null,"Mail GRESAC","V103",43,1,10,"N",1,16,51,"W",null,"http://mw2.google.com/mw-panoramio/photos/medium/737555.jpg",null,"patvannoppen@hotmail.com","© Panoramio C.Canomanue","eric",null,"2013-04-29"]
[371,"Gîtes ou Camping","Hotel Kastel an Daol",29,{"$f":"IFERROR(VLOOKUP(D372,'Département _ Régions'!$C$4:$F$99,4),\"\")","v":"Bretagne"},"F","Ile-Molene",8,0,"sur l'ile, le site est unique pour observer le ciel  .hors saison .juillet et aout . vous etes dans le premier parc national marin . u n e s c o  .  biosphere d'iroise . Label \"Hôtel au Naturel\"","Kastell an daol",null,"V103",48,23,49,"N",4,57,21,"W","http://www.kastell-an-daol.com/","https://lh4.googleusercontent.com/-rFdkBHP2ZXA/UCT2m1CHs3I/AAAAAAAAAQA/9jzh8o1rq5w/w1140-h683/Kastell+An+Daol",null,null,"Photo JC Dessertine","eric",null,"2013-04-29"]
[372,"Gîtes ou Camping","Gîtes à La Chamba",42,{"$f":"IFERROR(VLOOKUP(D373,'Département _ Régions'!$C$4:$F$99,4),\"\")","v":"Rhône-Alpes"},"F","La Chamba",16,1080,"Plusieurs Gîtes dans un hameau, L'extinction de l'éclairage public peut faire monter l'indice de PL à 9,8",null,"Forum Webastro","V103",45,45,21,"N",3,45,32,"E","http://www.webastro.net/forum/showthread.php?t=46496&highlight=chamba",{"$nulls":3},{"$f":"IF(ISBLANK(W373),\" \",\"Droits Réservés\")","v":" "},"eric",null,"2013-04-29"]
[373,"Site usuel","Maison du cidre",29,{"$f":"IFERROR(VLOOKUP(D374,'Département _ Régions'!$C$4:$F$99,4),\"\")","v":"Bretagne"},"F","Argol",15,100,"Site de la maison du cidre , parking de terre battu,abritté du vent et ciel assez bon , un peu de PL au sud.","Musee du Cidre","Mail GRESAC","V103",48,15,48,"N",4,19,24,"W","http://maisonducidredebretagne.fr/","http://mw2.google.com/mw-panoramio/photos/medium/85488312.jpg",null,null,"© Panoramio B.D.Döhne - Cost Bud","eric",null,"2013-04-29"]
[374,"Rassemblement","RAC ",40,{"$f":"IFERROR(VLOOKUP(D375,'Département _ Régions'!$C$4:$F$99,4),\"\")","v":"Aquitaine"},"F","Classun",17,100,"Astroclub du Marsan - Leo Lagrange, Site consacré à l'astronomie, nous presentons les activités du club ainsi que les différentes réunions et rassemblements\n","Astroclub du Marsan","Mail GRESAC","V103",43,42,39,"N",0,24,49,"W","http://www.astroclubmarsan.net/","http://www.astroclubmarsan.net/images/animations/PICT0022_2.JPG",null,null,"© Astro Cloub du Marsan","eric",null,"2013-04-28"]
[375,"Site usuel","Greve de Penn al Lann",29,{"$f":"IFERROR(VLOOKUP(D376,'Département _ Régions'!$C$4:$F$99,4),\"\")","v":"Bretagne"},"F","Plougastel-D",13,30,"Site proche d'une greve , il se trouve sur un chemin de terre battue à coté de serres, arrivé sur la greve tourner à gauche au fond . Site assez humide, sinon l'horizon Est et Sud sont très bons, par contre Nord et ouest c'est assez mediocre.",null,"Mail GRESAC","V103",48,20,1,"N",4,22,43,"W",{"$nulls":4},{"$f":"IF(ISBLANK(W376),\" \",\"Droits Réservés\")","v":" "},"eric",null,"2013-04-28"]
[376,"Site usuel","Col de Banyul",66,{"$f":"IFERROR(VLOOKUP(D377,'Département _ Régions'!$C$4:$F$99,4),\"\")","v":"Languedoc-Roussillon"},"F","Banyuls/Mer",18,350,"col frontiere avec l'espagne , casenate en beton creuser dans la montagne , toujour ouvert, sert de refuge en cas d'orage ,plusieurs emplacements d'observations possibles, point ponctuel d'observation pour vacancier sur la cote vermeille ( argeles,coullioure , port vendre banyul cerbere ),presence de pollution lumineuse dans la plaine espagnole et le littoral français mais ça reste un bon endroit pour les vacanciers dans un coin trés pytoresque et qui permet de plus une belle ballade dans l'arriere pays avec notament la visite de la maison de maillol et son musée au passage , route entierement goudronée avec parking facile pour les voitures ",null,"Mail GRESAC","V104",42,27,1,"N",3,3,15,"E",null,"http://mw2.google.com/mw-panoramio/photos/medium/8412862.jpg",null,"william.salies@hotmail.fr","© Panoramio R. Courtin","eric",null,"2013-04-28"]
[377,"Site usuel","Harpea",64,{"$f":"IFERROR(VLOOKUP(D378,'Département _ Régions'!$C$4:$F$99,4),\"\")","v":"Aquitaine"},"F","Esterencuby",19,880,"sommet sympa à voir pour observation astro",null,"Mail GRESAC","V104",43,2,7,"N",1,10,56,"W",null,"http://mw2.google.com/mw-panoramio/photos/medium/16488859.jpg",null,null,"© Panoramio Clément64","eric",null,"2013-04-28"]
[378,"Gîtes ou Camping","Domaine de Diene",24,{"$f":"IFERROR(VLOOKUP(D379,'Département _ Régions'!$C$4:$F$99,4),\"\")","v":"Aquitaine"},"F","St Priest-Fougeres",17,330,"Notre Carré d’étoiles (1 seul sur notre site) n’est pas à proximité de lampadaires, tous les éclairages extèrieurs sur le site étant au sol, Nous n’avons pas de pollution lumineuse nous sommes à la Campagne","Domaine de Dienne",null,"V104",45,31,44,"N",1,1,44,"E","http://www.domaine-de-dienne.fr/index.php?id_site=1&id_page=1","http://gresac.free.fr/photos/Dienne.JPG",null,null,"© Carré d'étoiles","eric",null,"2013-04-28"]
[379,"Site usuel","Cromlech de Crucuno",56,{"$f":"IFERROR(VLOOKUP(D380,'Département _ Régions'!$C$4:$F$99,4),\"\")","v":"Bretagne"},"F","Plouharnel",13,20,"Site plus intéressant pour son caractère exceptionnel que pour son ciel moyen,  lieu d'un rassemblement annuel au solstice d'été,",null,"Forum Futura Science","V104",47,37,27,"N",3,7,19,"W","http://forums.futura-sciences.com/materiel-astronomique-photos-damateurs/321460-milieu-menhirs.html",{"$nulls":3},"Photo Astrololo","eric",null,"2013-04-28"]
[380,"Rassemblement","Cromlech de Crucuno",56,{"$f":"IFERROR(VLOOKUP(D381,'Département _ Régions'!$C$4:$F$99,4),\"\")","v":"Bretagne"},"F","Plouharnel",13,20,"Rassemblement annuel des astronomes amateurs d'Armorique, au solstice d'été, sur un site exceptionnel pour ses alignements de menhirs","Astronomes Amateurs d'Armorique","Forum Futura Science","V104",47,37,27,"N",3,7,19,"W","http://forums.futura-sciences.com/materiel-astronomique-photos-damateurs/321460-milieu-menhirs.html",{"$nulls":3},"Photo Astrololo","eric",null,"2013-04-28"]
[381,"Site usuel","Gros Bessillon",83,{"$f":"IFERROR(VLOOKUP(D382,'Département _ Régions'!$C$4:$F$99,4),\"\")","v":"PACA"},"F","Ponteves",18,813,"Parking possible pour plusieurs voitures au sommet du Gros Bessillon.  Domine de 500 à 700 m tous les villages du centre Var - Vue quasi 360° du Massif de l'Etoile  à  l'ouest  (Marseille)  à l'Esterel (Saint-Raphael), du massif des Maures au sud au contreforts des Alpes au Nord . Le meilleur site à mon sens du Var, au dessus des brumes en contrebas. ",null,"Forum Webastro","V105",43,32,13,"N",6,4,41,"E","http://www.webastro.net/forum/showthread.php?t=48525","http://mw2.google.com/mw-panoramio/photos/medium/16170646.jpg",null,null,"© Panoramio Sam.pianoman","eric",null,"2013-04-28"]
[382,"Site usuel","Thoard Ste Madeleine",{"v":4,"d":"04"},{"$f":"IFERROR(VLOOKUP(D383,'Département _ Régions'!$C$4:$F$99,4),\"\")","v":"PACA"},"F","Thoard",19,1142,"Nid d'aigle au-dessus de la vallée de Thoard. Parking pour deux voitures. ",null,"Forum Webastro","V105",44,9,25,"N",6,9,49,"E","http://www.webastro.net/forum/showthread.php?t=48525","http://mw2.google.com/mw-panoramio/photos/medium/10309842.jpg",null,null,"© Panoramio Remmmy","eric",null,"2013-04-28"]
[383,"Site usuel","Pointe du Van  Kerbesquerien",29,{"$f":"IFERROR(VLOOKUP(D384,'Département _ Régions'!$C$4:$F$99,4),\"\")","v":"Bretagne"},"F","Cleden-Cap-Sizun",14,74,"Chemin à deux km de la Pointe du Van. A l'abri des grands phares de la côte, bien dégagé.  Après minuit, lorsque le village sur-éclairé de Cleden s'éteint (Cleden, Plogoff, mairies sous influence de EDF?). Calme, zéro circulation. Partie de campagne bien plus agréable que les parkings de la pointe du Van emplis de ... vans. A Kerbesquerien il n' a pas rien. Il y a le ciel.",null,"Forum Webastro","V105",48,3,18,"N",4,40,8,"W","http://www.webastro.net/forum/showthread.php?t=48525",{"$nulls":3},{"$f":"IF(ISBLANK(W384),\" \",\"Droits Réservés\")","v":" "},"eric",null,"2013-04-28"]
[384,"Site usuel","Pointe du Raz  Port de Bestrée",29,{"$f":"IFERROR(VLOOKUP(D385,'Département _ Régions'!$C$4:$F$99,4),\"\")","v":"Bretagne"},"F","Plogoff",17,43,"Balcon avec vue imprenable sur la mer, naturellement dégagé au sud. Table de pique-nique en bois bien pratique. Parking pour une voiture. Remplace avantageusement le parking payant de la Pointe du Raz.",null,"Forum Webastro","V105",48,2,3,"N",4,43,3,"W","http://www.webastro.net/forum/showthread.php?t=48525",{"$nulls":3},{"$f":"IF(ISBLANK(W385),\" \",\"Droits Réservés\")","v":" "},"eric",null,"2013-04-28"]
[385,"Site usuel","Dourbies - Le mas palitre",30,{"$f":"IFERROR(VLOOKUP(D386,'Département _ Régions'!$C$4:$F$99,4),\"\")","v":"Languedoc-Roussillon"},"F","Dourbies",18,1130,"Site au calme, deux-trois voitures par nuit. Place pour parquer 2-3 voitures. Cuvette relativement dégagée, à l'abri des lumières directes des hameaux environnants. Malheureusement a proximité  d'un fil téléphonique, qu'on oublie vite. Un site que j'ai trouvé par dépit du lac des Signes, peu accueillant.",null,"Forum Webastro","V105",44,3,31,"N",3,28,7,"E","http://www.webastro.net/forum/showthread.php?t=48525",{"$nulls":3},{"$f":"IF(ISBLANK(W386),\" \",\"Droits Réservés\")","v":" "},"eric",null,"2013-04-28"]
[386,"Site usuel","Mont Aigoual",30,{"$f":"IFERROR(VLOOKUP(D387,'Département _ Régions'!$C$4:$F$99,4),\"\")","v":"Languedoc-Roussillon"},"F","Valleraugue",19,1546,"Vue à l'ouest et au nord dégagées (litote). Relativement à l'abri du vent par rapport au sommet du Mont Aigoual, du fait d'une haie d'arbres au sud. Places pour 3-4 véhicules. ",null,"Forum Webastro","V105",44,7,20,"N",3,34,12,"E","http://www.webastro.net/forum/showthread.php?t=48525","http://mw2.google.com/mw-panoramio/photos/medium/1798209.jpg",null,null,"© Panoramio Yves75","eric",null,"2013-04-28"]
[387,"Site usuel","Concarneau - Kérandémezet",29,{"$f":"IFERROR(VLOOKUP(D388,'Département _ Régions'!$C$4:$F$99,4),\"\")","v":"Bretagne"},"F","Rosporden",14,120,"Avancer vingt à trente metres sur le chemin pour s'éloigner de la lisière du bois, et ainsi dégager la vue au sud.  Isolement tranquille, ciel qui m'a surpris en bien, compte tenu de la pollution environnante sur la côte. Le spot correct le plus proche de la côte concarnoise.",null,"Forum Webastro","V105",47,55,37,"N",3,47,5,"W","http://www.webastro.net/forum/showthread.php?t=48525",{"$nulls":3},{"$f":"IF(ISBLANK(W388),\" \",\"Droits Réservés\")","v":" "},"eric",null,"2013-04-28"]
[388,"Site usuel","Port Royal",78,{"$f":"IFERROR(VLOOKUP(D389,'Département _ Régions'!$C$4:$F$99,4),\"\")","v":"Ile-de-France"},"F","Magny-les-Hameaux",4,160,"Parking à 25 kms au sud du centre de Paris. Le lieu d'observation du club MAGNITUDE 78. Très pollué.","Site de Thierry Remi","Mail GRESAC","V106",48,44,55,"N",2,0,59,"E","http://astrosurf.com/remy/03_lieux-observation/lieux_observation.htm","http://mw2.google.com/mw-panoramio/photos/medium/3481046.jpg",null,null,"© Panoramio J, Bougeault","eric",null,"2013-04-28"]
[389,"Site usuel","Longchene",78,{"$f":"IFERROR(VLOOKUP(D390,'Département _ Régions'!$C$4:$F$99,4),\"\")","v":"Ile-de-France"},"F","Bullion",10,170,"Chemin agricole à 35 kms au sud de Paris un endroit isolé et agréable, si ce n'était la forte luminosité du ciel. Prendre le chemin agricole situé aux extrémités de la Rue des Parts et de la Rue du Lavoir. S'installer 1,2 km plus loin devant les arbres.","Site de Thierry Remi","Mail GRESAC","V106",48,39,1,"N",2,0,8,"E","http://astrosurf.com/remy/03_lieux-observation/lieux_observation.htm",{"$nulls":3},{"$f":"IF(ISBLANK(W390),\" \",\"Droits Réservés\")","v":" "},"eric",null,"2013-04-28"]
[390,"Site usuel","Jumeauville",78,{"$f":"IFERROR(VLOOKUP(D391,'Département _ Régions'!$C$4:$F$99,4),\"\")","v":"Ile-de-France"},"F","Jumeauville",10,120,"Chemin agricole à 40 kms à l'ouest de Paris. A la sortie de Jumeauville sur la D158 prendre le premier chemin à droite. Après 1 km environ, se placer sur une zone d'herbe sur la gauche ou plus loin à l'intersection des 2 chemins agricoles.","Site de Thierry Remi","Mail GRESAC","V106",48,54,1,"N",1,47,41,"E","http://astrosurf.com/remy/03_lieux-observation/lieux_observation.htm",{"$nulls":3},{"$f":"IF(ISBLANK(W391),\" \",\"Droits Réservés\")","v":" "},"eric",null,"2013-04-28"]
[391,"Site usuel","Orphin Est",78,{"$f":"IFERROR(VLOOKUP(D392,'Département _ Régions'!$C$4:$F$99,4),\"\")","v":"Ile-de-France"},"F","Orphin",12,160,"Chemin à 50 kms au sud de Paris le long de la N10. Avant Orphin sur la D176, tourner à gauche direction Cerqueuse. Prendre le premier chemin agricole sur la gauche et se placer peu après le bosquet d'arbres. A noter que le maire d'Orphin a cru intelligent d'éclairer le clocher de son église","Site de Thierry Remi","Mail GRESAC","V106",48,34,18,"N",1,47,59,"E","http://astrosurf.com/remy/03_lieux-observation/lieux_observation.htm","http://gresac.free.fr/photos/Orphin_Est.jpg",null,null,"Photo T, Remy","eric",null,"2013-04-28"]
[392,"Site usuel","Sonchamp",78,{"$f":"IFERROR(VLOOKUP(D393,'Département _ Régions'!$C$4:$F$99,4),\"\")","v":"Ile-de-France"},"F","Sonchamp",12,160,"Le symétrique d'Orphin par rapport à la Nationale 10 (de l'autre coté). Un peu trop proche de la départemental 176.","Site de Thierry Remi","Mail GRESAC","V106",48,34,42,"N",1,50,48,"E","http://astrosurf.com/remy/03_lieux-observation/lieux_observation.htm",{"$nulls":3},{"$f":"IF(ISBLANK(W393),\" \",\"Droits Réservés\")","v":" "},"eric",null,"2013-04-28"]
[393,"Site usuel","Orsonville",78,{"$f":"IFERROR(VLOOKUP(D394,'Département _ Régions'!$C$4:$F$99,4),\"\")","v":"Ile-de-France"},"F","Paray-Douaville",14,150,"Chemin tout venant au sud d'Ablis, un chemin sur la droite de la N191. Une belle zone en herbe, cependant un peu trop proche de la nationale et de la ligne TGV  (pas gênant à partir de minuit).","Site de Thierry Remi","Mail GRESAC","V106",48,27,57,"N",1,51,16,"E","http://astrosurf.com/remy/03_lieux-observation/lieux_observation.htm",{"$nulls":3},{"$f":"IF(ISBLANK(W394),\" \",\"Droits Réservés\")","v":" "},"eric",null,"2013-04-28"]
[394,"Site usuel","Hautacam (site AVEX)",65,{"$f":"IFERROR(VLOOKUP(D395,'Département _ Régions'!$C$4:$F$99,4),\"\")","v":"Midi-Pyrénées"},"F","Beaucens",19,1640,"Magnifique site d'observation, pollution lumineuse présente un peu partout mais peu envahissante, car les villages emmetteurs sont petits et l'effet de l'altitude + masquage des montages + absobtion par les aérosols : humidité ou mer de nuages (fréquent) permet d'admirer les astres et de pratiquer l'astropho longue pose sans filtre, l'accés est tres facile par une route bien entretenue. au sommet nous sommes en zone pastoral, il est frequent d'y trouver des vaches, moutons et meme des chevaux. (attention au bouzes nombreuses), un tres bon site astro, calme, dégagé , a proximité du Pic du midi. Permet la photographie d'objet bas sur l'horizon (RHO OPHICHIUS)","AVEX Vexin","Mail GRESAC","V107",42,58,33,"N",0,0,8,"W","http://avex.org.free.fr/","http://avex.org.free.fr/gresac/360/hautacam.jpg","http://avex.org.free.fr/charte/avex-typo-rouge-glass-small.png",null,"Photo F, Tapissier","eric",null,"2013-04-28"]
[395,"Site usuel","La fruitiere",65,{"$f":"IFERROR(VLOOKUP(D396,'Département _ Régions'!$C$4:$F$99,4),\"\")","v":"Midi-Pyrénées"},"F","Cauterets",19,1360,"Tres bon site astronomiquement parlant mais plus \"compliqué\" que le site d'Autacam, les montagnes forment une barriere à l'est et à l'ouest assez elevée. c'est certes frustrant mais finalement faire des photos plus bas est problématique pour la qualité des photos, en outre ces haut rempart bloquent tres efficacement la pollution lumineuse. autre point positif, le méridien sud est tres dégagé !!!! l'acces se fait par un route tres tres tournante ou les véhicule on parfoit du mal a se croiser (méfiance), le cour d'eau juste a coté peut procurer un appaisement relaxant pas toujours compatible avec l'astro ;) la PL est quasi imperceptible, c'est ici que, depuis Cauteret, les plus belles observation du ciel se feront\nmais contraierement à hautacam, le ciel est souvant bcp plus nuageux","AVEX Vexin","Mail GRESAC","V107",42,51,10,"N",0,5,53,"W","http://avex.org.free.fr/",null,"http://avex.org.free.fr/charte/avex-typo-rouge-glass-small.png",null,{"$f":"IF(ISBLANK(W396),\" \",\"Droits Réservés\")","v":" "},"eric",null,"2013-04-28"]
[396,"Site usuel","Waville",54,{"$f":"IFERROR(VLOOKUP(D397,'Département _ Régions'!$C$4:$F$99,4),\"\")","v":"Lorraine"},"F","Waville",13,310,"Petit terrain communal de Waville, bien dégagé de tous côtés, faible pollution lumineuse à l'Est due à Metz. Si quelqu'un veut observer ici, qu'il prenne contact avec moi, car j'habite à Waville, à 1km d'ici, et on pourrait observer ensemble (j'ai une lunette ETX-70AT + Dobson 305 mm)",null,"Mail GRESAC","V107",49,1,27,"N",5,56,58,"E",{"$nulls":3},"linux.user@laposte.net",{"$f":"IF(ISBLANK(W397),\" \",\"Droits Réservés\")","v":" "},"eric",null,"2013-04-28"]
[397,"Site usuel","Lac de Pramol",73,{"$f":"IFERROR(VLOOKUP(D398,'Département _ Régions'!$C$4:$F$99,4),\"\")","v":"Rhône-Alpes"},"F","Montricher-A",18,1730,"bel endroit dégagé sauf sur l'ouest. légère pollution lumineuse au nord et à l'est. voie lactée superbe jusqu'à l'horizon en été, spot sympa pour celui qui est en vacances aux Karellis",null,"Mail GRESAC","V107",45,12,59,"N",6,24,57,"E",{"$nulls":4},{"$f":"IF(ISBLANK(W398),\" \",\"Droits Réservés\")","v":" "},"eric",null,"2013-04-28"]
[398,"Site usuel","Treuzar Braz",56,{"$f":"IFERROR(VLOOKUP(D399,'Département _ Régions'!$C$4:$F$99,4),\"\")","v":"Bretagne"},"F","Seglien",17,200,"C'est un chemin agricole, près d'un lieu dit \"Treuzar Braz\", facile d'accès, sur une butte. Souvent venté…",null,"Mail GRESAC","V107",48,7,5,"N",3,11,2,"W",{"$nulls":4},{"$f":"IF(ISBLANK(W399),\" \",\"Droits Réservés\")","v":" "},"eric",null,"2013-04-28"]
[399,"Site usuel","Roche Bernard",73,{"$f":"IFERROR(VLOOKUP(D400,'Département _ Régions'!$C$4:$F$99,4),\"\")","v":"Rhône-Alpes"},"F","Valloire",19,1630,"Petit coin de voie lactée au sud de la ville après les VERNEYS sur un parking en terre à droite de la route D902 menant au col de GALIBIER, le site est en bord de route. Le passage des voitures est génant mais n'ayant qu'un petit hameau (Bonnenuit) plus au sud il n'y a pas trop de passage après 23h00. Niveau qualité, j'ai pu voir la VL découpée en deux. il y a de la PL au nord, M13 semble apparaitre à l'oeil nu, sûr aux jumelles 10x50. J'ai pris plaisir à me ballader au ras de la montagne du côté du Sagittaire. C'est clean au sud et crade au nord ou il y a Valloire.",null,"Forum Webastro","V107",45,7,37,"N",6,25,5,"E","http://www.webastro.net/forum/showthread.php?t=50714",{"$nulls":3},{"$f":"IF(ISBLANK(W400),\" \",\"Droits Réservés\")","v":" "},"eric",null,".26/04/2013"]
[400,"Gîtes ou Camping","Gite La Colonie",32,{"$f":"IFERROR(VLOOKUP(D401,'Département _ Régions'!$C$4:$F$99,4),\"\")","v":"Midi-Pyrénées"},"F","Labastide-Saves",17,170,"No direct lights on the horizon. Estimated NELM 6.0 Perfect vision to the South, good to the West and the North, bad to the East (Toulouse). The site has a large lawn in front of the gites with a view on the Pyrenees.","La Colonie","Mail GRESAC","V108",43,31,7,"N",0,57,49,"E","http://www.lacolonie.nl/","http://www.lacolonie.nl/upload/wmeditor/wlm200904121528240551.jpg",null,null,"© La Colonie","eric",null,"2013-04-29"]
[401,"Site usuel","Menhir de Cosquer Jehan",22,{"$f":"IFERROR(VLOOKUP(D402,'Département _ Régions'!$C$4:$F$99,4),\"\")","v":"Bretagne"},"F","Kerien",18,284,"Le ciel le plus noir de Bretagne , Plus aucun problème de PL ,voie lactée très detaillée ! C'est un chemin agricole juste a coté du menhir de cosquer jehan 5,5 metre.",null,"Mail GRESAC","V109",48,25,41,"N",3,14,43,"W",{"$nulls":3},"anin10@voila.fr",{"$f":"IF(ISBLANK(W402),\" \",\"Droits Réservés\")","v":" "},"eric",null,"2013-04-29"]
[402,"Site usuel","Col du Galibier",{"v":5,"d":"05"},{"$f":"IFERROR(VLOOKUP(D403,'Département _ Régions'!$C$4:$F$99,4),\"\")","v":"PACA"},"F","Le Monetier-les-B",19,2620,"Le col du Galibier permet de bénéficier d'un ciel de montagne assez haut tout en étant accessible en voiture. Se renseigner (je ne sais pas où) sur l'ouverture ou non du col (et sur la quantité de neige au col) Vu qu'il y a désormais un tunnel 100 m plus bas, la plupart des voitures prennent ce tunnel => finalement peu de passage au col (2-3 voitures dans la nuit en été après 22h). Pour observer, il faut monter au col historique. Attention: haute montage => matériel contre le froid indispensable, même en été. En été il peut y avoir des camping car qui passent la nuit la haut => gêne possible de lumière, mais le mieux est de les inviter à regarder ce qui permet qu'ils éteignent leurs lumières. Le sol est poussiéreux. Esplanade très large => pas de problème pour plusieurs instruments et remorque. SQM 21.40 à 21.45 les 18 et 21/08/09, mais période anticylonique caniculaire. Le site peut sans doute avoir une bien meilleure transparence. Les lumières de grenoble sont cachées par le sommet au nord ouest (enfin pas complètement quand même)",null,"Mail GRESAC","V109",45,3,51,"N",6,24,28,"E",null,"http://mw2.google.com/mw-panoramio/photos/medium/332162.jpg",null,null,"© Panoramio M, Wijnen","eric",null,"2013-04-29"]
[403,"Site usuel","La Collade",66,{"$f":"IFERROR(VLOOKUP(D404,'Département _ Régions'!$C$4:$F$99,4),\"\")","v":"Languedoc-Roussillon"},"F","Corneilla- de-C",18,750,"10 autres minutes de piste sans\" nids de poules\"",null,"Forum Webastro","V109",42,34,39,"N",2,23,28,"E","http://www.webastro.net/forum/showthread.php?t=52712",{"$nulls":3},{"$f":"IF(ISBLANK(W404),\" \",\"Droits Réservés\")","v":" "},"eric",null,"2013-04-29"]
[404,"Site usuel","Euvezin",54,{"$f":"IFERROR(VLOOKUP(D405,'Département _ Régions'!$C$4:$F$99,4),\"\")","v":"Lorraine"},"F","Euvezin",14,260,"Accès pratique goudronné, peu de halos mais passage rare d\\'automobile sur une autre route. Possibilité de s\\'abriter des phares suivant la position sur le chemin. Dégagé 360 °",null,"Mail GRESAC","V110",48,55,8,"N",5,50,33,"E",{"$nulls":3},"pam-pg@neuf.fr",{"$f":"IF(ISBLANK(W405),\" \",\"Droits Réservés\")","v":" "},"eric",null,"2013-04-29"]
[405,"Observatoire","Observatoire du CAOS",69,{"$f":"IFERROR(VLOOKUP(D406,'Département _ Régions'!$C$4:$F$99,4),\"\")","v":"Rhône-Alpes"},"F","Les Sauvages",16,770,"La coupole, de 6 mètres de diamètre, est construite par les adhérents de la section. Le télescope de 400 mm est conçu par le groupe adulte mais le miroir et certaines pièces sont usinées par des entreprises locales. La construction est achevée fin 1995. Les observations tout public se renforcent, et le groupe participe chaque année depuis 1994 à la manifestation nationale de la Nuit des Etoiles","Club du CAOS",null,"V110",45,54,56,"N",4,22,28,"E","http://www.caos.clubastro.free.fr/","http://www.caos.clubastro.free.fr/data/images/obs.jpg","http://gresac.free.fr/photos/Logo_CAOS.png",null,"© CAOS","eric",null,"2013-04-28"]
[406,"Site usuel","Poingt Ravier",73,{"$f":"IFERROR(VLOOKUP(D407,'Département _ Régions'!$C$4:$F$99,4),\"\")","v":"Rhône-Alpes"},"F","Valloire",18,1650,"été et hiver - parking à l'entré du hameau protégé des lampadaires - passages de voitures en début de soirée ( restaurant et habitations à proximité )",null,"Mail GRESAC","V111",45,10,12,"N",6,25,14,"E",{"$nulls":4},{"$f":"IF(ISBLANK(W407),\" \",\"Droits Réservés\")","v":" "},"eric",null,"2013-04-28"]
[407,"Site usuel","Bonnenuit",73,{"$f":"IFERROR(VLOOKUP(D408,'Département _ Régions'!$C$4:$F$99,4),\"\")","v":"Rhône-Alpes"},"F","Valloire",19,1700,"été et hiver - route en cul de sac en hiver ( col fermé) parking à l'extremité de l'aerodrome ( attention aux 5 lampadaires du hameau ..)\n",null,"Mail GRESAC","V111",45,7,10,"N",6,25,6,"E",{"$nulls":4},{"$f":"IF(ISBLANK(W408),\" \",\"Droits Réservés\")","v":" "},"eric",null,"2013-04-28"]
[408,"Site usuel","Plan Lachat",73,{"$f":"IFERROR(VLOOKUP(D409,'Département _ Régions'!$C$4:$F$99,4),\"\")","v":"Rhône-Alpes"},"F","Valloire",19,1990,"été uniquement !! plan d'herbe servant de parking aux randonneurs la journée possibilitée de suivre la route vers le camp des rochilles (route de montagne à reconnaitre de jour ...)",null,"Mail GRESAC","V111",45,5,24,"N",6,26,12,"E",{"$nulls":4},{"$f":"IF(ISBLANK(W409),\" \",\"Droits Réservés\")","v":" "},"eric",null,"2013-04-28"]
[409,"Site usuel","Grevillers",62,{"$f":"IFERROR(VLOOKUP(D410,'Département _ Régions'!$C$4:$F$99,4),\"\")","v":"Nord-Pas-de-Calais"},"F","Grevillers",11,125,"Terrain d aviation désaffecté, fréquenté régulièrement par le GAAC (Groupement astronome Amateurs Corriérois)","GAAC",null,"V112",50,6,29,"N",2,47,11,"E","http://www.astrogaac.fr/","http://astrogaac.free.fr/_wp_generated/wp0b223eca.png","http://astrogaac.free.fr/_wp_generated/wp10_wpa3653e98_0f%5B1%5D.jpg",null,"© GAAC","eric",null,"2013-04-28"]
[410,"Observatoire","Ferme des reaux",{"v":3,"d":"03"},{"$f":"IFERROR(VLOOKUP(D411,'Département _ Régions'!$C$4:$F$99,4),\"\")","v":"Auvergne"},"F","Montlucon",10,340,"Ferme-observatoire du CARM (CERCLE D'ASTRONOMIE DE\nLA REGION MONTLUCONNAISE)","CARM",null,"V112",46,19,18,"N",2,38,11,"E","http://www.astrosurf.com/carm/index.html","http://www.astrosurf.com/carm/images/obs2.jpg","http://www.astrosurf.com/carm/logoblanc.jpg",null,"© CARM","eric",null,"2013-04-26"]
[411,"Site usuel","Route de Genouille",86,{"$f":"IFERROR(VLOOKUP(D412,'Département _ Régions'!$C$4:$F$99,4),\"\")","v":"Poitou-Charentes"},"F","Genouille",17,140,"Un bon site dégagé sans trop de Polution lumineuse",null,"Mail GRESAC","V112",46,5,53,"N",0,18,34,"E",{"$nulls":3},"emmanuelczapla@msn.com",{"$f":"IF(ISBLANK(W412),\" \",\"Droits Réservés\")","v":" "},"eric",null,"2013-04-25"]
[412,"Observatoire","CosmoDrome",26,{"$f":"IFERROR(VLOOKUP(D413,'Département _ Régions'!$C$4:$F$99,4),\"\")","v":"Rhône-Alpes"},"F","Barret-de-Lioure",19,1370,"Observatoire astronomique ouvert au public, montagne de Bergiès (1367m), commune de Barret de Lioure. Le site est géré en partie par l'association D.I.O.N.E (Drôme Initiation Observation Nuit Etoilée)","Dione26","Mail GRESAC","V112",44,12,13,"N",5,30,41,"E","http://www.dione26.org/","http://pagesperso-orange.fr/DIONE26/images/obs/observatoire_fichiers/image002.jpg",null,"dione26hotmail.fr","© Dione26","eric",null,"2013-04-25"]
[413,"Site usuel","Tredudon-le-Moine",29,{"$f":"IFERROR(VLOOKUP(D414,'Département _ Régions'!$C$4:$F$99,4),\"\")","v":"Bretagne"},"F","Berrien",17,310,"Circuit de randonnée ou on peut garer sa voiture sans probleme (par contre ne pas aller trop loin dans le chemin car gros rocher qui risque de toucher le dessous du vehicule. Très bon site , possibilité d'observer son ombre sur le sol. On ne voit qu'une ville au nord (morlaix) mais ce n'est pas très genant. meilleur que le mont st michel de braspart . Site a 304 metre d'altitude.",null,"Forum Webastro","V112",48,25,44,"N",3,49,18,"W","http://www.webastro.net/forum/showthread.php?t=59158","http://www.webastro.net/upload/images/13914-1266783603.jpg",null,"anin10@voila.fr","Photo Yuhn","eric",null,"2013-04-25"]
[414,"Site usuel","Avaugour",22,{"$f":"IFERROR(VLOOKUP(D415,'Département _ Régions'!$C$4:$F$99,4),\"\")","v":"Bretagne"},"F","Saint-Pever",15,110,"un petit parking proche de la chapelle d'Avaugour.",null,"Forum Webastro","V112",48,29,32,"N",3,6,59,"W","http://www.webastro.net/forum/showthread.php?t=59101&highlight=gresac",{"$nulls":3},{"$f":"IF(ISBLANK(W415),\" \",\"Droits Réservés\")","v":" "},"eric",null,"2013-04-25"]
[415,"Gîtes ou Camping","Gîte d'Avaugour",22,{"$f":"IFERROR(VLOOKUP(D416,'Département _ Régions'!$C$4:$F$99,4),\"\")","v":"Bretagne"},"F","Saint-Pever",15,110,"Gite de France N° 230701","Bretagne reservation","Forum Webastro","V112",48,29,30,"N",3,7,0,"W","http://www.gitesdarmor.com/location-vacances/gite-ST-PEVER-230701-22.html#.UXmiLqKnZdk","http://www.gitesdarmor.com/gdf22/zoom/1/230701.jpg","http://global.mmm.re/images/logo/logo_gitesdefrance.gif",null,"© Gites d'Armor","eric",null,"2013-04-25"]
[416,"Site usuel","Lac de Pierre Chatel",38,{"$f":"IFERROR(VLOOKUP(D417,'Département _ Régions'!$C$4:$F$99,4),\"\")","v":"Rhône-Alpes"},"F","Pierre-Chatel",16,1000,"Site situé à une quarantaine de kms de Grenoble à coté du camping et du Lac, on peut se baigner et observer en même temps pour les non frileux, horizon bien dégagé de tous cotés, très peu de pollution lumineuse de Grenoble et le camping est peu fréquenté et pas trop de lumière.",null,"Mail GRESAC","V113",44,58,12,"N",5,46,12,"E",null,"http://mw2.google.com/mw-panoramio/photos/medium/21019225.jpg",null,"flament.veron@orange.fr","© Panoramio lanthelme","eric",null,"2013-04-25"]
[417,"Gîtes ou Camping","Camping Les Cordeliers",38,{"$f":"IFERROR(VLOOKUP(D418,'Département _ Régions'!$C$4:$F$99,4),\"\")","v":"Rhône-Alpes"},"F","Pierre-Chatel",16,940,"Site situé à une quarantaine de kms de Grenoble à coté du camping et du Lac, on peut se baigner et observer en même temps pour les non frileux, horizon bien dégagé de tous cotés, très peu de pollution lumineuse de Grenoble et le camping est peu fréquenté et pas trop de lumière.","Camping Les Cordeliers","Mail GRESAC","V113",44,58,4,"N",5,46,50,"E","http://camping.hpaguide.com/rhone-alpes/isere/pierre-chatel/camping.php?CUID=ca855eb186ac4472befb21608091c96c","http://mw2.google.com/mw-panoramio/photos/medium/21019225.jpg",null,"flament.veron@orange.fr","© Panoramio lanthelme","eric",null,"2013-04-25"]
[418,"Rassemblement","RAM",79,{"$f":"IFERROR(VLOOKUP(D419,'Département _ Régions'!$C$4:$F$99,4),\"\")","v":"Poitou-Charentes"},"F","Marigny",16,80,"Rencontre d'Astronomique à Marigny (RAM), association \"Têtes en l'air\". Au programme: Observations, Astrophoto, discutions, ateliers et échange. ","Association Tête en l'Air","Forum Webastro","V114",46,9,53,"N",0,25,50,"W","http://www.tetesenlair.net/",null,"http://www.tetesenlair.net/images/titre.jpg",null,"© Têtes en l'Air","eric",null,"2013-04-25"]
[419,"Gîtes ou Camping","Camping La Cascade",48,{"$f":"IFERROR(VLOOKUP(D420,'Département _ Régions'!$C$4:$F$99,4),\"\")","v":"Languedoc-Roussillon"},"F","Salvinsac",19,50,"Nuisances lumineuses : Luminaires solaires dans le camping (possibilité d'extinction si peu de campeurs présents, à voir avec les propriétaires, amateurs de nature et d'astro), 2 lampadaires relativement gênants vers l'Est dans le village de Salvinsac","Camping Les Cascades","Itin'Astro","V114",44,11,43,"N",3,27,19,"E","http://www.camping-la-cascade.com/","http://camping-la-cascade.com/images/camping/camping%202010%20004.jpg",null,null,"© Camping La Cascade","eric",null,"2013-04-25"]
[420,"Site usuel","Sauveterre",48,{"$f":"IFERROR(VLOOKUP(D421,'Département _ Régions'!$C$4:$F$99,4),\"\")","v":"Languedoc-Roussillon"},"F","Sauveterre",19,970,"Ancienne route en bordure de la D 986, Accès : De Mende, suivre la direction de Ste Enimie, le spot se trouve sur la gauche, 1 km avant le village de Sauveterre. Il s'agit de l'ancienne route recoupée par la nouvelle. Dans le virage, le sol est bitumé et plat. Aucun passage la nuit sur ce tronçon qui n'est plus utilisé. Spot de discothèque en direction N - NE","Itin'Astro","Itin'Astro","V114",44,11,43,"N",3,27,19,"E","http://itinastro.superforum.fr/languedoc-roussillon-f3/a-proximie-de-mende-t3.htm",{"$nulls":3},{"$f":"IF(ISBLANK(W421),\" \",\"Droits Réservés\")","v":" "},"eric",null,"2013-04-24"]
[421,"Observatoire","Observatoire du Cantissier",83,{"$f":"IFERROR(VLOOKUP(D422,'Département _ Régions'!$C$4:$F$99,4),\"\")","v":"PACA"},"F","Saint-Zachary",13,300,"l'observatoire abrite un télescope Newton/Cassegrain Trassud de 400 mm sous coupole, Association Eclipse Astronomie","Eclipse Astronomie","Forum Astrosurf","V114",43,23,47,"N",5,42,7,"E","http://eclipseastronomie.free.fr/","http://eclipseastronomie.free.fr/images/index.7.jpg",null,null,"© Eclipse Astronomie","eric",null,"2013-04-24"]
[422,"Observatoire","Observatoire de l'Alifant",{"v":4,"d":"04"},{"$f":"IFERROR(VLOOKUP(D423,'Département _ Régions'!$C$4:$F$99,4),\"\")","v":"PACA"},"F","Puimichel",13,660,"Une magnifique lunette ancienne de 230mm, la lunette du Père Josset, rénovée avec amour par JEAN BAPTISTE CRETAUX. Un bel observatoire reconstruit à l''ancienne dans la garrigue. Joli petit village avec auberge de pays","La lunette du pere Josset",null,"V115",43,58,36,"N",6,1,6,"E","http://www.lalunetteduperejosset.com/index.php","http://www.lalunetteduperejosset.com/images/jbcretaux2.jpg",null,null,"Photo JB Cretaux","eric",null,"2013-04-24"]
[423,"Site usuel","Orphin sud",78,{"$f":"IFERROR(VLOOKUP(D424,'Département _ Régions'!$C$4:$F$99,4),\"\")","v":"Ile-de-France"},"F","Orphin",14,160,"Le ciel y est peut-être un peu meilleur qu'à Orphin Est car plus éloigné de la N10. Mais l'endroit se situe à mi-chemin entre deux départementales et la lumière d'Ecrosnes au sud est assez génante. La voie lactée est clairement visible au zénith. Chemin agricole","Site de Thierry Remy","Mail GRESAC","V115",48,33,36,"N",1,44,25,"E","http://astrosurf.com/remy/03_lieux-observation/lieux_observation.htm",{"$nulls":3},{"$f":"IF(ISBLANK(W424),\" \",\"Droits Réservés\")","v":" "},"eric",null,"2013-04-24"]
[424,"Site usuel","Arnouville",28,{"$f":"IFERROR(VLOOKUP(D425,'Département _ Régions'!$C$4:$F$99,4),\"\")","v":"Centre"},"F","Gommerville",15,140,"Un bel endroit avec un bon ciel, encerclé au loin par les éoliennes. Les lueurs des lumières d'Angerville sont visibles à l'Est, Chemin tout venant","Site de Thierry Remy",null,"V115",48,18,31,"N",1,56,33,"E","http://astrosurf.com/remy/03_lieux-observation/lieux_observation.htm",{"$nulls":3},{"$f":"IF(ISBLANK(W425),\" \",\"Droits Réservés\")","v":" "},"eric",null,"2013-04-24"]
[425,"Site usuel","Epincy",28,{"$f":"IFERROR(VLOOKUP(D426,'Département _ Régions'!$C$4:$F$99,4),\"\")","v":"Centre"},"F","Moutiers",16,140,"Il s'agit sur la carte de pollution lumineuse spéciale astrophoto pour observateurs exigeants de l'AVEX de l'endroit le plus proche de Paris. Effectivement, aucun halo lumineux n'est visible à l'horizon.Coté inconvénients, on est un peu proche de la route et une quinzaine d'éoliennes à lumières blanches sont situées au nord à 2500 m à vol d'oiseau. Il y a possibilité de se mettre derrière le bosquet d'arbres pour ne pas être dérangé. zone herbeuse","Site de Thierry Remy",null,"V115",48,18,35,"N",1,44,30,"E","http://astrosurf.com/remy/03_lieux-observation/lieux_observation.htm",{"$nulls":3},{"$f":"IF(ISBLANK(W426),\" \",\"Droits Réservés\")","v":" "},"eric",null,"2013-04-24"]
[426,"Site usuel","Viabon",28,{"$f":"IFERROR(VLOOKUP(D427,'Département _ Régions'!$C$4:$F$99,4),\"\")","v":"Centre"},"F","Germignonville",16,120,"Un endroit indiqué sur la carte de pollution lumineuse spéciale astrophoto pour observateurs exigeants de l'AVEX.  Plus au sud qu'Epincy, mais plus facile d'accès car proche de l'Autoroute A10 (sortie N°12). A titre d'information, 01h20 de route depuis Noisy-Le-Roi.","Site de Thierry Remy",null,"V115",48,12,54,"N",1,44,55,"E","http://astrosurf.com/remy/03_lieux-observation/lieux_observation.htm","http://gresac.free.fr/photos/Viabon.jpg",null,null,"Photo T. Remy","eric",null,"2013-04-24"]
[427,"Site usuel","Jonvilliers",28,{"$f":"IFERROR(VLOOKUP(D428,'Département _ Régions'!$C$4:$F$99,4),\"\")","v":"Centre"},"F","Escrones",14,150,"Toujours dans les environs d'Orphin on accède à une zone en herbe agréable. Plusieurs halos lumineux sont visibles dans les alentours.  ","Site de Thierry Remy",null,"V115",48,33,57,"N",1,42,38,"E","http://astrosurf.com/remy/03_lieux-observation/lieux_observation.htm","http://gresac.free.fr/photos/Jonvilliers.jpg",null,null,"Photo T. Remy","eric",null,"2013-04-24"]
[428,"Site usuel","Goutz",32,{"$f":"IFERROR(VLOOKUP(D429,'Département _ Régions'!$C$4:$F$99,4),\"\")","v":"Midi-Pyrénées"},"F","Goutz",16,180,"Site d'observation de l'association Adhara Astronomie basée à Goutz","Assoc. Adhara Astronomie","Mail GRESAC","V116",43,48,24,"N",0,43,54,"E","http://adhara.astronomie.over-blog.fr/",null,"http://a54.idata.over-blog.com/100x100/3/35/95/92/logo/adharalogo.png","elvina.lemauff@free.fr",{"$f":"IF(ISBLANK(W429),\" \",\"Droits Réservés\")","v":" "},"eric",null,"2013-11-29"]
[429,"Rassemblement","Euroastro",61,{"$f":"IFERROR(VLOOKUP(D430,'Département _ Régions'!$C$4:$F$99,4),\"\")","v":"Basse-Normandie"},"F","St-Langis-les-M",12,180,"Rassemblement d'astronomes amateurs dans le Perche","Euroastro",null,"V116",48,30,41,"N",0,32,2,"E","http://www.euroastro.net/","http://www.astrosurf.com/clubapbourge/photos/evenements/2004/20040529euroastro/20040529euroastro04vig.jpg",null,null,"Photo A. Laurent","eric",null,"2013-04-24"]
[430,"Observatoire","Obs du Champ Chipoté",55,{"$f":"IFERROR(VLOOKUP(D431,'Département _ Régions'!$C$4:$F$99,4),\"\")","v":"Lorraine"},"F","Les Paroches",16,300,"Observatoire de l'Association Sammielloise d'Astronomie","ASA","Forum Astrosurf","V116",48,54,49,"N",5,29,17,"E","http://pagesperso-orange.fr/sylvain.jannot/","http://pagesperso-orange.fr/sylvain.jannot/images/obsfleurs.jpg","http://pagesperso-orange.fr/sylvain.jannot/images/logo.gif",null,"© ASA","eric",null,"2013-04-24"]
[431,"Observatoire","Observatoire de Vert",78,{"$f":"IFERROR(VLOOKUP(D432,'Département _ Régions'!$C$4:$F$99,4),\"\")","v":"Ile-de-France"},"F","Vert",8,100,"Observatoire du Club Copernic",null,"Forum Astrosurf","V116",48,56,32,"N",1,40,35,"E","http://www.astrosurf.com/ubb/Forum2/HTML/032433-2.html",{"$nulls":3},{"$f":"IF(ISBLANK(W432),\" \",\"Droits Réservés\")","v":" "},"eric",null,"2013-04-24"]
[432,"Observatoire","Observatoire des  trous blancs",77,{"$f":"IFERROR(VLOOKUP(D433,'Département _ Régions'!$C$4:$F$99,4),\"\")","v":"Ile-de-France"},"F","Chaintreaux",10,120,"Observatoire de l'association des 3 communes, tourné essentiellement vers le public et l'initiation des jeunes, situé dans le Parc Naturel Du Gâtinais Français",null,"Forum Astrosurf","V116",48,12,11,"N",2,49,17,"E","http://www.astrosurf.com/ubb/Forum2/HTML/032433-2.html",{"$nulls":3},{"$f":"IF(ISBLANK(W433),\" \",\"Droits Réservés\")","v":" "},"eric",null,"2013-04-24"]
[433,"Site usuel","Camp des Fourches",{"v":6,"d":"06"},{"$f":"IFERROR(VLOOKUP(D434,'Département _ Régions'!$C$4:$F$99,4),\"\")","v":"PACA"},"F","St-Dalmas-le-S",20,2270,null,null,"Forum Astrosurf","V116",44,20,1,"N",6,51,55,"E","http://www.astrosurf.com/ubb/Forum2/HTML/032433-2.html","http://mw2.google.com/mw-panoramio/photos/medium/76837978.jpg",null,null,"© Panoramio B. Buemann","eric",null,"2013-04-24"]
[434,"Site usuel","Sestrière",{"v":6,"d":"06"},{"$f":"IFERROR(VLOOKUP(D435,'Département _ Régions'!$C$4:$F$99,4),\"\")","v":"PACA"},"F","St-Dalmas-le-S",20,2010,null,null,"Forum Astrosurf","V116",44,17,43,"N",6,49,17,"E","http://www.astrosurf.com/ubb/Forum2/HTML/032433-2.html","http://mw2.google.com/mw-panoramio/photos/medium/29556181.jpg",null,null,"© Panoramio F. Gay","eric",null,"2013-04-24"]
[435,"Observatoire","Observatoire de Ludiver",50,{"$f":"IFERROR(VLOOKUP(D436,'Département _ Régions'!$C$4:$F$99,4),\"\")","v":"Basse-Normandie"},"F","Tonneville",12,170,"Observatoire-Planétarium du Cap de La Hague (tourisme et éducation)","Ludiver","gpspassion","V116",49,37,52,"N",1,43,37,"W","http://www.ludiver.com/index.php","http://www.ludiver.com/photos/img/animations/animations7.jpg",null,null,"© Ludiver","eric",null,"2013-04-24"]
[436,"Observatoire","Observatoire de Jolimont",31,{"$f":"IFERROR(VLOOKUP(D437,'Département _ Régions'!$C$4:$F$99,4),\"\")","v":"Midi-Pyrénées"},"F","Toulouse",2,200,"L'Observatoire est ouvert au public tous les vendredis soirs à 21h00","SAP Toulouse","gpspassion","V116",43,36,43,"N",1,27,45,"E","http://www.saptoulouse.net/Les%20pages/home.htm","http://mw2.google.com/mw-panoramio/photos/medium/19594404.jpg",null,null,"© Panoramio yelles mca","eric",null,"2013-04-24"]
[437,"Observatoire","Observatoire de Rangueil",31,{"$f":"IFERROR(VLOOKUP(D438,'Département _ Régions'!$C$4:$F$99,4),\"\")","v":"Midi-Pyrénées"},"F","Toulouse",2,150,"Observatoire universitaire, visite sur rendez-vous","Obs Midi-Pyrénées","gpspassion","V116",43,33,50,"N",1,28,51,"E","https://www.imcce.fr/fr/grandpublic/systeme/promenade/pages2/273.html","http://upload.wikimedia.org/wikipedia/commons/thumb/7/7f/Observatoire_de_Toulouse_Coupole.jpg/220px-Observatoire_de_Toulouse_Coupole.jpg",null,null,"© Wikipedia Lhaw31","eric",null,"2013-04-24"]
[438,"Observatoire","Obs de La Garandie",63,{"$f":"IFERROR(VLOOKUP(D439,'Département _ Régions'!$C$4:$F$99,4),\"\")","v":"Auvergne"},"F","Aydat",18,1060,"Observatoire de l'association des astronomes amateurs d'Auvergne T406","Association 4A","gpspassion","V116",45,39,54,"N",2,56,40,"E","http://pagesperso-orange.fr/bgs/","http://bgs.pagesperso-orange.fr/obs-gar/gar9606a.jpg",null,null,"© Obs de la Garandie","eric",null,"2013-04-24"]
[439,"Observatoire","Observatoire d'Augerolles",63,{"$f":"IFERROR(VLOOKUP(D440,'Département _ Régions'!$C$4:$F$99,4),\"\")","v":"Auvergne"},"F","Augerolles",16,550,null,"Observatoire d'Augerolles","gpspassion","V116",45,43,5,"N",3,37,2,"E","http://www.david-romeuf.fr/ObservatoiresAugerollesCunlhat/index.html","http://www.david-romeuf.fr/ObservatoiresAugerollesCunlhat/ObservatoireAugerolles/obs-aug.gif",null,null,"© Obs d'Augerolles","eric",null,"2013-04-24"]
[440,"Observatoire","Observatoire de Osenbach",68,{"$f":"IFERROR(VLOOKUP(D441,'Département _ Régions'!$C$4:$F$99,4),\"\")","v":"Alsace"},"F","Osenbach",10,460,"T410 Société Astronomique du Haut Rhin","SAHR","gpspassion","V117",47,59,33,"N",7,12,27,"E","http://www.astrosurf.com/euroastronomie/F-68570.htm","http://www.astrosurf.com/euroastronomie/images/F-68570%20sahr%201.jpg",null,null,"© SAHR","eric",null,"2013-04-24"]
[441,"Gîtes ou Camping","Refuge des Rajas",48,{"$f":"IFERROR(VLOOKUP(D442,'Département _ Régions'!$C$4:$F$99,4),\"\")","v":"Languedoc-Roussillon"},"F","Les Salces",20,1325,"    Sur l'Aubrac, le long du GR 60, environ 1500 m. à vol d'oiseau au NE du Signal de Mailhe-Biau. Ce gîte occupe une position stratégique non loin du pt culminant de l'Aubrac. Il n'est ouvert que de fin avril au 11 novembre. Il a servi de lieu de tournage à \"St Jacques la Mecque\".","Refuge info","Forum Astrosurf","V117",44,34,34,"N",3,5,35,"E","http://www.refuges.info/point/1933/gite-d-etape/massif-central/refuge-buron-des-rajas-aubrac/","http://www.refuges.info/photos_points/13518.jpeg",null,null,"© Rajas","eric",null,"2013-04-24"]
[442,"Gîtes ou Camping","Gîte La Cabrette",46,{"$f":"IFERROR(VLOOKUP(D443,'Département _ Régions'!$C$4:$F$99,4),\"\")","v":"Midi-Pyrénées"},"F","Castelnau-M",18,140,"Piscine enterrée cloturée et privée. (11x4.30), salon de jardin, barbecue, portique, toboggan, ping-pong, 9 chaises longues.MAISON CLASSEE 3 EPIS PAR GITES DE FRANCE, La maison est située en pleine campagne, isolée au milieu des champs et des bois, la premiere ferme la plus proche étant distante de 1 km.","La Cabrette","Forum Astrosurf","V117",44,13,29,"N",1,21,52,"E","http://www.secondcasa.com/fr/France/Maison-de-vacances_CASTELNAU-MONTRATIER_La-Cabrette_o9841.html","http://www.secondcasa.com/sc_obj_img/0/9841/TNG_img1.jpg",null,null,"© La Cabrette","eric",null,"2013-04-24"]
[443,"Observatoire","Obs de Beine Nauroy",51,{"$f":"IFERROR(VLOOKUP(D444,'Département _ Régions'!$C$4:$F$99,4),\"\")","v":"Champagne-Ardenne"},"F","Beine-Nauroy",12,130," L'observatoire de Beine-Nauroy dispose d'un télescope de 410mm sous coupole, et de nombreux petits instruments (lunette, télescopes...). Le site est ouvert au public tous les vendredis soir, d'août à fin avril.\n","Planética","Mail GRESAC","V118",49,15,7,"N",4,12,41,"E","http://planetica.assoc.pagespro-orange.fr/","http://a141.idata.over-blog.com/630x470-000000/4/05/86/34/Paysages-astronomiques/Observatoire_astronomique_03.jpg","http://assoc.pagespro-orange.fr/planetica/images/LogoAnim100.gif","planetarium@mairie-reims.fr","© Terre-Nature","eric",null,"2013-04-22"]
[444,"Gîtes ou Camping","Au Lac de Blars (gîtes)",46,{"$f":"IFERROR(VLOOKUP(D445,'Département _ Régions'!$C$4:$F$99,4),\"\")","v":"Midi-Pyrénées"},"F","Senaillac-Lauzes",17,360,"Le charme d'un gite rural de caractère.  Un environnement calme et exceptionnel: une ancienne ferme du XVIIIe sur 1.5 Ha privatifs, au centre du  \"Triangle Noir\" astronomique du Parc Régional des Causses du Quercy","Au lac de Blars","Forum Astrosurf","V118",44,35,35,"N",1,40,15,"E","http://www.gites-quercy.fr/","http://www.gites-quercy.fr/Au%20Lac%20de%20Blars%20042006-250.JPG-for-web-normal.jpg",null,null,"© Au Lac de Blars","eric",null,"2013-04-22"]
[445,"Gîtes ou Camping","Gîte de Malama",46,{"$f":"IFERROR(VLOOKUP(D446,'Département _ Régions'!$C$4:$F$99,4),\"\")","v":"Midi-Pyrénées"},"F","Cuzance",15,300,"Gîte typique indépendant. Au RDC, salle de séjour, cuisine, 1 chambre (1 lit 1,40m, 2 lits 1m), salle d'eau, wc indépendant. A l'étage, 2 chambres (2 lits 1,40m), salle de bains, wc indépendant. Buanderie, portique, terrain clos. Chauffage électrique convecteurs. GDF 2 épis","Gites de France","Forum Astrosurf","V118",44,58,58,"N",1,33,4,"E","http://www.tourisme-lot.com/fr/25/9/3/HLOMIP046FS0017D/sit/detail?onglet=1","http://admin.tourisme-lot.com/plugins/Mediatheque/GeneImage.php?img=http://cdt46.tourinsoft.com/upload/GR2525.jpg&xm=245&ym=245","http://global.mmm.re/images/logo/logo_gitesdefrance.gif",null,"© Malama","eric",null,"2013-04-22"]
[446,"Gîtes ou Camping","Camping La Pinede",46,{"$f":"IFERROR(VLOOKUP(D447,'Département _ Régions'!$C$4:$F$99,4),\"\")","v":"Midi-Pyrénées"},"F","Goujounac",12,250,"Vous serez accueillis dans un camping familial au décor de verdure… camping***","Camping La Pinède","Forum Astrosurf","V118",44,34,37,"N",1,11,34,"E","http://www.camping-goujounac.com/home.html",{"$nulls":3},{"$f":"IF(ISBLANK(W447),\" \",\"Droits Réservés\")","v":" "},"eric",null,"2013-04-22"]
[447,"Site usuel","Plaine du Varat",76,{"$f":"IFERROR(VLOOKUP(D448,'Département _ Régions'!$C$4:$F$99,4),\"\")","v":"Haute-Normandie"},"F","Claville-Motteville",11,150,"Sur une route très peu passante. Horizons EST et SUD bien dégagé. Pas de lampadaire. En l'absence de Lune, la Voie Lactée est visible. Les lueurs de Rouen restent bien visibles au sud-Ouest",null,"Mail GRESAC","V119",49,34,3,"N",1,11,33,"E",{"$nulls":3},"jerome.chateau@libertysurf.fr",{"$f":"IF(ISBLANK(W448),\" \",\"Droits Réservés\")","v":" "},"eric",null,"2013-04-22"]
[448,"Site usuel","Bois Barbu",38,{"$f":"IFERROR(VLOOKUP(D449,'Département _ Régions'!$C$4:$F$99,4),\"\")","v":"Rhône-Alpes"},"F","Villard-de-Lans",18,1140,"Dans le massif du Vercors à 1140m d'altitude Petit parking (terre) dans une courbe d'une route peu passante (cul de sac l'hiver) à la lisière d'une forêt L'horizon Est est un peu baigné dans la lueur de Grenoble L'horizon Sud donne sur une petite butte\n",null,"Mail GRESAC","V119",45,3,53,"N",5,31,28,"E",{"$nulls":3},"tital@la-capuche.fr",{"$f":"IF(ISBLANK(W449),\" \",\"Droits Réservés\")","v":" "},"eric",null,"2013-04-22"]
[449,"Gîtes ou Camping","Gite du Haut Folin",58,{"$f":"IFERROR(VLOOKUP(D450,'Département _ Régions'!$C$4:$F$99,4),\"\")","v":"Bourgogne"},"F","Glux-en-Glaine",19,750,"Le GITE DU HAUT FOLIN (3 épis) est une belle longère rustique pour 6 personnes, très bien aménagée, agréable, isolée au milieu d'une très grande clairière, toute proche du sommet du Haut Folin, point le plus haut du Morvan et de la Bourgogne et voisin du Mont Beuvray, l'ancienne Bibracte de César. Le ciel y est bien noir, sans aucun halo lumineux visible. On bénéficie souvent du phénomène d'inversion thermique en hiver, le gîte se trouvant au dessus de la couche nuageuse. Le gîte est ouvert toute l'année et est particulièrement agréable en hiver (route déneigée). Possibilité de louer un télescope dobson de 400 mm. ","gite du haut folin","Mail GRESAC","V119",46,58,45,"N",4,1,25,"E","http://www.gitehautfolin.com/#Accueil.A","http://www.gitehautfolin.com/files/users/2/2/1/8/9/1/6/Photos_Gite_Haut_Folin_087_small.jpg","http://global.mmm.re/images/logo/logo_gitesdefrance.gif","dobson.2005@gmail.com","© Gîte du Haut Folin","eric",null,"2013-04-22"]
[451,"Site usuel","site de Sore",40,{"$f":"IFERROR(VLOOKUP(D451,'Département _ Régions'!$C$4:$F$99,4),\"\")","v":"Aquitaine"},"F","Sore",19,100,"Route non fréquentée et finissant en cul de sac. Pas de riverains et vue à 360° ( en plein déboisements forestiers ). Très bons horizons est, sud et ouest. SQM-L de 21.5 à 21.6 par conditions moyennes. MvlonZ de 6.6 à 7.0 suivant les conditions. Echelle de Bortle : 3. Seul halo gênant : Bordeaux ( à 60 Kms de là ) directement sur le Nord et s'élevant à 15° de l'horizon. Le centre de la voie lactée est visible dans le Scorpion et Ophiuchus. M 22 est visible à l'oeil nu. Point négatif : en forêt donc l'humidité y est tout le temps importante.\n",null,"Mail GRESAC","V120",44,15,1,"N",0,38,5,"W",{"$nulls":3},"namibien@hotmail.fr",{"$f":"IF(ISBLANK(W451),\" \",\"Droits Réservés\")","v":" "},"eric",null,"2013-04-22"]
[452,"Site usuel","Castets-Chardéou",40,{"$f":"IFERROR(VLOOKUP(D452,'Département _ Régions'!$C$4:$F$99,4),\"\")","v":"Aquitaine"},"F","Castets",17,80,"Site à 15 minutes de Dax. MvlonZ de 6.5 et SQM-L de 21.32. Piste au milieu des champs permettant un 360°. 2 halos gênants : Castets au nord-ouest et Dax au sud-sud-est. Humidité toujours importante (forêt landaise) mais transparence pouvant être très bonne malgré tout. ",null,"Mail GRESAC","V120",43,50,29,"N",1,4,16,"W",{"$nulls":3},"namibien@hotmail.fr",{"$f":"IF(ISBLANK(W452),\" \",\"Droits Réservés\")","v":" "},"eric",null,"2013-04-22"]
[453,"Site usuel","Talmont saint hilaire",85,{"$f":"IFERROR(VLOOKUP(D453,'Département _ Régions'!$C$4:$F$99,4),\"\")","v":"Pays de la Loire"},"F","Talmont-St-Hilaire",16,10,"Parking plat ouvert non éclairé non interdit au public mais interdit au camping car (bien que quelqu'un s'installe parfois). On accède par une bonne route près de l'aquarium de talmont saint hilaire. Attention a ne pas confondre avce le parking de l'aquarium ! Ciel sur 360°. Bien noir, très léger halos à l'ouest (sables d'olonnes) Bord de mer. Ciel pur, Saturne extraordinaire à plus de 400 sur un dobson 200. Maison proche pouvant étre éclairée (mais ne l'était pas quand j'y suis allé), cache légèrement l'horizon ouest.",null,"Mail GRESAC","V120",46,26,47,"N",1,41,41,"W",{"$nulls":4},{"$f":"IF(ISBLANK(W453),\" \",\"Droits Réservés\")","v":" "},"eric",null,"2013-04-22"]
[454,"Site usuel","Tille de Grange-Sauvaget",39,{"$f":"IFERROR(VLOOKUP(D454,'Département _ Régions'!$C$4:$F$99,4),\"\")","v":"Franche-Comté"},"F","Bracon",15,600,"Site utilisé par l'association \"Étoiles, science et légendes\" pour les soirées de vulgarisation.","Etoiles, sciences et légendes","Mail GRESAC","V120",46,55,6,"N",5,52,9,"E","http://astronomia.over-blog.org/categorie-10749234.html",null,null,"esl.astro@yahoo.fr",{"$f":"IF(ISBLANK(W454),\" \",\"Droits Réservés\")","v":" "},"eric",null,"2013-04-22"]
[455,"Site usuel","Lac de Grand lieu",44,{"$f":"IFERROR(VLOOKUP(D455,'Département _ Régions'!$C$4:$F$99,4),\"\")","v":"Pays de la Loire"},"F","La Chevroliere",8,0,"Site du domaine public accessible en voiture d'Avril à Octobre. La route est un cul de sac donnant accès au port d'été de Passay. Bon site en visuel, un peu moins en photo. L'atout principal de ce site c'est l'endroit en lui-même. pl au Nord due a Nantes a l'Est due à Passay. pl modérée au Sud et à l'Ouest. ",null,"Mail GRESAC","V120",47,5,40,"N",1,38,26,"W",null,"http://img.zphoto.fr/data/photo/59/58/496583.jpg",null,"benjamindenantes@hotmail.fr","Photo BenjamindeNantes","eric",null,"2013-04-22"]
[456,"Site usuel","Rourebel",{"v":6,"d":"06"},{"$f":"IFERROR(VLOOKUP(D456,'Département _ Régions'!$C$4:$F$99,4),\"\")","v":"PACA"},"F","Ascros",18,1060,"voici un endroit perdu dans les montagnes normalement protégé de toutes pollutions lumineuses ",null,"forum futura-sciences","V120",43,55,43,"N",7,0,12,"E","http://forums.futura-sciences.com/materiel-astronomique-photos-damateurs/171881-coordonnees-gps-sites-dobservation-france-4.html#post3125113",{"$nulls":3},{"$f":"IF(ISBLANK(W456),\" \",\"Droits Réservés\")","v":" "},"eric",null,"2013-04-22"]
[457,"Site usuel","Ascros",{"v":6,"d":"06"},{"$f":"IFERROR(VLOOKUP(D457,'Département _ Régions'!$C$4:$F$99,4),\"\")","v":"PACA"},"F","Ascros",17,1150,"Idem 456 avec plus de vue",null,"forum futura-sciences","V120",43,55,29,"N",7,0,51,"E","http://forums.futura-sciences.com/materiel-astronomique-photos-damateurs/171881-coordonnees-gps-sites-dobservation-france-4.html#post3125113",{"$nulls":3},{"$f":"IF(ISBLANK(W457),\" \",\"Droits Réservés\")","v":" "},"eric",null,"2013-04-22"]
[458,"Observatoire","Obs. Astro de Cronouaille",29,{"$f":"IFERROR(VLOOKUP(D458,'Département _ Régions'!$C$4:$F$99,4),\"\")","v":"Bretagne"},"F","Coray",15,190,"L'association Loar Gann y organise des soirées publiques","Assoc loar gann",null,"V121",48,3,19,"N",3,50,41,"W","http://loargann.info/","http://img.youtube.com/vi/Vs8JenWadhM/0.jpg",null,null,"© Loargann","eric",null,"2013-04-22"]
[459,"Observatoire","Observatoire du Betz",43,{"$f":"IFERROR(VLOOKUP(D459,'Département _ Régions'!$C$4:$F$99,4),\"\")","v":"Auvergne"},"F","St Julien-Chapteuil",18,940,"Observatoire de l'Association Orion 43","Orion 43",null,"V121",45,1,12,"N",4,3,13,"E","http://www.orion43.fr/","http://gresac.free.fr/photos/A3.jpg",null,null,"© Orion43","eric",null,"2013-04-21"]
[460,"Site usuel","Tumulus de Dissignac",44,{"$f":"IFERROR(VLOOKUP(D460,'Département _ Régions'!$C$4:$F$99,4),\"\")","v":"Pays de la Loire"},"F","St Nazaire",4,40,"Fréquenté par le Club Astronomie de la Presqu'île ","Astronomie de la presqu'île",null,"V121",47,16,15,"N",2,16,44,"W","http://www.astrosurf.com/capstnazaire/index.html","http://www.astrosurf.com/capstnazaire/cap-photos-observations/cap-tumulus-01.jpg","http://www.astrosurf.com/capstnazaire/cap-logo-mini.jpg",null,"© Club Astro Presqu'île","eric",null,"2013-04-22"]
[461,"Observatoire","Obs de St Jean le Blanc",45,{"$f":"IFERROR(VLOOKUP(D461,'Département _ Régions'!$C$4:$F$99,4),\"\")","v":"Centre"},"F","St Jean-le-Blanc",2,90,"Observatoire astronomique de St Jean-le-Blanc","obs de st jean le Blanc",null,"V121",47,53,29,"N",1,55,6,"E","http://www.obsstjean.fr/","http://www.obsstjean.fr/images/IMG00153-20100331-1415.jpg",null,null,"© Obs St Jean de Blanc","eric",null,"2013-04-22"]
[462,"Gîtes ou Camping","Gîte de Poudally",46,{"$f":"IFERROR(VLOOKUP(D462,'Département _ Régions'!$C$4:$F$99,4),\"\")","v":"Midi-Pyrénées"},"F","Lalbenque",17,260,"Gîte d'étape et de séjour au cœur du Parc Naturel des Causses du Quercy, et du triangle noir. Ciel sans pollution lumineuse, avec un site à proximité dégagé de tous les côtés, pas d'arbres. Sur place , nous disposons d'un télescope pouvant être mis à disposition. ","http://www.poudally.com","Mail GRESAC","V122",44,21,26,"N",1,34,7,"E","http://www.poudally.com","http://mw2.google.com/mw-panoramio/photos/medium/20175190.jpg",null,null,"© Panoramio Poudally","eric",null,"2013-04-22"]
[463,"Site usuel","Col de St Jurs",{"v":4,"d":"04"},{"$f":"IFERROR(VLOOKUP(D463,'Département _ Régions'!$C$4:$F$99,4),\"\")","v":"PACA"},"F","Saint Jurs",19,1320,"Tres beau site relativement epargné par la pollution lumineuse (les lumieres des villages à l'horizon n'impactent quasiment pas la qualité du ciel au dessus de 8°). Parfois soumis a des vents forts, une solution de replis existe juste avant l'arrivée au site","avex forum","Mail GRESAC","V122",43,54,35,"N",6,14,4,"E","http://www.avex-asso.org/forum/","http://avex.org.free.fr/gresac/360/360-spot-avex-col-de-st-jurs-1318m-gresac.jpg","http://avex.org.free.fr/charte/avex-typo-rouge-glass-small.png",null,"Photo F. Tapissier","eric",null,"2013-04-22"]
[464,"Site usuel","Mont Chiran (spot AVEX)",{"v":4,"d":"04"},{"$f":"IFERROR(VLOOKUP(D464,'Département _ Régions'!$C$4:$F$99,4),\"\")","v":"PACA"},"F","La Palud-sur-Verdon",20,720,"Le meilleurs Site testé par Avex dans les Alpes (04) Nous n'avons pas pu accéder au sommet (piste barrée) nous avons du nous contenter de rester sur le flanc 250m plus bas soit 1676 m tout de même (sommet à 1850) l'accès se mérite par une piste très longue et parfois difficile. Toutefois ma simple Clio a pu s'en affranchir. la photo jointe montre la panorama Nord au moment du couché du soleil (le Sud est du même genre )","avex forum","Mail GRESAC","V122",43,51,41,"N",6,19,16,"E","http://www.avex-asso.org/forum/","http://avex.org.free.fr/gresac/360/90-spot-avex-chiran-1378m-gresac.jpg","http://avex.org.free.fr/charte/avex-typo-rouge-glass-small.png",null,"Photo F. Tapissier","eric",null,"2013-04-22"]
[465,"Gîtes ou Camping","La Ferme en Paille",46,{"$f":"IFERROR(VLOOKUP(D465,'Département _ Régions'!$C$4:$F$99,4),\"\")","v":"Midi-Pyrénées"},"F","Gramat",12,300,"Camping à la ferme, aucun eclairage à part ceux des campeurs qui s'éteignent vite. Pour que nous soyons tranquille, il nous a preté une prairie à proximité","la ferme en paille ","Mail GRESAC","V122",44,45,55,"N",1,44,1,"E","http://www.campingdelafermeenpaille.com/","http://www.campingdelafermeenpaille.com/photos/site/camping_01.png",null,null,"© La Ferme en Paille","eric",null,"2013-04-22"]
[468,"Site usuel","Port de Bales",31,{"$f":"IFERROR(VLOOKUP(D466,'Département _ Régions'!$C$4:$F$99,4),\"\")","v":"Midi-Pyrénées"},"F","Bourg-d'Oueil",19,1800,"Il ya le parking ou alors à droite, un chemin carrossable avec plusieurs arrêts possibles. Pas de PL exceptés les phares et une vue sur pratiquement 360°, sauf vers l' ouest où se trouve le Mont Né à 2147 m d' altitude alors que le parking est à 1755 m.",null,"forum futura-sciences","V123",42,52,24,"N",0,30,3,"E","http://forums.futura-sciences.com/materiel-astronomique-photos-damateurs/171881-coordonnees-gps-sites-dobservation-france-4.html#post3125113","http://commondatastorage.googleapis.com/static.panoramio.com/photos/original/3244100.jpg",null,null,"© Panoramio Dardarmotus31","eric",null,"2013-04-22"]
[469,"Site usuel","Super Bagneres 1er Parking ",31,{"$f":"IFERROR(VLOOKUP(D467,'Département _ Régions'!$C$4:$F$99,4),\"\")","v":"Midi-Pyrénées"},"F","Saint-Aventin",18,1670,"Quelques éclairages publics mais rien de dramatique. On peut aussi rejoindre à pied la table d' orientation par un chemin sur la gauche avant le parking principal.",null,"forum futura-sciences","V123",42,45,36,"N",0,35,15,"E","http://forums.futura-sciences.com/materiel-astronomique-photos-damateurs/171881-coordonnees-gps-sites-dobservation-france-4.html#post3125113","http://mw2.google.com/mw-panoramio/photos/medium/4118131.jpg",null,null,"© Panoramio  fyak1","eric",null,"2013-04-22"]
[470,"Site usuel","Super Bagneres parking princ",31,{"$f":"IFERROR(VLOOKUP(D468,'Département _ Régions'!$C$4:$F$99,4),\"\")","v":"Midi-Pyrénées"},"F","Saint-Aventin",18,1800,"Quelques éclairages publics mais rien de dramatique. On peut aussi rejoindre à pied la table d' orientation par un chemin sur la gauche avant le parking principal.",null,"forum futura-sciences","V123",42,46,4,"N",0,34,39,"E","http://forums.futura-sciences.com/materiel-astronomique-photos-damateurs/171881-coordonnees-gps-sites-dobservation-france-4.html#post3125113","http://mw2.google.com/mw-panoramio/photos/medium/26473356.jpg",null,null,"© Panoramio stephane-et-catherin","eric",null,"2013-04-21"]
[471,"Rassemblement","RAAGSO",12,{"$f":"IFERROR(VLOOKUP(D469,'Département _ Régions'!$C$4:$F$99,4),\"\")","v":"Midi-Pyrénées"},"F","Ambeyrac",17,330,"Site des RAAGSO 2010 et des futurs RAAGSO 2011. Très bon site pour les amoureux du ciel qui recherchent isolement, nature… et confort !! Presque tous les emplacements sont à l'ombre de chênes. Il est facile de s'isoler pour observer (même en post fixe, aucun soucis) et le camping n'est pas éclairé la nuit. Excellente adresse pour les astronomes campeurs qui recherchent le jour plein d'activités pour la famille : visites, promenades…","RAAGSO","Mail GRESAC","V124",44,29,30,"N",1,55,52,"E","http://astrosurf.com/raagso/","http://www.etiennejammes-graphiste.com/raagso/DSC4277.jpg",null,null,"Photo E, Jammes","eric",null,"2013-04-21"]
[472,"Gîtes ou Camping","Camping du Causse",12,{"$f":"IFERROR(VLOOKUP(D470,'Département _ Régions'!$C$4:$F$99,4),\"\")","v":"Midi-Pyrénées"},"F","Ambeyrac",17,330,"Le camping du Causse est un petit camping isolé sur le Causse de Villeneuve (extension du Quercy en Aveyron) situé à la limite entre l'Aveyron et le Lot. Le lieudit Méjos où il est situé ainsi que tous les patelins du plateau son totalement dépourvus de lampadaires. Le ciel est très bon et le camping n'est pas éclairé la nuit. Totalement adapté pour l'astronomie, le camping a accueilli les RAAGSO 2010 et l'édition 2011 y est déjà prévu. Les propriétaires sont très disponibles et sensibilisés à l'astronomie et à la pollution lumineuse.","Camping du Causse","Mail GRESAC","V124",44,29,30,"N",1,55,52,"E","http://www.camping-du-causse.fr/","http://www.camping-du-causse.fr/php/timthumb.php?src=http://www.camping-du-causse.fr/images/galerie/100_2966.jpg&h=200&w=235&zc=1&q=100",null,null,"© Camping du Causse","eric",null,"2013-11-29"]
[473,"Site usuel","Col de la Cayolle",{"v":4,"d":"04"},{"$f":"IFERROR(VLOOKUP(D471,'Département _ Régions'!$C$4:$F$99,4),\"\")","v":"PACA"},"F","Uvernet-Fours",20,2330,null,null,"Forum Webastro","V124",44,15,35,"N",6,44,37,"E","http://www.webastro.net/forum/showthread.php?t=68463","http://www.pixajo.com/tmp/Cayolle2.jpg",null,null,"Photo Pixajo","eric",null,"2013-04-21"]
[474,"Site usuel","Moulayres",81,{"$f":"IFERROR(VLOOKUP(D472,'Département _ Régions'!$C$4:$F$99,4),\"\")","v":"Midi-Pyrénées"},"F","Damiatte",18,280,"Petit plateau accessible en voiture. Un chemin de tracteur très carrossable mais en côte doit mettre en garde le visiteur les jours humides. Grosse PL au Sud Ouest avec Toulouse. PL au Sud est pour Castres. Au Nord Graulhet. Sud très propre si on se met du bon coté de la ligne électrique. L'Est : nickel ! Un zénith et un bon 45° de rayon irréprochable.",null,"Forum Webastro","V124",43,41,16,"N",2,1,40,"E","http://www.webastro.net/forum/showthread.php?t=68950","http://nsa19.casimages.com/img/2010/09/20/10092010203125454.jpg",null,null,"Photo Kilkim","eric",null,"2013-04-21"]
[475,"Rassemblement","Astrobeilles",{"v":9,"d":"09"},{"$f":"IFERROR(VLOOKUP(D473,'Département _ Régions'!$C$4:$F$99,4),\"\")","v":"Midi-Pyrénées"},"F","Albies",19,1800,"Site privé accessible sur autorisation municipale, Lieu des rassemblements Astrobeille","Le site à Manu","Forum Webastro","V125",42,43,37,"N",1,41,15,"E","http://pagesperso-orange.fr/planetarn/manu/CROA2008/BeilleBCB.htm","http://public.bay.livefilestore.com/y1p5Isx-busZo_enSRtvVXImSNeWyiMDCdaG2nJF25N7lXbk-3-nW30UN5EZ0wos_9MclrJQ-s0ynNHaeLxJNcKlA/P9040218b.jpg?psid=1",null,"manutarn@msn.com","Photo Manutarn","eric",null,"2013-04-21"]
[476,"Site usuel","Parking des Aresquiers",34,{"$f":"IFERROR(VLOOKUP(D474,'Département _ Régions'!$C$4:$F$99,4),\"\")","v":"Languedoc-Roussillon"},"F","Frontignan",14,0,null,null,"Forum Webastro","V125",43,27,40,"N",3,49,11,"E","http://www.webastro.net/forum/showthread.php?t=40026&page=18",{"$nulls":3},{"$f":"IF(ISBLANK(W474),\" \",\"Droits Réservés\")","v":" "},"eric",null,"2013-04-21"]
[477,"Gîtes ou Camping","Gîte les Arriberes",65,{"$f":"IFERROR(VLOOKUP(D475,'Département _ Régions'!$C$4:$F$99,4),\"\")","v":"Midi-Pyrénées"},"F","Arcizans-dessus",17,830,"Ciel noir, ","Gites les Arribères",null,"V126",42,58,46,"N",0,9,56,"W","http://www.accueil-a-la-ferme.fr/plan.html","http://www.accueil-a-la-ferme.fr/images/photo_accueil.jpg",null,null,"© Les Arriberes","eric",null,"2013-04-21"]
[478,"Gîtes ou Camping","Camping Le Caoussariou",65,{"$f":"IFERROR(VLOOKUP(D476,'Département _ Régions'!$C$4:$F$99,4),\"\")","v":"Midi-Pyrénées"},"F","Arcizans-dessus",17,830,"Ciel noir, ","Camping le Caoussariou",null,"V126",42,58,46,"N",0,9,56,"W","http://www.accueil-a-la-ferme.fr/plan.html","http://www.accueil-a-la-ferme.fr/images/photos_camping.jpg",null,null,"© Le Caoussariou","eric",null,"2013-04-21"]
[479,"Site usuel","Auberge de Traverole",73,{"$f":"IFERROR(VLOOKUP(D477,'Département _ Régions'!$C$4:$F$99,4),\"\")","v":"Rhône-Alpes"},"F","Bessans",19,1750,"Camping, restaurant","La grange du Traverole","Forum webastro","V127",45,20,9,"N",7,1,15,"E","http://www.lagrangedutraverole.com/index.html","http://www.lagrangedutraverole.com/images/traverole_cote.jpg",null,null,"© Traverole","eric",null,"2013-04-21"]
[480,"Site usuel","Le Saut",73,{"$f":"IFERROR(VLOOKUP(D478,'Département _ Régions'!$C$4:$F$99,4),\"\")","v":"Rhône-Alpes"},"F","Tignes",19,2300,"l'été et l'automne sur le site du Saut, sous la Grande Sassière, commune de Tignes. Site très large à 2300. Très fréquenté l'été surtout en journée. Les lumières de Tignes sont loin, recluses et ne gènent pas spécialement, surtout qu'on est plus haut, et séparés par le site du Lac du Chevril. Horizon nord un peu bouché par les 3700m de la Sassière.Très beau site ",null,"Forum Webastro","V127",45,29,15,"N",6,58,12,"E","http://www.webastro.net/forum/showpost.php?p=995292&postcount=14","http://mw2.google.com/mw-panoramio/photos/medium/4153919.jpg",null,null,"©Panoramio gerald_aks","eric",null,"2013-04-21"]
[481,"Site usuel","Bellecombe",73,{"$f":"IFERROR(VLOOKUP(D479,'Département _ Régions'!$C$4:$F$99,4),\"\")","v":"Rhône-Alpes"},"F","Termignon",19,2300,"Site large, très fréquenté du 15 juillet au 15 aout. Très isolé. Possibilité de se placer de sorte à minimiser les micro-reliefs autour et voir les constellations basses dans le ciel, même si c'est rarement les plus intéressantes à observer de part leur position.",null,"Forum Webastro","V127",45,19,40,"N",6,49,48,"E","http://www.webastro.net/forum/showpost.php?p=995292&postcount=14","http://mw2.google.com/mw-panoramio/photos/medium/174589.jpg",null,null,"© Panoramio B, Weickmans","eric",null,"2013-04-21"]
[482,"Gîtes ou Camping","Auberge de la Bergerie",83,{"$f":"IFERROR(VLOOKUP(D480,'Département _ Régions'!$C$4:$F$99,4),\"\")","v":"PACA"},"F","Rocbaron",12,360,"Ch. d'hôtes : Chambre 2 pers. avec salle d'eau et wc + Gîte 5 personnes. avec séjour, kitchenette, salle d'eau, wc 1 chambre et mezzanine + Gîte 6 personnes. avec séjour, kitchenette, salle d'eau, wc 2 chambres et clic-clac + Gîte 11 personnes avec séjour, kitchenette, 3 chambres 2 salles d'eau, wc, sur étage ","Auberge de la Bergerie","Forum Webastro","V127",43,19,7,"N",6,5,47,"E","http://www.1001salles.com/mariage/AUBERGE-LA-BERGERIE.aspx","http://img.1001salles.com/photos/1/83/R836597728Cn.jpg?1366569597,64708",null,null,"© La Bergerie","eric",null,"2013-04-21"]
[483,"Rassemblement","Zach-en-Ciel",83,{"$f":"IFERROR(VLOOKUP(D481,'Département _ Régions'!$C$4:$F$99,4),\"\")","v":"PACA"},"F","Saint-Zachary",4,250,"Rassemblement, braderie, conférence, observation… Rq : La note de PL ne tient pas compte des efforts de la ville pour l'amélioration de l'éclairage urbain !","Eclipse Astronomie","Forum Webastro","V127",43,23,1,"N",5,42,9,"E","http://eclipseastronomie.free.fr/","http://eclipseastronomie.free.fr/images/obs3.jpg",null,null,"© Eclipse Astronomie","eric",null,"2013-04-20"]
[484,"Gîtes ou Camping","Stellarzac",12,{"$f":"IFERROR(VLOOKUP(D482,'Département _ Régions'!$C$4:$F$99,4),\"\")","v":"Midi-Pyrénées"},"F","La Roque-st-M",19,740,"Giîte 4/6 pers + T800","Stellarzac","Forum Webastro","V127",44,5,26,"N",3,14,46,"E","http://www.stellarzac.com/index.html","http://www.stellarzac.com/Galeries%20photos/A%20l'oculaire/au%20T1000/slides/setupcol3.jpg",null,null,"© Stellarzac","eric",null,"2013-04-20"]
[485,"Site usuel","Plateau des Balmelles",48,{"$f":"IFERROR(VLOOKUP(D483,'Département _ Régions'!$C$4:$F$99,4),\"\")","v":"Languedoc-Roussillon"},"F","Villefort",19,830,"Au dessus de villefort et des gorges du Chassezac, en face de la Garde Guerin ; plateau des Balmelles a cote de la vigie incendie de foret ( chemin carrossable accessible sans 4x4 ) paysage fabuleux et degage toutefois attention au vent qui fait vibrer les instruments,",null,"Forum Webastro","V127",44,26,28,"N",3,56,39,"E","http://www.webastro.net/forum/showthread.php?p=1040653#post1040653",{"$nulls":3},{"$f":"IF(ISBLANK(W483),\" \",\"Droits Réservés\")","v":" "},"eric",null,"2013-04-20"]
[486,"Gîtes ou Camping","Refuge de Migouelou",65,{"$f":"IFERROR(VLOOKUP(D484,'Département _ Régions'!$C$4:$F$99,4),\"\")","v":"Midi-Pyrénées"},"F","Estaing",20,2280,"Non loin de la commune d'Arrens-Marsous. Il faut trois heures de marche dans le parc national des pyrénées pour s'y rendre. Le début de la randonnée est situé un kilométre aprés le barrage du Tech. Nous disposons d' un ciel trés pur et d'un telescope 200/1800, paires de jumelles et pied photo. Des soirées astro ont lieu toutes les nuits d'été avec possibilité d'observer toute la nuit avec ce matériel et de dormir sur place en dortoir. Pour reserver vous pouvez appeler au 0562974492 ou au 0674848791 ou consulter notre site web  ","Refuge de Migouelou","Forum Webastro","V127",42,53,9,"N",0,17,56,"W","http://refugedemigouelou.free.fr/","http://ladepeche.fr/content/photo/biz/2010/08/24/201008241067_w350.jpg",null,"jeanbaptistebodda@gmail.com","Photo T, Jouve","eric",null,"2013-04-20"]
[487,"Gîtes ou Camping","Spot AVEX Sauveloup",61,{"$f":"IFERROR(VLOOKUP(D485,'Département _ Régions'!$C$4:$F$99,4),\"\")","v":"Basse-Normandie"},"F","Feings",17,230,"Gîte de France/Gîte Panda, à noter que les villages alentour éteignent apres minuit. donnant un \"boost\" sur le fond de ciel\nTres bon accueil sur place, bcp de place, attention terrain tres meuble.","Gîte Sauveloup","Forum Avex","V127",48,33,16,"N",0,39,17,"E","http://www.gites-panda.fr/pnr/perche/gite-de-sauveloup","https://lh6.googleusercontent.com/_fCfc5QGNKCQ/TXVqDkmi6DI/AAAAAAAAbYQ/HuTJ-Kn9xoI/s912/DSCF4760_stitchB.jpg","http://www.gites-panda.fr/extension/gitespanda/design/gitespanda/images/logo_wwf.gif",null,"Photo F. Povedano","eric",null,"2013-04-20"]
[488,"Site usuel","Prades",81,{"$f":"IFERROR(VLOOKUP(D486,'Département _ Régions'!$C$4:$F$99,4),\"\")","v":"Midi-Pyrénées"},"F","Prades",17,320,"le site est dégagé et bien plat ,par contre la pollution lumineuse est bien présente de toulouse jusqu'à castres",null,"Forum Webastro","V127",43,36,39,"N",1,57,14,"E","http://www.webastro.net/forum/showthread.php?p=1100155#post1100155",{"$nulls":3},{"$f":"IF(ISBLANK(W486),\" \",\"Droits Réservés\")","v":" "},"eric",null,"2013-04-20"]
[489,"Site usuel","Col de la Loge",42,{"$f":"IFERROR(VLOOKUP(D487,'Département _ Régions'!$C$4:$F$99,4),\"\")","v":"Rhône-Alpes"},"F","La Chamba",19,1260,"Dégagement des horizons : environ 12° toutes directions Risque de pollution lumineuse côté Sud ","4A",null,"V127",45,44,36,"N",3,46,49,"E","http://www.astronomes-auvergne.fr/",null,"http://www.astronomes-auvergne.fr/images/logo.jpg",null,{"$f":"IF(ISBLANK(W487),\" \",\"Droits Réservés\")","v":" "},"eric",null,"2013-04-20"]
[490,"Site usuel","La Mare Plate",78,{"$f":"IFERROR(VLOOKUP(D488,'Département _ Régions'!$C$4:$F$99,4),\"\")","v":"Ile-de-France"},"F","Poigny-la-Foret",10,160,null,null,"Forum Webastro","V127",48,40,27,"N",1,45,38,"E","http://www.webastro.net/forum/showthread.php?p=1101441#post1101441",{"$nulls":3},{"$f":"IF(ISBLANK(W488),\" \",\"Droits Réservés\")","v":" "},"eric",null,"2013-04-20"]
[491,"Gîtes ou Camping","Parc de la Drosera",42,{"$f":"IFERROR(VLOOKUP(D489,'Département _ Régions'!$C$4:$F$99,4),\"\")","v":"Rhône-Alpes"},"F","Jeansagnieres",18,1160,"village de chalets en location 5-7 places chacuns, restauration, salle de réunion. Le propriétaire est intéressé par la thématique « Qualité du ciel » pour le positionnement de son Parc … Site d’observation : à 800m au N du Parc prendre à droite un chemin de terre en bon état sur lequel on peut poser les instruments","Parc de la drosera","4A","V127",45,44,24,"N",3,50,8,"E","http://www.ladrosera.fr/index.html","http://img-cdn1.iha.fr/uk/2474600006013/Holiday-rental-Jeansagniere-Chalet_3.jpeg",null,null,"© Parc de la Drosera","eric",null,"2013-11-29"]
[492,"Site usuel","Les Bois Noirs",63,{"$f":"IFERROR(VLOOKUP(D490,'Département _ Régions'!$C$4:$F$99,4),\"\")","v":"Auvergne"},"F","Auzelles",19,1200,"Le sommet du Montoncel est desservi par 3 chemins, uniquement en accès piéton diurne (forte pente, gros cailloux); la clairière sommitale offre une vue dégagée de toutes parts à partir de 15° et sans source lumineuse directe,",null,"4A","V127",45,35,37,"N",3,34,37,"E","http://www.astronomes-auvergne.fr/",null,"http://www.astronomes-auvergne.fr/images/logo.jpg",null,{"$f":"IF(ISBLANK(W490),\" \",\"Droits Réservés\")","v":" "},"eric",null,"2013-04-20"]
[494,"Gîtes ou Camping","Le Clos de la Tuilerie",{"v":4,"d":"04"},{"$f":"IFERROR(VLOOKUP(D491,'Département _ Régions'!$C$4:$F$99,4),\"\")","v":"PACA"},"F","Valensole",18,540,"Grâce à sa position privilégiée, que vous soyez simple spectateur ou amateur confirmé, le Clos de la Tuilerie est un site d'observation idéal : éloigné de toute source de PL, sur le Plateau de Valensole (360° de visibilité) au coeur d'une région riche en observatoires (OHP, Chiran, Puimichel...) réputée pour son climat sec et son air pur. Les propriétaires du gîte, eux-mêmes astronomes amateurs, accueillent les astrams en mettant à leur disposition tout ce qu'il faut pour des observations réussies.","Le clos de la tuilerie",null,"V127",43,48,24,"N",5,55,8,"E","http://closdelatuilerie.free.fr","https://lh4.googleusercontent.com/-3Ve4CNdrpf4/T8DQKhLwrQI/AAAAAAA7SH4/NR3iTIX-_0M/s450/photo.jpg","http://les.moynes.free.fr/gite_France.gif",null,"© Le clos de la Tuilerie","eric",null,"2013-04-20"]
[495,"Gîtes ou Camping","Refuge du Laisonnay",73,{"$f":"IFERROR(VLOOKUP(D492,'Département _ Régions'!$C$4:$F$99,4),\"\")","v":"Rhône-Alpes"},"F","Champagny-en-V",19,1600,"Vallée fermée , sans issue , peu ou pas de PL, des cascades somptueuses , un décor grandiose sur les glaciers de la Vanoise et un chalet -refuge où on mange super bien au bout de la vallée , là où la route s' arrête !","Refuge du Laisonnay","Forum Webastro","V127",45,26,51,"N",6,46,53,"E","http://www.laisonnay.com/","http://mw2.google.com/mw-panoramio/photos/medium/34515979.jpg",null,null,"© Panoramio Chabot","eric",null,"2013-04-20"]
[496,"Site usuel","Damiatte",81,{"$f":"IFERROR(VLOOKUP(D493,'Département _ Régions'!$C$4:$F$99,4),\"\")","v":"Midi-Pyrénées"},"F","Damiatte",18,200,null,null,"Forum Webastro","V127",43,41,15,"N",1,59,48,"E","http://www.webastro.net/forum/showthread.php?p=1137716#post1137716",{"$nulls":3},{"$f":"IF(ISBLANK(W493),\" \",\"Droits Réservés\")","v":" "},"eric",null,"2013-04-20"]
[497,"Site usuel","Chapelle de St Bonnet",69,{"$f":"IFERROR(VLOOKUP(D494,'Département _ Régions'!$C$4:$F$99,4),\"\")","v":"Rhône-Alpes"},"F","Montmelas-St-S",14,660,"L’endroit y est splendide ! On peut y mettre les tentes, faire un feu de camp, ect ect. La vue est magnifique coté Est, Sud Est et Nord Est.\nA ce point culminant vous dominer tout Villefranche, Macon et on y voit même au petit matin le Mont Blanc et la chaine des Alpes..PL de Lyon est quand même présente a l’horizon coté Sud Est. On y distingue un peu toute la voie lactée. Le ciel y est bien, propre, noir d’étoile mai peut mieux faire",null,"Forum Webastro","V127",46,1,7,"N",4,36,10,"E","http://www.webastro.net/forum/showthread.php?p=1140327#post1140327","http://img405.imageshack.us/img405/4923/26699683.jpg",null,null,"Photo Ewans","eric",null,"2013-04-20"]
[498,"Site usuel","Col de Bleine",{"v":6,"d":"06"},{"$f":"IFERROR(VLOOKUP(D495,'Département _ Régions'!$C$4:$F$99,4),\"\")","v":"PACA"},"F","Le Mas",19,1520,"Le col de Bleine est à environ 1400m d'altitude, entre Thorenc, Saint-Auban et Aiglun. Du col, un chemin goudronné mais en mauvais état monte une centaine de mètres (à 1520m d'après google maps) vers un petit plateau sans arbres. Parfait pour l'observation donc !",null,"Forum Webastro","V127",43,48,50,"N",6,48,39,"E","http://www.webastro.net/forum/showthread.php?t=79420","http://mw2.google.com/mw-panoramio/photos/medium/47002777.jpg",null,null,"© Panoramio Jmmlag","eric",null,"2013-04-20"]
[499,"Gîtes ou Camping","Camping Village de Roguenic",29,{"$f":"IFERROR(VLOOKUP(D496,'Département _ Régions'!$C$4:$F$99,4),\"\")","v":"Bretagne"},"F","Cleder",12,0,"Camping en bordure de la mer. Assez ouvert et libre.","Camping Village Roguennic","Forum webastro","V128",48,41,25,"N",4,8,15,"W","http://www.campingvillageroguennic.com/index.html","http://www.campingvillageroguennic.com/images/camping/camping1.jpg",null,null,"© Camping Village de Roguenic","eric",null,"2013-04-20"]
[500,"Gîtes ou Camping","Camping Le Rivaux",24,{"$f":"IFERROR(VLOOKUP(D497,'Département _ Régions'!$C$4:$F$99,4),\"\")","v":"Aquitaine"},"F","Les Eyzies",12,260,"camping utilisable en astronomie","Camping Le Rivaux","Forum webastro","V128",44,54,34,"N",1,11,18,"E","http://www.dordogne-perigord.com/lerivaux/","http://www.dordogne-perigord.com/lerivaux/images/05Gde.jpg",null,null,"©  Le Rivaux","eric",null,"2013-04-20"]
[501,"Observatoire","Obs. de la SA du Havre",76,{"$f":"IFERROR(VLOOKUP(D498,'Département _ Régions'!$C$4:$F$99,4),\"\")","v":"Haute-Normandie"},"F","St-Martin-du-Bec",10,90,"L'observatoire de la Société Astronomique du Havre est constitué d'une coupole, d'un abri roulant et d'un atelier. Il est situé dans la commune de Saint-Martin-du-Bec qui coupe l'éclairage dès minuit. Les membres de l'association se réunissent tous les samedi après-midi de 14h30 à 17h30 environ. Si les conditions sont favorables, des observations sont effectuées depuis la coupole ou l'abri avec les moyens du club ou des membres. Les astronomes amateurs non membres sont les bienvenus.","Soc. Astro. du Havre","Mail GRESAC","V128",49,36,23,"N",0,12,47,"E","http://www.sahavre.fr/","http://www.sahavre.fr/images/articles/coupole/gallerie-2emeobs/essai_de_nuit030606.jpg","http://www.sahavre.fr/templates/ja_purity_ii/images/logo.png",null,"©  SAH","eric",null,"2013-04-20"]
[502,"Site usuel","Colline de la Cantinière",69,{"$f":"IFERROR(VLOOKUP(D499,'Département _ Régions'!$C$4:$F$99,4),\"\")","v":"Rhône-Alpes"},"F","Chambost-Allières",17,640,"Belle voie lactée, amas double, Gal d'Andromède accessibles à l'œil nu. Tout dégagé sauf Nord et Nord Est à 30° de hauteur (pas gênant). Accès au bout d'un chemin en graviers fins pas de nids de poules. On observe à côté des voitures respectives. Pour les plus courageux ou pour des observations à l'œil nu ou aux jumelles, on peut gravir la colline à pieds pour un panorama à 360° (5 minutes de grimpette un peu raide). Seuls hics : un projecteur blanc en sud ouest n'est éteint qu'à 0h00 (ce n'est vraiment pas du luxe !!!). Et un petit halo lumineux à 15° en plein sud pas bien méchant.",null,"Mail GRESAC","V128",45,59,53,"N",4,31,47,"E",null,"http://gresac.free.fr/photos/chambost.jpg",null,null,"Photo Karl PUHL","eric",null,"2013-04-20"]
[503,"Gîtes ou Camping","Campagne  Toge",{"v":4,"d":"04"},{"$f":"IFERROR(VLOOKUP(D500,'Département _ Régions'!$C$4:$F$99,4),\"\")","v":"PACA"},"F","Hautes-Duyes",19,900,"Gîte isolé en pleine nature à 1000m d’altitude, à l’abri de toute source lumineuse artificielle; avec aire d'observation, garage de rangement; courant 220v à disposition. ","Campagne Toge",null,"V128",44,10,14,"N",6,9,58,"E","http://www.gite-campagne-toge.fr/","http://www.gite-campagne-toge.fr/tzr/scripts/resizer.php?filename=T004/img1/80/83/49muj6aio85g&mime=image%2Fjpeg&geometry=570x420%3E",null,null,"©  Gite Toge","eric",null,"2013-04-19"]
[504,"Observatoire","Centre d'Astronomie",{"v":4,"d":"04"},{"$f":"IFERROR(VLOOKUP(D501,'Département _ Régions'!$C$4:$F$99,4),\"\")","v":"PACA"},"F","St Michel-l'Obs",17,650,"Situé à 3 km de l'Observatoire de Haute Provence, dans un parc de 10 hectares entièrement clos, le Centre d'astronomie est un lieu de diffusion de la culture scientifique. Il accueille chaque année plus de 10 000 visiteurs (scolaires, centres de vacances et de loisirs, groupes d'astronomes amateurs et grand public). Des veillées d'observation du soleil et des étoiles sont organisées toute l'année. Chaque été, le festival \" l’Été Astro \" est organisé. Le Centre d'astronomie dispose d'hébergements, de salles de classe, bureaux, boutique et d'un grand parc. Il possède des équipements scientifiques performants tels que des télescopes de 200, 300 mm et 600 mm et surtout un sidérostat, un instrument unique en France, qui permet d'observer le soleil en plein jour.","Centre d'astronomie",null,"V128",43,54,28,"N",5,43,41,"E","http://www.centre-astro.fr/index2.htm","http://mw2.google.com/mw-panoramio/photos/medium/35059715.jpg","http://www.levergerenprovence.fr/logos/centre_astro.gif",null,"©  Panoramio Boudebois","eric",null,"2013-04-19"]
[505,"Site usuel","La Grande Baraque",81,{"$f":"IFERROR(VLOOKUP(D502,'Département _ Régions'!$C$4:$F$99,4),\"\")","v":"Midi-Pyrénées"},"F","Castelnau-de-M",18,270,null,null,"Forum Webastro","V129",44,1,14,"N",1,45,53,"E","http://www.webastro.net/forum/showthread.php?p=1235259#post1235259",{"$nulls":3},{"$f":"IF(ISBLANK(W502),\" \",\"Droits Réservés\")","v":" "},"eric",null,"2013-04-19"]
[506,"Site usuel","Le Chemin des Naues",51,{"$f":"IFERROR(VLOOKUP(D503,'Département _ Régions'!$C$4:$F$99,4),\"\")","v":"Champagne-Ardenne"},"F","Jalons",14,80,null,null,"Forum Webastro","V129",49,0,18,"N",4,10,13,"E","http://www.webastro.net/forum/showthread.php?p=1223926#post1223926",{"$nulls":3},{"$f":"IF(ISBLANK(W503),\" \",\"Droits Réservés\")","v":" "},"eric",null,"2013-04-19"]
[507,"Site usuel","Le Jolinet",51,{"$f":"IFERROR(VLOOKUP(D504,'Département _ Régions'!$C$4:$F$99,4),\"\")","v":"Champagne-Ardenne"},"F","Jalons",14,80,null,null,"Forum Webastro","V129",48,59,57,"N",4,10,42,"E","http://www.webastro.net/forum/showthread.php?p=1223950#post1223950",{"$nulls":3},{"$f":"IF(ISBLANK(W504),\" \",\"Droits Réservés\")","v":" "},"eric",null,"2013-04-19"]
[508,"Gîtes ou Camping","Le Logis de Fées",73,{"$f":"IFERROR(VLOOKUP(D505,'Département _ Régions'!$C$4:$F$99,4),\"\")","v":"Rhône-Alpes"},"F","Celliers",18,1800,"Au coeur du massif de la Lauziere et accessible en voiture l'été. Restauration et hébergement dans un cadre de nature à 360°","Logis des Fées","Forum Webastro","V129",45,29,7,"N",6,24,38,"E","http://www.savoie-mont-blanc.com/Refuge-gites-etapes/Refuge-Le-Logis-des-Fees/Celliers/fiche-326-1-73AAHEB100586.html","http://mw2.google.com/mw-panoramio/photos/medium/2716345.jpg",null,null,"©  Panoramio Ogialive","eric",null,"2013-04-19"]
[509,"Site usuel","Bellevue",63,{"$f":"IFERROR(VLOOKUP(D506,'Département _ Régions'!$C$4:$F$99,4),\"\")","v":"Auvergne"},"F","Vernet-la-Varenne",18,790,null,null,"Forum Webastro","V129",45,28,31,"N",3,26,9,"E","http://www.webastro.net/forum/showthread.php?p=1182157#post1182157",{"$nulls":3},{"$f":"IF(ISBLANK(W506),\" \",\"Droits Réservés\")","v":" "},"eric",null,"2013-04-19"]
[510,"Gîtes ou Camping","La Brosse Popille",71,{"$f":"IFERROR(VLOOKUP(D507,'Département _ Régions'!$C$4:$F$99,4),\"\")","v":"Bourgogne"},"F","Uchon",18,620,"Situé dans une clairière de 10 Hectares , dans le parc naturel Régional du Morvan , le gîte de la Brosse Popille vous accueille tout au long de l'année, 2 gîtes de 2 et 5/7 personnes.","la brosse popille","Forum Webastro","V130",46,48,36,"N",4,16,14,"E","http://www.labrossepopille.fr.nf/index.html","http://www.labrossepopille.fr.nf/photos/vuegenerale.jpg",null,null,"©  La Brosse Popille","eric",null,"2013-04-19"]
[511,"Site usuel","Donjon de Broue",17,{"$f":"IFERROR(VLOOKUP(D508,'Département _ Régions'!$C$4:$F$99,4),\"\")","v":"Poitou-Charentes"},"F","Saint-Sornin",15,30,"unique vestige de l'ancien château fort du XIe siècle établi sur la colline du Puy dominant l'ancien golfe de Brouage. Ce donjon du moyen âge de 25 mètres de haut est classé monument historique depuis 1925",null,"Forum Webastro","V130",45,47,15,"N",0,58,33,"W","http://www.webastro.net/forum/showthread.php?t=84673","http://charente-maritime.fr/CG17/upload/docs/image/jpeg/2009-12/tour_de_broue.jpg",null,null,{"$f":"IF(ISBLANK(W508),\" \",\"Droits Réservés\")","v":"Droits Réservés"},"eric",null,"2013-11-29"]
[512,"Site usuel","Lac Pavin",63,{"$f":"IFERROR(VLOOKUP(D509,'Département _ Régions'!$C$4:$F$99,4),\"\")","v":"Auvergne"},"F","Besse-St-Anastaise",19,1270," site est assez agréable : horizon dégagé, beaucoup de place pour s'installer, Il y a souvent des camping car qui passent la nuit à cet endroit.\nL'horizon est dégagé de tous côté et le ciel est bien noir dans toutes les directions sauf un tout petit peu de pollution lumineuse dans la direction de Clermont. Mais c'est vers le nord-est donc peu gênant.",null,"Forum Astrosurf","V130",45,29,33,"N",2,53,34,"E","http://www.astrosurf.com/ubb/Forum15/HTML/001536.html","http://www.astrosurf.com/eroyer/bino360/bino_Pavin.JPG",null,null,"Photo Eroyer","eric",null,"2013-04-19"]
[513,"Site usuel","Buron de Paillassère",15,{"$f":"IFERROR(VLOOKUP(D510,'Département _ Régions'!$C$4:$F$99,4),\"\")","v":"Auvergne"},"F","Veze",19,1370,"endroit fabuleux pour observer les beautés de la voûte étoilée en Auvergne, situé très précisément à la limite du Cantal et du Puy-de-Dôme où les fameux \"Ricardiens\" ont fait leur rencontre estivale l'été 2010",null,"Forum Webastro","V130",45,18,30,"N",2,56,59,"E","http://www.webastro.net/forum/showthread.php?p=1177623#post1177623","http://a.imageshack.us/img822/4659/66671433.jpg",null,null,"Photo Madj02","eric",null,"2013-04-19"]
[514,"Gîtes ou Camping","Camping Municipal Nabinals",48,{"$f":"IFERROR(VLOOKUP(D511,'Département _ Régions'!$C$4:$F$99,4),\"\")","v":"Languedoc-Roussillon"},"F","Nabinals",19,1180,"le ciel est très noir dans la région et le village de Nasbinals lui même à 1 km du camping est suffisament petit pour ne pas être une gêne à l'observation\n- le camping est bien entretenu et les tarifs sont très modestes","Camping de nasbinals","http://www.webastro.net/forum/showthread.php?p=1151943#post1151943","V130",44,40,13,"N",3,2,24,"E","http://www.nasbinals.fr/hotels/camping",{"$nulls":3},{"$f":"IF(ISBLANK(W511),\" \",\"Droits Réservés\")","v":" "},"eric",null,"2013-04-19"]
[515,"Gîtes ou Camping","Camping de La Tourelle",22,{"$f":"IFERROR(VLOOKUP(D512,'Département _ Régions'!$C$4:$F$99,4),\"\")","v":"Bretagne"},"F","Moncontour",10,180,null,"Camping La Tourelle","Forum Webastro","V130",48,21,8,"N",2,38,14,"W","http://www.camping-moncontour.fr/",{"$nulls":3},{"$f":"IF(ISBLANK(W512),\" \",\"Droits Réservés\")","v":" "},"eric",null,"2013-04-19"]
[516,"Site usuel","La Croix de Bor",48,{"$f":"IFERROR(VLOOKUP(D513,'Département _ Régions'!$C$4:$F$99,4),\"\")","v":"Languedoc-Roussillon"},"F","La Villedieu",19,1460,"Site choisi pour les RICARD XXI (Rencontres Interdépartementales du Ciel et de l'Astronomie en Régions Désertes) en 2011",null,"Forum Webastro","V130",44,44,44,"N",3,32,3,"E","http://www.webastro.net/forum/showthread.php?t=81427","http://u.jimdo.com/www29/o/sd4292760edbe787c/img/ib0b63fab3d8127ea/1363368024/std/image.jpg",null,null,"©  Camping de La tourelle","eric",null,"2013-04-19"]
[517,"Site usuel","Terrain d'ULM de Rille",37,{"$f":"IFERROR(VLOOKUP(D514,'Département _ Régions'!$C$4:$F$99,4),\"\")","v":"Centre"},"F","Channay-s-Lathan",16,90,"un lieu un peu magique, qui a déjà vu passer quelques Webastrams fous du ciel. Il paraît même que les amateurs du coin s'y rendent régulièrement…",null,"Forum Webastro","V130",47,27,37,"N",0,14,5,"E","http://www.webastro.net/forum/showthread.php?t=81419",{"$nulls":3},{"$f":"IF(ISBLANK(W514),\" \",\"Droits Réservés\")","v":" "},"eric",null,"2013-04-19"]
[518,"Site usuel","Crête de La Moliere",38,{"$f":"IFERROR(VLOOKUP(D515,'Département _ Régions'!$C$4:$F$99,4),\"\")","v":"Rhône-Alpes"},"F","Autrans",16,1630,"Assurément pas le meilleur site pour l’astro car on est à 10 km à vol d’oiseau du centre de Grenoble",null,"Forum Webastro","V130",45,11,54,"N",5,35,28,"E","http://www.webastro.net/forum/showthread.php?t=87521","http://geek86.free.fr/webastro/moliere/vignette/PB263390.JPG",null,null,"Photo Eric S","eric",null,"2013-04-19"]
[519,"Site usuel","Casserousse",38,{"$f":"IFERROR(VLOOKUP(D516,'Département _ Régions'!$C$4:$F$99,4),\"\")","v":"Rhône-Alpes"},"F","Chamrousse",17,1400,null,null,"Forum Webastro","V130",45,8,24,"N",5,53,18,"E","http://www.webastro.net/forum/showthread.php?t=87532",{"$nulls":3},{"$f":"IF(ISBLANK(W516),\" \",\"Droits Réservés\")","v":" "},"eric",null,"2013-04-19"]
[520,"Site usuel","Montagne de Lachens",83,{"$f":"IFERROR(VLOOKUP(D517,'Département _ Régions'!$C$4:$F$99,4),\"\")","v":"PACA"},"F","Mons",19,1710,"le point culminant du var",null,"Forum Webastro","V130",43,44,53,"N",6,39,39,"E","http://www.webastro.net/forum/showthread.php?t=80736","http://mw2.google.com/mw-panoramio/photos/medium/56158432.jpg",null,null,"©  Panoramio Graphigreg","eric",null,"2013-04-19"]
[521,"Rassemblement","RAGBR",83,{"$f":"IFERROR(VLOOKUP(D518,'Département _ Régions'!$C$4:$F$99,4),\"\")","v":"PACA"},"F","Esparron",18,350,"Petite clairiere en bordure de champ, horizon dégagé, accessible en voiture. Site de la 40ème Rencontre Astro Gastronomique des Bouches du Rhône RAGBR","Forum Webastro",null,"V131",43,37,39,"N",5,50,43,"E","http://www.webastro.net/forum/showthread.php?t=92155","http://benjamin.larue.free.fr/RAGBR/RAGBR6.png",null,"nicolas.decousu@free.fr","Photo Benjamin Larue","eric",null,"2013-04-19"]
[522,"Site usuel","La Maison des Chasseurs",49,{"$f":"IFERROR(VLOOKUP(D519,'Département _ Régions'!$C$4:$F$99,4),\"\")","v":"Pays de la Loire"},"F","Bouchemaine",11,60,"Site d'observation public du club \"Ciel d'Anjou\". Pour connaitre les dates des soirées, venez sur notre site ","Ciel d'anjou",null,"V131",47,24,43,"N",0,38,27,"W","http://www.cieldanjou.fr/","http://photos.cieldanjou.fr/var/albums/Observation-du-10-Aout-2011/img1.jpg?m=1313048254",null,"armel.kermorvant@orange.fr","©  Ciel d'Anjou","eric",null,"2013-04-16"]
[523,"Rassemblement","Les estivales de WA",73,{"$f":"IFERROR(VLOOKUP(D520,'Département _ Régions'!$C$4:$F$99,4),\"\")","v":"Rhône-Alpes"},"F","St Francois-de-Sales",17,1290,"Site du rassemblement 2012 des astronomes du Forum de Webastro",null,"Forum Webastro","V131",45,40,36,"N",6,1,50,"E","http://www.webastro.net/forum/showthread.php?t=92641","http://www.webastro.net/upload/images/8154-1340497766.jpg",null,null,"Photo kiwi74","eric",null,"2013-04-16"]
[524,"Site usuel","Cornat",73,{"$f":"IFERROR(VLOOKUP(D521,'Département _ Régions'!$C$4:$F$99,4),\"\")","v":"Rhône-Alpes"},"F","St Offenge-dessus",17,750,"Site assez régulièrement fréquenté par des Astronomes locaux",null,"Forum Webastro","V131",45,43,70,"N",6,0,38,"E","http://www.webastro.net/forum/showthread.php?t=91867&highlight=cornat","http://img715.imageshack.us/img715/3792/img62071024x768.jpg",null,null,"Photo Kiwi74","eric",null,"2013-04-16"]
[525,"Observatoire","Observatoire de Biscarmiau",65,{"$f":"IFERROR(VLOOKUP(D522,'Département _ Régions'!$C$4:$F$99,4),\"\")","v":"Midi-Pyrénées"},"F","Visker",11,490,"L’observatoire de Biscarmiau a été entièrement construit par les membres de l’association Dinastro. Une fois par mois, nous ouvrons les portes de notre observatoire, pour des soirées d’observation publiques. Les néophytes comme les connaisseurs, sont alors invités à venir découvrir le ciel à travers l’oculaire du T305. Ces soirées sont gratuites et libres d’accès.","Dinastro",null,"V131",43,8,40,"N",0,3,32,"E","http://www.dinastro.org/","http://www.dinastro.org/local/cache-vignettes/L480xH360/photo_5.1_2002-a312a.jpg","http://www.dinastro.org/local/cache-vignettes/L107xH90/siteon0-16bf1.png",null,"©  Dinastro","eric",null,"2013-04-16"]
[526,"Site usuel","La Grenouillière",28,{"$f":"IFERROR(VLOOKUP(D523,'Département _ Régions'!$C$4:$F$99,4),\"\")","v":"Centre"},"F","Nottonville",17,130,"site plat, vaste pour garer les voitures et facile d'accés : 400 m de bon chemin y méne. Voie lactée bien visible et le ciel au Sud est noir. SQM 21,2",null,"Forum Webastro","V131",48,7,58,"N",1,31,43,"E","http://www.webastro.net/forum/showthread.php?p=1286413#post1286413",{"$nulls":3},{"$f":"IF(ISBLANK(W523),\" \",\"Droits Réservés\")","v":" "},"eric",null,"2013-04-16"]
[527,"Site usuel","Feuchère",51,{"$f":"IFERROR(VLOOKUP(D524,'Département _ Régions'!$C$4:$F$99,4),\"\")","v":"Champagne-Ardenne"},"F","Epoyes",16,123,null,null,"Forum Webastro","V132",49,17,35,"N",4,12,26,"E","http://www.webastro.net/forum/showthread.php?p=1430286#post1430286",{"$nulls":3},{"$f":"IF(ISBLANK(W524),\" \",\"Droits Réservés\")","v":" "},"eric",null,"2013-04-16"]
[528,"Site usuel","Neptunion observation urbaine",31,{"$f":"IFERROR(VLOOKUP(D525,'Département _ Régions'!$C$4:$F$99,4),\"\")","v":"Midi-Pyrénées"},"F","L'UNION",3,144,"Adresse : 49 route de Bessières 31240 L'Union. Observation depuis un site urbain proche de Toulouse. Malgré la proxiAité de la ville, le site protégé par la présence d\\'une plaine maraichère. Observation 3 vendredi soirs sur 4","Neptunion31","Mail GRESAC","V132",43,39,47,"N",1,28,11,"E","http://www.neptunion31.fr/","http://www.neptunion31.fr/images/lesites/les-sites-neptunion.png","https://sites.google.com/site/neptunion31/_/rsrc/1284548926452/home/logo%20officiel%20neptunion31.bmp?height=320&width=320","neptunion31@gmail.com","© Neptunion31","Xavier","2013-02-15","2013-04-16"]
[529,"Site usuel","Pas de Roland",{"v":9,"d":"09"},{"$f":"IFERROR(VLOOKUP(D526,'Département _ Régions'!$C$4:$F$99,4),\"\")","v":"Midi-Pyrénées"},"f","Albies",19,1690,"L'endroit est plus sauvage qu'au parking de Beille et surtout, on a pas la colline plein sud qui bouche la vue",null,"Forum Webastro","V132",42,44,4,"N",1,41,1,"E","http://www.webastro.net/forum/showthread.php?p=853247#post853247","http://mw2.google.com/mw-panoramio/photos/medium/44173251.jpg",null,null,"©  Panoramio Dekliks","eric","2013-02-16","2013-04-16"]
[530,"Site usuel","Ballon d'Alsace",68,{"$f":"IFERROR(VLOOKUP(D527,'Département _ Régions'!$C$4:$F$99,4),\"\")","v":"Alsace"},"F","Sewen",17,1216,"Terrain accessible après qq minutes de marche. horizon dégagé, mais assez venteux",null,"Mail GRESAC","V132",47,49,17,"N",6,50,34,"E",null,"http://upload.wikimedia.org/wikipedia/commons/8/84/PanoBA-IMG_8590_DXO_-IMG_8598_DXO_-2808x500_-_SCUL-Smartblend.jpg",null,null,"Photo Cavalier JY","Xavier","2013-02-16","2013-02-16"]
[531,"Site usuel","Roc de Courlande",63,{"$f":"IFERROR(VLOOKUP(D528,'Département _ Régions'!$C$4:$F$99,4),\"\")","v":"Auvergne"},"F","Chastreix",19,1335,"Site accessible en voiture. Peu de pollution lumineuse :très diffuse sur l'est le sud et l'ouest. Petit dôme par Clermont Ferrand (nord-est). Zenith très noir, tous horizons dégagés. On observe a coté des voitures. Tables de pic-nic pour faire le café. Site idéal pour les étoiles filantes : zone enherbée en faux plat. Route peu passagère toutefois les voitures montantes peuvent nuire à la vue nocturne. M31 à l'oeil nu, belle voie lactée. Attention en période hivernale, les condtions peuvent être particulières (neige, brouillard, vent, ...).",null,"Mail GRESAC","V132",45,31,20,"N",2,46,7,"E",null,"http://confort.vacances.blog.free.fr/public/Photos/Courlande/.IMGP3396_m.jpg",null,null,"Photo Cedric","Xavier","2013-02-17","2013-04-15"]
[532,"Site usuel","Fraisse del Miet",15,{"$f":"IFERROR(VLOOKUP(D529,'Département _ Régions'!$C$4:$F$99,4),\"\")","v":"Auvergne"},"F","Polminhac",18,966,"Aire de Pique-nique, lieu de rencontre des astronomes de la région d'AURILLAC. Lieu d'observation pour les nuits des étoiles. Edit : De plus en plus de PL sur ce site (Aurillac, Rodez et plus récemment construction d'un lotissement à 5 km). Selon les utilisateurs, indice plus proche de 17/20 grand maximum.",null,"Forum Webastro","V132",44,57,50,"N",2,32,46,"E","http://www.webastro.net/forum/showthread.php?t=99380","http://eclipseastronomie.e-monsite.com/medias/images/p8100097-copie.jpg",null,"dominique.maiolino@aliceadsl.fr","©  Astropléîades","Xavier","2013-02-20","2013-04-15"]
[533,"Observatoire","Observatoire des Pises",30,{"$f":"IFERROR(VLOOKUP(D530,'Département _ Régions'!$C$4:$F$99,4),\"\")","v":"Languedoc-Roussillon"},"F","Dourbies",19,1293,"Accueil des Astronomes Amateurs sur le site sous forme de Gite. Situé en moyenne montagne dans le sud de la France, en plein cœur du Parc National des Cévennes, son ciel bénéficie de ce fait d’une protection efficace  contre la  pollution lumineuse","http://pisesobservatoire.free.fr","Mail GRESAC","V132",44,2,22,"N",3,30,12,"E","http://perso.modulonet.fr/astromontp/","http://pisesobservatoire.free.fr/index_fichiers/image12061.jpg","http://perso.modulonet.fr/astromontp/index_fichiers/image634.jpg","lopezjeanmarie@free.fr","©  Obs des Pises","Xavier","2013-02-23","2013-04-15"]
[534,"Observatoire","Observatoire La Chaume",71,{"$f":"IFERROR(VLOOKUP(D531,'Département _ Régions'!$C$4:$F$99,4),\"\")","v":"Bourgogne"},"F","Buxy",14,415,null,"SASL",null,"V132",46,43,5,"N",4,40,32,"E","http://www.sasl.asso.fr/index.php","http://www.sasl.asso.fr/photos/IMG_1850.JPG","http://www.sasl.asso.fr/images/logo-galaxie.png",null,"© SASL","eric","2013-03-05","2013-04-15"]
[535,"Site usuel","Mezos Nord",40,{"$f":"IFERROR(VLOOKUP(D532,'Département _ Régions'!$C$4:$F$99,4),\"\")","v":"Aquitaine"},"F","Mezos",18,66," SQML 21.62 lors d'une belle nuit, de 21.73 lors d'un ciel d'éclaircie et 21.40 lors de mauvaises conditions d'observation Un 360° de folie. Au moins 12 halos mais tous dans la bande d'absorption. Idéal pour répérer des objets sur les horizons ... et notamment sur l'horizon Sud.",null,"Mail GRESAC","V133",44,7,46,"N",1,5,6,"W",{"$nulls":4},{"$f":"IF(ISBLANK(W532),\" \",\"Droits Réservés\")","v":" "},"eric","2013-04-27","2013-04-27"]
[536,"Rassemblement","RAHB",{"v":5,"d":"05"},{"$f":"IFERROR(VLOOKUP(D533,'Département _ Régions'!$C$4:$F$99,4),\"\")","v":"PACA"},"F","Aspres/Buech",10,830," Les Rencontres Astronomiques du Haut-Buëch ont lieu sur le site de l'aérodrome du Chevalet. Ceci explique la note relativement moyenne de l'indice de PL. Si l'on ne tient pas compte de cet aérodrome, la note doit plutôt se situer autour de 17/20.","RAHB",null,"V133",44,31,16,"N",5,44,7,"E","http://www.rahb.fr/","http://idata.over-blog.com/4/15/06/42/evenementiel/Rahb4.JPG","http://fdata.over-blog.net/5/47/60/93/avatar-user-4785380-tmpphpkXKvsX.gif",null,"Photo C, Rivas","eric","2013-04-27","2013-04-27"]
[537,"Gîtes ou Camping","Gite des Espérelles Hautes",48,{"$f":"IFERROR(VLOOKUP(D534,'Département _ Régions'!$C$4:$F$99,4),\"\")","v":"Languedoc-Roussillon"},"F","St Frezal-de-V",18,600,"Le Gite des Espérelles hautes est situé au cœur du parc national des Cévennes , classé au patrimoine mondial de l'UNESCO . Dans un environnement calme et apaisant le gite est indépendant et directement placé sur des chemins de randonnées, où vous pourrez faire de superbes balades ... L’intérieur est typiquement Cévenol, le bâtiment est une ancienne clède rénovée de 60m² Étant au cœur du Parc National , le site est préservé de la pollution lumineuse , les nuits sont très noires , la voie lactée est visible a l\\'oeil nu","Gîte les Esperelles","Mail GRESAC","V133",44,17,19,"N",3,50,18,"E","http://gite-en-cevennes.lesesperelles.com/","http://gite-en-cevennes.lesesperelles.com/images/phocagallery/astronomie-en-cevennes/astromie-toiles-cvennes.jpg",null,"contact@lesesperelles.com","© Les Espérelles","eric","2013-04-27","2013-04-27"]
[538,"Rassemblement","RAOUZ",45,{"$f":"IFERROR(VLOOKUP(D535,'Département _ Régions'!$C$4:$F$99,4),\"\")","v":"Centre"},"F","Ouzouer/Loire",13,140,"Rencontres Astronomiques d'Ouzouer-sur-Loire","RAOUZ",null,"V133",47,45,25,"N",2,29,13,"E","http://www.astrosurf.com/astroouz/accueil.html","http://www.astrosurf.com/astroouz/images/img_5893.jpg",null,null,"© Astro Club Ouzouer","eric","2013-04-28","2013-04-28"]
[539,"Site usuel","Le Cabille",16,{"$f":"IFERROR(VLOOKUP(D536,'Département _ Régions'!$C$4:$F$99,4),\"\")","v":"Poitou-Charentes"},"F","Gente",6,100,"Point culminant au sud de Cognac, au niveau de la table d'orientation et de la citerne d'eau sur la route entre Salles d'Angle et Genté. La vue est sympa et dégagée à 360°C, vers l'ouest les vignes et quelques arbres au loin",null,"Forum Webastro","V133",45,37,29,"N",0,19,0,"W","http://www.webastro.net/forum/showthread.php?t=104581","http://www.astrosurf.com/astrojb/images/vue-spot-gente-r.jpg",null,null,"Photo AstroJB","eric","2013-04-28","2013-04-28"]
[540,"Site usuel","Col du Lautaret",{"v":5,"d":"05"},{"$f":"IFERROR(VLOOKUP(D537,'Département _ Régions'!$C$4:$F$99,4),\"\")","v":"PACA"},"F","Villar-d'Arene",18,2010,"Parking des remontées mécaniques",null,"Forum Webastro","V133",45,1,59,"N",6,23,55,"E","http://www.webastro.net/forum/showthread.php?p=1582213#post1582213","http://mw2.google.com/mw-panoramio/photos/medium/55195331.jpg",null,null,"© Panoramio Frissons73","eric","2013-04-28","2013-04-28"]
[541,"Rassemblement","Pedanu","2b",{"$f":"IFERROR(VLOOKUP(D538,'Département _ Régions'!$C$4:$F$99,4),\"\")","v":"Corse"},"F ","Pietralba",null,490,null,null,"Mail GRESAC","V134",42,32,34,"N",9,10,35,"E",null,"http://mw2.google.com/mw-panoramio/photos/medium/15359167.jpg",null,"lecluseevepierre@live.fr","© Panoramio François L,","eric","2013-11-27"]
[542,"Rassemblement","RAC",14,{"$f":"IFERROR(VLOOKUP(D539,'Département _ Régions'!$C$4:$F$99,4),\"\")","v":"Basse-Normandie"},"F","Banneville/Ajon",12,114,"Rencontres Astronomiques du Calvados (Astro Club de la Girafe)","Astro-Club de la Girafe",null,"V133",49,4,20,"N",0,33,46,"W","http://www.astroclubdelagirafe.fr/index.php?lng=fr","http://mw2.google.com/mw-panoramio/photos/medium/18907740.jpg","http://www.astroclubdelagirafe.fr/img/LogoACLGfondNoir.gif",null,"© Panoramio Y. A Villyssois","eric","2013-04-30","2013-04-30"]
[543,"Site usuel","Falga",31,{"$f":"IFERROR(VLOOKUP(D540,'Département _ Régions'!$C$4:$F$99,4),\"\")","v":"Midi-Pyrénées"},"F","Falga",14,250,null,null,"Forum Webastro","V133",43,29,3,"N",1,50,57,"E","http://www.webastro.net/forum/showthread.php?t=36046&page=423",{"$nulls":3},{"$f":"IF(ISBLANK(W540),\" \",\"Droits Réservés\")","v":" "},"eric","2013-05-01","2013-05-01"]
[544,"Gîtes ou Camping","Base de Buthiers",77,{"$f":"IFERROR(VLOOKUP(D541,'Département _ Régions'!$C$4:$F$99,4),\"\")","v":"Ile-de-France"},"F","Buthiers",11,100,"Dans la base de Loisir de Buthier, 2 coupoles, T600,T510, T355, T200…","Base de Buthiers",null,"V133",48,17,34,"N",2,26,3,"E","http://www.base-de-buthiers.com/camping-l43-fr.html","http://www.base-de-buthiers.com/medias/images/hebergement/gitecanard_03.jpg",null,null,"© Bases de Buthiers","eric",null,"2013-05-02"]
[545,"Gîtes ou Camping","La Closerie de Vergy",21,{"$f":"IFERROR(VLOOKUP(D542,'Département _ Régions'!$C$4:$F$99,4),\"\")","v":"Bourgogne"},"F","Curtil-Vergy",10,370,"gite rural proche de la route des grands crus de Bourgogne. Le propriétaire membre de la Société d Astronomique de Bourgogne propose la découverte du ciel de nuit ","la closerie de vergy","Mail GRESAC","V134",47,10,19,"N",4,53,26,"E","www.lacloseriedevergy.com","http://mw2.google.com/mw-panoramio/photos/medium/95343279.jpg",null,"vergy21@hotmail.fr","© Photo Legrand","eric","2013-11-27"]
[546,"Gîtes ou Camping","Gite du moulin de Meailles",{"v":4,"d":"04"},{"$f":"IFERROR(VLOOKUP(D543,'Département _ Régions'!$C$4:$F$99,4),\"\")","v":"PACA"},"F","Meailles",{"v":18.2,"d":"18"},930,"Gîte tout confort sur une grande propriété, à environ 920m d'altitude. Aucune pollution lumineuse, idéal pour la pratique de l'astro, et nombreuses balades et activités à faire tout autour, que ce soit à pieds en voiture ou en moto! Les propriétaires sont très sympathiques. Qualité du ciel et nombreux autres spots à proximité","Moulin de Meailles","Mail GRESAC","V134",44,1,32,"N",6,37,31,"E","http://www.gites-de-france-04.fr/G33165.html","http://img15.hostingpics.net/pics/586888IMG7608fora.jpg","http://global.mmm.re/images/logo/logo_gitesdefrance.gif",null,"© Moulin de Meailles","eric","2013-11-27"]
[547,"Site usuel","Signal de Bisanne",73,{"$f":"IFERROR(VLOOKUP(D544,'Département _ Régions'!$C$4:$F$99,4),\"\")","v":"Rhône-Alpes"},"F","Villard/Doron",{"v":18.6,"d":"19"},1930,"Très bon site d'observation à presque 2000m, avec des horizons bien dégagés. La PL d'Albertville et d'Ugine est un peu gênante.",null,"Mail GRESAC","V134",45,44,49,"N",6,30,24,"E",null,"http://static.panoramio.com/photos/large/80533296.jpg",null,null,"© Panoramio Wim Constant","eric","2013-11-28"]
[548,"Site usuel","Planches des belles filles",70,{"$f":"IFERROR(VLOOKUP(D545,'Département _ Régions'!$C$4:$F$99,4),\"\")","v":"Franche-Comté"},"F","Plancher-les-Mines",{"v":16.8,"d":"17"},1000,"station de ski situé a 1148m , le site et bien dégagé (sauf sur quelque degrés coté sud est ) ,pollution lumineuse absente coté nord et ouest et trés tres peu pollué coté sud , sud-est) ","la Planche","Mail GRESAC","V134",47,46,29,"N",6,46,43,"E","http://www.stationdelaplanche.fr/la_legende_de_la_planche_des_belles_filles--1332340806.html ","http://static.panoramio.com/photos/large/69546814.jpg",null,null,"© Panoramio lexav70","eric","2013-11-28"]
[549,"Site usuel","Puits Fondu",78,{"$f":"IFERROR(VLOOKUP(D546,'Département _ Régions'!$C$4:$F$99,4),\"\")","v":"Ile-de-France"},"F","Gazeran",{"v":13.8,"d":"14"},160,"un croisement de chemins agricoles , les arbres au nord protègent de la PL plusieurs chemins d'accès possible possibilités d'y être à plusieurs la route n'est pas gênante car sur le coté vue au loin et au nord sur une tour relais : nickel pour un jeté de monture , régler le chercheur , etc ... ",null,"Mail GRESAC","V134",48,38,15,"N",1,44,36,"E",{"$nulls":4},{"$f":"IF(ISBLANK(W546),\" \",\"Droits Réservés\")","v":" "},"eric","2013-11-28"]
[550,"Site usuel","Ferme de Fay",60,{"$f":"IFERROR(VLOOKUP(D547,'Département _ Régions'!$C$4:$F$99,4),\"\")","v":"Picardie"},"F","Saintines",12,120,"Site  \"les pieds au sec \" du CAASV de Saint Sauveur","caasv","Mail GRESAC","V134",49,17,50,"N",2,46,13,"E","http://www.caasv.org/","http://static.panoramio.com/photos/large/93963039.jpg","http://www.caasv.org/images/logo.gif",null,"© Panoramio   Fr. Saunier","eric","2013-11-28"]
[551,"Gîtes ou Camping","Camping La Source",{"v":5,"d":"05"},{"$f":"IFERROR(VLOOKUP(D548,'Département _ Régions'!$C$4:$F$99,4),\"\")","v":"PACA"},"F","St Pierre d'Argencon",{"v":18.8,"d":"19"},800,"Dans ce camping a taille familliale c'est un véritable plaisir que d'observer. L'accueil y est chaleureux, Judy la maitresse des lieux est super gentille, ses enfants aussi et son mari se plie en 4 pour nous rendre le sejour des plus agréables.... le SQM affiche plus souvent 21 voir plus que moins","La source","Forum Webastro","V134",44,31,53,"N",5,41,2,"E","http://www.lasource-hautesalpes.com/index.php","http://www.lasource-hautesalpes.com/images/lasource/lasource4_gd.jpg","http://www.lasource-hautesalpes.com/images/divers/logo.gif",null,"© Camping La Source","eric","2013-11-28"]
[552,"Site usuel","Tour de Guet",34,{"$f":"IFERROR(VLOOKUP(D549,'Département _ Régions'!$C$4:$F$99,4),\"\")","v":"Languedoc-Roussillon"},"F","Clapiers",3,120,"Site utilisé par le Club Galilée de Montpellier","Planetarium Galilee","Forum Webastro","V134",43,40,4,"N",3,52,52,"E","http://planetarium-galilee.montpellier-agglo.com/evenements/2013/l-agglo-dans-les-etoiles-le-jeudi-11-juillet-2013-a-clapiers-221866.khtml?RH=1286292879821","http://planetarium-galilee.montpellier-agglo.com/medias/photo/img-1385_1370856095115.jpg",null,null,"© Photo Galilée","eric","2013-12-03"]
[553,"Site usuel","Les Janots",81,{"$f":"IFERROR(VLOOKUP(D550,'Département _ Régions'!$C$4:$F$99,4),\"\")","v":"Midi-Pyrénées"},"F","Rabastens",18,250,"Site très sympa pour l'observation. Loin de toute pollution lumineuse. Un grand parking pour poser ses instruments.",null,"Mail GRESAC","V135",43,53,28,"N",1,42,53,"E",{"$nulls":3},"baptistemono@gmail.com",{"$f":"IF(ISBLANK(W550),\" \",\"Droits Réservés\")","v":" "},"eric",null,"2014-08-03"]
[554,"Observatoire","Petit Tenquin",57,{"$f":"IFERROR(VLOOKUP(D551,'Département _ Régions'!$C$4:$F$99,4),\"\")","v":"Lorraine"},"F","Petit-Tenquin",10,220,"Observatoire privé très bien situé point de vue PL, Découverte du ciel sur réservation",null,"Mail GRESAC","V135",48,59,28,"N",6,52,8,"E",null,"http://imagizer.imageshack.us/v2/640x480q90/690/dsc1028m.jpg",null,"deepskywalker@hotmail.fr","© observatoire Petit-Tenquin","eric","2014-08-05"]
[555,"Site usuel","Le Grand Plessis",49,{"$f":"IFERROR(VLOOKUP(D552,'Département _ Régions'!$C$4:$F$99,4),\"\")","v":"Pays de la Loire"},"F","Lire",11,60,"Extinction totale de l’éclairage public de 22h30 à 6h00. Idem pour les communes voisines de Drain et Bouzillé (Indice de PL réél peut-être proche de 14 à 15/20). Ancenis (au nord) non mais est masqué par la colline d’observation (nous sommes sur l’autre versant). Léger halo de 10° de hauteur environ au sud ouest (Nantes).  ",null,"Mail GRESAC","V135",47,19,59,"N",1,10,38,"W",{"$nulls":3},"zirkel2@yahoo.com",null,"eric","2014-08-07"]
[556,"Gîtes ou Camping","Gite de Bois Rond",71,{"$f":"IFERROR(VLOOKUP(D553,'Département _ Régions'!$C$4:$F$99,4),\"\")","v":"Bourgogne"},"F","Ceron",19,330,"Beau gîte comprenant 5 chambres. Vaste salle de jeux en rez de jardin pour y stocker matériel astro. Jardin plat et grand, horizon très dégagé. Piscine. Belle Voie Lactée.","gite le bois rond","Mail GRESAC","V135",46,17,36,"N",3,54,29,"E","http://www.giteleboisrond.fr/accueil.html","http://www.giteleboisrond.fr/medias/images/vue-jachere-fleurie-et-maison-1600x1200.jpg",null,null,"© le gite du Bois Rond","eric","2014-08-13"]
[557,"Rassemblement","Village du Ciel",85,{"$f":"IFERROR(VLOOKUP(D554,'Département _ Régions'!$C$4:$F$99,4),\"\")","v":"Pays de la Loire"},"F","Reaumur",8,150,"Lieu de rassemblement habituel de l'association Village du Ciel. Rassemblement des membres le vendredi tous les 15 jours ,","Village du ciel","Mail GRESAC","V135",46,43,7,"N",0,48,2,"W","http://www.villageduciel.fr/","http://villageduciel.free.fr/wp-content/uploads/stratrail-Manoir-1600x1200-630x420.jpg","http://www.villageduciel.fr/wp-content/uploads/2014/06/logo.jpg","ddecuevas@wanadoo.fr","© Village du Ciel","eric","2014-08-13"]
[558,"Observatoire","Village du Ciel",85,{"$f":"IFERROR(VLOOKUP(D555,'Département _ Régions'!$C$4:$F$99,4),\"\")","v":"Pays de la Loire"},"F","Reaumur",8,150,"Observatoire avec un dobson 500","Village du ciel","Mail GRESAC","V135",46,43,7,"N",0,48,2,"W","http://www.villageduciel.fr/","http://villageduciel.free.fr/wp-content/uploads/stratrail-Manoir-1600x1200-630x420.jpg","http://www.villageduciel.fr/wp-content/uploads/2014/06/logo.jpg","ddecuevas@wanadoo.fr","© Village du Ciel","eric","2014-08-13"]
[559,"Site usuel","Butte Saint Michel",22,{"$f":"IFERROR(VLOOKUP(D556,'Département _ Régions'!$C$4:$F$99,4),\"\")","v":"Bretagne"},"F","St Martin-des-Pres",18,300,"Point culminant doté d'une table d\\'orientation près de la Porte aux Moines, entre Merléac et Saint Martin des Prés. Il s'agit d'un lieu privé ouvert au public, accessible uniquement à pied par un chemin pentu (environ 100 m) à partir d'une route de campagne étroite. Peu de stationnement possible. Horizon dégagé sur presque 360° (1 arbre). Peu de pollution lumineuse : halo de St Brieuc (25 km), zone de la Gare d'Uzel (7km), Loudéac (15 km). Ciel très correct : la voie lactée est visible. Lieu souvent venté, présence possible de campeur l'été.",null,"Mail GRESAC","V135",48,17,42,"N",2,55,57,"W",null,"http://static.panoramio.com/photos/1920x1280/13139007.jpg",null,"julien.lefilleul@orange.fr","© Panoramio  Xymore","eric","2014-08-13"]
[560,"Observatoire","Obs des Baronnies Provencales",{"v":5,"d":"05"},{"$f":"IFERROR(VLOOKUP(D557,'[1]Département _ Régions'!$C$4:$F$99,4),\"\")","v":"PACA"},"F","Moydans",19,800,"Observatoire ouvert au public toute l'année, télescope de 820 mm automatique sous coupole, formations professionnelles, hébergement de télescopes, Station de Nuit AFA ... Ciel Noir maxi observé SQML 21.92","Obs des Baronnies Provencales","Mail GRESAC","V135",44,24,30,"N",5,30,52,"E","www.obs-bp.com","http://a397.idata.over-blog.com/4/15/06/42/AFA/Pub-Ciel-et-Espace-V3.jpg","http://a397.idata.over-blog.com/300x86/4/15/06/42/OBP-Logo-for-Black-backgrounds-copie.jpg",null,"©Obs des Baronnies Provencales","eric","2014-08-13"]
[561,"Observatoire","Obs du Club Alpha Centauri",11,{"$f":"IFERROR(VLOOKUP(D558,'Département _ Régions'!$C$4:$F$99,4),\"\")","v":"Languedoc-Roussillon"},"F","Cailhavel",14,250,"Telescope de type Newton 400 mm ouvert à 6 en poste fixe sous coupole. Club alpha centauri MJC de Carcassonne tel 0468111700 soirée d'observation le vendredi, animation soirée astro à la demande...","mjc carcassonne","Mail GRESAC","V135",43,9,47,"N",2,7,38,"E","http://www.mjc-carca.org/2014/catalog/view/6",{"$nulls":3},{"$f":"IF(ISBLANK(W558),\" \",\"Droits Réservés\")","v":" "},"eric","2014-08-13"]
["X154","Rassemblement","RADHI",{"v":5,"d":"05"},{"$f":"IFERROR(VLOOKUP(D559,'Département _ Régions'!$C$4:$F$99,4),\"\")","v":"PACA"},"F","Veynes",19,1100,"Rencontres Astronomiques d'Hiver en Val de Glaise","Association Copernic","Mail GRESAC",null,44,34,19,"N",5,49,31,"E","http://www.asso-copernic.org/",null,"http://www.asso-copernic.org/images/index_01.jpg",null," ","eric",null,null,"Mail du 24-04-2013"]
["X184","Rassemblement","RACQ",46,{"$f":"IFERROR(VLOOKUP(D560,'Département _ Régions'!$C$4:$F$99,4),\"\")","v":"Midi-Pyrénées"},"F","Sauliac-sur-Cele",17,300,"Rassemblement Astronomiques du Ciel noir en Quercy organisé par Gigouzac et Amis du Cele","Club Astro de Gigouzac (46)",null,null,44,31,53,"N",1,41,17,"E","http://astrosurf.com/clubgigouzac/index_b.htm","http://astrosurf.com/clubgigouzac/photos_racq_2004_fichiers/racq04_4.jpg","http://astrosurf.com/clubgigouzac/communs/LogoGigouzac.jpg",null,"Droits Réservés","eric",null,null,"Mail le 30-04-2013"]
["x229","Observatoire","Observatoire de l'AAL",19,{"$f":"IFERROR(VLOOKUP(D561,'Département _ Régions'!$C$4:$F$99,4),\"\")","v":"Limousin"},"F",null,0,null,"Obs de l'Association Astronomique du Limousin AAL, actuellement en transit (voir Chanseves)","AAL",{"$nulls":5},"N",{"$nulls":3},"E","http://www.astrosurf.com/aal/association.html",null,"http://www.astrosurf.com/aal/prospec_ete_2007_html_53ac10bf.gif",null," ","eric"]
["x231","Site usuel","Col de Portet",65,{"$f":"IFERROR(VLOOKUP(D562,'Département _ Régions'!$C$4:$F$99,4),\"\")","v":"Midi-Pyrénées"},"F","Aulon",20,2220,"Très bon site en théorie, à tester","Planetarn","Mail GRESAC",null,42,49,58,"N",0,14,9,"E","http://pagesperso-orange.fr/planetarn/manu/etudesitesastro/HP.htm",{"$nulls":3}," ","eric"]
["x279","Gîtes ou Camping","St Crepin et Carlucet",24,{"$f":"IFERROR(VLOOKUP(D563,'Département _ Régions'!$C$4:$F$99,4),\"\")","v":"Aquitaine"},"F","St-Crepin-et-Carlucet",15,240,"En attente de validation car coordonnées précises inconnues !",null,"Forum Webastro",null,44,56,59,"N",1,15,15,"E","http://www.webastro.net/forum/showthread.php?p=473143 - post473143",{"$nulls":3}," ","eric"]
["X314","Rassemblement","Rencontres Astro du Gatinnais",77,{"$f":"IFERROR(VLOOKUP(D564,'Département _ Régions'!$C$4:$F$99,4),\"\")","v":"Ile-de-France"},"F","Buthiers",11,100,"Dans la base de Loisir de Buthier, 2 coupoles, T600,T510, T355, T200…","Base de Buthiers","http://www.astrosurf.com/ubb/Forum18/HTML/000015.html",null,48,17,34,"N",2,26,3,"E","http://www.base-de-buthiers.fr/","http://www.base-de-buthiers.fr/webmaster/images/photos/DSC_0096.JPG",null,null,"Droits Réservés","eric",null,null,"mail le 02/05/2013"]
["x447","Observatoire","Observatoire de Le Creusot",null,{"$f":"IFERROR(VLOOKUP(D565,'Département _ Régions'!$C$4:$F$99,4),\"\")","v":""},null,null,0,{"$nulls":12},"E",{"$nulls":4}," ","eric"]
["x450","Gîtes ou Camping","La petite Colline",71,{"$f":"IFERROR(VLOOKUP(D566,'Département _ Régions'!$C$4:$F$99,4),\"\")","v":"Bourgogne"},"F","St Maurice-des-C",14,400,"Très charmante maison d'hôte indépendante pour 3 personnes, avec jardin, le tout dans un grand domaine, aménagée avec classe et beaucoup de goût. Possibilté d'un autre gîte voisin de 7 personnes. Possibilité de repas servis au gîte. Convient parfaitement pour un week end ou des vacances astro à deux ou en famille, ou de plus grandes réunions ( les propriétaires peuvent mettre à disposition des grandes tentes militaires, et s'occuper de la logistique d'une star party). Possibilité de location d'un dobson 400\n","la petite coline","Mail GRESAC",null,46,37,45,"N",4,37,16,"E","http://www.lapetitecoline.fr/La_Petite_Coline/Bienvenue.html","http://www.lapetitecoline.fr/La_Petite_Coline/Bienvenue_files/petite%20coline2.jpg",null,"dobson.2005@gmail.com","Droits Réservés","eric",null,null,"Mail le 22/05/13"]
["x466","Site usuel","Ancien silo",84,{"$f":"IFERROR(VLOOKUP(D567,'Département _ Régions'!$C$4:$F$99,4),\"\")","v":"PACA"},"F","Sault",0,{"$nulls":3},"http://www.webastro.net/forum/showthread.php?t=18674&page=16",null,44,3,32,"N",5,28,11,"E",{"$nulls":4}," ","eric"]
["x467","Gîtes ou Camping","Camping  La réoule",{"v":9,"d":"09"},{"$f":"IFERROR(VLOOKUP(D568,'Département _ Régions'!$C$4:$F$99,4),\"\")","v":"Midi-Pyrénées"},"F","Le Fossat",0,{"$nulls":3},"http://www.astrosurf.com/ubb/Forum2/HTML/033540.html",{"$nulls":4},"N",{"$nulls":3},"E",{"$nulls":4}," ","eric"]
["x493","Site usuel","Aubignat",63,{"$f":"IFERROR(VLOOKUP(D569,'Département _ Régions'!$C$4:$F$99,4),\"\")","v":"Auvergne"},"F",null,0,{"$nulls":3},"4A",{"$nulls":4},"N",{"$nulls":3},"E","http://www.astronomes-auvergne.fr/dossiers/Ciel%20noir%20Haut%20forez%20sancy%20sud%20cantal%20cezallier.pdf?u=",{"$nulls":3}," ","eric"]
["x61","Site usuel","Col des Aravis",74,{"$f":"IFERROR(VLOOKUP(D570,'Département _ Régions'!$C$4:$F$99,4),\"\")","v":"Rhône-Alpes"},"F","La Clusaz",19,1490,"À confirmer,en bord de route,  noir complet malgré qq habitations, E et O limité",null,"Forum Webastro",null,45,52,12,"N",6,28,9,"E",{"$nulls":4}," ","eric"]
[562,"Gîtes ou Camping","Gites Astro Espagne",null,"Salamanque","E","Villanueva-del-C",20,600,"2 gites de 2 à 7 places avec grand jardin et vues imprenable dans la montagne a une heure de Salamanque (Espagne). Le propriétaire est français. Un oberservatoire dans le jardin muni d'un newton de 200mm masi surtout sorties avec un Dobson Factory de 500mm. Qualité du ciel exceptionnel. Vacances garanties...","casa sierra salamanca","Mail GRESAC","V135",40,30,8,"N",6,0,44,"W","http://www.casasierrasalamanca.com/gites-espagne.html","http://www.casasierrasalamanca.com/fotos/astronomia-turismo.jpg",null,null,"© Casa sierra salamanca","eric","2014-09-05"]
[563,"Site usuel","Puerto  San Glorio",null,null,"E",null,20,1670,null,null,"Mail GRESAC","V135",40,30,8,"N",6,0,44,"W",null,"http://static.panoramio.com/photos/large/42833373.jpg",null,"hal9000_mark1@yahoo.es","© Panoramio MikeMay","eric","2014-09-05"]
[564,"Site usuel","La Vigne de Morlais",52,{"$f":"IFERROR(VLOOKUP(D573,'Département _ Régions'!$C$4:$F$99,4),\"\")","v":"Champagne-Ardenne"},"F","Millieres",18,430,"horizon E-S-W dégagé, SQM zénital 21.3-21.4, pollution lumineuse très faible dans toutes les directions. Route carrossable (petits cailloux, peu d'ornières) sur 200m ",null,"Mail GRESAC","V135",48,9,38,"N",5,26,55,"E",{"$nulls":3},"laurent.rattini@wanadoo.fr",null,"eric","2014-09-05"]
[564,"Gîtes ou Camping","Gite de l'Huis Prunelle",58,{"$f":"IFERROR(VLOOKUP(D574,'Département _ Régions'!$C$4:$F$99,4),\"\")","v":"Bourgogne"},"F","Planchez",19,690,"Gite d'étape situé sur un tracé du GR13 Accueil très sympathique et grand champ très dégagé juste à coté du gite (capacité d'une 20aine de postes en équatorial). Quasiment aucune pollution lumineuse Possibilité de se raccorder au 220V pour astrophoto.","l'huis prunelle","Mail GRESAC","V135",47,7,22,"N",4,4,4,"E","http://planchez.stationverte.com/fr/decouvrez/planchez/gite-d-etape-communal-de-l-huis-prunelle_s10961_t13310_58.html","http://planchez.stationverte.com/visuels/ot/20140407_SAM_0098.png",null,null,"© L'huis Prunelle","eric","2014-09-05"]
[565,"Site usuel","Col des Tentes",65,{"$f":"IFERROR(VLOOKUP(D575,'Département _ Régions'!$C$4:$F$99,4),\"\")","v":"Midi-Pyrénées"},"F","Gavarnie",20,2210,"parking des randonneurs interdit aux campings-cars magnifique lieu d'observation en dehors des périodes d'enneigement l'hiver, la route est barrée au parking des pistes de Gavarnie (se renseigner sur l'enneigement)",null,"Mail GRESAC","V135",42,42,48,"N",0,3,4,"W",null,"http://www.panoramio.com/photo_explorer#user=6420460&with_photo_id=78873717&order=date_desc",null,"gerard.arlic@free.fr","© Panoramio txema-122","eric","2014-09-05"]
[566,"Observatoire","Obs Astronomique de Bauduen",83,{"$f":"IFERROR(VLOOKUP(D576,'Département _ Régions'!$C$4:$F$99,4),\"\")","v":"PACA"},"F","Bauduen",18,520,"L'OAB existe depuis 1992. J'ai construit en 1995 un télescope Newton (masse de 1300 kg) sur monture à fourche. F/D: 3,3. Sous coupole en acier octogonale de 5 m de diamètre Le site dispose aussi de 3 logements (14 lits).","observatoire astronomique de bauduen","Mail GRESAC","V135",43,43,16,"N",6,11,0,"E","http://www.observatoire-astronomique-de-bauduen.com","http://www.observatoire-astronomique-de-bauduen.com/image/image.jpg",null,null,"© Obs de Bauduen","eric","2014-09-05"]
[{"$nulls":4},{"$f":"IFERROR(VLOOKUP(D577,'Département _ Régions'!$C$4:$F$99,4),\"\")","v":""}]
[{"$nulls":4},{"$f":"IFERROR(VLOOKUP(D578,'Département _ Régions'!$C$4:$F$99,4),\"\")","v":""}]
[{"$nulls":4},{"$f":"IFERROR(VLOOKUP(D579,'Département _ Régions'!$C$4:$F$99,4),\"\")","v":""},{"$nulls":11},"N",{"$nulls":3},"E",{"$nulls":4},{"$f":"IF(ISBLANK(W579),\" \",\"Droits Réservés\")","v":" "}]

{"sheet":"GM","index":1,"n_rows":29,"n_cols":20,"rows_kept":29,"merged":[[1,3,1,5],[2,4,2,5],[3,3,3,4],[4,3,4,7],[5,3,5,7],[5,10,5,12],[6,3,6,7],[9,19,14,19],[18,19,24,19],[28,0,28,8]]}
[]
[null,null,"Site ","Petit Tenquin",null,null,"Longitude ",{"v":48.994166666666665,"d":"48.99417"}]
[null,null,"Département ",57,{"$f":"VLOOKUP(D3,'Département _ Régions'!$C$4:$F$99,2)","v":"Moselle"},null,"Latitude ",{"v":6.885833333333333,"d":"6.88583"}]
[null,null,"Commune ","Hilspich",null,null,"N° Site ",283]
[null,null,"Site Internet ","http://www.webastro.net/forum/showthread.php?t=37211"]
[null,null,"image "]
[null,null,"logo ",{"$nulls":9},"LOGO"]
[]
[]
[{"$nulls":19},"GOOGLE MAP"]
{"$rows_empty":8}
[{"$nulls":19},"IMAGE"]
{"$rows_empty":9}
["S I T E    I N T E R N E T"]

{"sheet":"Département _ Régions","index":2,"n_rows":99,"n_cols":6,"rows_kept":99}
[]
[]
[null,null,"Département","Dept","Prefecture","Region"]
[null,null,1,"Ain","Bourg-en-Bresse","Rhône-Alpes"]
[null,null,2,"Aisne","Laon","Picardie"]
[null,null,3,"Allier","Moulins","Auvergne"]
[null,null,4,"Alpes de Hautes-Provence","Digne","PACA"]
[null,null,5,"Hautes-Alpes","Gap","PACA"]
[null,null,6,"Alpes-Maritimes","Nice","PACA"]
[null,null,7,"Ardèche","Privas","Rhône-Alpes"]
[null,null,8,"Ardennes","Charleville-Mézières","Champagne-Ardenne"]
[null,null,9,"Ariège","Foix","Midi-Pyrénées"]
[null,null,10,"Aube","Troyes","Champagne-Ardenne"]
[null,null,11,"Aude","Carcassonne","Languedoc-Roussillon"]
[null,null,12,"Aveyron","Rodez","Midi-Pyrénées"]
[null,null,13,"Bouches-du-Rhône","Marseille","PACA"]
[null,null,14,"Calvados","Caen","Basse-Normandie"]
[null,null,15,"Cantal","Aurillac","Auvergne"]
[null,null,16,"Charente","Angoulême","Poitou-Charentes"]
[null,null,17,"Charente-Maritime","La Rochelle","Poitou-Charentes"]
[null,null,18,"Cher","Bourges","Centre"]
[null,null,19,"Corrèze","Tulle","Limousin"]
[null,null,"2A","Corse-du-Sud","Ajaccio","Corse"]
[null,null,"2B","Haute-Corse","Bastia","Corse"]
[null,null,21,"Côte-d'Or","Dijon","Bourgogne"]
[null,null,22,"Côtes d'Armor","Saint-Brieuc","Bretagne"]
[null,null,23,"Creuse","Guéret","Limousin"]
[null,null,24,"Dordogne","Périgueux","Aquitaine"]
[null,null,25,"Doubs","Besançon","Franche-Comté"]
[null,null,26,"Drôme","Valence","Rhône-Alpes"]
[null,null,27,"Eure","Évreux","Haute-Normandie"]
[null,null,28,"Eure-et-Loir","Chartres","Centre"]
[null,null,29,"Finistère","Quimper","Bretagne"]
[null,null,30,"Gard","Nîmes","Languedoc-Roussillon"]
[null,null,31,"Haute-Garonne","Toulouse","Midi-Pyrénées"]
[null,null,32,"Gers","Auch","Midi-Pyrénées"]
[null,null,33,"Gironde","Bordeaux","Aquitaine"]
[null,null,34,"Hérault","Montpellier","Languedoc-Roussillon"]
[null,null,35,"Ille-et-Vilaine","Rennes","Bretagne"]
[null,null,36,"Indre","Châteauroux","Centre"]
[null,null,37,"Indre-et-Loire","Tours","Centre"]
[null,null,38,"Isère","Grenoble","Rhône-Alpes"]
[null,null,39,"Jura","Lons-le-Saunier","Franche-Comté"]
[null,null,40,"Landes","Mont-de-Marsan","Aquitaine"]
[null,null,41,"Loir-et-Cher","Blois","Centre"]
[null,null,42,"Loire","Saint-Étienne","Rhône-Alpes"]
[null,null,43,"Haute-Loire","Le Puy-en-Velay","Auvergne"]
[null,null,44,"Loire-Atlantique","Nantes","Pays de la Loire"]
[null,null,45,"Loiret","Orléans","Centre"]
[null,null,46,"Lot","Cahors","Midi-Pyrénées"]
[null,null,47,"Lot-et-Garonne","Agen","Aquitaine"]
[null,null,48,"Lozère","Mende","Languedoc-Roussillon"]
[null,null,49,"Maine-et-Loire","Angers","Pays de la Loire"]
[null,null,50,"Manche","Saint-Lô","Basse-Normandie"]
[null,null,51,"Marne","Châlons-en-Champagne","Champagne-Ardenne"]
[null,null,52,"Haute-Marne","Chaumont","Champagne-Ardenne"]
[null,null,53,"Mayenne","Laval","Pays de la Loire"]
[null,null,54,"Meurthe-et-Moselle","Nancy","Lorraine"]
[null,null,55,"Meuse","Bar-le-Duc","Lorraine"]
[null,null,56,"Morbihan","Vannes","Bretagne"]
[null,null,57,"Moselle","Metz","Lorraine"]
[null,null,58,"Nièvre","Nevers","Bourgogne"]
[null,null,59,"Nord","Lille","Nord-Pas-de-Calais"]
[null,null,60,"Oise","Beauvais","Picardie"]
[null,null,61,"Orne","Alençon","Basse-Normandie"]
[null,null,62,"Pas-de-Calais","Arras","Nord-Pas-de-Calais"]
[null,null,63,"Puy-de-Dôme","Clermont-Ferrand","Auvergne"]
[null,null,64,"Pyrénées-Atlantiques","Pau","Aquitaine"]
[null,null,65,"Hautes-Pyrénées","Tarbes","Midi-Pyrénées"]
[null,null,66,"Pyrénées-Orientales","Perpignan","Languedoc-Roussillon"]
[null,null,67,"Bas-Rhin","Strasbourg","Alsace"]
[null,null,68,"Haut-Rhin","Colmar","Alsace"]
[null,null,69,"Rhône","Lyon","Rhône-Alpes"]
[null,null,70,"Haute-Saône","Vesoul","Franche-Comté"]
[null,null,71,"Saône-et-Loire","Mâcon","Bourgogne"]
[null,null,72,"Sarthe","Le Mans","Pays de la Loire"]
[null,null,73,"Savoie","Chambéry","Rhône-Alpes"]
[null,null,74,"Haute-Savoie","Annecy","Rhône-Alpes"]
[null,null,75,"Paris","Paris","Ile-de-France"]
[null,null,76,"Seine-Maritime","Rouen","Haute-Normandie"]
[null,null,77,"Seine-et-Marne","Melun","Ile-de-France"]
[null,null,78,"Yvelines","Versailles","Ile-de-France"]
[null,null,79,"Deux-Sèvres","Niort","Poitou-Charentes"]
[null,null,80,"Somme","Amiens","Picardie"]
[null,null,81,"Tarn","Albi","Midi-Pyrénées"]
[null,null,82,"Tarn-et-Garonne","Montauban","Midi-Pyrénées"]
[null,null,83,"Var","Toulon","PACA"]
[null,null,84,"Vaucluse","Avignon","PACA"]
[null,null,85,"Vendée","La Roche-sur-Yon","Pays de la Loire"]
[null,null,86,"Vienne","Poitiers","Poitou-Charentes"]
[null,null,87,"Haute-Vienne","Limoges","Limousin"]
[null,null,88,"Vosges","Épinal","Lorraine"]
[null,null,89,"Yonne","Auxerre","Bourgogne"]
[null,null,90,"Territoire-de-Belfort","Belfort","Franche-Comté"]
[null,null,91,"Essonne","Évry","Ile-de-France"]
[null,null,92,"Hauts-de-Seine","Nanterre","Ile-de-France"]
[null,null,93,"Seine-Saint-Denis","Bobigny","Ile-de-France"]
[null,null,94,"Val-de-Marne","Créteil","Ile-de-France"]
[null,null,95,"Val-d'Oise","Pontoise","Ile-de-France"]

{"sheet":"Revision","index":3,"n_rows":38,"n_cols":3,"rows_kept":38}
[]
[null,"Modif","Date"]
[null,"Version initiale","2007-10-29"]
[null,"Modif region \"Provence-Alpes-Côte d'Azur\"en \"PACA\"","2007-11-07"]
[null,"Accents supprimés"]
[null,"Ajout champ \"Commentaires\""]
[null,"Correction de TRI","2007-11-10"]
[null,"Ajout champ Canton + POI Version","2007-11-13"]
[null,"Version GRESAC dans chaque POI","2007-11-21"]
[null,"Correction lien POI Gresac, et page Export","2007-12-06"]
[null,"Nouvelle colonne Type (site public, oservatoire,…)","2007-12-13"]
[null,"correction etendu TRI à colonne \"v\"","2007-12-21"]
[null,"\"Gites ou Camping\" au lieu de \"gîtes/Camping\"","2007-12-26"]
[null,"Logo GRESAC","2007-12-27"]
[null,"Colonne \"Commune\" et N/S, E/W pour les coordonnées","2007-12-28"]
[null,"correction colonne département ","2008-01-02"]
[null,"correction bouton de tri","2008-01-03"]
[null,"Ajout colonne \"Site_Internet\", \"Image\", \"Origine\"","2008-01-07"]
[null,"Ajout colonne \"LOGO\"","2008-01-22"]
[null,"Changement \"Site public\" en \"Site usuel\"","2008-02-04"]
[null,"Tri à partir de la ligne 7","2008-02-09"]
[null,"Liste N/S et E/W","2008-02-16"]
[null,"Ajout quantité par type de site","2008-02-24"]
[null,"Volet figer + Tri","2008-02-29"]
[null,"Tri jusqu'à ligne 300","2008-03-18"]
[null,"Ajout colonne Site (nom assos, gite)","2008-03-28"]
[null,"Intégration GM","2008-05-22"]
[null,"Tri sur altitude","2008-05-28"]
[null,"Erreur liaison externe et liste \"type de site\" disparu","2008-06-09"]
[null,"TRI limité à 300 lignes, augmenté à 500","2008-11-29"]
[null,"correction carte site free et non plus club-internet","2009-11-01"]
[null,"Reprise JM avec Excel 2013 - Extension à 1000 sites","2013-02-15"]
[null,"correction adresse site AVEX (http://www.avex-asso.org)","2013-02-17"]
[null,"Ajout colonne Gresackien et Date","2013-02-18"]
[null,"Tri sur 1000 ligne et jusqu'à colonne AA","2013-03-06"]
[null,"Ajout colonne : Date de révision, Potentiel PL(note /20), Copyright + réamménagement en-tête","2013-03-24"]
[null,"Colonne Indice /10 remplacé par /20, Améloration ergo feuille \"GM\"","2013-03-30"]
[null,"Tri sur 1000 ligne et jusqu'à colonne AD","2013-04-22"]